Workbook

Sheet APT Proforma (hidden)
C3: Local Authority Funding Reform Proforma
C5: LA Name: | D5: Derby
C6: LA Number: | D6: 831
D8: Primary minimum per pupil funding level | E8: Secondary (KS3 only) minimum per pupil funding level | G8: Secondary (KS4 only) minimum per pupil funding level | I8: Secondary minimum per pupil funding level | L8: Disapplication number where alternative MPPF values are used
D9: 4180 | E9: 5215 | G9: 5715 | I9: 5415
C11: Pupil Led Factors
C12: 1) Basic Entitlement Age Weighted Pupil Unit (AWPU) | D12: Reception uplift | E12: No | F12: Pupil Units | H12: 0 | O12: TRUE
D13: Description | E13: Amount per pupil | G13: Pupil Units | I13: Sub Total | J13: Total | K13: Proportion of total pre MFG funding (%) | L13: Notional SEN (%)
D14: Primary (Years R-6) | E14: 3123 | G14: 23531.5 | I14: 73488874.5 | J14: 147746215.8 | K14: 0.3599554864 | L14: 0.12
D15: Key Stage 3 (Years 7-9) | E15: 4404 | G15: 10051.58333 | I15: 44267173 | K15: 0.2168248173 | L15: 0.097
D16: Key Stage 4 (Years 10-11) | E16: 4963 | G16: 6042.75 | I16: 29990168.25 | K16: 0.1468946922 | L16: 0.0863
D17: Description | E17: Primary amount per pupil | F17: Secondary amount per pupil | G17: Eligible proportion of primary NOR | H17: Eligible proportion of secondary NOR | I17: Sub Total | J17: Total | K17: Proportion of total pre MFG funding (%) | L17: Primary Notional SEN (%) | M17: Secondary Notional SEN (%) | O17: TRUE
C18: 2) Deprivation | D18: FSM | E18: 460 | F18: 460 | G18: 6631.399472 | H18: 3535.459099 | I18: 4676754.943 | J18: 23134135.11 | K18: 0.1133131908 | L18: 0.3525 | M18: 0.3525
D19: FSM6 | E19: 575 | F19: 840 | G19: 7037.509336 | H19: 5127.667328 | I19: 8353808.424 | L19: 0.3525 | M19: 0.3525
D20: IDACI Band F | E20: 215 | F20: 310 | G20: 2815.225939 | H20: 1812.32335 | I20: 1167093.815 | L20: 0.3525 | M20: 0.3525
D21: IDACI Band E | E21: 260 | F21: 415 | G21: 2882.986731 | H21: 1866.936388 | I21: 1524355.151 | L21: 0.3525 | M21: 0.3525
D22: IDACI Band D | E22: 410 | F22: 580 | G22: 2044.022638 | H22: 1242.555728 | I22: 1558731.604 | L22: 0.3525 | M22: 0.3525
D23: IDACI Band C | E23: 445 | F23: 630 | G23: 2403.383622 | H23: 1550.615996 | I23: 2046393.789 | L23: 0.3525 | M23: 0.3525
D24: IDACI Band B | E24: 475 | F24: 680 | G24: 2148.859492 | H24: 1407.68394 | I24: 1977933.338 | L24: 0.3525 | M24: 0.3525
D25: IDACI Band A | E25: 620 | F25: 865 | G25: 1574.352795 | H25: 986.0870667 | I25: 1829064.046 | L25: 0.3525 | M25: 0.3525
D26: Description | E26: Primary amount per pupil | F26: Secondary amount per pupil | G26: Eligible proportion of primary NOR | H26: Eligible proportion of secondary NOR | I26: Sub Total | J26: Total | K26: Proportion of total pre MFG funding (%) | L26: Primary Notional SEN (%) | M26: Secondary Notional SEN (%)
C27: 3) Looked After Children (LAC) | D27: LAC March 19 | G27: 152.844503 | I27: 0 | J27: 3109945.544 | K27: 0 | L27: 0
C28: 4) English as an Additional Language (EAL) | D28: EAL 3 Primary | E28: 550 | G28: 4084.946732 | I28: 2246720.702 | K28: 0.01452287593 | L28: 0.4005
D29: EAL 3 Secondary | F29: 1485 | H29: 483.69311 | I29: 718284.2684 | M29: 0.4005
C30: 5) Mobility | D30: Pupils starting school outside of normal entry dates | E30: 900 | F30: 1290 | G30: 101.8821414 | H30: 41.27646993 | I30: 144940.5735 | K30: 0.0007099326936 | L30: 1 | M30: 1
D31: Description | E31: Weighting | F31: Amount per pupil (primary or secondary respectively) | G31: Percentage of eligible pupils | H31: Eligible proportion of primary and secondary NOR respectively | I31: Sub Total | J31: Total | K31: Proportion of total pre MFG funding (%) | L31: Primary Notional SEN (%) | M31: Secondary Notional SEN (%) | O31: FALSE
C32: 6) Low prior attainment | D32: Primary low prior attainment | F32: 1095 | G32: 0.3161302255 | H32: 7439.0184 | I32: 8145725.148 | J32: 14736052.43 | K32: 0.07217858426 | L32: 0.3525
D33: Secondary low prior attainment (year 7) | E33: 0.64527134 | F33: 1660 | G33: 0.2486766075 | H33: 3970.076677 | I33: 6590327.284 | M33: 0.3525
D34: Secondary low prior attainment (year 8) | E34: 0.64527134 | G34: 0.2488769148
D35: Secondary low prior attainment (year 9) | E35: 0.63585523 | G35: 0.2490242805
D36: Secondary low prior attainment (year 10) | E36: 0.58045405 | G36: 0.24476215
D37: Secondary low prior attainment (year 11) | E37: 0.48019237 | G37: 0.241229032
C40: Other Factors
O41: TRUE
C42: Factor | F42: Lump Sum per Primary School (£) | G42: Lump Sum per Secondary School (£) | H42: Lump Sum per Middle School (£) | I42: Lump Sum per All-through School (£) | J42: Total (£) | K42: Proportion of total pre MFG funding (%) | L42: Notional SEN (%)
C43: 7) Lump Sum | F43: 117800 | G43: 117800 | J43: 10435116.67 | K43: 0.05111219243
C44: 8) Sparsity factor | J44: 0 | K44: 0
C45: Please provide alternative distance and pupil number thresholds for the sparsity factor below. Please leave blank if you want to use the default thresholds. Also specify whether you want to use a tapered lump sum or the NFF weighting for any of the phases.
C46: Primary distance threshold (miles) | E46: Primary pupil number average year group threshold | I46: Fixed, tapered or NFF sparsity primary lump sum? | K46: Fixed
C47: Secondary distance threshold (miles) | E47: Secondary pupil number average year group threshold | I47: Fixed, tapered or NFF sparsity secondary lump sum? | K47: Fixed
C48: Middle schools distance threshold (miles) | E48: Middle school pupil number average year group threshold | I48: Fixed, tapered or NFF sparsity middle school lump sum? | K48: Fixed | O48: TRUE
C49: All-through schools distance threshold (miles) | E49: All-through pupil number average year group threshold | I49: Fixed, tapered or NFF sparsity all-through lump sum? | K49: Fixed
C50: 9) Fringe Payments | J50: 0 | K50: 0
C51: 10) Split Sites | J51: 0 | K51: 0
C52: 11) Rates | J52: 1394991.235 | K52: 0.006832799546
C53: 12) PFI funding | J53: 1172296 | K53: 0.005742017138
C54: 13 ) Exceptional circumstances (can only be used with prior agreement of ESFA)
C55: Circumstance | J55: Total (£) | K55: Proportion of total pre MFG funding (%) | L55: Notional SEN (%)
C56: Additional lump sum for schools amalgamated during FY20-21 | J56: 0 | K56: 0 | L56: 0 | M56: 0
C57: Additional sparsity lump sum for small schools | J57: 0 | K57: 0
C58: Exceptional Circumstance3 | J58: 0 | K58: 0
C59: Exceptional Circumstance4 | J59: 0 | K59: 0
C60: Exceptional Circumstance5 | J60: 0 | K60: 0
C61: Exceptional Circumstance6 | J61: 0 | K61: 0
C62: Exceptional Circumstance7 | J62: 0 | K62: 0
C64: Total Funding for Schools Block Formula (excluding minimum per pupil funding level and MFG Funding Total) | J64: 201728752.7 | K64: 0.9880865886
C66: 14) Additional funding to meet minimum per pupil funding level | J66: 2432254.065 | K66: 0.0119134114
C67: Total Funding for Schools Block Formula (excluding MFG Funding Total) | J67: 204161006.8 | K67: 1
C69: 15) Minimum Funding Guarantee | H69: 0.005 | J69: 11900.73858
C70: Where a value less than 0.5% or greater than 2% has been entered please provide the disapplication reference number authorising the value
C71: Apply capping and scaling factors? (gains may be capped above a specific ceiling and/or scaled) | J71: Yes
C72: Capping Factor (%) | D72: 0.029064 | E72: Scaling Factor (%) | G72: 1
C74: Total deduction if capping and scaling factors are applied | J74: -444791.5989
J75: Total (£) | K75: Proportion of Total funding(%) | L75: Notional SEN (%)
C76: MFG Net Total Funding (MFG + deduction from capping and scaling) | E76: (Please note that the total deducation for capping and scaling is greater than the total MFG) | J76: -432890.8603 | K76: -0.002119549442
C77: Total Funding for Schools Block Formula | J77: 203728115.9 | L77: 30382398.41
C79: High Needs threshold (only fill in if, exceptionally, a high needs threshold different from £6,000 has been approved) | J79: 0
C80: Additional funding from the high needs budget | J80: 0
C81: Growth fund (if applicable) | J81: 509092.06
C82: Falling rolls fund (if applicable) | J82: 0
C84: Other Adjustment to 20-21 Budget Shares | J84: 0
C85: Total Funding For Schools Block Formula (including growth and falling rolls funding) | J85: 204237208
C86: % Distributed through Basic Entitlement | J86: 0.7236749958
C87: % Pupil Led Funding | J87: 0.9243995795
C88: Primary: Secondary Ratio | J88: 1 : | K88: 1.304758684 | O88: FALSE

Sheet School Formula Budget 2021-22
C1: Early Years, Schools and High Needs Block Formula Budgets 2021/22
L3: =VLOOKUP(B5,'School & Nursery Setting Lookup'!A:G,5,FALSE) -> 0
B4: Please select your School or Nursery Setting Name in the cell below | F4: DfE No or Ofsted ID | H4: Setting Type
B5: CLICK ON THE ARROW BUTTON TO SELECT YOUR SCHOOL FROM THE LIST | F5: =VLOOKUP(B5,'School & Nursery Setting Lookup'!A:E,3,FALSE) -> 12345 | H5: =VLOOKUP(B5,'School & Nursery Setting Lookup'!A:G,4,FALSE) -> 0
C7: Early Years Nursery Funding 2021/22
B10: 1. Base Rate(s) per hour, per provider type. Setting Type | D10: Amount (£) | E10: May 2021 Term Hours | F10: Oct 2021 Term Hours | G10: Jan 2022 Term Hours | H10: Anticipated Total Budget (£) | L10: May 2021 Term Hours | M10: Oct 2021 Term Hours | N10: Jan 2022 Term Hours | P10: Anticipated Total Budget (£) | T10: May 2021 Term Hours | U10: Oct 2021 Term Hours | V10: Jan 2022 Term Hours
B11: M = Maintained Nursery at a School / Academy | C11: 4.43 | D11: per hour | E11: =IF($L$3=1,L11,0)+IF(L3=6,T11) -> 0 | F11: =IF($L$3=1,M11,0)+IF(L3=6,U11) -> 0 | G11: =IF($L$3=1,N11,0)+IF(L3=6,V11) -> 0 | H11: =IF($H$5=6,Q11,R11) -> 0 | L11: =VLOOKUP($F$5,'2021-22 Nursery Budget'!C:G,3,FALSE) ->  | M11: =VLOOKUP($F$5,'2021-22 Nursery Budget'!C:G,4,FALSE) ->  | N11: =VLOOKUP($F$5,'2021-22 Nursery Budget'!C:G,5,FALSE) ->  | P11: ='2021-22 Nursery Budget'!C254+'2021-22 Nursery Budget'!C255 -> 4400332.29 | Q11: =IF(F$5=12345,0,P11) -> 0 | R11: =SUM($E11+$F11+$G11)*$C11 -> 0 | T11: ='2021-22 Nursery Budget'!E254+'2021-22 Nursery Budget'!E255 -> 355011 | U11: ='2021-22 Nursery Budget'!F254+'2021-22 Nursery Budget'!F255 -> 324396 | V11: ='2021-22 Nursery Budget'!G254+'2021-22 Nursery Budget'!G255 -> 313896 | W11: M & A
B12: S = Stand Alone Maintained Nursery School | C12: 4.43 | E12: =IF($L$3=2,L12,0)+IF(L3=6,T12) -> 0 | F12: =IF($L$3=2,M12,0)+IF(L3=6,U12) -> 0 | G12: =IF($L$3=2,N12,0)+IF(L3=6,V12) -> 0 | H12: =IF($H$5=6,Q12,R12) -> 0 | L12: =VLOOKUP($F$5,'2021-22 Nursery Budget'!C:G,3,FALSE) ->  | M12: =VLOOKUP($F$5,'2021-22 Nursery Budget'!C:G,4,FALSE) ->  | N12: =VLOOKUP($F$5,'2021-22 Nursery Budget'!C:G,5,FALSE) ->  | P12: ='2021-22 Nursery Budget'!C253 -> 1359830.585 | Q12: =IF(F$5=12345,0,P12) -> 0 | R12: =SUM($E12+$F12+$G12)*$C12 -> 0 | T12: ='2021-22 Nursery Budget'!E253 -> 113842 | U12: ='2021-22 Nursery Budget'!F253 -> 98257.5 | V12: ='2021-22 Nursery Budget'!G253 -> 94860 | W12: S
B13: P = Pre School | C13: 4.43 | E13: =IF($L$3=3,L13,0)+IF(L3=6,T13) -> 0 | F13: =IF($L$3=3,M13,0)+IF(L3=6,U13) -> 0 | G13: =IF($L$3=3,N13,0)+IF(L3=6,V13) -> 0 | H13: =IF($H$5=6,Q13,R13) -> 0 | L13: =VLOOKUP($F$5,'2021-22 Nursery Budget'!C:G,3,FALSE) ->  | M13: =VLOOKUP($F$5,'2021-22 Nursery Budget'!C:G,4,FALSE) ->  | N13: =VLOOKUP($F$5,'2021-22 Nursery Budget'!C:G,5,FALSE) ->  | P13: ='2021-22 Nursery Budget'!C256 -> 4525450.995 | Q13: =IF(F$5=12345,0,P13) -> 0 | R13: 0 | T13: ='2021-22 Nursery Budget'!E256 -> 390004 | U13: ='2021-22 Nursery Budget'!F256 -> 297874.5 | V13: ='2021-22 Nursery Budget'!G256 -> 333668 | W13: P
B14: D = Day Nursery | C14: 4.43 | E14: =IF($L$3=4,L14,0)+IF(L3=6,T14) -> 0 | F14: =IF($L$3=4,M14,0)+IF(L3=6,U14) -> 0 | G14: =IF($L$3=4,N14,0)+IF(L3=6,V14) -> 0 | H14: =IF($H$5=6,Q14,R14) -> 0 | L14: =VLOOKUP($F$5,'2021-22 Nursery Budget'!C:G,3,FALSE) ->  | M14: =VLOOKUP($F$5,'2021-22 Nursery Budget'!C:G,4,FALSE) ->  | N14: =VLOOKUP($F$5,'2021-22 Nursery Budget'!C:G,5,FALSE) ->  | P14: ='2021-22 Nursery Budget'!C257 -> 3655850.855 | Q14: =IF(F$5=12345,0,P14) -> 0 | R14: =SUM($E14+$F14+$G14)*$C14 -> 0 | T14: ='2021-22 Nursery Budget'!E257 -> 325054 | U14: ='2021-22 Nursery Budget'!F257 -> 230924.5 | V14: ='2021-22 Nursery Budget'!G257 -> 269270 | W14: D
B15: Deprivation (Mandatory) Supplement | C15: Amount (£) | D15: Unit | E15: May 2021 Term Hours | F15: Oct 2021 Term Hours | G15: Jan 2022 Term Hours | H15: Anticipated Total Budget (£)
B16: IMD - top 20% most deprived | C16: 0.6 | D16: per hour | E16: =IF($L$3=0,0,L16) -> 0 | F16: =IF($L$3=0,0,M16) -> 0 | G16: =IF($L$3=0,0,N16) -> 0 | H16: =SUM(E16+F16+G16)*C16 -> 0 | L16: =VLOOKUP($F$5,'2021-22 Nursery Budget'!C:M,9,FALSE) ->  | M16: =VLOOKUP($F$5,'2021-22 Nursery Budget'!C:M,10,FALSE) ->  | N16: =VLOOKUP($F$5,'2021-22 Nursery Budget'!C:M,11,FALSE) ->  | P16: =SUM(L16:N16)*C16 -> 
B17: IMD - 20% to 40% most deprived | C17: 0.2 | D17: per hour | E17: =IF($L$3=0,0,L17) -> 0 | F17: =IF($L$3=0,0,M17) -> 0 | G17: =IF($L$3=0,0,N17) -> 0 | H17: =SUM(E17+F17+G17)*C17 -> 0 | L17: =VLOOKUP($F$5,'2021-22 Nursery Budget'!C:Q,13,FALSE) ->  | M17: =VLOOKUP($F$5,'2021-22 Nursery Budget'!C:Q,14,FALSE) ->  | N17: =VLOOKUP($F$5,'2021-22 Nursery Budget'!C:Q,15,FALSE) ->  | P17: =SUM(L17:N17)*C17 -> 
B18: EAL | C18: 0.2 | D18: per hour | E18: =IF($L$3=0,0,L18) -> 0 | F18: 0 | G18: =IF($L$3=0,0,N18) -> 0 | H18: =SUM(E18+F18+G18)*C18 -> 0 | L18: =VLOOKUP($F$5,'2021-22 Nursery Budget'!C:W,19,FALSE) ->  | M18: =VLOOKUP($F$5,'2021-22 Nursery Budget'!C:W,20,FALSE) ->  | N18: =VLOOKUP($F$5,'2021-22 Nursery Budget'!C:W,21,FALSE) ->  | P18: =SUM(L18:N18)*C18 -> 
B19: Other Supplements | C19: Amount (£) | D19: Unit | E19: Number of units | H19: Anticipated Total Budget (£)
B20: Disability Access Fund (see guidance notes) | C20: =IF(L3=6,75030,0) -> 0 | D20: lump sum | E20: =+IF(L3=6,1,0) -> 0 | H20: =IF(H5=6,C20,0) -> 0 | P20: =IF(H5<>6,0,H20) -> 0
B21: SEN Locality Funding (see guidance notes) | C21: =IF(L3=6,450000,0) -> 0 | D21: lump sum | E21: =+IF(L3=6,1,0) -> 0 | H21: =IF(H5=6,450000,0) -> 0 | P21: =IF(H5<>6,0,H21) -> 0
B22: 3. Other formula factors and lump sums (if applicable) | C22: Amount (£) | D22: Unit | E22: Number of units | H22: Anticipated Total Budget (£) | I22: ** Unconfirmed ESFA budget (Sept to March) (£) | J22: ** Possible Total Budget (£)
B23: Base for Stand Alone Maintained Nurseries | C23: 100000 | D23: lump sum | E23: =IF($L$3=2,1,0) -> 0 | H23: =IF(L3=6,700000,$E23*$C23) -> 0 | I23: =-H23*'DSG MNS Allocations'!E5 -> 0 | J23: =SUM(H23:I23) -> 0 | P23: =H23 -> 0
B24: Stand Alone Maintained Nursery Supplement Funding | C24: 1.32 | D24: per hour | E24: =IF($L$3=2,E12,"-") -> - | F24: =IF($L$3=2,F12,"-") -> - | G24: - | H24: =IF(L3=6,('2021-22 Nursery Budget'!B253*C24),(SUM(E24:G24)*C24)) -> 0 | I24: =-H24*'DSG MNS Allocations'!E5 -> 0 | J24: =SUM(H24:I24) -> 0 | L24: Check with Nursery Budget | P24: =H24 -> 0
B25: TOTAL FUNDING FOR EARLY YEARS SINGLE FUNDING FORMULA excluding Rates* | H25: =SUM(H11:H24) -> 0 | I25: =SUM(I23:I24) -> 0 | J25: =SUM(H25:I25) -> 0 | L25: =IFERROR(VLOOKUP(F5,'2021-22 Nursery Budget'!C:AG,31,FALSE),0)-IFERROR(VLOOKUP(F5,'2021-22 Nursery Budget'!C:AG,26,FALSE),0) -> 0 | M25: =L25-H25 -> 0 | N25: =P20+P21 -> 0 | P25: =IF(H5<>6,0,SUM(P11:P24)) -> 0
B26: Please note: * Early Years budgets are adjusted for actual hour take up in year ** Assuming stand alone Maintained Nursery Supplement funding ends August 2021 | N26: =N25+M25 -> 0
C29: High Needs Formula Budget 2021/22
D33: Element 1 & 2 Place Rate | G33: Number | H33: Total (£)
B34: Element 2 (Place led funding) - ERS Pre 16 | C34: See Separate breakdown | E34: 6000 | G34: =SUMIF('ERS 2021-22'!B:B,'School Formula Budget 2021-22'!F$5,'ERS 2021-22'!K:K) -> 0 | H34: =$G34*$E34 -> 0
D35: Element 1 & 2 Place Rate | G35: Places | H35: Total (£)
B36: Element 2 (Place led funding) - ERS Post 16 | C36: See Separate breakdown | E36: 6000 | G36: =(SUMIF('ERS 2021-22'!B:B,'School Formula Budget 2021-22'!F$5,'ERS 2021-22'!L:L)) -> 0 | H36: =$G36*$E36 -> 0
D37: Indicative Element 3 Pupils (banding) funding | G37: Number | H37: Total (£)
B38: Element 3 - Derby City Pupils (banding) funding Pre & Post 16* | C38: See Separate breakdown | E38: =SUMIF('ERS 2021-22'!B:B,F5,'ERS 2021-22'!R:R) -> 0 | G38: 1 | H38: =$G38*$E38 -> 0
D39: Other Funding | G39: Number | H39: Total (£)
B40: ERS - Other | C40: See Separate breakdown | E40: =SUMIF('ERS 2021-22'!B:B,F5,'ERS 2021-22'!S:S)+SUMIF('ERS 2021-22'!B:B,F5,'ERS 2021-22'!T:T) -> 0 | G40: 1 | H40: =$G40*$E40 -> 0
G41: Number | H41: Total (£) | L41: Check with Summary for Prints
B42: High Needs Funding from Derby City / ESFA* | C42: Including both Pre 16 & Post 16 Funding | H42: =H38+H40+H34+H36 -> 0 | L42: =SUMIF('Summary for Prints'!B:B,'School Formula Budget 2021-22'!F5,'Summary for Prints'!X:X)+SUMIF('Summary for Prints'!B:B,'School Formula Budget 2021-22'!F5,'Summary for Prints'!Y:Y)+SUMIF('Summary for Prints'!B:B,'School Formula Budget 2021-22'!F5,'Summary for Prints'!Z:Z)+SUMIF('Summary for Prints'!B:B,'School Formula Budget 2021-22'!F5,'Summary for Prints'!AA:AA) -> 0 | M42: =L42-H42 -> 0
D44: ERS Pupil Top up funding | G44: Number | H44: Total (£)
B45: Other LA Top up funding (Income not Budget. Academies to reclaim Element 3 from other LA's directly)* | C45: See Separate breakdown | E45: =SUMIF('ERS 2021-22'!B:B,F5,'ERS 2021-22'!W:W) -> 0 | G45: 1 | H45: =$G45*$E45 -> 0
B48: *Please note that High Needs top up funding follows the pupil, therefore funding will be adjusted in year where there are pupil movements
B51: =B5 -> CLICK ON THE ARROW BUTTON TO SELECT YOUR SCHOOL FROM THE LIST | F51: =F5 -> 12345 | H51: =H5 -> 0
C53: Schools Block Funding 2021/22
B57: Factor | C57: Description | D57: Primary amount per pupil | E57: Secondary KS3 amount per pupil | F57: Secondary KS4 amount per pupil | G57: Number of Pupils (Including High Needs Places) | H57: Sub total (£) | I57: Notional SEN % | J57: Notional SEN within School Budget £
B58: 1) Basic Entitlement - Age Weighted Pupil Funding (AWPU) - (per pupil amount includes Pay and Pension Grant) | C58: Primary (including reception) | D58: ='APT Proforma'!E14 -> 3123 | G58: =IFERROR(VLOOKUP($F$5,AWPU!$C:$N,9,FALSE),0) -> 0 | H58: =G58*D58 -> 0 | I58: 0.12 | J58: =D58*G58*I58 -> 0
C59: Key Stage 3 | E59: ='APT Proforma'!E15 -> 4404 | G59: =IFERROR(VLOOKUP($F$5,AWPU!$C:$N,10,FALSE),0) -> 0 | H59: =G59*E59 -> 0 | I59: 0.097 | J59: =E59*G59*I59 -> 0 | P59: Checks with 'Summary for Prints' tab
C60: Key Stage 4 | F60: ='APT Proforma'!E16 -> 4963 | G60: =IFERROR(VLOOKUP($F$5,AWPU!$C:$N,11,FALSE),0) -> 0 | H60: =G60*F60 -> 0 | I60: 0.0863 | J60: =F60*G60*I60 -> 0 | L60: Prim | M60: Sec | P60: Summary for Prints | Q60: Variance
F61: Total | G61: =SUM(G58:G60) -> 0 | H61: =SUM(H58:H60) -> 0 | J61: =SUM(J58:J60) -> 0 | L61: =G58 -> 0 | M61: =G59+G60 -> 0 | P61: =VLOOKUP(F5,'Summary for Prints'!B:D,3,FALSE) ->  | Q61: =P61-H61 -> 
B63: De-delegation - see separate breakdown | C63: Primary (including reception) | D63: =-'DE-DEL'!K9 -> -69.398 | G63: =F122 -> 0 | H63: =G63*D63 -> 0
C64: Secondary | E64: =-'DE-DEL'!L9 -> -58.218 | F64: =E64 -> -58.218 | G64: =G122 -> 0 | H64: =G64*F64 -> 0
F65: Total | G65: =SUM(G63:G64) -> 0 | H65: =SUM(H63:H64) -> 0 | P65: =VLOOKUP(F5,'Summary for Prints'!B:R,17,FALSE) ->  | Q65: =P65-H65 -> 
D66: Primary amount per pupil | E66: Secondary amount per pupil | F66: Number of eligible primary pupils | G66: Number of eligible secondary pupils | H66: Sub total (£) | I66: Notional SEN % | J66: Notional SEN within School Budget £
B67: 2) Deprivation
C68: FSM Current | D68: ='APT Proforma'!E18 -> 460 | E68: ='APT Proforma'!F18 -> 460 | F68: =IFERROR(VLOOKUP($F$5,DEP!$B:$AG,19,FALSE),0) -> 0 | G68: =IFERROR(VLOOKUP($F$5,DEP!$B:$AG,20,FALSE)+IF($F$5=4177,DEP!U103),0) -> 0 | H68: =$D68*$F68+($E68*$G68) -> 0 | I68: 0.3525 | J68: =I68*H68 -> 0
C69: FSM Ever 6 | D69: ='APT Proforma'!E19 -> 575 | E69: ='APT Proforma'!F19 -> 840 | F69: =IFERROR(VLOOKUP($F$5,DEP!$B:$AG,17,FALSE),0) -> 0 | G69: =IFERROR(VLOOKUP($F$5,DEP!$B:$AG,18,FALSE)+IF($F$5=4177,DEP!S103),0) -> 0 | H69: =$D69*$F69+($E69*$G69) -> 0 | I69: 0.3525 | J69: =I69*H69 -> 0
C70: IDACI Band F | D70: ='APT Proforma'!E20 -> 215 | E70: ='APT Proforma'!F20 -> 310 | F70: =IFERROR(VLOOKUP($F$5,DEP!$B:$AG,21,FALSE),0) -> 0 | G70: =IFERROR(VLOOKUP($F$5,DEP!$B:$AG,22,FALSE)+IF($F$5=4177,DEP!W103),0) -> 0 | H70: =$D70*$F70+($E70*$G70) -> 0 | I70: 0.3525 | J70: 0
C71: IDACI Band E | D71: ='APT Proforma'!E21 -> 260 | E71: ='APT Proforma'!F21 -> 415 | F71: =IFERROR(VLOOKUP($F$5,DEP!$B:$AG,23,FALSE),0) -> 0 | G71: =IFERROR(VLOOKUP($F$5,DEP!$B:$AG,24,FALSE)+IF($F$5=4177,DEP!Y103),0) -> 0 | H71: 0 | I71: 0.3525 | J71: 0
C72: IDACI Band D | D72: ='APT Proforma'!E22 -> 410 | E72: ='APT Proforma'!F22 -> 580 | F72: =IFERROR(VLOOKUP($F$5,DEP!$B:$AG,25,FALSE),0) -> 0 | G72: =IFERROR(VLOOKUP($F$5,DEP!$B:$AG,26,FALSE)+IF($F$5=4177,DEP!AA103),0) -> 0 | H72: 0 | I72: 0.3525 | J72: 0
C73: IDACI Band C | D73: ='APT Proforma'!E23 -> 445 | E73: ='APT Proforma'!F23 -> 630 | F73: =IFERROR(VLOOKUP($F$5,DEP!$B:$AG,27,FALSE),0) -> 0 | G73: =IFERROR(VLOOKUP($F$5,DEP!$B:$AG,28,FALSE)+IF($F$5=4177,DEP!AC103),0) -> 0 | H73: 0 | I73: 0.3525 | J73: 0
C74: IDACI Band B | D74: ='APT Proforma'!E24 -> 475 | E74: ='APT Proforma'!F24 -> 680 | F74: =IFERROR(VLOOKUP($F$5,DEP!$B:$AG,29,FALSE),0) -> 0 | G74: =IFERROR(VLOOKUP($F$5,DEP!$B:$AG,30,FALSE)+IF($F$5=4177,DEP!AE103),0) -> 0 | H74: 0 | I74: 0.3525 | J74: 0
C75: IDACI Band A | D75: ='APT Proforma'!E25 -> 620 | E75: ='APT Proforma'!F25 -> 865 | F75: =IFERROR(VLOOKUP($F$5,DEP!$B:$AG,31,FALSE),0) -> 0 | G75: =IFERROR(VLOOKUP($F$5,DEP!$B:$AG,32,FALSE)+IF($F$5=4177,DEP!AG103),0) -> 0 | H75: 0 | I75: 0.3525 | J75: =I75*H75 -> 0
E76: Total | F76: =SUM(F67:F75) -> 0 | G76: =SUM(G67:G75) -> 0 | H76: =SUM(H67:H75) -> 0 | J76: =SUM(J68:J75) -> 0 | P76: =VLOOKUP(F5,'Summary for Prints'!B:S,4,FALSE) ->  | Q76: =P76-H76 -> 
D77: Amount per pupil | G77: Number of Pupils | H77: Total (£) | J77: Total (£)
B78: 3) Prior Attainment | C78: Primary Low prior attainment | E78: ='APT Proforma'!F32 -> 1095 | G78: =IFERROR(VLOOKUP($F$5,LCHI!B:H,6,FALSE),0) -> 0 | H78: =$G78*$E78 -> 0 | I78: 0.3525 | J78: =I78*H78 -> 0
C79: Secondary pupils not achieving KS2 in Reading or Writing or Maths | E79: ='APT Proforma'!F33 -> 1660 | G79: =IFERROR(VLOOKUP($F$5,LCHI!B:H,7,FALSE),0) -> 0 | H79: =$G79*$E79 -> 0 | I79: 0.3525 | J79: =I79*H79 -> 0 | P79: =VLOOKUP(F5,'Summary for Prints'!B:S,6,FALSE) ->  | Q79: =P79-H79-H78 -> 
D80: Amount per pupil | G80: Number of Pupils | H80: Total (£) | J80: Total (£)
B81: 4) English as an Additional Language | C81: Primary pupils EAL funded for first 3 years in Statutory Education | E81: ='APT Proforma'!E28 -> 550 | G81: =IFERROR(VLOOKUP($F$5,EAL!B:D,2,FALSE),0) -> 0 | H81: =$G81*$E81 -> 0 | I81: 0.4005 | J81: =I81*H81 -> 0
C82: Secondary pupils EAL funded for first 3 years in Statutory Education | E82: ='APT Proforma'!F29 -> 1485 | G82: =IFERROR(VLOOKUP($F$5,EAL!B:D,3,FALSE),0) -> 0 | H82: =$G82*$E82 -> 0 | I82: 0.4005 | J82: =I82*H82 -> 0 | P82: =VLOOKUP(F5,'Summary for Prints'!B:S,7,FALSE) ->  | Q82: =P82-H82-H81 -> 
D83: % of NOR | E83: Amount per pupil | G83: Number of Pupils | H83: Total (£) | J83: Total (£)
B84: 5) Mobility | C84: Primary pupils included in the October School Census who did not start in August or September (Last 3 academic years) | D84: =IFERROR(G84/G58,0) -> 0 | E84: ='APT Proforma'!E30 -> 900 | G84: =IFERROR(VLOOKUP($F$5,MOB!$B:$D,2,FALSE),0) -> 0 | H84: =$G84*$E84 -> 0 | I84: 1 | J84: =I84*H84 -> 0
B85: Mobility is calculated after deducting 6% threshold level | C85: Secondary pupils included in the October School Census who did not start in August or September (Last 3 academic years) | D85: =IFERROR(G85/(G59+G60),0) -> 0 | E85: ='APT Proforma'!F30 -> 1290 | G85: =IFERROR(VLOOKUP($F$5,MOB!B:D,3,FALSE),0) -> 0 | H85: =$G85*$E85 -> 0 | I85: 1 | J85: =I85*H85 -> 0 | P85: =VLOOKUP(F5,'Summary for Prints'!B:S,8,FALSE) ->  | Q85: =P85-H85-H84 -> 
D86: Amount of lump sum | G86: Number | H86: Total (£)
B87: 6) Lump Sum | E87: =IFERROR(VLOOKUP($F$5,'Summary for Prints'!B:AD,9,FALSE),0) -> 0 | G87: 1 | H87: =$G87*$E87 -> 0 | P87: =VLOOKUP(F5,'Summary for Prints'!B:S,9,FALSE) ->  | Q87: =P87-E87 -> 
D88: Amount of split site funding | G88: Number | H88: Total (£)
B89: 7) Split Site | E89: 0 | G89: 1 | H89: =$G89*$E89 -> 0 | P89: =VLOOKUP(F5,'Summary for Prints'!B:S,10,FALSE) ->  | Q89: =P89-E89 -> 
D90: Amount of PFI funding | G90: Number | H90: Total (£)
B91: PFI to be paid back to the LA | E91: =IFERROR(VLOOKUP($F$5,'Summary for Prints'!B:AD,12,FALSE),0) -> 0 | G91: 1 | H91: =$G91*$E91 -> 0 | P91: =VLOOKUP(F5,'Summary for Prints'!B:S,12,FALSE) ->  | Q91: =P91-E91 -> 
D92: Minimum Funding Guarantee (0%) | G92: Number | H92: Total (£)
B93: Minimum Funding level per pupil / MFG / Capping & Scaling | E93: =IFERROR(VLOOKUP($F$5,'Summary for Prints'!B:AD,14,FALSE)+VLOOKUP($F$5,'Summary for Prints'!B:AD,15,FALSE),0) -> 0 | G93: 1 | H93: =$G93*$E93 -> 0 | J93: Total Notional SEN within the School Budget | P93: =VLOOKUP(F5,'Summary for Prints'!B:S,14,FALSE)+VLOOKUP(F5,'Summary for Prints'!B:S,15,FALSE) ->  | Q93: =P93-E93 -> 
D94: CAP | G94: Number | H94: Total (£)
B95: Schools Block Total excluding Rates | H95: =H61+H76+H78+H79+H81+H82+H84+H85+H87+H89+H91+H93+H65 -> 0 | J95: =J61+J76+J78+J79+J81+J82+J84+J85+J87+J89+J91+J65 -> 0 | P95: =SUM(P61:P93) ->  | Q95: =P95-H95 -> 
B97: Additional Funding | C97: KS1 Class Factor
G99: Number | H99: Total (£)
B100: KS1 Class Factor (Teacher required for 1:30 pupils ratio) | E100: =IFERROR(VLOOKUP($F$5,'Summary for Prints'!B:AD,19,FALSE),0) -> 0 | G100: 1 | H100: =$G100*$E100 -> 0 | P100: =VLOOKUP(F5,'Summary for Prints'!B:AD,19,FALSE) ->  | Q100: =P100-H100 -> 
C102: RATES
G104: Number | H104: Total (£)
B105: RATES 2021-22 (Including previous year adjustments) | E105: =IFERROR(VLOOKUP($F$5,'Summary for Prints'!B:AD,11,FALSE),0) -> 0 | G105: 1 | H105: =$G105*$E105 -> 0 | P105: =VLOOKUP(F5,'Summary for Prints'!B:AD,11,FALSE) ->  | Q105: =P105-H105 -> 
L106: Checks with 'Summary for Prints' tab
P107: =SUM(P95:P105) ->  | Q107: =SUM(H95:H105)-P107 -> 
B108: School Budget INCLUDING Early Years, Schools Block and High Needs (excl other LA Top up), KS1 Class Factor, Contingency - INCLUDING RATES | I108: =$H25+$H42+$H95+$H100+$H105 -> 0 | L108: =VLOOKUP(F5,'Summary for Prints'!B:AE,29,FALSE) ->  | M108: =L108-I108 -> 
B110: School Budget INCLUDING Early Years, Schools Block and High Needs (excl other LA Top up), KS1 Class Factor, Contingency - EXCLUDING RATES | I110: =I108-H105 -> 0 | L110: =VLOOKUP(F5,'Summary for Prints'!B:AE,30,FALSE) ->  | M110: =L110-I110 -> 
B112: Potential Total School Budget assuming stand alone Maintained Nursery Supplement funding ends August 2021 - (excluding rates) | I112: =$H25+$H42+$H95+$H100+$H105+I25-H105 -> 0 | L112: =L110+I25 ->  | M112: =L112-I112 -> 
C115: Sixth Form
D117: Indicative Sixth Form (not yet known) | G117: Number | H117: Total (£)
B118: Indicative Sixth Form | C118: Figures not yet confirmed | E118: 0 | G118: 1 | H118: =E118*G118 -> 0
C120: De-delegation from Maintained Schools 2021-22
D121: Primary Rate | E121: Secondary Rate | F121: Primary net NOR | G121: Secondary Net NOR | H121: Total (£)
B122: CFR code E23 | C122: Contingencies (SIFD & Contingencies) | D122: =-'DE-DEL'!K10 -> -6.44 | E122: =-'DE-DEL'!L10 -> -6.44 | F122: =IFERROR(VLOOKUP($F$5,'DE-DEL'!$B:$E,3,FALSE),0) -> 0 | G122: =IFERROR(VLOOKUP($F$5,'DE-DEL'!$B:$E,4,FALSE),0) -> 0 | H122: =D122*F122+E122*G122 -> 0
D123: Rate | E123: Rate | F123: Prim Net NOR | G123: Sec Net NOR | H123: Total (£)
B124: CFR code E23 | C124: Insurance | D124: =-'DE-DEL'!K14 -> -13.948 | E124: =-'DE-DEL'!L14 -> -13.948 | F124: =IFERROR(VLOOKUP($F$5,'DE-DEL'!$B:$E,3,FALSE),0) -> 0 | G124: =IFERROR(VLOOKUP($F$5,'DE-DEL'!$B:$E,4,FALSE),0) -> 0 | H124: =D124*F124+E124*G124 -> 0
D125: Rate | E125: Rate | F125: Prim Net NOR | G125: Sec Net NOR | H125: Total (£)
B126: CFR code E19 | C126: Staff Costs Supply | D126: =-'DE-DEL'!K18 -> -23.66 | E126: =-'DE-DEL'!L18 -> -23.66 | F126: =IFERROR(VLOOKUP($F$5,'DE-DEL'!$B:$E,3,FALSE),0) -> 0 | G126: =IFERROR(VLOOKUP($F$5,'DE-DEL'!$B:$E,4,FALSE),0) -> 0 | H126: =D126*F126+E126*G126 -> 0
D127: Rate | E127: Rate | F127: Prim Net NOR | G127: Sec Net NOR | H127: Total (£)
B128: CFR code E27 | C128: Support UAG and Bilingual | D128: =-'DE-DEL'!K20 -> -14.17 | E128: =-'DE-DEL'!L20 -> -14.17 | F128: =IFERROR(VLOOKUP($F$5,'DE-DEL'!$B:$E,3,FALSE),0) -> 0 | G128: =IFERROR(VLOOKUP($F$5,'DE-DEL'!$B:$E,4,FALSE),0) -> 0 | H128: =D128*F128+E128*G128 -> 0
D129: Rate | E129: Rate | F129: Prim Net NOR | G129: Sec Net NOR | H129: Total (£)
B130: CFR code E27 | C130: Behaviour Support | D130: =-'DE-DEL'!K22 -> -11.18 | E130: =-'DE-DEL'!L22 -> 0 | F130: =IFERROR(VLOOKUP($F$5,'DE-DEL'!$B:$E,3,FALSE),0) -> 0 | G130: =IFERROR(VLOOKUP($F$5,'DE-DEL'!$B:$E,4,FALSE),0) -> 0 | H130: =D130*F130+E130*G130 -> 0
H131: Total (£)
B132: CFR Code I01 | C132: LA Services De-delegated from maintained schools | H132: =H122+H124+H126+H128+H130 -> 0 | P132: =VLOOKUP(F5,'Summary for Prints'!B:AD,17,FALSE) ->  | Q132: =P132-H132 -> 
C137: Academies & other non maintained Schools - to be confirmed
D138: Primary Rate | E138: Secondary Rate | F138: Primary net NOR | G138: Secondary Net NOR | H138: Total (£)
C139: Staff Costs Supply | D139: -21.14 | E139: -21.14 | F139: =IF($H$132>0,,L$61) -> 0 | G139: =IF($H$132>0,,M$61) -> 0 | H139: =D139*F139+E139*G139 -> 0
D140: Rate | E140: Rate | F140: Prim Net NOR | G140: Sec Net NOR | H140: Total (£)
C141: Support UAG and Bilingual | D141: -9.7 | E141: -11.93 | F141: =IF($H$132>0,,L$61) -> 0 | G141: =IF($H$132>0,,M$61) -> 0 | H141: =D141*F141+E141*G141 -> 0
D142: Rate | E142: Rate | F142: Prim Net NOR | G142: Sec Net NOR | H142: Total (£)
C143: Behaviour Support - Secondary Hard to Place & Support to Inclusion | D143: -21.89 | E143: -16.8 | F143: =IF($H$132>0,,L$61) -> 0 | G143: =IF($H$132>0,,M$61) -> 0 | H143: =D143*F143+E143*G143 -> 0
H144: Total (£)
C145: LA Services to be Invoiced to non maintained schools | H145: =H143+H141+H139 -> 0

Sheet Special Schools & PRU
A1: Special School Budgets 2021/22
A2: Please select your school in the cell below
A3: CLICK ON THE ARROW BUTTON TO SELECT YOUR SCHOOL FROM THE LIST
C4: DFE
C5: =VLOOKUP($A$3,'Special Schools List'!A:C,3,FALSE) -> All
A7: High Needs Formula Indicative 2021/22
B8: Places | C8: Rate | D8: Total (£)
A9: Element 1 & 2 (Place led funding) - Special Schools Pre 16 | B9: =SUMIF('Special Schools 2021-22'!C:C,C5,'Special Schools 2021-22'!I:I) -> 705 | C9: 10000 | D9: =C9*B9 -> 7050000
B10: Places | C10: Rate | D10: Total (£)
A11: Element 1 & 2 (Place led funding) - Special Schools Post 16 | B11: =SUMIF('Special Schools 2021-22'!C:C,C5,'Special Schools 2021-22'!J:J) -> 103 | C11: 10000 | D11: =C11*B11 -> 1030000
B12: Places | D12: Total (£)
A13: Element 1 & 2 (Place led funding) - Alternative Provision | B13: =SUMIF('Special Schools 2021-22'!C:C,C5,'Special Schools 2021-22'!H:H) -> 100 | C13: 10000 | D13: =B13*C13 -> 1000000
D14: Total (£)
A15: Teacher Pay and Pension Grant | B15: =B9+B11+B13 -> 908 | C15: 660 | D15: =C15*B15 -> 599280
A17: Element 3 - Derby City Pupils (banding) funding Pre 16* | B17: See separate breakdown sheet | D17: =SUMIF('Special Schools 2021-22'!$C:$C,$C$5,'Special Schools 2021-22'!$S:$S) -> 7995648
D18: Total (£)
A19: Element 3 - Derby City Pupils (banding) funding Post 16* | B19: See separate breakdown sheet | D19: =SUMIF('Special Schools 2021-22'!$C:$C,$C$5,'Special Schools 2021-22'!$T:$T) -> 967291
D20: Total (£)
A21: Residential Places | B21: See separate breakdown sheet | D21: =SUMIF('Special Schools 2021-22'!$C:$C,$C$5,'Special Schools 2021-22'!$U:$U) -> 234360
D22: Total (£)
A23: Other - Exceptional Payments | B23: See separate breakdown sheet | D23: =SUMIF('Special Schools 2021-22'!$C:$C,$C$5,'Special Schools 2021-22'!$V:$V) -> 413895.31
D24: Total (£)
A25: MFG | D25: =SUMIF('Special Schools 2021-22'!$C:$C,$C$5,'Special Schools 2021-22'!$X:$X) -> 120095
D26: Total (£)
A27: PFI | D27: =SUMIF('Special Schools 2021-22'!$C:$C,$C$5,'Special Schools 2021-22'!$Y:$Y) -> 94219.29285
D28: Total (£)
A29: High Needs Funding from Derby City LA / EFA* | D29: =D9+D11+D13+D17+D19+D23+D27+D21+D25+D15 -> 19504788.6
B30: No.of Pupils | D30: Total (£)
A31: Element 3 - Other LA (banding) funding (Academies to reclaim Element 3 from other LA's directly)* | B31: =SUMIF('Special Schools 2021-22'!C:C,C5,'Special Schools 2021-22'!M:M)+SUMIF('Special Schools 2021-22'!C:C,C5,'Special Schools 2021-22'!N:N) -> 55 | C31: See separate breakdown sheet | D31: =SUMIF('Special Schools 2021-22'!$C:$C,$C$5,'Special Schools 2021-22'!$AA:$AA) -> 483851
A33: *Please note that High Needs top up funding follows the pupil, therefore funding will be adjusted in year where there are pupil movements

Sheet DSG MNS Allocations (hidden)
A1: Dedicated schools grant: 2021 to 2022 supplementary funding for maintained nursery schools | C1: 2021 to 2022 Indicative / conditional supplementary funding allocation for maintained nursery schools (£s) | D1: April 2021 to August 2021 indicative supplementary funding allocation for maintained nursery schools (£s) | E1: September 2021 to March 2022 conditional supplementary funding allocation for maintained nursery schools (£s)1 | J1: Dedicated schools grant (DSG): 2021 to 2022 supplementary funding allocations for maintained nursery schools
A2: England | C2: 55836194 | D2: 23265080.83 | E2: 32571113.17 | J2: This file gives details of the 2021 to 2022 financial year supplementary funding for maintained nursery schools calculations which form part of the early years block in the DSG allocations
A3: 831 | B3: Derby | C3: 1177222 | D3: 490509.1667 | E3: 686712.8333 | J3: Please note that Isles of Scilly and City of London are not included within this file.
J4: For 2021 to 2022, part of the supplementary funding allocations are published as indicative, and part as conditional. The allocations for April 2021 to August 2021 are indicative and will be updated
C5: 1 | D5: =D3/C3 -> 0.4166666667 | E5: =E3/C3 -> 0.5833333333 | J5: on the same basis as the universal entitlements (more information on funding arrangements in this period will follow). That is the only adjustment that will be made to those figures.
J6: However, the maintained nursery school supplementary funding allocations for September 2021 to March 2022 are conditional: they may be subject to change and local authorities should
B7: Lump Sum: | C7: ='2021-22 Nursery Budget'!Z28 -> 700000 | J7: therefore treat them as unconfirmed.
B8: Base Rate: | C8: ='2021-22 Nursery Budget'!AA28 -> 405186.54
B9: Business Rates: | C9: ='2021-22 Nursery Budget'!AB28 -> 71650 | J9: Further information regarding maintained nursery schools supplementary funding is available at the following link:
C10: =SUM(C7:C9) -> 1176836.54 | J10: https://www.gov.uk/government/publications/dedicated-schools-grant-dsg-2021-to-2022
J11: Publication date: 17th December 2020
C12: =C3-C10 -> 385.46

Sheet 2021-22 Nursery Budget (hidden)
A1: Early Years Single Formula Budget
K2: DEPRIVATION IMD
A3: 2021/22 Budget estimate workings | E3: PUPIL LED BASE AMOUNT | K3: 20% most deprived | O3: 20% to 40% most deprived | U3: EAL | AA3: 1.32 | AC3: 4.43 | AD3: 0.6 | AE3: 0.2 | AF3: 0.2
A5: Schools with Nursery Classes | B5: Cost Centre | C5: DFE Ref | D5: Synergy Ref | E5: Summer Term 2020 Actual 12 weeks | F5: Autumn Term 2020 Adj Actuals 14 weeks | G5: Spring Term 2020/21 Budget 12 weeks | H5: Total Base Hours | I5: Setting Type | K5: Summer Term 2020 Actual | L5: Autumn Term 2020/21 Budget | M5: Spring Term 2020/21 Budget | N5: Total IMD top 20% Hours | O5: Summer Term 2020 Actual | P5: Autumn Term 2020/21 Budget | Q5: Spring Term 2020/21 Budget | R5: Total IMD 20% to 40% Hours | S5: Grand Total Deprivation (hours) | U5: Summer Term 2020 Actual | V5: Autumn Term 2020/21 Budget | W5: Spring Term 2020/21 Budget | X5: Total EAL (hours) | Z5: Standalone Lump Sum | AA5: Standalone Supplement | AB5: Business Rates (NNDR) | AC5: Base Costs | AD5: IMD 20% Most Deprived | AE5: IMD 20% to 40% Deprived | AF5: EAL | AG5: Grand Total | AI5: 2020/21 Budget | AJ5: Increase or Decrease (-) | AL5: 2021/22 Base Hours | AM5: 2020/21 Budget Base Hours | AN5: Increase or Decrease (-)
A7: Alvaston Infant and Nursery School | B7: E200201 | C7: 2443 | E7: 15480 | F7: 16110 | G7: 8100 | H7: 39690 | I7: M | K7: 5220 | L7: 5732.453451 | M7: 2840.488122 | N7: 13792.94157 | O7: 6660 | P7: 7345.407095 | Q7: 4783.338116 | R7: 18788.74521 | S7: 32581.68678 | U7: 0 | V7: 320.6344784 | W7: 697.5143345 | X7: 1018.148813 | Z7: 0 | AA7: 0 | AB7: 0 | AC7: 175826.7 | AD7: 8275.764944 | AE7: 3757.749042 | AF7: 203.6297626 | AG7: 188063.8437 | AI7: 168373 | AJ7: 19690.84375 | AL7: 39690 | AM7: 35766 | AN7: 3924 | AQ7: =VLOOKUP(C7,'School & Nursery Setting Lookup'!C:C,1,FALSE) -> 2443
A8: Ashgate Nursery | B8: E100101 | C8: 1014 | E8: 10848 | F8: 9266 | G8: 9180 | H8: 29294 | I8: S | K8: 2772 | L8: 2666.788643 | M8: 2641.645574 | N8: 8080.434217 | O8: 6996 | P8: 5595.330946 | Q8: 4957.772151 | R8: 17549.1031 | S8: 25629.53731 | U8: 1080 | V8: 1302.655964 | W8: 1174.926875 | X8: 3557.58284 | Z8: 100000 | AA8: 38668.08 | AB8: 12000 | AC8: 129772.42 | AD8: 4848.26053 | AE8: 3509.820619 | AF8: 711.5165679 | AG8: 289510.0977 | AI8: 284997 | AJ8: 4513.097718 | AL8: 29294 | AM8: 29016 | AN8: 278 | AQ8: =VLOOKUP(C8,'School & Nursery Setting Lookup'!C:C,1,FALSE) -> 1014
A9: Becket Primary School | B9: E200901 | C9: 2405 | E9: 8280 | F9: 7320 | G9: 1980 | H9: 17580 | I9: M | K9: 5220 | L9: 4823.185819 | M9: 1691.690068 | N9: 11734.87589 | O9: 3060 | P9: 2970.928355 | Q9: 1442.505914 | R9: 7473.434269 | S9: 19208.31016 | U9: 1260 | V9: 1762.219927 | W9: 1559.994413 | X9: 4582.21434 | Z9: 0 | AA9: 0 | AB9: 0 | AC9: 77879.4 | AD9: 7040.925532 | AE9: 1494.686854 | AF9: 916.4428679 | AG9: 87331.45525 | AI9: 90394 | AJ9: -3062.544746 | AL9: 17580 | AM9: 18288 | AN9: -708 | AQ9: =VLOOKUP(C9,'School & Nursery Setting Lookup'!C:C,1,FALSE) -> 2405
A10: Bemrose | B10: E300101 | C10: 4177 | E10: 5040 | F10: 1470 | G10: 3060 | H10: 9570 | I10: M | K10: 1080 | L10: 389.848811 | M10: 1410.463692 | N10: 2880.312503 | O10: 2880 | P10: 936.422773 | Q10: 2474.247632 | R10: 6290.670405 | S10: 9170.982908 | U10: 1440 | V10: 500.7255759 | W10: 1847.40574 | X10: 3788.131316 | Z10: 0 | AA10: 0 | AB10: 0 | AC10: 42395.1 | AD10: 1728.187502 | AE10: 1258.134081 | AF10: 757.6262632 | AG10: 46139.04785 | AI10: 63319 | AJ10: -17179.95215 | AL10: 9570 | AM10: 13335 | AN10: -3765 | AQ10: =VLOOKUP(C10,'School & Nursery Setting Lookup'!C:C,1,FALSE) -> 4177
A11: Brackensdale ER (Enhanced Resource) Primary School | B11: E201501 | C11: 2432 | E11: 5760 | F11: 4560 | G11: 9000 | H11: 19320 | I11: M | K11: 1260 | L11: 1109.40763 | M11: 2390.384958 | N11: 4759.792587 | O11: 4320 | P11: 2772.150829 | Q11: 4335.165356 | R11: 11427.31619 | S11: 16187.10877 | U11: 360 | V11: 426.1784031 | W11: 425.6506024 | X11: 1211.829005 | Z11: 0 | AA11: 0 | AB11: 0 | AC11: 85587.6 | AD11: 2855.875552 | AE11: 2285.463237 | AF11: 242.3658011 | AG11: 90971.30459 | AI11: 98112 | AJ11: -7140.695409 | AL11: 19320 | AM11: 20940 | AN11: -1620 | AQ11: =VLOOKUP(C11,'School & Nursery Setting Lookup'!C:C,1,FALSE) -> 2432
A12: Cavendish Close Infant School | B12: E202001 | C12: 2449 | E12: 13680 | F12: 13995 | G12: 14040 | H12: 41715 | I12: M | K12: 2700 | L12: 2484.20272 | M12: 2394.681419 | N12: 7578.884138 | O12: 6120 | P12: 5975.681091 | Q12: 4836.756822 | R12: 16932.43791 | S12: 24511.32205 | U12: 180 | V12: 375.4764197 | W12: 729.1853411 | X12: 1284.661761 | Z12: 0 | AA12: 0 | AB12: 0 | AC12: 184797.45 | AD12: 4547.330483 | AE12: 3386.487583 | AF12: 256.9323522 | AG12: 192988.2004 | AI12: 192589 | AJ12: 399.2004176 | AL12: 41715 | AM12: 42075 | AN12: -360 | AQ12: =VLOOKUP(C12,'School & Nursery Setting Lookup'!C:C,1,FALSE) -> 2449
A13: Central Nursery | B13: E100301 | C13: 1006 | E13: 22204 | F13: 14169.5 | G13: 14760 | H13: 51133.5 | I13: S | K13: 7128 | L13: 4339.93765 | M13: 4075.094317 | N13: 15543.03197 | O13: 5952 | P13: 4490.257112 | Q13: 5168.842509 | R13: 15611.09962 | S13: 31154.13159 | U13: 1440 | V13: 1385.099793 | W13: 1686.120931 | X13: 4511.220724 | Z13: 100000 | AA13: 67496.22 | AB13: 13750 | AC13: 226521.405 | AD13: 9325.81918 | AE13: 3122.219924 | AF13: 902.2441449 | AG13: 421117.9082 | AI13: 411812 | AJ13: 9305.90825 | AL13: 51133.5 | AM13: 50512.5 | AN13: 621 | AQ13: =VLOOKUP(C13,'School & Nursery Setting Lookup'!C:C,1,FALSE) -> 1006
A14: Harrington Nursery | B14: E100401 | C14: 1008 | E14: 14400 | F14: 14112 | G14: 14400 | H14: 42912 | I14: S | K14: 13500 | L14: 12965.26704 | M14: 12026.40859 | N14: 38491.67563 | O14: 180 | P14: 1269.304966 | Q14: 3465.94557 | R14: 4915.250535 | S14: 43406.92617 | U14: 900 | V14: 3811.032996 | W14: 8577.308994 | X14: 13288.34199 | Z14: 100000 | AA14: 56643.84 | AB14: 5750 | AC14: 190100.16 | AD14: 23095.00538 | AE14: 983.0501071 | AF14: 2657.668398 | AG14: 379229.7239 | AI14: 376152 | AJ14: 3077.723886 | AL14: 42912 | AM14: 42870 | AN14: 42 | AQ14: =VLOOKUP(C14,'School & Nursery Setting Lookup'!C:C,1,FALSE) -> 1008
A15: Lord St Nursery | B15: E100501 | C15: 1005 | E15: 19008 | F15: 13629 | G15: 14760 | H15: 47397 | I15: S | K15: 15948 | L15: 11709.09639 | M15: 13012.52422 | N15: 40669.62061 | O15: 1800 | P15: 1742.221012 | Q15: 3227.640017 | R15: 6769.861029 | S15: 47439.48164 | U15: 1080 | V15: 1565.855279 | W15: 3332.398076 | X15: 5978.253355 | Z15: 100000 | AA15: 62564.04 | AB15: 17350 | AC15: 209968.71 | AD15: 24401.77237 | AE15: 1353.972206 | AF15: 1195.650671 | AG15: 416834.1452 | AI15: 435674 | AJ15: -18839.85476 | AL15: 47397 | AM15: 50676 | AN15: -3279 | AQ15: =VLOOKUP(C15,'School & Nursery Setting Lookup'!C:C,1,FALSE) -> 1005
A16: Meadow Farm Community Primary School | B16: E203901 | C16: 2452 | E16: 6480 | F16: 5460 | G16: 3240 | H16: 15180 | I16: M | K16: 3240 | L16: 2576.634166 | M16: 1316.305332 | N16: 7132.939498 | O16: 1440 | P16: 946.8179269 | Q16: 243.1137064 | R16: 2629.931633 | S16: 9762.871131 | U16: 1080 | V16: 684.4070293 | W16: 323.8319187 | X16: 2088.238948 | Z16: 0 | AA16: 0 | AB16: 0 | AC16: 67247.4 | AD16: 4279.763699 | AE16: 525.9863267 | AF16: 417.6477896 | AG16: 72470.79781 | AI16: 68286 | AJ16: 4184.797815 | AL16: 15180 | AM16: 14550 | AN16: 630 | AQ16: =VLOOKUP(C16,'School & Nursery Setting Lookup'!C:C,1,FALSE) -> 2452
A17: Oakwood Infant School | B17: E204701 | C17: 2473 | E17: 13080 | F17: 11175 | G17: 14040 | H17: 38295 | I17: M | K17: 7200 | L17: 5975.633579 | M17: 6772.68605 | N17: 19948.31963 | O17: 5520 | P17: 4517.293469 | Q17: 5661.431921 | R17: 15698.72539 | S17: 35647.04502 | U17: 180 | V17: 273.5404124 | W17: 566.8406911 | X17: 1020.381104 | Z17: 0 | AA17: 0 | AB17: 0 | AC17: 169646.85 | AD17: 11968.99178 | AE17: 3139.745078 | AF17: 204.0762207 | AG17: 184959.6631 | AI17: 190928 | AJ17: -5968.336924 | AL17: 38295 | AM17: 40050 | AN17: -1755 | AQ17: =VLOOKUP(C17,'School & Nursery Setting Lookup'!C:C,1,FALSE) -> 2473
A18: Parkview Primary School | B18: E204901 | C18: 2003 | E18: 7029 | F18: 5985 | G18: 7020 | H18: 20034 | I18: M | K18: 180 | L18: 286.0303526 | M18: 544.3658183 | N18: 1010.396171 | O18: 0 | P18: 51.15415653 | Q18: 167.103578 | R18: 218.2577345 | S18: 1228.653905 | U18: 180 | V18: 181.6068364 | W18: 203.2489989 | X18: 564.8558353 | Z18: 0 | AA18: 0 | AB18: 0 | AC18: 88750.62 | AD18: 606.2377025 | AE18: 43.6515469 | AF18: 112.9711671 | AG18: 89513.48042 | AI18: 91518 | AJ18: -2004.519584 | AL18: 20034 | AM18: 20706 | AN18: -672 | AQ18: =VLOOKUP(C18,'School & Nursery Setting Lookup'!C:C,1,FALSE) -> 2003
A19: Ravensdale Infant and Nursery School | B19: E205401 | C19: 2462 | E19: 8355 | F19: 9030 | G19: 7920 | H19: 25305 | I19: M | K19: 720 | L19: 857.6256075 | M19: 602.0043796 | N19: 2179.629987 | O19: 720 | P19: 1264.320204 | Q19: 1426.832458 | R19: 3411.152662 | S19: 5590.782649 | U19: 0 | V19: 324.7311913 | W19: 898.1352716 | X19: 1222.866463 | Z19: 0 | AA19: 0 | AB19: 0 | AC19: 112101.15 | AD19: 1307.777992 | AE19: 682.2305324 | AF19: 244.5732926 | AG19: 114335.7318 | AI19: 115274 | AJ19: -938.2681827 | AL19: 25305 | AM19: 25620 | AN19: -315 | AQ19: =VLOOKUP(C19,'School & Nursery Setting Lookup'!C:C,1,FALSE) -> 2462
A20: Redwood Primary School | B20: E205601 | C20: 2505 | E20: 17100 | F20: 12615 | G20: 14760 | H20: 44475 | I20: M | K20: 8460 | L20: 6222.882157 | M20: 6668.168155 | N20: 21351.05031 | O20: 360 | P20: 960.6741417 | Q20: 2828.34194 | R20: 4149.016082 | S20: 25500.06639 | U20: 900 | V20: 1970.059263 | W20: 5438.9968 | X20: 8309.056063 | Z20: 0 | AA20: 0 | AB20: 0 | AC20: 197024.25 | AD20: 12810.63019 | AE20: 829.8032164 | AF20: 1661.811213 | AG20: 212326.4946 | AI20: 209853 | AJ20: 2473.494616 | AL20: 44475 | AM20: 43905 | AN20: 570 | AQ20: =VLOOKUP(C20,'School & Nursery Setting Lookup'!C:C,1,FALSE) -> 2505
A21: Roe Farm Primary School | B21: E206001 | C21: 2001 | E21: 12060 | F21: 9090 | G21: 10080 | H21: 31230 | I21: M | K21: 7380 | L21: 5783.428273 | M21: 6552.455345 | N21: 19715.88362 | O21: 3960 | P21: 3188.754441 | Q21: 4045.378574 | R21: 11194.13302 | S21: 30910.01663 | U21: 540 | V21: 650.0486755 | W21: 1104.097677 | X21: 2294.146352 | Z21: 0 | AA21: 0 | AB21: 0 | AC21: 138348.9 | AD21: 11829.53017 | AE21: 2238.826603 | AF21: 458.8292705 | AG21: 152876.086 | AI21: 156629 | AJ21: -3752.913956 | AL21: 31230 | AM21: 32400 | AN21: -1170 | AQ21: =VLOOKUP(C21,'School & Nursery Setting Lookup'!C:C,1,FALSE) -> 2001
A22: Rosehill Infant and Nursery School | B22: E206101 | C22: 2429 | E22: 9000 | F22: 6990 | G22: 5940 | H22: 21930 | I22: M | K22: 9000 | L22: 6992.753366 | M22: 6158.69142 | N22: 22151.44479 | O22: 0 | P22: 1194.303195 | Q22: 3770 | R22: 4964.303195 | S22: 27115.74798 | U22: 1440 | V22: 2742.122607 | W22: 5745.927799 | X22: 9928.050406 | Z22: 0 | AA22: 0 | AB22: 0 | AC22: 97149.9 | AD22: 13290.86687 | AE22: 992.860639 | AF22: 1985.610081 | AG22: 113419.2376 | AI22: 112901 | AJ22: 518.2375919 | AL22: 21930 | AM22: 21993 | AN22: -63 | AQ22: =VLOOKUP(C22,'School & Nursery Setting Lookup'!C:C,1,FALSE) -> 2429
A23: Shelton Infant School | B23: E206201 | C23: 2444 | E23: 9360 | F23: 10890 | G23: 9360 | H23: 29610 | I23: M | K23: 4860 | L23: 5509.530047 | M23: 4569.391119 | N23: 14938.92117 | O23: 1980 | P23: 2794.269244 | Q23: 2841.4549 | R23: 7615.724145 | S23: 22554.64531 | U23: 0 | V23: 553.3585619 | W23: 1495.440081 | X23: 2048.798642 | Z23: 0 | AA23: 0 | AB23: 0 | AC23: 131172.3 | AD23: 8963.352699 | AE23: 1523.144829 | AF23: 409.7597285 | AG23: 142068.5573 | AI23: 139637 | AJ23: 2431.557257 | AL23: 29610 | AM23: 29310 | AN23: 300 | AQ23: =VLOOKUP(C23,'School & Nursery Setting Lookup'!C:C,1,FALSE) -> 2444
A24: St James' Church of England (Aided) Infant School and Nursery | B24: E207001 | C24: 3526 | E24: 4680 | F24: 3500 | G24: 2700 | H24: 10880 | I24: M | K24: 4680 | L24: 3435.339879 | M24: 2489.946978 | N24: 10605.28686 | O24: 0 | P24: 578.7159191 | Q24: 1880 | R24: 2458.715919 | S24: 13064.00278 | U24: 360 | V24: 833.8853938 | W24: 1928.936265 | X24: 3122.821659 | Z24: 0 | AA24: 0 | AB24: 0 | AC24: 48198.4 | AD24: 6363.172114 | AE24: 491.7431838 | AF24: 624.5643318 | AG24: 55677.87963 | AI24: 55982 | AJ24: -304.1203705 | AL24: 10880 | AM24: 11010 | AN24: -130 | AQ24: =VLOOKUP(C24,'School & Nursery Setting Lookup'!C:C,1,FALSE) -> 3526
A25: Stonehill Nursery | B25: E100601 | C25: 1010 | E25: 14760 | F25: 13530 | G25: 11520 | H25: 39810 | I25: S | K25: 10800 | L25: 10216.63743 | M25: 8902.966637 | N25: 29919.60406 | O25: 3960 | P25: 3451.758257 | Q25: 3233.321357 | R25: 10645.07961 | S25: 40564.68368 | U25: 1800 | V25: 4032.329504 | W25: 7937.703466 | X25: 13770.03297 | Z25: 100000 | AA25: 52549.2 | AB25: 5400 | AC25: 176358.3 | AD25: 17951.76244 | AE25: 2129.015923 | AF25: 2754.006594 | AG25: 357142.285 | AI25: 337634 | AJ25: 19508.28496 | AL25: 39810 | AM25: 37200 | AN25: 2610 | AQ25: =VLOOKUP(C25,'School & Nursery Setting Lookup'!C:C,1,FALSE) -> 1010
A26: Walbrook Nursery | B26: E100701 | C26: 1009 | E26: 15120 | F26: 12390 | G26: 14400 | H26: 41910 | I26: S | K26: 14220 | L26: 11060.05172 | M26: 11641.36137 | N26: 36921.41309 | O26: 360 | P26: 1484.324753 | Q26: 4450.827313 | R26: 6295.152066 | S26: 43216.56515 | U26: 1260 | V26: 3979.040947 | W26: 9889.370953 | X26: 15128.4119 | Z26: 100000 | AA26: 55321.2 | AB26: 10150 | AC26: 185661.3 | AD26: 22152.84785 | AE26: 1259.030413 | AF26: 3025.68238 | AG26: 377570.0606 | AI26: 372860 | AJ26: 4710.060647 | AL26: 41910 | AM26: 41730 | AN26: 180 | AQ26: =VLOOKUP(C26,'School & Nursery Setting Lookup'!C:C,1,FALSE) -> 1009
A27: Whitecross Nursery | B27: E100801 | C27: 1015 | E27: 17502 | F27: 21161 | G27: 15840 | H27: 54503 | I27: S | K27: 972 | L27: 1626.10333 | M27: 1557.247711 | N27: 4155.351042 | O27: 1440 | P27: 1976.797485 | Q27: 1999.507646 | R27: 5416.305131 | S27: 9571.656173 | U27: 180 | V27: 467.3130938 | W27: 813.6276903 | X27: 1460.940784 | Z27: 100000 | AA27: 71943.96 | AB27: 7250 | AC27: 241448.29 | AD27: 2493.210625 | AE27: 1083.261026 | AF27: 292.1881568 | AG27: 424510.9098 | AI27: 420730 | AJ27: 3780.909808 | AL27: 54503 | AM27: 54833 | AN27: -330 | AQ27: =VLOOKUP(C27,'School & Nursery Setting Lookup'!C:C,1,FALSE) -> 1015
A28: Maintained subtotal | E28: 249226 | F28: 216447.5 | G28: 206100 | H28: 671773.5 | K28: 126540 | L28: 106762.8381 | M28: 100258.9713 | N28: 333561.8093 | O28: 57708 | P28: 55506.88737 | Q28: 67239.52748 | R28: 180454.4149 | S28: 514016.2242 | U28: 15660 | V28: 28142.32235 | W28: 56376.66292 | X28: 100178.9853 | Z28: 700000 | AA28: 405186.54 | AB28: 71650 | AC28: 2975956.605 | AD28: 200137.0856 | AE28: 36090.88297 | AF28: 20035.79705 | AG28: 4409056.911 | AI28: 4393654 | AJ28: 15402.91063 | AL28: 671773.5 | AM28: 676785.5 | AN28: -5012
A30: Arboretum Primary School | C30: 2629 | E30: 14040 | F30: 14490 | G30: 12960 | H30: 41490 | I30: A | K30: 13320 | L30: 13560.19677 | M30: 11437.64417 | N30: 38317.84095 | O30: 360 | P30: 1326.566362 | Q30: 3228.429149 | R30: 4914.995512 | S30: 43232.83646 | U30: 2340 | V30: 5628.196529 | W30: 11255.51925 | X30: 19223.71578 | Z30: 0 | AA30: 0 | AB30: 0 | AC30: 183800.7 | AD30: 22990.70457 | AE30: 982.9991023 | AF30: 3844.743157 | AG30: 211619.1468 | AI30: 210842 | AJ30: 777.1468275 | AL30: 41490 | AM30: 41490 | AN30: 0 | AQ30: =VLOOKUP(C30,'School & Nursery Setting Lookup'!C:C,1,FALSE) -> 2629
A31: Ashwood Spencer Academy (Osmaston) Primary School | C31: 2021 | E31: 7740 | F31: 6510 | G31: 8640 | H31: 22890 | I31: A | K31: 7740 | L31: 6181.642234 | M31: 7485.451726 | N31: 21407.09396 | O31: 0 | P31: 571.6425362 | Q31: 2009.968918 | R31: 2581.611454 | S31: 23988.70541 | U31: 360 | V31: 879.2036336 | W31: 2521.393421 | X31: 3760.597055 | Z31: 0 | AA31: 0 | AB31: 0 | AC31: 101402.7 | AD31: 12844.25638 | AE31: 516.3222908 | AF31: 752.119411 | AG31: 115515.3981 | AI31: 124612 | AJ31: -9096.601922 | AL31: 22890 | AM31: 24870 | AN31: -1980 | AQ31: =VLOOKUP(C31,'School & Nursery Setting Lookup'!C:C,1,FALSE) -> 2021
A32: Asterdale Primary School | C32: 2464 | E32: 9516 | F32: 8137.5 | G32: 6660 | H32: 24313.5 | I32: A | K32: 5292 | L32: 4157.755261 | M32: 3070.682955 | N32: 12520.43822 | O32: 300 | P32: 653.120688 | Q32: 1301.416264 | R32: 2254.536952 | S32: 14774.97517 | U32: 0 | V32: 253.746149 | W32: 758.151397 | X32: 1011.897546 | Z32: 0 | AA32: 0 | AB32: 0 | AC32: 107708.805 | AD32: 7512.262929 | AE32: 450.9073904 | AF32: 202.3795092 | AG32: 115874.3548 | AI32: 108224 | AJ32: 7650.354829 | AL32: 24313.5 | AM32: 23005.5 | AN32: 1308 | AQ32: =VLOOKUP(C32,'School & Nursery Setting Lookup'!C:C,1,FALSE) -> 2464
A33: Beaufort Community Primary School | C33: 2004 | E33: 7884 | F33: 7293 | G33: 4320 | H33: 19497 | I33: A | K33: 4860 | L33: 5250.736886 | M33: 4782.243529 | N33: 14892.98041 | O33: 1404 | P33: 1807.881305 | Q33: 2379.163555 | R33: 5591.04486 | S33: 20484.02527 | U33: 0 | V33: 173.2409121 | W33: 463.1397317 | X33: 636.3806437 | Z33: 0 | AA33: 0 | AB33: 0 | AC33: 86371.71 | AD33: 8935.788249 | AE33: 1118.208972 | AF33: 127.2761287 | AG33: 96552.98335 | AI33: 111530 | AJ33: -14977.01665 | AL33: 19497 | AM33: 22845 | AN33: -3348 | AQ33: =VLOOKUP(C33,'School & Nursery Setting Lookup'!C:C,1,FALSE) -> 2004
A34: Breadsall Hill Top Primary School | C34: 2018 | E34: 10260 | F34: 8115 | G34: 10800 | H34: 29175 | I34: A | K34: 3240 | L34: 1946.530586 | M34: 1785.400713 | N34: 6971.931299 | O34: 5580 | P34: 3475.488443 | Q34: 1937.299051 | R34: 10992.78749 | S34: 17964.71879 | U34: 360 | V34: 296.0636307 | W34: 691.8194051 | X34: 1347.883036 | Z34: 0 | AA34: 0 | AB34: 0 | AC34: 129245.25 | AD34: 4183.158779 | AE34: 2198.557499 | AF34: 269.5766072 | AG34: 135896.5429 | AI34: 133830 | AJ34: 2066.542885 | AL34: 29175 | AM34: 29130 | AN34: 45 | AQ34: =VLOOKUP(C34,'School & Nursery Setting Lookup'!C:C,1,FALSE) -> 2018
A35: Brookfield Primary School | C35: 2512 | E35: 9000 | F35: 7224 | G35: 5940 | H35: 22164 | I35: A | K35: 0 | L35: 155.7133454 | M35: 477.745098 | N35: 633.4584435 | O35: 540 | P35: 314.9524801 | Q35: 216.3076923 | R35: 1071.260172 | S35: 1704.718616 | U35: 0 | V35: 637.142182 | W35: 1954.81995 | X35: 2591.962132 | Z35: 0 | AA35: 0 | AB35: 0 | AC35: 98186.52 | AD35: 380.0750661 | AE35: 214.2520345 | AF35: 518.3924265 | AG35: 99299.23953 | AI35: 92096 | AJ35: 7203.239527 | AL35: 22164 | AM35: 20688 | AN35: 1476 | AQ35: =VLOOKUP(C35,'School & Nursery Setting Lookup'!C:C,1,FALSE) -> 2512
A36: Bishop Lonsdale Church of England (Aided) Primary School | C36: 2011 | E36: 7380 | F36: 6200 | G36: 5040 | H36: 18620 | I36: A | K36: 1080 | L36: 829.2669217 | M36: 472.6079294 | N36: 2381.874851 | O36: 5940 | P36: 4862.220927 | Q36: 3584.379558 | R36: 14386.60048 | S36: 16768.47534 | U36: 900 | V36: 984.4796239 | W36: 1101.632529 | X36: 2986.112153 | Z36: 0 | AA36: 0 | AB36: 0 | AC36: 82486.6 | AD36: 1429.124911 | AE36: 2877.320097 | AF36: 597.2224305 | AG36: 87390.26744 | AI36: 91324 | AJ36: -3933.732562 | AL36: 18620 | AM36: 19655 | AN36: -1035 | AQ36: =VLOOKUP(C36,'School & Nursery Setting Lookup'!C:C,1,FALSE) -> 2011
A37: Borrow Wood Primary School | C37: 5201 | E37: 5220 | F37: 5670 | G37: 3780 | H37: 14670 | I37: A | K37: 1440 | L37: 1403.120289 | M37: 406.3605153 | N37: 3249.480805 | O37: 0 | P37: 106.6318885 | Q37: 267.9901961 | R37: 374.6220846 | S37: 3624.102889 | U37: 0 | V37: 35.81052632 | W37: 90 | X37: 125.8105263 | Z37: 0 | AA37: 0 | AB37: 0 | AC37: 64988.1 | AD37: 1949.688483 | AE37: 74.92441692 | AF37: 25.16210526 | AG37: 67037.875 | AI37: 71018 | AJ37: -3980.124995 | AL37: 14670 | AM37: 15690 | AN37: -1020 | AQ37: =VLOOKUP(C37,'School & Nursery Setting Lookup'!C:C,1,FALSE) -> 5201
A38: Carlyle Infant School | C38: 2456 | E38: 8892 | F38: 6930 | G38: 14040 | H38: 29862 | I38: A | K38: 612 | L38: 405.8193381 | M38: 662.2518167 | N38: 1680.071155 | O38: 720 | P38: 404.6357163 | Q38: 759.3103239 | R38: 1883.94604 | S38: 3564.017195 | U38: 180 | V38: 496.7108069 | W38: 1683.713862 | X38: 2360.424669 | Z38: 0 | AA38: 0 | AB38: 0 | AC38: 132288.66 | AD38: 1008.042693 | AE38: 376.7892081 | AF38: 472.0849339 | AG38: 134145.5768 | AI38: 129746 | AJ38: 4399.576835 | AL38: 29862 | AM38: 29220 | AN38: 642 | AQ38: =VLOOKUP(C38,'School & Nursery Setting Lookup'!C:C,1,FALSE) -> 2456
A39: Chaddesden Park Primary School | C39: 2467 | E39: 7140 | F39: 9240 | G39: 7200 | H39: 23580 | I39: A | K39: 660 | L39: 1108.544539 | M39: 1060.258389 | N39: 2828.802927 | O39: 5040 | P39: 5695.898535 | Q39: 3466.044622 | R39: 14201.94316 | S39: 17030.74608 | U39: 0 | V39: 63.12506627 | W39: 133.8333386 | X39: 196.9584048 | Z39: 0 | AA39: 0 | AB39: 0 | AC39: 104459.4 | AD39: 1697.281756 | AE39: 2840.388631 | AF39: 39.39168097 | AG39: 109036.4621 | AI39: 91388 | AJ39: 17648.46207 | AL39: 23580 | AM39: 20010 | AN39: 3570 | AQ39: =VLOOKUP(C39,'School & Nursery Setting Lookup'!C:C,1,FALSE) -> 2467
A40: Cherry Tree Hill Primary School | C40: 2451 | E40: 8820 | F40: 10626 | G40: 9360 | H40: 28806 | I40: A | K40: 1980 | L40: 2328.793265 | M40: 1896.884423 | N40: 6205.677688 | O40: 1980 | P40: 2823.3816 | Q40: 3210.852868 | R40: 8014.234468 | S40: 14219.91216 | U40: 0 | V40: 150.2004276 | W40: 399.0361446 | X40: 549.2365722 | Z40: 0 | AA40: 0 | AB40: 0 | AC40: 127610.58 | AD40: 3723.406613 | AE40: 1602.846894 | AF40: 109.8473144 | AG40: 133046.6808 | AI40: 128511 | AJ40: 4535.680821 | AL40: 28806 | AM40: 28050 | AN40: 756 | AQ40: =VLOOKUP(C40,'School & Nursery Setting Lookup'!C:C,1,FALSE) -> 2451
A41: Cotton's Farm Primary School | C41: 2023 | E41: 1260 | F41: 840 | G41: 720 | H41: 2820 | I41: A | K41: 1080 | L41: 916.5373812 | M41: 1136.445838 | N41: 3132.983219 | O41: 0 | P41: 216.2996955 | Q41: 668.2115594 | R41: 884.511255 | S41: 4017.494474 | U41: 360 | V41: 443.4709902 | W41: 800.0085948 | X41: 1603.479585 | Z41: 0 | AA41: 0 | AB41: 0 | AC41: 12492.6 | AD41: 1879.789932 | AE41: 176.902251 | AF41: 320.695917 | AG41: 14869.9881 | AI41: 19067 | AJ41: -4197.0119 | AL41: 2820 | AM41: 3675 | AN41: -855 | AQ41: =VLOOKUP(C41,'School & Nursery Setting Lookup'!C:C,1,FALSE) -> 2023
A42: Derwent Community School | C42: 2016 | E42: 5868 | F42: 5019 | G42: 4500 | H42: 15387 | I42: A | K42: 5544 | L42: 4916.988208 | M42: 4511.257332 | N42: 14972.24554 | O42: 180 | P42: 477.0023227 | Q42: 1282.369942 | R42: 1939.372265 | S42: 16911.6178 | U42: 540 | V42: 662.5519221 | W42: 861.2186543 | X42: 2063.770576 | Z42: 0 | AA42: 0 | AB42: 0 | AC42: 68164.41 | AD42: 8983.347324 | AE42: 387.874453 | AF42: 412.7541153 | AG42: 77948.38589 | AI42: 83534 | AJ42: -5585.614108 | AL42: 15387 | AM42: 16719 | AN42: -1332 | AQ42: =VLOOKUP(C42,'School & Nursery Setting Lookup'!C:C,1,FALSE) -> 2016
A43: Firs Estate Primary School | C43: 2013 | E43: 4140 | F43: 3150 | G43: 1080 | H43: 8370 | I43: A | K43: 2520 | L43: 1981.560974 | M43: 1143.186522 | N43: 5644.747496 | O43: 1620 | P43: 1738.942404 | Q43: 1414.688895 | R43: 4773.631299 | S43: 10418.3788 | U43: 180 | V43: 504.686208 | W43: 917.3776054 | X43: 1602.063813 | Z43: 0 | AA43: 0 | AB43: 0 | AC43: 37079.1 | AD43: 3386.848498 | AE43: 954.7262598 | AF43: 320.4127627 | AG43: 41741.08752 | AI43: 46974 | AJ43: -5232.91248 | AL43: 8370 | AM43: 9600 | AN43: -1230 | AQ43: =VLOOKUP(C43,'School & Nursery Setting Lookup'!C:C,1,FALSE) -> 2013
A44: Grampian Primary School /Academy | C44: 2010 | E44: 8532 | F44: 7182 | G44: 8640 | H44: 24354 | I44: A | K44: 5580 | L44: 4597.563814 | M44: 4928.235188 | N44: 15105.799 | O44: 0 | P44: 1244.478936 | Q44: 4220 | R44: 5464.478936 | S44: 20570.27794 | U44: 720 | V44: 1273.7469 | W44: 2759.247008 | X44: 4752.993909 | Z44: 0 | AA44: 0 | AB44: 0 | AC44: 107888.22 | AD44: 9063.479401 | AE44: 1092.895787 | AF44: 950.5987818 | AG44: 118995.194 | AI44: 116997 | AJ44: 1998.19397 | AL44: 24354 | AM44: 24030 | AN44: 324 | AQ44: =VLOOKUP(C44,'School & Nursery Setting Lookup'!C:C,1,FALSE) -> 2010
A45: Griffe Field Primary School | C45: 2002 | E45: 8280 | F45: 8980 | G45: 8820 | H45: 26080 | I45: A | K45: 0 | L45: 49.00784891 | M45: 148.3333333 | N45: 197.3411822 | O45: 180 | P45: 174.7340481 | Q45: 138.8720967 | R45: 493.6061449 | S45: 690.9473271 | U45: 2160 | V45: 1749.398949 | W45: 2714.951385 | X45: 6624.350334 | Z45: 0 | AA45: 0 | AB45: 0 | AC45: 115534.4 | AD45: 118.4047093 | AE45: 98.72122897 | AF45: 1324.870067 | AG45: 117076.396 | AI45: 121261 | AJ45: -4184.603995 | AL45: 26080 | AM45: 27366 | AN45: -1286 | AQ45: =VLOOKUP(C45,'School & Nursery Setting Lookup'!C:C,1,FALSE) -> 2002
A46: Homefields Primary | C46: 2006 | E46: 9522 | F46: 10288.5 | G46: 8820 | H46: 28630.5 | I46: A | K46: 0 | L46: 62.79049516 | M46: 175.0303743 | N46: 237.8208694 | O46: 864 | P46: 987.4341419 | Q46: 1154.502063 | R46: 3005.936205 | S46: 3243.757074 | U46: 1452 | V46: 1610.795695 | W46: 1585.140947 | X46: 4647.936642 | Z46: 0 | AA46: 0 | AB46: 0 | AC46: 126833.115 | AD46: 142.6925217 | AE46: 601.1872409 | AF46: 929.5873283 | AG46: 128506.5821 | AI46: 125142 | AJ46: 3364.582091 | AL46: 28630.5 | AM46: 28161.5 | AN46: 469 | AQ46: =VLOOKUP(C46,'School & Nursery Setting Lookup'!C:C,1,FALSE) -> 2006
A47: Hackwood Primary Academy | C47: 2024 | E47: 2520 | F47: 5040 | G47: 0 | H47: 7560 | I47: A | K47: 180 | L47: 243.8709677 | M47: 0 | N47: 423.8709677 | O47: 180 | P47: 650.3225806 | Q47: 0 | R47: 830.3225806 | S47: 1254.193548 | U47: 180 | V47: 487.7419355 | W47: 0 | X47: 667.7419355 | Z47: 0 | AA47: 0 | AB47: 0 | AC47: 33490.8 | AD47: 254.3225806 | AE47: 166.0645161 | AF47: 133.5483871 | AG47: 34044.73548 | AI47: 5352 | AJ47: 28692.73548 | AL47: 7560 | AM47: 1200 | AN47: 6360 | AQ47: =VLOOKUP(C47,'School & Nursery Setting Lookup'!C:C,1,FALSE) -> 2024
A48: Hardwick Primary School | C48: 3544 | E48: 9360 | F48: 8610 | G48: 7560 | H48: 25530 | I48: A | K48: 9000 | L48: 8137.785504 | M48: 6939.809978 | N48: 24077.59548 | O48: 360 | P48: 1140.123736 | Q48: 2600.645641 | R48: 4100.769377 | S48: 28178.36486 | U48: 1260 | V48: 3247.807948 | W48: 7320.259803 | X48: 11828.06775 | Z48: 0 | AA48: 0 | AB48: 0 | AC48: 113097.9 | AD48: 14446.55729 | AE48: 820.1538754 | AF48: 2365.61355 | AG48: 130730.2247 | AI48: 136002 | AJ48: -5271.775285 | AL48: 25530 | AM48: 26775 | AN48: -1245 | AQ48: =VLOOKUP(C48,'School & Nursery Setting Lookup'!C:C,1,FALSE) -> 3544
A49: Lakeside Community Primary School | C49: 2022 | E49: 16392 | F49: 12992 | G49: 13656 | H49: 43040 | I49: A | K49: 8400 | L49: 6891.044974 | M49: 7173.708105 | N49: 22464.75308 | O49: 7656 | P49: 6355.784385 | Q49: 7662.492606 | R49: 21674.27699 | S49: 44139.03007 | U49: 2148 | V49: 1872.750683 | W49: 1731.063222 | X49: 5751.813904 | Z49: 0 | AA49: 0 | AB49: 0 | AC49: 190667.2 | AD49: 13478.85185 | AE49: 4334.855398 | AF49: 1150.362781 | AG49: 209631.27 | AI49: 212379 | AJ49: -2747.729974 | AL49: 43040 | AM49: 44030 | AN49: -990 | AQ49: =VLOOKUP(C49,'School & Nursery Setting Lookup'!C:C,1,FALSE) -> 2022
A50: Reigate Primary School | C50: 2020 | E50: 6996 | F50: 4683 | G50: 4320 | H50: 15999 | I50: A | K50: 1656 | L50: 1011.59899 | M50: 1128.026531 | N50: 3795.625521 | O50: 4620 | P50: 3159.22607 | Q50: 2942.179135 | R50: 10721.4052 | S50: 14517.03073 | U50: 0 | V50: 246.3726232 | W50: 841.7073669 | X50: 1088.07999 | Z50: 0 | AA50: 0 | AB50: 0 | AC50: 70875.57 | AD50: 2277.375313 | AE50: 2144.281041 | AF50: 217.615998 | AG50: 75514.84235 | AI50: 76686 | AJ50: -1171.157648 | AL50: 15999 | AM50: 16491 | AN50: -492 | AQ50: =VLOOKUP(C50,'School & Nursery Setting Lookup'!C:C,1,FALSE) -> 2020
A51: St Alban's Catholic Primary School | C51: 3543 | E51: 12165 | F51: 8904 | G51: 14040 | H51: 35109 | I51: A | K51: 1845 | L51: 1996.51992 | M51: 4378.896438 | N51: 8220.416358 | O51: 4419 | P51: 3014.953498 | Q51: 3447.640429 | R51: 10881.59393 | S51: 19102.01029 | U51: 1566 | V51: 1677.718359 | W51: 3621.342975 | X51: 6865.061334 | Z51: 0 | AA51: 0 | AB51: 0 | AC51: 155532.87 | AD51: 4932.249815 | AE51: 2176.318785 | AF51: 1373.012267 | AG51: 164014.4509 | AI51: 170618 | AJ51: -6603.549133 | AL51: 35109 | AM51: 36770.5 | AN51: -1661.5 | AQ51: =VLOOKUP(C51,'School & Nursery Setting Lookup'!C:C,1,FALSE) -> 3543
A52: St Chad's Church of England (Controlled) Nursery and Infant School | C52: 3158 | E52: 2160 | F52: 2730 | G52: 2340 | H52: 7230 | I52: A | K52: 1980 | L52: 2639.864477 | M52: 2491.289438 | N52: 7111.153915 | O52: 0 | P52: 604.1493776 | Q52: 1600 | R52: 2204.149378 | S52: 9315.303293 | U52: 0 | V52: 1031.132568 | W52: 2730.801637 | X52: 3761.934205 | Z52: 0 | AA52: 0 | AB52: 0 | AC52: 32028.9 | AD52: 4266.692349 | AE52: 440.8298755 | AF52: 752.386841 | AG52: 37488.80907 | AI52: 44368 | AJ52: -6879.190934 | AL52: 7230 | AM52: 8670 | AN52: -1440 | AQ52: =VLOOKUP(C52,'School & Nursery Setting Lookup'!C:C,1,FALSE) -> 3158
A53: St Mary's Catholic Primary School | C53: 3528 | E53: 9468 | F53: 9786 | G53: 6660 | H53: 25914 | I53: A | K53: 3168 | L53: 3694.465441 | M53: 2602.174682 | N53: 9464.640123 | O53: 2340 | P53: 2315.137548 | Q53: 1584.829347 | R53: 6239.966895 | S53: 15704.60702 | U53: 3060 | V53: 3939.989672 | W53: 3527.985486 | X53: 10527.97516 | Z53: 0 | AA53: 0 | AB53: 0 | AC53: 114799.02 | AD53: 5678.784074 | AE53: 1247.993379 | AF53: 2105.595032 | AG53: 123831.3925 | AI53: 112841 | AJ53: 10990.39248 | AL53: 25914 | AM53: 23721 | AN53: 2193 | AQ53: =VLOOKUP(C53,'School & Nursery Setting Lookup'!C:C,1,FALSE) -> 3528
A54: Village Primary School | C54: 3546 | E54: 12420 | F54: 10710 | G54: 12960 | H54: 36090 | I54: A | K54: 9720 | L54: 8247.237463 | M54: 9881.111113 | N54: 27848.34858 | O54: 1980 | P54: 2102.829582 | Q54: 3216.005566 | R54: 7298.835148 | S54: 35147.18372 | U54: 8640 | V54: 6501.608781 | W54: 6128.78253 | X54: 21270.39131 | Z54: 0 | AA54: 0 | AB54: 0 | AC54: 159878.7 | AD54: 16709.00915 | AE54: 1459.76703 | AF54: 4254.078262 | AG54: 182301.5544 | AI54: 186895 | AJ54: -4593.445563 | AL54: 36090 | AM54: 37350 | AN54: -1260 | AQ54: =VLOOKUP(C54,'School & Nursery Setting Lookup'!C:C,1,FALSE) -> 3546
A55: Walter Evans Church of England (Aided) Primary School | C55: 3530 | E55: 8640 | F55: 9548 | G55: 9000 | H55: 27188 | I55: A | K55: 0 | L55: 127.0432153 | M55: 361.756487 | N55: 488.7997023 | O55: 684 | P55: 659.3889095 | Q55: 395.6147541 | R55: 1739.003664 | S55: 2227.803366 | U55: 180 | V55: 255.7048893 | W55: 338.121547 | X55: 773.8264363 | Z55: 0 | AA55: 0 | AB55: 0 | AC55: 120442.84 | AD55: 293.2798214 | AE55: 347.8007327 | AF55: 154.7652873 | AG55: 121238.6858 | AI55: 121727 | AJ55: -488.3141586 | AL55: 27188 | AM55: 27656 | AN55: -468 | AQ55: =VLOOKUP(C55,'School & Nursery Setting Lookup'!C:C,1,FALSE) -> 3530
A56: Wyndham Primary Academy | C56: 2007 | E56: 6012 | F56: 7308 | G56: 10800 | H56: 24120 | I56: A | K56: 5472 | L56: 6021.656636 | M56: 7824.929908 | N56: 19318.58654 | O56: 540 | P56: 1146.472588 | Q56: 2547.189543 | R56: 4233.662131 | S56: 23552.24867 | U56: 180 | V56: 820.3511638 | W56: 2119.547156 | X56: 3119.89832 | Z56: 0 | AA56: 0 | AB56: 0 | AC56: 106851.6 | AD56: 11591.15193 | AE56: 846.7324261 | AF56: 623.979664 | AG56: 119913.464 | AI56: 120608 | AJ56: -694.5359834 | AL56: 24120 | AM56: 24516 | AN56: -396 | AQ56: =VLOOKUP(C56,'School & Nursery Setting Lookup'!C:C,1,FALSE) -> 2007
N57: 0 | R57: 0 | X57: 0 | Z57: 0 | AA57: 0 | AB57: 0 | AC57: 0 | AD57: 0 | AE57: 0 | AF57: 0 | AG57: 0
A58: Academy subtotal | E58: 219627 | F58: 206206 | G58: 202656 | H58: 628489 | K58: 96369 | L58: 88863.65575 | M58: 88361.72254 | N58: 273594.3783 | O58: 47487 | P58: 48029.7003 | Q58: 57236.40377 | R58: 152753.1041 | S58: 426347.4824 | U58: 26766 | V58: 35923.74877 | W58: 59050.61495 | X58: 121740.3637 | Z58: 0 | AA58: 0 | AB58: 0 | AC58: 2784206.27 | AD58: 164156.627 | AE58: 30550.62082 | AF58: 24348.07274 | AG58: 3003261.591 | AI58: 2993572 | AJ58: 9689.590531 | AL58: 628489 | AM58: 631384.5 | AN58: -2895.5
A59: Total Schools | E59: 468853 | F59: 422653.5 | G59: 408756 | H59: 1300262.5 | K59: 222909 | L59: 195626.4938 | M59: 188620.6938 | N59: 607156.1876 | O59: 105195 | P59: 103536.5877 | Q59: 124475.9313 | R59: 333207.5189 | S59: 940363.7066 | U59: 42426 | V59: 64066.07113 | W59: 115427.2779 | X59: 221919.349 | Z59: 700000 | AA59: 405186.54 | AB59: 71650 | AC59: 5760162.875 | AD59: 364293.7126 | AE59: 66641.50379 | AF59: 44383.8698 | AG59: 7412318.501 | AI59: 7387226 | AJ59: 25092.50116 | AL59: 1300262.5 | AM59: 1308170 | AN59: -7907.5
A61: PVI Nurseries | B61: Post Code | C61: OFSTED ID | E61: Summer Term Actual 12 weeks | F61: Autumn Term 2020 Adj Actuals 14 weeks | G61: Autumn Term 2020 Adj Actuals 14 weeks | H61: Total Base Hours | I61: Setting Type | K61: Summer Term Actual 12 weeks | L61: Autumn Term 2020/21 Budget | M61: Spring Term 2020/21 Budget | N61: Total IMD top 20% Hours | O61: Summer Term Actual 12 weeks | P61: Autumn Term 2020/21 Budget | Q61: Spring Term 2020/21 Budget | R61: Total IMD 20% to 40% Hours | S61: Grand Total Deprivation | U61: Summer Term Actual 12 weeks | V61: Autumn Term 2020/21 Budget | W61: Spring Term 2020/21 Budget | X61: Total EAL Funding | Z61: Standalone Lump Sum | AA61: Standalone Supplement | AB61: Business Rates (NNDR) | AC61: Base Costs | AD61: IMD 20% Most Deprived | AE61: IMD 20% to 40% Deprived | AF61: EAL | AG61: Grand Total | AI61: 2020/21 Budget | AJ61: Increase or Decrease (-) | AL61: 2021/22 Base Hours | AM61: 2020/21 Budget Base Hours | AN61: Variance
A63: Ace Nursery | B63: DE23 8DH | C63: 206189 | E63: 10260 | F63: 7350 | G63: 10440 | H63: 28050 | I63: D | K63: 6840 | L63: 4794.593301 | M63: 6627.733619 | N63: 18262.32692 | O63: 2340 | P63: 1833.334983 | Q63: 2766.604937 | R63: 6939.93992 | S63: 25202.26684 | U63: 3960 | V63: 2572.201131 | W63: 3756.359417 | X63: 10288.56055 | Z63: 0 | AA63: 0 | AB63: 0 | AC63: 124261.5 | AD63: 10957.39615 | AE63: 1387.987984 | AF63: 2057.712109 | AG63: 138664.5962 | AI63: 141682 | AJ63: -3017.403755 | AL63: 28050 | AM63: 28950 | AN63: -900 | AQ63: =VLOOKUP(C63,'School & Nursery Setting Lookup'!C:C,1,FALSE) -> 206189
A64: Alvaston Achievers | B64: DE24 0PU | C64: EY545705 | E64: 6840 | F64: 6420 | G64: 3602 | H64: 16862 | I64: P | K64: 1260 | L64: 2037.86203 | M64: 2701.517451 | N64: 5999.379481 | O64: 3780 | P64: 3074.985962 | Q64: 899.8736721 | R64: 7754.859634 | S64: 13754.23912 | U64: 180 | V64: 166.5646621 | W64: 0 | X64: 346.5646621 | Z64: 0 | AA64: 0 | AB64: 0 | AC64: 74698.66 | AD64: 3599.627689 | AE64: 1550.971927 | AF64: 69.31293241 | AG64: 79918.57255 | AI64: 64808 | AJ64: 15110.57255 | AL64: 16862 | AM64: 13862 | AN64: 3000 | AQ64: =VLOOKUP(C64,'School & Nursery Setting Lookup'!C:C,1,FALSE) -> EY545705
A65: An-Noor Nursery | B65: DE23 8FB | C65: EY362920 | E65: 2520 | F65: 1470 | G65: 2970 | H65: 6960 | I65: D | K65: 2340 | L65: 1271.4341 | M65: 2419.851251 | N65: 6031.285351 | O65: 0 | P65: 401.0233783 | Q65: 1898.722934 | R65: 2299.746312 | S65: 8331.031664 | U65: 1080 | V65: 785.8139875 | W65: 2010.588675 | X65: 3876.402663 | Z65: 0 | AA65: 0 | AB65: 0 | AC65: 30832.8 | AD65: 3618.771211 | AE65: 459.9492625 | AF65: 775.2805326 | AG65: 35686.80101 | AI65: 35937 | AJ65: -250.1989942 | AL65: 6960 | AM65: 7140 | AN65: -180 | AQ65: =VLOOKUP(C65,'School & Nursery Setting Lookup'!C:C,1,FALSE) -> EY362920
A66: Becket Sure Start Children's Centre | B66: DE22 3WR | C66: EY380753 | E66: 0 | F66: 0 | G66: 5325 | H66: 5325 | I66: D | K66: 0 | L66: 0 | M66: 2386.662337 | N66: 2386.662337 | O66: 0 | P66: 0 | Q66: 2507.579403 | R66: 2507.579403 | S66: 4894.241741 | U66: 0 | V66: 0 | W66: 1173.656387 | X66: 1173.656387 | Z66: 0 | AA66: 0 | AB66: 0 | AC66: 23589.75 | AD66: 1431.997402 | AE66: 501.5158806 | AF66: 234.7312774 | AG66: 25757.99456 | AI66: 25492 | AJ66: 265.9945605 | AL66: 5325 | AM66: 5325 | AN66: 0 | AQ66: =VLOOKUP(C66,'School & Nursery Setting Lookup'!C:C,1,FALSE) -> EY380753
A67: Best Start Sinfin | B67: DE24 9HW | C67: EY467568 | E67: 1728 | F67: 1230 | G67: 3060 | H67: 6018 | I67: D | K67: 1368 | L67: 990.8725754 | M67: 2460.025332 | N67: 4818.897908 | O67: 0 | P67: 233.6417453 | Q67: 1143.134978 | R67: 1376.776723 | S67: 6195.674631 | U67: 828 | V67: 661.1924547 | W67: 1597.005034 | X67: 3086.197489 | Z67: 0 | AA67: 0 | AB67: 0 | AC67: 26659.74 | AD67: 2891.338745 | AE67: 275.3553447 | AF67: 617.2394978 | AG67: 30443.67359 | AI67: 34530 | AJ67: -4086.326413 | AL67: 6018 | AM67: 6990 | AN67: -972 | AQ67: =VLOOKUP(C67,'School & Nursery Setting Lookup'!C:C,1,FALSE) -> EY467568
A68: Bizzy Kidz | B68: DE23 6AP | C68: EY450983 | E68: 22223 | F68: 15221.5 | G68: 16852 | H68: 54296.5 | I68: D | K68: 7957 | L68: 4592.42234 | M68: 4740.030845 | N68: 17289.45318 | O68: 5353.5 | P68: 4385.027244 | Q68: 5670.758924 | R68: 15409.28617 | S68: 32698.73935 | U68: 480 | V68: 348.175839 | W68: 459.808316 | X68: 1287.984155 | Z68: 0 | AA68: 0 | AB68: 0 | AC68: 240533.495 | AD68: 10373.67191 | AE68: 3081.857234 | AF68: 257.596831 | AG68: 254246.621 | AI68: 245422 | AJ68: 8824.620975 | AL68: 54296.5 | AM68: 53227.5 | AN68: 1069 | AQ68: =VLOOKUP(C68,'School & Nursery Setting Lookup'!C:C,1,FALSE) -> EY450983
A69: Boulton Lane Park Pre-School Playgroup | B69: DE24 0BD | C69: 206124 | E69: 1392 | F69: 1084 | G69: 947 | H69: 3423 | I69: D | K69: 852 | L69: 588.1897323 | M69: 286.4688391 | N69: 1726.658571 | O69: 180 | P69: 258.8460807 | Q69: 456.0255202 | R69: 894.8716008 | S69: 2621.530172 | U69: 0 | V69: 0 | W69: 0 | X69: 0 | Z69: 0 | AA69: 0 | AB69: 0 | AC69: 15163.89 | AD69: 1035.995143 | AE69: 178.9743202 | AF69: 0 | AG69: 16378.85946 | AI69: 19121 | AJ69: -2742.140537 | AL69: 3423 | AM69: 4011 | AN69: -588 | AQ69: =VLOOKUP(C69,'School & Nursery Setting Lookup'!C:C,1,FALSE) -> 206124
A70: Bramble Brook Pre-School Playgroup | B70: DE3 9HD | C70: EY282068 | E70: 5904 | F70: 3270 | G70: 5728 | H70: 14902 | I70: D | K70: 180 | L70: 141.5996912 | M70: 306.4799488 | N70: 628.0796399 | O70: 720 | P70: 437.2166793 | Q70: 464.5177586 | R70: 1621.734438 | S70: 2249.814078 | U70: 0 | V70: 72.07154536 | W70: 354.4950262 | X70: 426.5665715 | Z70: 0 | AA70: 0 | AB70: 0 | AC70: 66015.86 | AD70: 376.847784 | AE70: 324.3468876 | AF70: 85.31331431 | AG70: 66802.36799 | AI70: 80200 | AJ70: -13397.63201 | AL70: 14902 | AM70: 18076 | AN70: -3174 | AQ70: =VLOOKUP(C70,'School & Nursery Setting Lookup'!C:C,1,FALSE) -> EY282068
A71: Busy Bees Pre-School | B71: DE22 2HE | C71: 206126 | E71: 9996 | F71: 7210 | G71: 9727 | H71: 26933 | I71: D | K71: 288 | L71: 238.4929867 | M71: 398.4491584 | N71: 924.942145 | O71: 1224 | P71: 778.8268654 | Q71: 471.4600386 | R71: 2474.286904 | S71: 3399.229049 | U71: 0 | V71: 0 | W71: 0 | X71: 0 | Z71: 0 | AA71: 0 | AB71: 0 | AC71: 119313.19 | AD71: 554.965287 | AE71: 494.8573808 | AF71: 0 | AG71: 120363.0127 | AI71: 125544 | AJ71: -5180.987332 | AL71: 26933 | AM71: 28475 | AN71: -1542 | AQ71: =VLOOKUP(C71,'School & Nursery Setting Lookup'!C:C,1,FALSE) -> 206126
A72: Busy Bees-Derby, Heatherton | B72: DE23 3TZ | C72: 206111 | E72: 27875 | F72: 16867 | G72: 18360 | H72: 63102 | I72: P | K72: 1122.5 | L72: 861.6021419 | M72: 1238.867956 | N72: 3222.970098 | O72: 2561.5 | P72: 1546.52448 | Q72: 1243.549596 | R72: 5351.574076 | S72: 8574.544174 | U72: 180 | V72: 185.204684 | W72: 307.2818551 | X72: 672.4865391 | Z72: 0 | AA72: 0 | AB72: 0 | AC72: 279541.86 | AD72: 1933.782059 | AE72: 1070.314815 | AF72: 134.4973078 | AG72: 282680.4542 | AI72: 261824 | AJ72: 20856.45418 | AL72: 63102 | AM72: 59142.5 | AN72: 3959.5 | AQ72: =VLOOKUP(C72,'School & Nursery Setting Lookup'!C:C,1,FALSE) -> 206111
A73: Carlton Private Day Nursery | B73: DE22 1GQ | C73: 206091 | E73: 5545 | F73: 4739 | G73: 7642 | H73: 17926 | I73: P | K73: 720 | L73: 740.3974561 | M73: 893.2541178 | N73: 2353.651574 | O73: 360 | P73: 293.81989 | Q73: 588.9471041 | R73: 1242.766994 | S73: 3596.418568 | U73: 0 | V73: 47.21577386 | W73: 152.4923036 | X73: 199.7080775 | Z73: 0 | AA73: 0 | AB73: 0 | AC73: 79412.18 | AD73: 1412.190944 | AE73: 248.5533988 | AF73: 39.94161549 | AG73: 81112.86596 | AI73: 68938 | AJ73: 12174.86596 | AL73: 17926 | AM73: 15322.5 | AN73: 2603.5 | AQ73: =VLOOKUP(C73,'School & Nursery Setting Lookup'!C:C,1,FALSE) -> 206091
A74: Chuckles Pre-School Playgroup | B74: DE24 0RU | C74: 206128 | E74: 360 | F74: 420 | G74: 1800 | H74: 2580 | I74: P | K74: 360 | L74: 148.6030363 | M74: 478.5457048 | N74: 987.1487411 | O74: 0 | P74: 171.4244421 | Q74: 757.3236373 | R74: 928.7480794 | S74: 1915.89682 | U74: 0 | V74: 37.71776465 | W74: 212.8359577 | X74: 250.5537223 | Z74: 0 | AA74: 0 | AB74: 0 | AC74: 11429.4 | AD74: 592.2892446 | AE74: 185.7496159 | AF74: 50.11074446 | AG74: 12257.5496 | AI74: 13380 | AJ74: -1122.450395 | AL74: 2580 | AM74: 2886 | AN74: -306 | AQ74: =VLOOKUP(C74,'School & Nursery Setting Lookup'!C:C,1,FALSE) -> 206128
A75: Derby City Childminding Network - Amanda Reeves | B75: DE23 3YA | C75: 205999 | E75: 3600 | F75: 4200 | G75: 2170 | H75: 9970 | I75: P | K75: 1080 | L75: 1332.713037 | M75: 623.6999431 | N75: 3036.41298 | O75: 0 | P75: 152.3561826 | Q75: 338.8111298 | R75: 491.1673124 | S75: 3527.580292 | U75: 900 | V75: 1153.259503 | W75: 614.6294653 | X75: 2667.888968 | Z75: 0 | AA75: 0 | AB75: 0 | AC75: 44167.1 | AD75: 1821.847788 | AE75: 98.23346249 | AF75: 533.5777936 | AG75: 46620.75904 | AI75: 41047 | AJ75: 5573.759044 | AL75: 9970 | AM75: 8800 | AN75: 1170 | AQ75: =VLOOKUP(C75,'School & Nursery Setting Lookup'!C:C,1,FALSE) -> 205999
A76: Derby City Childminding Network - Andrea Louise Banyard | B76: DE21 7HY | C76: EY398922 | E76: 1836 | F76: 1890 | G76: 1010 | H76: 4736 | I76: P | K76: 360 | L76: 469.2088392 | M76: 458.3141216 | N76: 1287.522961 | O76: 0 | P76: 87.43678701 | Q76: 230.7590971 | R76: 318.1958841 | S76: 1605.718845 | U76: 0 | V76: 0 | W76: 0 | X76: 0 | Z76: 0 | AA76: 0 | AB76: 0 | AC76: 20980.48 | AD76: 772.5137764 | AE76: 63.63917683 | AF76: 0 | AG76: 21816.63295 | AI76: 22740 | AJ76: -923.3670467 | AL76: 4736 | AM76: 5000 | AN76: -264 | AQ76: =VLOOKUP(C76,'School & Nursery Setting Lookup'!C:C,1,FALSE) -> EY398922
A77: Derby City Childminding Network - Angela Jane Hatton | B77: DE21 4JQ | C77: 205921 | E77: 216 | F77: 462 | G77: 340 | H77: 1018 | I77: P | K77: 0 | L77: 62.66090009 | M77: 138.0709877 | N77: 200.7318877 | O77: 0 | P77: 63.53634578 | Q77: 140 | R77: 203.5363458 | S77: 404.2682335 | U77: 0 | V77: 0 | W77: 0 | X77: 0 | Z77: 0 | AA77: 0 | AB77: 0 | AC77: 4509.74 | AD77: 120.4391326 | AE77: 40.70726916 | AF77: 0 | AG77: 4670.886402 | AI77: 5984 | AJ77: -1313.113598 | AL77: 1018 | AM77: 1333 | AN77: -315 | AQ77: =VLOOKUP(C77,'School & Nursery Setting Lookup'!C:C,1,FALSE) -> 205921
A78: Derby City Childminding Network - Ann Stanley | C78: 206011 | E78: 72 | F78: 84 | G78: 0 | H78: 156 | I78: P | K78: 0 | L78: 0 | M78: 0 | N78: 0 | O78: 0 | P78: 0 | Q78: 0 | R78: 0 | S78: 0 | U78: 0 | V78: 0 | W78: 0 | X78: 0 | Z78: 0 | AA78: 0 | AB78: 0 | AC78: 691.08 | AD78: 0 | AE78: 0 | AF78: 0 | AG78: 691.08 | AI78: 0 | AJ78: 691.08 | AL78: 156 | AM78: 0 | AN78: 156 | AQ78: =VLOOKUP(C78,'School & Nursery Setting Lookup'!C:C,1,FALSE) -> 206011
A79: Derby City Childminding Network - Annabelle Pickles | C79: EY536395 | E79: 0 | F79: 0 | G79: 435 | H79: 435 | I79: P | K79: 0 | L79: 0 | M79: 101.2264151 | N79: 101.2264151 | O79: 0 | P79: 0 | Q79: 99.07913442 | R79: 99.07913442 | S79: 200.3055495 | U79: 0 | V79: 0 | W79: 39.18918919 | X79: 39.18918919 | Z79: 0 | AA79: 0 | AB79: 0 | AC79: 1927.05 | AD79: 60.73584906 | AE79: 19.81582688 | AF79: 7.837837838 | AG79: 2015.439514 | AI79: 1994 | AJ79: 21.43951378 | AL79: 435 | AM79: 435 | AN79: 0 | AQ79: =VLOOKUP(C79,'School & Nursery Setting Lookup'!C:C,1,FALSE) -> EY536395
A80: Derby City Childminding Network - Anne-Marie Davies | B80: DE24 9JR | C80: EY491735 | E80: 1620 | F80: 600 | G80: 306 | H80: 2526 | I80: P | K80: 1080 | L80: 364.908947 | M80: 36.26666667 | N80: 1481.175614 | O80: 360 | P80: 99.93213437 | Q80: 60.71428571 | R80: 520.6464201 | S80: 2001.822034 | U80: 0 | V80: 0 | W80: 0 | X80: 0 | Z80: 0 | AA80: 0 | AB80: 0 | AC80: 11190.18 | AD80: 888.7053682 | AE80: 104.129284 | AF80: 0 | AG80: 12183.01465 | AI80: 7531 | AJ80: 4652.014652 | AL80: 2526 | AM80: 1590 | AN80: 936 | AQ80: =VLOOKUP(C80,'School & Nursery Setting Lookup'!C:C,1,FALSE) -> EY491735
A81: Derby City Childminding Network - Arline Mali | B81: DE23 6QT | C81: EY000013 | E81: 90 | F81: 0 | G81: 250 | H81: 340 | I81: P | K81: 0 | L81: 0 | M81: 249.5769882 | N81: 249.5769882 | O81: 90 | P81: 0 | Q81: 98.3277592 | R81: 188.3277592 | S81: 437.9047474 | U81: 0 | V81: 0 | W81: 251.6778523 | X81: 251.6778523 | Z81: 0 | AA81: 0 | AB81: 0 | AC81: 1506.2 | AD81: 149.7461929 | AE81: 37.66555184 | AF81: 50.33557047 | AG81: 1743.947315 | AI81: 2175 | AJ81: -431.0526848 | AL81: 340 | AM81: 430 | AN81: -90 | AQ81: =VLOOKUP(C81,'School & Nursery Setting Lookup'!C:C,1,FALSE) -> EY000013
A82: Derby City Childminding Network - Aina Boladale Ogunwole | C82: EY440600 | E82: 720 | F82: 840 | G82: 0 | H82: 1560 | I82: P | K82: 0 | L82: 0 | M82: 0 | N82: 0 | O82: 0 | P82: 0 | Q82: 0 | R82: 0 | S82: 0 | U82: 0 | V82: 0 | W82: 0 | X82: 0 | Z82: 0 | AA82: 0 | AB82: 0 | AC82: 6910.8 | AD82: 0 | AE82: 0 | AF82: 0 | AG82: 6910.8 | AI82: 5256 | AJ82: 1654.8 | AL82: 1560 | AM82: 1200 | AN82: 360 | AQ82: =VLOOKUP(C82,'School & Nursery Setting Lookup'!C:C,1,FALSE) -> EY440600
A83: Derby City Childminding Network - Bonnies Childminding | C83: 2549324 | E83: 2640 | F83: 3420 | G83: 23 | H83: 6083 | I83: P | K83: 1380 | L83: 1757.350842 | M83: 0 | N83: 3137.350842 | O83: 180 | P83: 385.6408792 | Q83: 5 | R83: 570.6408792 | S83: 3707.991721 | U83: 0 | V83: 0 | W83: 0 | X83: 0 | Z83: 0 | AA83: 0 | AB83: 0 | AC83: 26947.69 | AD83: 1882.410505 | AE83: 114.1281758 | AF83: 0 | AG83: 28944.22868 | AI83: 10265 | AJ83: 18679.22868 | AL83: 6083 | AM83: 2183 | AN83: 3900 | AQ83: =VLOOKUP(C83,'School & Nursery Setting Lookup'!C:C,1,FALSE) -> 2549324
A84: Derby City Childminding Network - Carrieann Redfern | B84: DE24 0PD | C84: EY542496 | E84: 0 | F84: 0 | G84: 180 | H84: 180 | I84: P | K84: 0 | L84: 0 | M84: 0 | N84: 0 | O84: 0 | P84: 0 | Q84: 179.5454545 | R84: 179.5454545 | S84: 179.5454545 | U84: 0 | V84: 0 | W84: 0 | X84: 0 | Z84: 0 | AA84: 0 | AB84: 0 | AC84: 797.4 | AD84: 0 | AE84: 35.90909091 | AF84: 0 | AG84: 833.3090909 | AI84: 824 | AJ84: 9.309090909 | AL84: 180 | AM84: 180 | AN84: 0 | AQ84: =VLOOKUP(C84,'School & Nursery Setting Lookup'!C:C,1,FALSE) -> EY542496
A85: Derby City Childminding Network - Catherine Anne Freeman | C85: EY496563 | E85: 0 | F85: 0 | G85: 0 | H85: 0 | I85: P | K85: 0 | L85: 0 | M85: 0 | N85: 0 | O85: 0 | P85: 0 | Q85: 0 | R85: 0 | S85: 0 | U85: 0 | V85: 0 | W85: 0 | X85: 0 | Z85: 0 | AA85: 0 | AB85: 0 | AC85: 0 | AD85: 0 | AE85: 0 | AF85: 0 | AG85: 0 | AI85: 1649 | AJ85: -1649 | AL85: 0 | AM85: 360 | AN85: -360
A86: Derby City Childminding Network - Celia Murfin | C86: EY421552 | E86: 895 | F86: 791 | G86: 604 | H86: 2290 | I86: P | K86: 175 | L86: 274.2401811 | M86: 139.944393 | N86: 589.1845741 | O86: 576 | P86: 319.6536861 | Q86: 139.4196475 | R86: 1035.073334 | S86: 1624.257908 | U86: 0 | V86: 18.13127761 | W86: 52.49130939 | X86: 70.62258699 | Z86: 0 | AA86: 0 | AB86: 0 | AC86: 10144.7 | AD86: 353.5107445 | AE86: 207.0146667 | AF86: 14.1245174 | AG86: 10719.34993 | AI86: 10928 | AJ86: -208.6500714 | AL86: 2290 | AM86: 2343 | AN86: -53 | AQ86: =VLOOKUP(C86,'School & Nursery Setting Lookup'!C:C,1,FALSE) -> EY421552
A87: Derby City Childminding Network - Cheryll Lesley Haywood-Phillips | B87: DE21 4RQ | C87: EY251518 | E87: 720 | F87: 480 | G87: 120 | H87: 1320 | I87: P | K87: 0 | L87: 13.94557823 | M87: 42.70833333 | N87: 56.65391156 | O87: 360 | P87: 194.1043084 | Q87: 24.44444444 | R87: 578.5487528 | S87: 635.2026644 | U87: 0 | V87: 0 | W87: 0 | X87: 0 | Z87: 0 | AA87: 0 | AB87: 0 | AC87: 5847.6 | AD87: 33.99234694 | AE87: 115.7097506 | AF87: 0 | AG87: 5997.302098 | AI87: 5723 | AJ87: 274.3020975 | AL87: 1320 | AM87: 1290 | AN87: 30 | AQ87: =VLOOKUP(C87,'School & Nursery Setting Lookup'!C:C,1,FALSE) -> EY251518
A88: Derby City Childminding Network - Christine Ann Brocklehurst | B88: DE3 9AS | C88: 205852 | E88: 192 | F88: 644 | G88: 1160 | H88: 1996 | I88: P | K88: 0 | L88: 0 | M88: 0 | N88: 0 | O88: 0 | P88: 196.2169464 | Q88: 608.15066 | R88: 804.3676064 | S88: 804.3676064 | U88: 0 | V88: 0 | W88: 0 | X88: 0 | Z88: 0 | AA88: 0 | AB88: 0 | AC88: 8842.28 | AD88: 0 | AE88: 160.8735213 | AF88: 0 | AG88: 9003.153521 | AI88: 10861 | AJ88: -1857.846479 | AL88: 1996 | AM88: 2452 | AN88: -456 | AQ88: =VLOOKUP(C88,'School & Nursery Setting Lookup'!C:C,1,FALSE) -> 205852
A89: Derby City Childminding Network - Christine Julie Heathcote | C89: 205922 | E89: 444 | F89: 960 | G89: 433 | H89: 1837 | I89: P | K89: 444 | L89: 786.5298306 | M89: 101.0576029 | N89: 1331.587433 | O89: 0 | P89: 51.78077025 | Q89: 99.08466141 | R89: 150.8654317 | S89: 1482.452865 | U89: 0 | V89: 16.46668888 | W89: 31.50969529 | X89: 47.97638417 | Z89: 0 | AA89: 0 | AB89: 0 | AC89: 8137.91 | AD89: 798.9524601 | AE89: 30.17308633 | AF89: 9.595276835 | AG89: 8976.630823 | AI89: 10350 | AJ89: -1373.369177 | AL89: 1837 | AM89: 2113 | AN89: -276 | AQ89: =VLOOKUP(C89,'School & Nursery Setting Lookup'!C:C,1,FALSE) -> 205922
A90: Derby City Childminding Network - Claire-Ellen Oakley | B90: DE21 2HZ | C90: EY412756 | E90: 720 | F90: 175 | G90: 740 | H90: 1635 | I90: P | K90: 0 | L90: 0 | M90: 0 | N90: 0 | O90: 0 | P90: 0 | Q90: 0 | R90: 0 | S90: 0 | U90: 0 | V90: 0 | W90: 0 | X90: 0 | Z90: 0 | AA90: 0 | AB90: 0 | AC90: 7243.05 | AD90: 0 | AE90: 0 | AF90: 0 | AG90: 7243.05 | AI90: 3241 | AJ90: 4002.05 | AL90: 1635 | AM90: 740 | AN90: 895 | AQ90: =VLOOKUP(C90,'School & Nursery Setting Lookup'!C:C,1,FALSE) -> EY412756
A91: Derby City Childminding Network - Clare Mason | B91: DE21 6GQ | C91: EY438525 | E91: 0 | F91: 0 | G91: 880 | H91: 880 | I91: P | K91: 0 | L91: 0 | M91: 191.9334719 | N91: 191.9334719 | O91: 0 | P91: 0 | Q91: 880 | R91: 880 | S91: 1071.933472 | U91: 0 | V91: 0 | W91: 0 | X91: 0 | Z91: 0 | AA91: 0 | AB91: 0 | AC91: 3898.4 | AD91: 115.1600832 | AE91: 176 | AF91: 0 | AG91: 4189.560083 | AI91: 10122 | AJ91: -5932.439917 | AL91: 880 | AM91: 2080 | AN91: -1200 | AQ91: =VLOOKUP(C91,'School & Nursery Setting Lookup'!C:C,1,FALSE) -> EY438525
A92: Derby City Childminding Network - Deborah Scaife | B92: DE24 0TZ | C92: EY294474 | E92: 1800 | F92: 1470 | G92: 330 | H92: 3600 | I92: P | K92: 900 | L92: 812.6213982 | M92: 111.8269065 | N92: 1824.448305 | O92: 360 | P92: 251.7861393 | Q92: 148.7107712 | R92: 760.4969104 | S92: 2584.945215 | U92: 0 | V92: 0 | W92: 0 | X92: 0 | Z92: 0 | AA92: 0 | AB92: 0 | AC92: 15948 | AD92: 1094.668983 | AE92: 152.0993821 | AF92: 0 | AG92: 17194.76836 | AI92: 11874 | AJ92: 5320.768365 | AL92: 3600 | AM92: 2430 | AN92: 1170 | AQ92: =VLOOKUP(C92,'School & Nursery Setting Lookup'!C:C,1,FALSE) -> EY294474
A93: Derby City Childminding Network - Diane Helena Kendrick | C93: 205947 | E93: 348 | F93: 200 | G93: 0 | H93: 548 | I93: P | K93: 0 | L93: 0 | M93: 0 | N93: 0 | O93: 0 | P93: 0 | Q93: 0 | R93: 0 | S93: 0 | U93: 0 | V93: 0 | W93: 0 | X93: 0 | Z93: 0 | AA93: 0 | AB93: 0 | AC93: 2427.64 | AD93: 0 | AE93: 0 | AF93: 0 | AG93: 2427.64 | AI93: 1254 | AJ93: 1173.64 | AL93: 548 | AM93: 258 | AN93: 290 | AQ93: =VLOOKUP(C93,'School & Nursery Setting Lookup'!C:C,1,FALSE) -> 205947
A94: Derby City Childminding Network - Donna Gladwin | B94: DE21 7DF | C94: 205919 | E94: 576 | F94: 672 | G94: 620 | H94: 1868 | I94: P | K94: 360 | L94: 349.3665619 | M94: 261.7892977 | N94: 971.1558596 | O94: 0 | P94: 120.3624392 | Q94: 214.216484 | R94: 334.5789232 | S94: 1305.734783 | U94: 0 | V94: 0 | W94: 0 | X94: 0 | Z94: 0 | AA94: 0 | AB94: 0 | AC94: 8275.24 | AD94: 582.6935157 | AE94: 66.91578463 | AF94: 0 | AG94: 8924.8493 | AI94: 4492 | AJ94: 4432.8493 | AL94: 1868 | AM94: 980 | AN94: 888 | AQ94: =VLOOKUP(C94,'School & Nursery Setting Lookup'!C:C,1,FALSE) -> 205919
A95: Derby City Childminding Network - Dorothy Faye Thomson | C95: EY386644 | E95: 360 | F95: 252 | G95: 0 | H95: 612 | I95: P | K95: 0 | L95: 0 | M95: 0 | N95: 0 | O95: 0 | P95: 0 | Q95: 0 | R95: 0 | S95: 0 | U95: 0 | V95: 0 | W95: 0 | X95: 0 | Z95: 0 | AA95: 0 | AB95: 0 | AC95: 2711.16 | AD95: 0 | AE95: 0 | AF95: 0 | AG95: 2711.16 | AI95: 3452 | AJ95: -740.84 | AL95: 612 | AM95: 780 | AN95: -168 | AQ95: =VLOOKUP(C95,'School & Nursery Setting Lookup'!C:C,1,FALSE) -> EY386644
A96: Derby City Childminding Network - Ellen Brown | C96: EY545371 | E96: 0 | F96: 0 | G96: 120 | H96: 120 | I96: P | K96: 0 | L96: 0 | M96: 0 | N96: 0 | O96: 0 | P96: 0 | Q96: 24.28571429 | R96: 24.28571429 | S96: 24.28571429 | U96: 0 | V96: 0 | W96: 0 | X96: 0 | Z96: 0 | AA96: 0 | AB96: 0 | AC96: 531.6 | AD96: 0 | AE96: 4.857142857 | AF96: 0 | AG96: 536.4571429 | AI96: 2124 | AJ96: -1587.542857 | AL96: 120 | AM96: 468 | AN96: -348 | AQ96: =VLOOKUP(C96,'School & Nursery Setting Lookup'!C:C,1,FALSE) -> EY545371
A97: Derby City Childminding Network - Eloise Rippon | B97: DE21 7QZ | C97: EY475575 | E97: 360 | F97: 420 | G97: 550 | H97: 1330 | I97: P | K97: 180 | L97: 123.1578947 | M97: 0 | N97: 303.1578947 | O97: 0 | P97: 0 | Q97: 0 | R97: 0 | S97: 303.1578947 | U97: 0 | V97: 0 | W97: 0 | X97: 0 | Z97: 0 | AA97: 0 | AB97: 0 | AC97: 5891.9 | AD97: 181.8947368 | AE97: 0 | AF97: 0 | AG97: 6073.794737 | AI97: 8162 | AJ97: -2088.205263 | AL97: 1330 | AM97: 1810 | AN97: -480 | AQ97: =VLOOKUP(C97,'School & Nursery Setting Lookup'!C:C,1,FALSE) -> EY475575
A98: Derby City Childminding Network - Emilie Celine Astley | B98: DE22 1DL | C98: EY477405 | E98: 216 | F98: 0 | G98: 190 | H98: 406 | I98: P | K98: 0 | L98: 0 | M98: 0 | N98: 0 | O98: 216 | P98: 0 | Q98: 0 | R98: 216 | S98: 216 | U98: 0 | V98: 0 | W98: 0 | X98: 0 | Z98: 0 | AA98: 0 | AB98: 0 | AC98: 1798.58 | AD98: 0 | AE98: 43.2 | AF98: 0 | AG98: 1841.78 | AI98: 2775 | AJ98: -933.22 | AL98: 406 | AM98: 622 | AN98: -216 | AQ98: =VLOOKUP(C98,'School & Nursery Setting Lookup'!C:C,1,FALSE) -> EY477405
A99: Derby City Childminding Network - Emily Upton | C99: 639292 | E99: 312 | F99: 0 | G99: 0 | H99: 312 | I99: P | K99: 36 | L99: 0 | M99: 0 | N99: 36 | O99: 96 | P99: 0 | Q99: 0 | R99: 96 | S99: 132 | U99: 0 | V99: 0 | W99: 0 | X99: 0 | Z99: 0 | AA99: 0 | AB99: 0 | AC99: 1382.16 | AD99: 21.6 | AE99: 19.2 | AF99: 0 | AG99: 1422.96 | AI99: 0 | AJ99: 1422.96 | AL99: 312 | AM99: 0 | AN99: 312 | AQ99: =VLOOKUP(C99,'School & Nursery Setting Lookup'!C:C,1,FALSE) -> 639292
A100: Derby City Childminding Network - Emma Shepherd | C100: EY552102 | E100: 1104 | F100: 601.5 | G100: 540 | H100: 2245.5 | I100: P | K100: 360 | L100: 130.1843687 | M100: 0 | N100: 490.1843687 | O100: 744 | P100: 262.9134937 | Q100: 0 | R100: 1006.913494 | S100: 1497.097862 | U100: 0 | V100: 0 | W100: 0 | X100: 0 | Z100: 0 | AA100: 0 | AB100: 0 | AC100: 9947.565 | AD100: 294.1106212 | AE100: 201.3826987 | AF100: 0 | AG100: 10443.05832 | AI100: 9596 | AJ100: 847.05832 | AL100: 2245.5 | AM100: 2113.5 | AN100: 132 | AQ100: =VLOOKUP(C100,'School & Nursery Setting Lookup'!C:C,1,FALSE) -> EY552102
A101: Derby City Childminding Network - Emma Louise Strange, | B101: DE24 0GA | C101: EY455065 | E101: 1260 | F101: 840 | G101: 1020 | H101: 3120 | I101: P | K101: 540 | L101: 213.2010902 | M101: 41.88976378 | N101: 795.090854 | O101: 720 | P101: 638.0769231 | Q101: 1020 | R101: 2378.076923 | S101: 3173.167777 | U101: 0 | V101: 0 | W101: 0 | X101: 0 | Z101: 0 | AA101: 0 | AB101: 0 | AC101: 13821.6 | AD101: 477.0545124 | AE101: 475.6153846 | AF101: 0 | AG101: 14774.2699 | AI101: 17912 | AJ101: -3137.730103 | AL101: 3120 | AM101: 3840 | AN101: -720 | AQ101: =VLOOKUP(C101,'School & Nursery Setting Lookup'!C:C,1,FALSE) -> EY455065
A102: Derby City Childminding Network - Evangelista Muchineripi Kafuru | C102: EY460509 | E102: 0 | F102: 120 | G102: 190 | H102: 310 | I102: P | K102: 0 | L102: 30.05847953 | M102: 47.59259259 | N102: 77.65107212 | O102: 0 | P102: 25.95673877 | Q102: 41.09816972 | R102: 67.05490849 | S102: 144.7059806 | U102: 0 | V102: 11.21495327 | W102: 17.75700935 | X102: 28.97196262 | Z102: 0 | AA102: 0 | AB102: 0 | AC102: 1373.3 | AD102: 46.59064327 | AE102: 13.4109817 | AF102: 5.794392523 | AG102: 1439.096017 | AI102: 2384 | AJ102: -944.9039825 | AL102: 310 | AM102: 493.5 | AN102: -183.5 | AQ102: =VLOOKUP(C102,'School & Nursery Setting Lookup'!C:C,1,FALSE) -> EY460509
A103: Derby City Childminding Network - Fiona Meek | B103: DE3 0QQ | C103: EY401536 | E103: 150 | F103: 0 | G103: 120 | H103: 270 | I103: P | K103: 0 | L103: 0 | M103: 27.08333333 | N103: 27.08333333 | O103: 0 | P103: 0 | Q103: 25 | R103: 25 | S103: 52.08333333 | U103: 0 | V103: 0 | W103: 12.5 | X103: 12.5 | Z103: 0 | AA103: 0 | AB103: 0 | AC103: 1196.1 | AD103: 16.25 | AE103: 5 | AF103: 2.5 | AG103: 1219.85 | AI103: 1233 | AJ103: -13.15 | AL103: 270 | AM103: 276 | AN103: -6 | AQ103: =VLOOKUP(C103,'School & Nursery Setting Lookup'!C:C,1,FALSE) -> EY401536
A104: Derby City Childminding Network - Grace Ogabi | C104: HCEY00158 | E104: 420 | F104: 840 | G104: 0 | H104: 1260 | I104: P | K104: 60 | L104: 120 | M104: 0 | N104: 180 | O104: 0 | P104: 0 | Q104: 0 | R104: 0 | S104: 180 | U104: 0 | V104: 0 | W104: 0 | X104: 0 | Z104: 0 | AA104: 0 | AB104: 0 | AC104: 5581.8 | AD104: 108 | AE104: 0 | AF104: 0 | AG104: 5689.8 | AI104: 0 | AJ104: 5689.8 | AL104: 1260 | AM104: 0 | AN104: 1260 | AQ104: =VLOOKUP(C104,'School & Nursery Setting Lookup'!C:C,1,FALSE) -> HCEY00158
A105: Derby City Childminding Network - Heather Brocklehurst | B105: DE23 4RQ | C105: EY316120 | E105: 708 | F105: 644 | G105: 1147 | H105: 2499 | I105: P | K105: 0 | L105: 0 | M105: 0 | N105: 0 | O105: 0 | P105: 84.97674082 | Q105: 329.7467008 | R105: 414.7234416 | S105: 414.7234416 | U105: 0 | V105: 0 | W105: 0 | X105: 0 | Z105: 0 | AA105: 0 | AB105: 0 | AC105: 11070.57 | AD105: 0 | AE105: 82.94468833 | AF105: 0 | AG105: 11153.51469 | AI105: 12641 | AJ105: -1487.485312 | AL105: 2499 | AM105: 2871 | AN105: -372 | AQ105: =VLOOKUP(C105,'School & Nursery Setting Lookup'!C:C,1,FALSE) -> EY316120
A106: Derby City Childminding Network - Helen Marie Samuels | B106: DE21 4NE | C106: 205849 | E106: 3099 | F106: 1820 | G106: 1427 | H106: 6346 | I106: P | K106: 1080 | L106: 664.3982877 | M106: 396.6327108 | N106: 2141.030998 | O106: 720 | P106: 320.2264341 | Q106: 396.5697532 | R106: 1436.796187 | S106: 3577.827186 | U106: 0 | V106: 0 | W106: 0 | X106: 0 | Z106: 0 | AA106: 0 | AB106: 0 | AC106: 28112.78 | AD106: 1284.618599 | AE106: 287.3592375 | AF106: 0 | AG106: 29684.75784 | AI106: 26914 | AJ106: 2770.757837 | AL106: 6346 | AM106: 5878 | AN106: 468 | AQ106: =VLOOKUP(C106,'School & Nursery Setting Lookup'!C:C,1,FALSE) -> 205849
A107: Derby City Childminding Network - Hilary Gail Smyth | B107: DE22 2NB | C107: EY407775 | E107: 0 | F107: 0 | G107: 320 | H107: 320 | I107: P | K107: 0 | L107: 0 | M107: 35.53921569 | N107: 35.53921569 | O107: 0 | P107: 0 | Q107: 69.37855787 | R107: 69.37855787 | S107: 104.9177736 | U107: 0 | V107: 0 | W107: 35.71428571 | X107: 35.71428571 | Z107: 0 | AA107: 0 | AB107: 0 | AC107: 1417.6 | AD107: 21.32352941 | AE107: 13.87571157 | AF107: 7.142857143 | AG107: 1459.942098 | AI107: 2569 | AJ107: -1109.057902 | AL107: 320 | AM107: 572 | AN107: -252 | AQ107: =VLOOKUP(C107,'School & Nursery Setting Lookup'!C:C,1,FALSE) -> EY407775
A108: Derby City Childminding Network - Jennifer Hayley Brown | C108: 2559906 | E108: 360 | F108: 420 | G108: 0 | H108: 780 | I108: P | K108: 360 | L108: 420 | M108: 0 | N108: 780 | O108: 0 | P108: 0 | Q108: 0 | R108: 0 | S108: 780 | U108: 360 | V108: 420 | W108: 0 | X108: 780 | Z108: 0 | AA108: 0 | AB108: 0 | AC108: 3455.4 | AD108: 468 | AE108: 0 | AF108: 156 | AG108: 4079.4 | AI108: 0 | AJ108: 4079.4 | AL108: 780 | AM108: 0 | AN108: 780 | AQ108: =VLOOKUP(C108,'School & Nursery Setting Lookup'!C:C,1,FALSE) -> 2559906
A109: Derby City Childminding Network - Jennifer Louise Kelly | C109: EY477127 | E109: 0 | F109: 0 | G109: 124 | H109: 124 | I109: P | K109: 0 | L109: 0 | M109: 0 | N109: 0 | O109: 0 | P109: 0 | Q109: 14.8583878 | R109: 14.8583878 | S109: 14.8583878 | U109: 0 | V109: 0 | W109: 0 | X109: 0 | Z109: 0 | AA109: 0 | AB109: 0 | AC109: 549.32 | AD109: 0 | AE109: 2.97167756 | AF109: 0 | AG109: 552.2916776 | AI109: 546 | AJ109: 6.29167756 | AL109: 124 | AM109: 124 | AN109: 0 | AQ109: =VLOOKUP(C109,'School & Nursery Setting Lookup'!C:C,1,FALSE) -> EY477127
A110: Derby City Childminding Network - Jennifer Ellen Apaya | B110: DE21 6PH | C110: EY240000 | E110: 0 | F110: 210 | G110: 240 | H110: 450 | I110: P | K110: 0 | L110: 0 | M110: 0 | N110: 0 | O110: 0 | P110: 21.14583333 | Q110: 24.16666667 | R110: 45.3125 | S110: 45.3125 | U110: 0 | V110: 21.14583333 | W110: 24.16666667 | X110: 45.3125 | Z110: 0 | AA110: 0 | AB110: 0 | AC110: 1993.5 | AD110: 0 | AE110: 9.0625 | AF110: 9.0625 | AG110: 2011.625 | AI110: 1061 | AJ110: 950.625 | AL110: 450 | AM110: 240 | AN110: 210 | AQ110: =VLOOKUP(C110,'School & Nursery Setting Lookup'!C:C,1,FALSE) -> EY240000
A111: Derby City Childminding Network - Joanna Widawska | C111: 2521698 | E111: 0 | F111: 0 | G111: 0 | H111: 0 | I111: P | K111: 0 | L111: 0 | M111: 0 | N111: 0 | O111: 0 | P111: 0 | Q111: 0 | R111: 0 | S111: 0 | U111: 0 | V111: 0 | W111: 0 | X111: 0 | Z111: 0 | AA111: 0 | AB111: 0 | AC111: 0 | AD111: 0 | AE111: 0 | AF111: 0 | AG111: 0 | AI111: 2092 | AJ111: -2092 | AL111: 0 | AM111: 420 | AN111: -420
A112: Derby City Childminding Network - Joanne Margaret Shakespeare | B112: DE3 0PE | C112: EY369088 | E112: 312 | F112: 0 | G112: 760 | H112: 1072 | I112: P | K112: 0 | L112: 0 | M112: 291.2849873 | N112: 291.2849873 | O112: 0 | P112: 0 | Q112: 448.1710214 | R112: 448.1710214 | S112: 739.4560087 | U112: 0 | V112: 0 | W112: 0 | X112: 0 | Z112: 0 | AA112: 0 | AB112: 0 | AC112: 4748.96 | AD112: 174.7709924 | AE112: 89.63420428 | AF112: 0 | AG112: 5013.365197 | AI112: 7643 | AJ112: -2629.634803 | AL112: 1072 | AM112: 1660 | AN112: -588 | AQ112: =VLOOKUP(C112,'School & Nursery Setting Lookup'!C:C,1,FALSE) -> EY369088
A113: Derby City Childminding Network - Joanne Mycroft | B113: DE21 6RZ | C113: EY462623 | E113: 360 | F113: 0 | G113: 330 | H113: 690 | I113: P | K113: 0 | L113: 0 | M113: 0 | N113: 0 | O113: 0 | P113: 0 | Q113: 14.20289855 | R113: 14.20289855 | S113: 14.20289855 | U113: 0 | V113: 0 | W113: 0 | X113: 0 | Z113: 0 | AA113: 0 | AB113: 0 | AC113: 3056.7 | AD113: 0 | AE113: 2.84057971 | AF113: 0 | AG113: 3059.54058 | AI113: 3849 | AJ113: -789.4594203 | AL113: 690 | AM113: 870 | AN113: -180 | AQ113: =VLOOKUP(C113,'School & Nursery Setting Lookup'!C:C,1,FALSE) -> EY462623
A114: Derby City Childminding Network - Joyce, Mary Cliff | B114: DE73 6NB | C114: EY264853 | E114: 372 | F114: 280 | G114: 235 | H114: 887 | I114: P | K114: 0 | L114: 0 | M114: 0 | N114: 0 | O114: 0 | P114: 0 | Q114: 0 | R114: 0 | S114: 0 | U114: 0 | V114: 0 | W114: 0 | X114: 0 | Z114: 0 | AA114: 0 | AB114: 0 | AC114: 3929.41 | AD114: 0 | AE114: 0 | AF114: 0 | AG114: 3929.41 | AI114: 3833 | AJ114: 96.41 | AL114: 887 | AM114: 875 | AN114: 12 | AQ114: =VLOOKUP(C114,'School & Nursery Setting Lookup'!C:C,1,FALSE) -> EY264853
A115: Derby City Childminding Network - Judith Deakin | B115: DE22 2NN | C115: 205881 | E115: 1500 | F115: 1050 | G115: 1180 | H115: 3730 | I115: P | K115: 0 | L115: 0 | M115: 0 | N115: 0 | O115: 0 | P115: 0 | Q115: 0 | R115: 0 | S115: 0 | U115: 0 | V115: 0 | W115: 0 | X115: 0 | Z115: 0 | AA115: 0 | AB115: 0 | AC115: 16523.9 | AD115: 0 | AE115: 0 | AF115: 0 | AG115: 16523.9 | AI115: 19710 | AJ115: -3186.1 | AL115: 3730 | AM115: 4500 | AN115: -770 | AQ115: =VLOOKUP(C115,'School & Nursery Setting Lookup'!C:C,1,FALSE) -> 205881
A116: Derby City Childminding Network - Julie Chambers | B116: DE22 2NN | C116: EY500987 | E116: 0 | F116: 0 | G116: 260 | H116: 260 | I116: P | K116: 0 | L116: 0 | M116: 0 | N116: 0 | O116: 0 | P116: 0 | Q116: 259.0909091 | R116: 259.0909091 | S116: 259.0909091 | U116: 0 | V116: 0 | W116: 0 | X116: 0 | Z116: 0 | AA116: 0 | AB116: 0 | AC116: 1151.8 | AD116: 0 | AE116: 51.81818182 | AF116: 0 | AG116: 1203.618182 | AI116: 1191 | AJ116: 12.61818182 | AL116: 260 | AM116: 260 | AN116: 0 | AQ116: =VLOOKUP(C116,'School & Nursery Setting Lookup'!C:C,1,FALSE) -> EY500987
A117: Derby City Childminding Network - Julie Croft | C117: EY492729 | E117: 1080 | F117: 1050 | G117: 260 | H117: 2390 | I117: P | K117: 360 | L117: 192.8688749 | M117: 156.1538462 | N117: 709.0227211 | O117: 0 | P117: 136.3879004 | Q117: 155 | R117: 291.3879004 | S117: 1000.410621 | U117: 0 | V117: 0 | W117: 0 | X117: 0 | Z117: 0 | AA117: 0 | AB117: 0 | AC117: 10587.7 | AD117: 425.4136326 | AE117: 58.27758007 | AF117: 0 | AG117: 11071.39121 | AI117: 10325 | AJ117: 746.3912127 | AL117: 2390 | AM117: 2270 | AN117: 120 | AQ117: =VLOOKUP(C117,'School & Nursery Setting Lookup'!C:C,1,FALSE) -> EY492729
A118: Derby City Childminding Network - Julie Elizabeth Sewter, | B118: DE73 6UP | C118: EY368441 | E118: 1800 | F118: 1224 | G118: 120 | H118: 3144 | I118: P | K118: 360 | L118: 138.5660377 | M118: 0 | N118: 498.5660377 | O118: 360 | P118: 143.0566038 | Q118: 11.66666667 | R118: 514.7232704 | S118: 1013.289308 | U118: 0 | V118: 0 | W118: 0 | X118: 0 | Z118: 0 | AA118: 0 | AB118: 0 | AC118: 13927.92 | AD118: 299.1396226 | AE118: 102.9446541 | AF118: 0 | AG118: 14330.00428 | AI118: 6047 | AJ118: 8283.004277 | AL118: 3144 | AM118: 1380 | AN118: 1764 | AQ118: =VLOOKUP(C118,'School & Nursery Setting Lookup'!C:C,1,FALSE) -> EY368441
A119: Derby City Childminding Network - Julie Margaret Warren | C119: EY316309 | E119: 396 | F119: 210 | G119: 0 | H119: 606 | I119: P | K119: 0 | L119: 0 | M119: 0 | N119: 0 | O119: 0 | P119: 0 | Q119: 0 | R119: 0 | S119: 0 | U119: 0 | V119: 0 | W119: 0 | X119: 0 | Z119: 0 | AA119: 0 | AB119: 0 | AC119: 2684.58 | AD119: 0 | AE119: 0 | AF119: 0 | AG119: 2684.58 | AI119: 1866 | AJ119: 818.58 | AL119: 606 | AM119: 426 | AN119: 180 | AQ119: =VLOOKUP(C119,'School & Nursery Setting Lookup'!C:C,1,FALSE) -> EY316309
A120: Derby City Childminding Network - Kerry Jehane Derbyshire | B120: DE24 0TE | C120: EY405755 | E120: 720 | F120: 420 | G120: 528 | H120: 1668 | I120: P | K120: 540 | L120: 245.1286054 | M120: 13.51074719 | N120: 798.6393526 | O120: 180 | P120: 48.69674354 | Q120: 13.39563863 | R120: 242.0923822 | S120: 1040.731735 | U120: 0 | V120: 0 | W120: 0 | X120: 0 | Z120: 0 | AA120: 0 | AB120: 0 | AC120: 7389.24 | AD120: 479.1836116 | AE120: 48.41847643 | AF120: 0 | AG120: 7916.842088 | AI120: 11632 | AJ120: -3715.157912 | AL120: 1668 | AM120: 2508 | AN120: -840 | AQ120: =VLOOKUP(C120,'School & Nursery Setting Lookup'!C:C,1,FALSE) -> EY405755
A121: Derby City Childminding Network - Laura Marshall | B121: DE23 3ZJ | C121: 306845 | E121: 0 | F121: 0 | G121: 360 | H121: 360 | I121: P | K121: 0 | L121: 0 | M121: 0 | N121: 0 | O121: 0 | P121: 0 | Q121: 0 | R121: 0 | S121: 0 | U121: 0 | V121: 0 | W121: 0 | X121: 0 | Z121: 0 | AA121: 0 | AB121: 0 | AC121: 1594.8 | AD121: 0 | AE121: 0 | AF121: 0 | AG121: 1594.8 | AI121: 4205 | AJ121: -2610.2 | AL121: 360 | AM121: 960 | AN121: -600 | AQ121: =VLOOKUP(C121,'School & Nursery Setting Lookup'!C:C,1,FALSE) -> 306845
A122: Derby City Childminding Network - Laura Murphy | C122: Temp1 | E122: 0 | F122: 630 | G122: 0 | H122: 630 | I122: P | K122: 0 | L122: 0 | M122: 0 | N122: 0 | O122: 0 | P122: 0 | Q122: 0 | R122: 0 | S122: 0 | U122: 0 | V122: 0 | W122: 0 | X122: 0 | Z122: 0 | AA122: 0 | AB122: 0 | AC122: 2790.9 | AD122: 0 | AE122: 0 | AF122: 0 | AG122: 2790.9 | AI122: 0 | AJ122: 2790.9 | AL122: 630 | AM122: 0 | AN122: 630 | AQ122: =VLOOKUP(C122,'School & Nursery Setting Lookup'!C:C,1,FALSE) -> Temp1
A123: Derby City Childminding Network - Laura Neale | C123: Temp2 | E123: 0 | F123: 210 | G123: 0 | H123: 210 | I123: P | K123: 0 | L123: 0 | M123: 0 | N123: 0 | O123: 0 | P123: 0 | Q123: 0 | R123: 0 | S123: 0 | U123: 0 | V123: 0 | W123: 0 | X123: 0 | Z123: 0 | AA123: 0 | AB123: 0 | AC123: 930.3 | AD123: 0 | AE123: 0 | AF123: 0 | AG123: 930.3 | AI123: 0 | AJ123: 930.3 | AL123: 210 | AM123: 0 | AN123: 210 | AQ123: =VLOOKUP(C123,'School & Nursery Setting Lookup'!C:C,1,FALSE) -> Temp2
A124: Derby City Childminding Network - Lisa Marie North | C124: Temp3 | E124: 0 | F124: 196 | G124: 0 | H124: 196 | I124: P | K124: 0 | L124: 0 | M124: 0 | N124: 0 | O124: 0 | P124: 0 | Q124: 0 | R124: 0 | S124: 0 | U124: 0 | V124: 0 | W124: 0 | X124: 0 | Z124: 0 | AA124: 0 | AB124: 0 | AC124: 868.28 | AD124: 0 | AE124: 0 | AF124: 0 | AG124: 868.28 | AI124: 0 | AJ124: 868.28 | AL124: 196 | AM124: 0 | AN124: 196 | AQ124: =VLOOKUP(C124,'School & Nursery Setting Lookup'!C:C,1,FALSE) -> Temp3
A125: Derby City Childminding Network - Leah Sheridan | B125: DE22 3TL | C125: EY546840 | E125: 1632 | F125: 1134 | G125: 493 | H125: 3259 | I125: P | K125: 0 | L125: 0 | M125: 0 | N125: 0 | O125: 1440 | P125: 812.8751039 | Q125: 56.11989748 | R125: 2308.995001 | S125: 2308.995001 | U125: 0 | V125: 0 | W125: 0 | X125: 0 | Z125: 0 | AA125: 0 | AB125: 0 | AC125: 14437.37 | AD125: 0 | AE125: 461.7990003 | AF125: 0 | AG125: 14899.169 | AI125: 14072 | AJ125: 827.1690003 | AL125: 3259 | AM125: 3139 | AN125: 120 | AQ125: =VLOOKUP(C125,'School & Nursery Setting Lookup'!C:C,1,FALSE) -> EY546840
A126: Derby City Childminding Network - Laura Burton | C126: EY448130 | E126: 0 | F126: 0 | G126: 380 | H126: 380 | I126: P | K126: 0 | L126: 0 | M126: 88.6318408 | N126: 88.6318408 | O126: 0 | P126: 0 | Q126: 88.73952732 | R126: 88.73952732 | S126: 177.3713681 | U126: 0 | V126: 0 | W126: 31.07476636 | X126: 31.07476636 | Z126: 0 | AA126: 0 | AB126: 0 | AC126: 1683.4 | AD126: 53.17910448 | AE126: 17.74790546 | AF126: 6.214953271 | AG126: 1760.541963 | AI126: 3534 | AJ126: -1773.458037 | AL126: 380 | AM126: 740 | AN126: -360 | AQ126: =VLOOKUP(C126,'School & Nursery Setting Lookup'!C:C,1,FALSE) -> EY448130
A127: Derby City Childminding Network - Lorraine Duthie | B127: DE24 0GR | C127: 205878 | E127: 936 | F127: 1050 | G127: 732 | H127: 2718 | I127: P | K127: 576 | L127: 802.1224427 | M127: 490.0116467 | N127: 1868.134089 | O127: 180 | P127: 211.4614774 | Q127: 333.5493021 | R127: 725.0107795 | S127: 2593.144869 | U127: 0 | V127: 0 | W127: 0 | X127: 0 | Z127: 0 | AA127: 0 | AB127: 0 | AC127: 12040.74 | AD127: 1120.880454 | AE127: 145.0021559 | AF127: 0 | AG127: 13306.62261 | AI127: 17478 | AJ127: -4171.37739 | AL127: 2718 | AM127: 3590 | AN127: -872 | AQ127: =VLOOKUP(C127,'School & Nursery Setting Lookup'!C:C,1,FALSE) -> 205878
A128: Derby City Childminding Network - Lousie Michelle Griffiths | B128: DE21 6PX | C128: 260849 | E128: 0 | F128: 0 | G128: 130 | H128: 130 | I128: P | K128: 0 | L128: 0 | M128: 0 | N128: 0 | O128: 0 | P128: 0 | Q128: 14.17721519 | R128: 14.17721519 | S128: 14.17721519 | U128: 0 | V128: 0 | W128: 0 | X128: 0 | Z128: 0 | AA128: 0 | AB128: 0 | AC128: 575.9 | AD128: 0 | AE128: 2.835443038 | AF128: 0 | AG128: 578.735443 | AI128: 3293 | AJ128: -2714.264557 | AL128: 130 | AM128: 724 | AN128: -594 | AQ128: =VLOOKUP(C128,'School & Nursery Setting Lookup'!C:C,1,FALSE) -> 260849
A129: Derby City Childminding Network - Mary Gibson | C129: 205903 | E129: 0 | F129: 0 | G129: 272 | H129: 272 | I129: P | K129: 0 | L129: 0 | M129: 0 | N129: 0 | O129: 0 | P129: 0 | Q129: 54.09090909 | R129: 54.09090909 | S129: 54.09090909 | U129: 0 | V129: 0 | W129: 0 | X129: 0 | Z129: 0 | AA129: 0 | AB129: 0 | AC129: 1204.96 | AD129: 0 | AE129: 10.81818182 | AF129: 0 | AG129: 1215.778182 | AI129: 2022 | AJ129: -806.2218182 | AL129: 272 | AM129: 451 | AN129: -179 | AQ129: =VLOOKUP(C129,'School & Nursery Setting Lookup'!C:C,1,FALSE) -> 205903
A130: Derby City Childminding Network - Michelle Elizabeth Hemmings | B130: DE24 9DD | C130: EY340934 | E130: 0 | F130: 0 | G130: 360 | H130: 360 | I130: P | K130: 0 | L130: 0 | M130: 263.0397041 | N130: 263.0397041 | O130: 0 | P130: 0 | Q130: 164.8264984 | R130: 164.8264984 | S130: 427.8662025 | U130: 0 | V130: 0 | W130: 0 | X130: 0 | Z130: 0 | AA130: 0 | AB130: 0 | AC130: 1594.8 | AD130: 157.8238225 | AE130: 32.96529968 | AF130: 0 | AG130: 1785.589122 | AI130: 1768 | AJ130: 17.58912215 | AL130: 360 | AM130: 360 | AN130: 0 | AQ130: =VLOOKUP(C130,'School & Nursery Setting Lookup'!C:C,1,FALSE) -> EY340934
A131: Derby City Childminding Network - Michelle Morrison | B131: DE21 7LY | C131: EY357686 | E131: 1440 | F131: 1005 | G131: 960 | H131: 3405 | I131: P | K131: 0 | L131: 201 | M131: 480 | N131: 681 | O131: 0 | P131: 200.8449074 | Q131: 479.6296296 | R131: 680.474537 | S131: 1361.474537 | U131: 0 | V131: 0 | W131: 0 | X131: 0 | Z131: 0 | AA131: 0 | AB131: 0 | AC131: 15084.15 | AD131: 408.6 | AE131: 136.0949074 | AF131: 0 | AG131: 15628.84491 | AI131: 8174 | AJ131: 7454.844907 | AL131: 3405 | AM131: 1680 | AN131: 1725 | AQ131: =VLOOKUP(C131,'School & Nursery Setting Lookup'!C:C,1,FALSE) -> EY357686
A132: Derby City Childminding Network - Miranda Heather Gunston | C132: EY440552 | E132: 360 | F132: 420 | G132: 0 | H132: 780 | I132: P | K132: 0 | L132: 0 | M132: 0 | N132: 0 | O132: 0 | P132: 0 | Q132: 0 | R132: 0 | S132: 0 | U132: 0 | V132: 0 | W132: 0 | X132: 0 | Z132: 0 | AA132: 0 | AB132: 0 | AC132: 3455.4 | AD132: 0 | AE132: 0 | AF132: 0 | AG132: 3455.4 | AI132: 0 | AJ132: 3455.4 | AL132: 780 | AM132: 0 | AN132: 780 | AQ132: =VLOOKUP(C132,'School & Nursery Setting Lookup'!C:C,1,FALSE) -> EY440552
A133: Derby City Childminding Network - Nicky Sherratt | B133: DE23 6JR | C133: EY428424 | E133: 720 | F133: 420 | G133: 720 | H133: 1860 | I133: P | K133: 360 | L133: 81.29032258 | M133: 0 | N133: 441.2903226 | O133: 0 | P133: 0 | Q133: 0 | R133: 0 | S133: 441.2903226 | U133: 0 | V133: 0 | W133: 0 | X133: 0 | Z133: 0 | AA133: 0 | AB133: 0 | AC133: 8239.8 | AD133: 264.7741935 | AE133: 0 | AF133: 0 | AG133: 8504.574194 | AI133: 8935 | AJ133: -430.4258065 | AL133: 1860 | AM133: 2040 | AN133: -180 | AQ133: =VLOOKUP(C133,'School & Nursery Setting Lookup'!C:C,1,FALSE) -> EY428424
A134: Derby City Childminding Network - Jackie Nettleship | C134: 205980 | E134: 0 | F134: 210 | G134: 70 | H134: 280 | I134: P | K134: 0 | L134: 0 | M134: 0 | N134: 0 | O134: 0 | P134: 0 | Q134: 0 | R134: 0 | S134: 0 | U134: 0 | V134: 42.85714286 | W134: 14.28571429 | X134: 57.14285714 | Z134: 0 | AA134: 0 | AB134: 0 | AC134: 1240.4 | AD134: 0 | AE134: 0 | AF134: 11.42857143 | AG134: 1251.828571 | AI134: 1134 | AJ134: 117.8285714 | AL134: 280 | AM134: 250 | AN134: 30 | AQ134: =VLOOKUP(C134,'School & Nursery Setting Lookup'!C:C,1,FALSE) -> 205980
A135: Derby City Childminding Network - Natalie Tia Bowles | C135: EY372766 | E135: 792 | F135: 420 | G135: 0 | H135: 1212 | I135: P | K135: 0 | L135: 0 | M135: 0 | N135: 0 | O135: 360 | P135: 136.5853659 | Q135: 0 | R135: 496.5853659 | S135: 496.5853659 | U135: 0 | V135: 0 | W135: 0 | X135: 0 | Z135: 0 | AA135: 0 | AB135: 0 | AC135: 5369.16 | AD135: 0 | AE135: 99.31707317 | AF135: 0 | AG135: 5468.477073 | AI135: 4533 | AJ135: 935.4770732 | AL135: 1212 | AM135: 1035 | AN135: 177 | AQ135: =VLOOKUP(C135,'School & Nursery Setting Lookup'!C:C,1,FALSE) -> EY372766
A136: Derby City Childminding Network - Nicola Johnson | B136: DE24 0AE | C136: EY396733 | E136: 0 | F136: 0 | G136: 544 | H136: 544 | I136: P | K136: 0 | L136: 0 | M136: 212.2054277 | N136: 212.2054277 | O136: 0 | P136: 0 | Q136: 543.7661221 | R136: 543.7661221 | S136: 755.9715498 | U136: 0 | V136: 0 | W136: 0 | X136: 0 | Z136: 0 | AA136: 0 | AB136: 0 | AC136: 2409.92 | AD136: 127.3232566 | AE136: 108.7532244 | AF136: 0 | AG136: 2645.996481 | AI136: 2619 | AJ136: 26.99648103 | AL136: 544 | AM136: 544 | AN136: 0 | AQ136: =VLOOKUP(C136,'School & Nursery Setting Lookup'!C:C,1,FALSE) -> EY396733
A137: Derby City Childminding Network - Nicola Smith | C137: EY393390 | E137: 0 | F137: 420 | G137: 0 | H137: 420 | I137: P | K137: 0 | L137: 0 | M137: 0 | N137: 0 | O137: 0 | P137: 0 | Q137: 0 | R137: 0 | S137: 0 | U137: 0 | V137: 0 | W137: 0 | X137: 0 | Z137: 0 | AA137: 0 | AB137: 0 | AC137: 1860.6 | AD137: 0 | AE137: 0 | AF137: 0 | AG137: 1860.6 | AI137: 1793 | AJ137: 67.6 | AL137: 420 | AM137: 360 | AN137: 60 | AQ137: =VLOOKUP(C137,'School & Nursery Setting Lookup'!C:C,1,FALSE) -> EY393390
A138: Derby City Childminding Network - Paula Louise Brown | C138: EY221157 | E138: 0 | F138: 0 | G138: 70 | H138: 70 | I138: P | K138: 0 | L138: 0 | M138: 0 | N138: 0 | O138: 0 | P138: 0 | Q138: 0 | R138: 0 | S138: 0 | U138: 0 | V138: 0 | W138: 0 | X138: 0 | Z138: 0 | AA138: 0 | AB138: 0 | AC138: 310.1 | AD138: 0 | AE138: 0 | AF138: 0 | AG138: 310.1 | AI138: 1095 | AJ138: -784.9 | AL138: 70 | AM138: 250 | AN138: -180 | AQ138: =VLOOKUP(C138,'School & Nursery Setting Lookup'!C:C,1,FALSE) -> EY221157
A139: Derby City Childminding Network - Phillipa Chambers | B139: DE22 1HT | C139: EY453657 | E139: 0 | F139: 0 | G139: 168 | H139: 168 | I139: P | K139: 0 | L139: 0 | M139: 38.54166667 | N139: 38.54166667 | O139: 0 | P139: 0 | Q139: 38.88888889 | R139: 38.88888889 | S139: 77.43055556 | U139: 0 | V139: 0 | W139: 16.66666667 | X139: 16.66666667 | Z139: 0 | AA139: 0 | AB139: 0 | AC139: 744.24 | AD139: 23.125 | AE139: 7.777777778 | AF139: 3.333333333 | AG139: 778.4761111 | AI139: 1558 | AJ139: -779.5238889 | AL139: 168 | AM139: 348 | AN139: -180 | AQ139: =VLOOKUP(C139,'School & Nursery Setting Lookup'!C:C,1,FALSE) -> EY453657
A140: Derby City Childminding Network - Rachael Elizabeth Eagles | B140: DE21 2JW | C140: EY484039 | E140: 1560 | F140: 1526 | G140: 1260 | H140: 4346 | I140: P | K140: 0 | L140: 33.36905871 | M140: 93.85321101 | N140: 127.2222697 | O140: 0 | P140: 33.77679404 | Q140: 95 | R140: 128.776794 | S140: 255.9990638 | U140: 0 | V140: 0 | W140: 0 | X140: 0 | Z140: 0 | AA140: 0 | AB140: 0 | AC140: 19252.78 | AD140: 76.33336183 | AE140: 25.75535881 | AF140: 0 | AG140: 19354.86872 | AI140: 15195 | AJ140: 4159.868721 | AL140: 4346 | AM140: 3452 | AN140: 894 | AQ140: =VLOOKUP(C140,'School & Nursery Setting Lookup'!C:C,1,FALSE) -> EY484039
A141: Derby City Childminding Network - Rachel Gillian Brownsword | C141: EY487257 | E141: 360 | F141: 420 | G141: 910 | H141: 1690 | I141: P | K141: 0 | L141: 19.39673835 | M141: 78.04878049 | N141: 97.44551883 | O141: 0 | P141: 32.30769231 | Q141: 130 | R141: 162.3076923 | S141: 259.7532111 | U141: 0 | V141: 0 | W141: 0 | X141: 0 | Z141: 0 | AA141: 0 | AB141: 0 | AC141: 7486.7 | AD141: 58.4673113 | AE141: 32.46153846 | AF141: 0 | AG141: 7577.62885 | AI141: 9124 | AJ141: -1546.37115 | AL141: 1690 | AM141: 2050 | AN141: -360 | AQ141: =VLOOKUP(C141,'School & Nursery Setting Lookup'!C:C,1,FALSE) -> EY487257
A142: Derby City Childminding Network - Rachel Leandre Blount | B142: DE22 3JQ | C142: EY343478 | E142: 0 | F142: 0 | G142: 470 | H142: 470 | I142: P | K142: 0 | L142: 0 | M142: 35.72204126 | N142: 35.72204126 | O142: 0 | P142: 0 | Q142: 36.55243142 | R142: 36.55243142 | S142: 72.27447268 | U142: 0 | V142: 0 | W142: 471.8146718 | X142: 471.8146718 | Z142: 0 | AA142: 0 | AB142: 0 | AC142: 2082.1 | AD142: 21.43322476 | AE142: 7.310486283 | AF142: 94.36293436 | AG142: 2205.206645 | AI142: 2182 | AJ142: 23.2066454 | AL142: 470 | AM142: 470 | AN142: 0 | AQ142: =VLOOKUP(C142,'School & Nursery Setting Lookup'!C:C,1,FALSE) -> EY343478
A143: Derby City Childminding Network - Rachel Huntingford | C143: EY552896 | E143: 0 | F143: 0 | G143: 68 | H143: 68 | I143: P | K143: 0 | L143: 0 | M143: 16.66666667 | N143: 16.66666667 | O143: 0 | P143: 0 | Q143: 17.13938412 | R143: 17.13938412 | S143: 33.80605078 | U143: 0 | V143: 0 | W143: 3.571428571 | X143: 3.571428571 | Z143: 0 | AA143: 0 | AB143: 0 | AC143: 301.24 | AD143: 10 | AE143: 3.427876823 | AF143: 0.7142857143 | AG143: 315.3821625 | AI143: 2025 | AJ143: -1709.617837 | AL143: 68 | AM143: 459 | AN143: -391 | AQ143: =VLOOKUP(C143,'School & Nursery Setting Lookup'!C:C,1,FALSE) -> EY552896
A144: Derby City Childminding Network - Rachel Wiggins | B144: DE3 0PY | C144: EY447118 | E144: 852 | F144: 315 | G144: 324 | H144: 1491 | I144: P | K144: 0 | L144: 0 | M144: 0 | N144: 0 | O144: 504 | P144: 160.1072598 | Q144: 10.96112311 | R144: 675.0683829 | S144: 675.0683829 | U144: 0 | V144: 0 | W144: 0 | X144: 0 | Z144: 0 | AA144: 0 | AB144: 0 | AC144: 6605.13 | AD144: 0 | AE144: 135.0136766 | AF144: 0 | AG144: 6740.143677 | AI144: 7890 | AJ144: -1149.856323 | AL144: 1491 | AM144: 1774 | AN144: -283 | AQ144: =VLOOKUP(C144,'School & Nursery Setting Lookup'!C:C,1,FALSE) -> EY447118
A145: Derby City Childminding Network - Rebecca Anne Cotton | B145: DE3 9YF | C145: EY393682 | E145: 256 | F145: 360 | G145: 366 | H145: 982 | I145: P | K145: 0 | L145: 0 | M145: 0 | N145: 0 | O145: 0 | P145: 5.618966977 | Q145: 14.04741744 | R145: 19.66638442 | S145: 19.66638442 | U145: 0 | V145: 42.60883638 | W145: 106.522091 | X145: 149.1309273 | Z145: 0 | AA145: 0 | AB145: 0 | AC145: 4350.26 | AD145: 0 | AE145: 3.933276884 | AF145: 29.82618547 | AG145: 4384.019462 | AI145: 5954 | AJ145: -1569.980538 | AL145: 982 | AM145: 1332.5 | AN145: -350.5 | AQ145: =VLOOKUP(C145,'School & Nursery Setting Lookup'!C:C,1,FALSE) -> EY393682
A146: Derby City Childminding Network - Rebecca Jane Fulleylove | B146: DE21 2BJ | C146: EY395288 | E146: 0 | F146: 0 | G146: 880 | H146: 880 | I146: P | K146: 0 | L146: 0 | M146: 33.50739774 | N146: 33.50739774 | O146: 0 | P146: 0 | Q146: 524.8282387 | R146: 524.8282387 | S146: 558.3356365 | U146: 0 | V146: 0 | W146: 0 | X146: 0 | Z146: 0 | AA146: 0 | AB146: 0 | AC146: 3898.4 | AD146: 20.10443864 | AE146: 104.9656477 | AF146: 0 | AG146: 4023.470086 | AI146: 3979 | AJ146: 44.47008639 | AL146: 880 | AM146: 880 | AN146: 0 | AQ146: =VLOOKUP(C146,'School & Nursery Setting Lookup'!C:C,1,FALSE) -> EY395288
A147: Derby City Childminding Network - Rebecca Louise Dudley | C147: EY396913 | E147: 0 | F147: 180 | G147: 0 | H147: 180 | I147: P | K147: 0 | L147: 0 | M147: 0 | N147: 0 | O147: 0 | P147: 180 | Q147: 0 | R147: 180 | S147: 180 | U147: 0 | V147: 0 | W147: 0 | X147: 0 | Z147: 0 | AA147: 0 | AB147: 0 | AC147: 797.4 | AD147: 0 | AE147: 36 | AF147: 0 | AG147: 833.4 | AI147: 1841 | AJ147: -1007.6 | AL147: 180 | AM147: 402 | AN147: -222 | AQ147: =VLOOKUP(C147,'School & Nursery Setting Lookup'!C:C,1,FALSE) -> EY396913
A148: Derby City Childminding Network - Rebecca Sarah Wall | B148: DE73 6UU | C148: EY278371 | E148: 468 | F148: 336 | G148: 371 | H148: 1175 | I148: P | K148: 0 | L148: 15.8500484 | M148: 49.48422847 | N148: 65.33427687 | O148: 180 | P148: 152.3686938 | Q148: 85.69868996 | R148: 418.0673838 | S148: 483.4016607 | U148: 0 | V148: 0 | W148: 0 | X148: 0 | Z148: 0 | AA148: 0 | AB148: 0 | AC148: 5205.25 | AD148: 39.20056612 | AE148: 83.61347676 | AF148: 0 | AG148: 5328.064043 | AI148: 4219 | AJ148: 1109.064043 | AL148: 1175 | AM148: 933 | AN148: 242 | AQ148: =VLOOKUP(C148,'School & Nursery Setting Lookup'!C:C,1,FALSE) -> EY278371
A149: Derby City Childminding Network - Regina Zakrzewska | B149: DE23 8SR | C149: EY541336 | E149: 756 | F149: 615 | G149: 398 | H149: 1769 | I149: P | K149: 396 | L149: 358.2897511 | M149: 328.1429807 | N149: 1082.432732 | O149: 0 | P149: 21.27528085 | Q149: 70.43328748 | R149: 91.70856833 | S149: 1174.1413 | U149: 216 | V149: 143.0581352 | W149: 5.603842635 | X149: 364.6619778 | Z149: 0 | AA149: 0 | AB149: 0 | AC149: 7836.67 | AD149: 649.4596391 | AE149: 18.34171367 | AF149: 72.93239556 | AG149: 8577.403748 | AI149: 9058 | AJ149: -480.5962517 | AL149: 1769 | AM149: 1856 | AN149: -87 | AQ149: =VLOOKUP(C149,'School & Nursery Setting Lookup'!C:C,1,FALSE) -> EY541336
A150: Derby City Childminding Network - Rosalyn Phillips | B150: DE24 9JQ | C150: EY268223 | E150: 585 | F150: 0 | G150: 662 | H150: 1247 | I150: P | K150: 54 | L150: 0 | M150: 198.1027558 | N150: 252.1027558 | O150: 0 | P150: 0 | Q150: 94.1916216 | R150: 94.1916216 | S150: 346.2943774 | U150: 0 | V150: 0 | W150: 0 | X150: 0 | Z150: 0 | AA150: 0 | AB150: 0 | AC150: 5524.21 | AD150: 151.2616535 | AE150: 18.83832432 | AF150: 0 | AG150: 5694.309978 | AI150: 5560 | AJ150: 134.3099778 | AL150: 1247 | AM150: 1238 | AN150: 9 | AQ150: =VLOOKUP(C150,'School & Nursery Setting Lookup'!C:C,1,FALSE) -> EY268223
A151: Derby City Childminding Network - Rosie Stevens | B151: DE22 2HQ | C151: 206031 | E151: 480 | F151: 0 | G151: 1228 | H151: 1708 | I151: P | K151: 0 | L151: 0 | M151: 86.30522088 | N151: 86.30522088 | O151: 0 | P151: 0 | Q151: 85.0886918 | R151: 85.0886918 | S151: 171.3939127 | U151: 0 | V151: 0 | W151: 0 | X151: 0 | Z151: 0 | AA151: 0 | AB151: 0 | AC151: 7566.44 | AD151: 51.78313253 | AE151: 17.01773836 | AF151: 0 | AG151: 7635.240871 | AI151: 10756 | AJ151: -3120.759129 | AL151: 1708 | AM151: 2440 | AN151: -732 | AQ151: =VLOOKUP(C151,'School & Nursery Setting Lookup'!C:C,1,FALSE) -> 206031
A152: Derby City Childminding Network - Sally -Anne Thompson | C152: 206046 | E152: 1224 | F152: 819 | G152: 900 | H152: 2943 | I152: P | K152: 0 | L152: 0 | M152: 0 | N152: 0 | O152: 0 | P152: 0 | Q152: 0 | R152: 0 | S152: 0 | U152: 0 | V152: 0 | W152: 0 | X152: 0 | Z152: 0 | AA152: 0 | AB152: 0 | AC152: 13037.49 | AD152: 0 | AE152: 0 | AF152: 0 | AG152: 13037.49 | AI152: 19027 | AJ152: -5989.51 | AL152: 2943 | AM152: 4344 | AN152: -1401 | AQ152: =VLOOKUP(C152,'School & Nursery Setting Lookup'!C:C,1,FALSE) -> 206046
A153: Derby City Childminding Network - Samantha Anne Fisher | B153: DE21 7QL | C153: EY406938 | E153: 1440 | F153: 1169 | G153: 603 | H153: 3212 | I153: P | K153: 0 | L153: 28.12837921 | M153: 77.7921728 | N153: 105.920552 | O153: 900 | P153: 661.6638983 | Q153: 299.9053747 | R153: 1861.569273 | S153: 1967.489825 | U153: 360 | V153: 332.6569749 | W153: 0 | X153: 692.6569749 | Z153: 0 | AA153: 0 | AB153: 0 | AC153: 14229.16 | AD153: 63.55233121 | AE153: 372.3138546 | AF153: 138.531395 | AG153: 14803.55758 | AI153: 12212 | AJ153: 2591.557581 | AL153: 3212 | AM153: 2693 | AN153: 519 | AQ153: =VLOOKUP(C153,'School & Nursery Setting Lookup'!C:C,1,FALSE) -> EY406938
A154: Derby City Childminding Network - Samantha McGirr | B154: DE21 7HP | C154: EY546157 | E154: 0 | F154: 0 | G154: 512 | H154: 512 | I154: P | K154: 0 | L154: 0 | M154: 240.1007049 | N154: 240.1007049 | O154: 0 | P154: 0 | Q154: 48.34126025 | R154: 48.34126025 | S154: 288.4419652 | U154: 0 | V154: 0 | W154: 0 | X154: 0 | Z154: 0 | AA154: 0 | AB154: 0 | AC154: 2268.16 | AD154: 144.060423 | AE154: 9.66825205 | AF154: 0 | AG154: 2421.888675 | AI154: 2396 | AJ154: 25.88867501 | AL154: 512 | AM154: 512 | AN154: 0 | AQ154: =VLOOKUP(C154,'School & Nursery Setting Lookup'!C:C,1,FALSE) -> EY546157
A155: Derby City Childminding Network - Sandra Upton | B155: DE21 2BL | C155: EY299821 | E155: 180 | F155: 420 | G155: 180 | H155: 780 | I155: P | K155: 0 | L155: 17.35747528 | M155: 14.87783595 | N155: 32.23531123 | O155: 0 | P155: 17.81609195 | Q155: 15.27093596 | R155: 33.08702791 | S155: 65.32233914 | U155: 0 | V155: 64.97005988 | W155: 55.68862275 | X155: 120.6586826 | Z155: 0 | AA155: 0 | AB155: 0 | AC155: 3455.4 | AD155: 19.34118674 | AE155: 6.617405583 | AF155: 24.13173653 | AG155: 3505.490329 | AI155: 1600 | AJ155: 1905.490329 | AL155: 780 | AM155: 360 | AN155: 420 | AQ155: =VLOOKUP(C155,'School & Nursery Setting Lookup'!C:C,1,FALSE) -> EY299821
A156: Derby City Childminding Network - Sara Helen Cooper | B156: DE22 4BQ | C156: 260848 | E156: 180 | F156: 420 | G156: 334 | H156: 934 | I156: P | K156: 0 | L156: 24.28692273 | M156: 41.86602871 | N156: 66.15295144 | O156: 180 | P156: 420.5588165 | Q156: 334.9632931 | R156: 935.5221096 | S156: 1001.675061 | U156: 0 | V156: 0 | W156: 0 | X156: 0 | Z156: 0 | AA156: 0 | AB156: 0 | AC156: 4137.62 | AD156: 39.69177086 | AE156: 187.1044219 | AF156: 0 | AG156: 4364.416193 | AI156: 3413 | AJ156: 951.4161928 | AL156: 934 | AM156: 724 | AN156: 210 | AQ156: =VLOOKUP(C156,'School & Nursery Setting Lookup'!C:C,1,FALSE) -> 260848
A157: Derby City Childminding Network - Sara Mycroft | B157: DE24 9FN | C157: 205978 | E157: 1008 | F157: 630 | G157: 1800 | H157: 3438 | I157: D | K157: 540 | L157: 129.1250628 | M157: 147.4372389 | N157: 816.5623017 | O157: 0 | P157: 51.85776555 | Q157: 276.0808661 | R157: 327.9386317 | S157: 1144.500933 | U157: 0 | V157: 1.974613353 | W157: 10.51246537 | X157: 12.48707873 | Z157: 0 | AA157: 0 | AB157: 0 | AC157: 15230.34 | AD157: 489.937381 | AE157: 65.58772633 | AF157: 2.497415745 | AG157: 15788.36252 | AI157: 18557 | AJ157: -2768.637477 | AL157: 3438 | AM157: 4146 | AN157: -708 | AQ157: =VLOOKUP(C157,'School & Nursery Setting Lookup'!C:C,1,FALSE) -> 205978
A158: Derby City Childminding Network - Sarah Houghton-Clarke | C158: EY488697 | E158: 0 | F158: 0 | G158: 0 | H158: 0 | I158: P | K158: 0 | L158: 0 | M158: 0 | N158: 0 | O158: 0 | P158: 0 | Q158: 0 | R158: 0 | S158: 0 | U158: 0 | V158: 0 | W158: 0 | X158: 0 | Z158: 0 | AA158: 0 | AB158: 0 | AC158: 0 | AD158: 0 | AE158: 0 | AF158: 0 | AG158: 0 | AI158: 1840 | AJ158: -1840 | AL158: 0 | AM158: 420 | AN158: -420
A159: Derby City Childminding Network - Sarah Jane Jackson | B159: DE21 7RF | C159: 2563900 | E159: 720 | F159: 630 | G159: 756 | H159: 2106 | I159: P | K159: 0 | L159: 72.54204748 | M159: 169.9556541 | N159: 242.4977016 | O159: 0 | P159: 72.72296032 | Q159: 170.379507 | R159: 243.1024674 | S159: 485.6001689 | U159: 0 | V159: 39.17866249 | W159: 91.79000925 | X159: 130.9686717 | Z159: 0 | AA159: 0 | AB159: 0 | AC159: 9329.58 | AD159: 145.498621 | AE159: 48.62049347 | AF159: 26.19373435 | AG159: 9549.892849 | AI159: 5831 | AJ159: 3718.892849 | AL159: 2106 | AM159: 1296 | AN159: 810 | AQ159: =VLOOKUP(C159,'School & Nursery Setting Lookup'!C:C,1,FALSE) -> 2563900
A160: Derby City Childminding Network - Sharron Ann Silkstone | C160: EY436155 | E160: 684 | F160: 420 | G160: 70 | H160: 1174 | I160: P | K160: 0 | L160: 0 | M160: 0 | N160: 0 | O160: 180 | P160: 144.6337308 | Q160: 14.28571429 | R160: 338.9194451 | S160: 338.9194451 | U160: 0 | V160: 0 | W160: 0 | X160: 0 | Z160: 0 | AA160: 0 | AB160: 0 | AC160: 5200.82 | AD160: 0 | AE160: 67.78388902 | AF160: 0 | AG160: 5268.603889 | AI160: 3840 | AJ160: 1428.603889 | AL160: 1174 | AM160: 850 | AN160: 324 | AQ160: =VLOOKUP(C160,'School & Nursery Setting Lookup'!C:C,1,FALSE) -> EY436155
A161: Derby City Childminding Network - Sharon Taylor | B161: DE21 7AJ | C161: 206043 | E161: 2568 | F161: 1888 | G161: 1410 | H161: 5866 | I161: P | K161: 0 | L161: 19.30175441 | M161: 57.84392292 | N161: 77.14567733 | O161: 0 | P161: 20.02120891 | Q161: 60 | R161: 80.02120891 | S161: 157.1668862 | U161: 0 | V161: 0 | W161: 0 | X161: 0 | Z161: 0 | AA161: 0 | AB161: 0 | AC161: 25986.38 | AD161: 46.2874064 | AE161: 16.00424178 | AF161: 0 | AG161: 26048.67165 | AI161: 23442 | AJ161: 2606.671648 | AL161: 5866 | AM161: 5325 | AN161: 541 | AQ161: =VLOOKUP(C161,'School & Nursery Setting Lookup'!C:C,1,FALSE) -> 206043
A162: Derby City Childminding Network - Shirley Kerr | C162: EY336425 | E162: 972 | F162: 420 | G162: 0 | H162: 1392 | I162: P | K162: 0 | L162: 0 | M162: 0 | N162: 0 | O162: 0 | P162: 0 | Q162: 0 | R162: 0 | S162: 0 | U162: 0 | V162: 0 | W162: 0 | X162: 0 | Z162: 0 | AA162: 0 | AB162: 0 | AC162: 6166.56 | AD162: 0 | AE162: 0 | AF162: 0 | AG162: 6166.56 | AI162: 5387 | AJ162: 779.56 | AL162: 1392 | AM162: 1230 | AN162: 162 | AQ162: =VLOOKUP(C162,'School & Nursery Setting Lookup'!C:C,1,FALSE) -> EY336425
A163: Derby City Childminding Network - Stella Louise Bayliss | B163: DE21 2QL | C163: 505502 | E163: 180 | F163: 588 | G163: 510 | H163: 1278 | I163: P | K163: 0 | L163: 0 | M163: 0 | N163: 0 | O163: 0 | P163: 0 | Q163: 0 | R163: 0 | S163: 0 | U163: 0 | V163: 0 | W163: 0 | X163: 0 | Z163: 0 | AA163: 0 | AB163: 0 | AC163: 5661.54 | AD163: 0 | AE163: 0 | AF163: 0 | AG163: 5661.54 | AI163: 7174 | AJ163: -1512.46 | AL163: 1278 | AM163: 1638 | AN163: -360 | AQ163: =VLOOKUP(C163,'School & Nursery Setting Lookup'!C:C,1,FALSE) -> 505502
A164: Derby City Childminding Network - Susan Jane Bonell | B164: DE21 2UL | C164: EY252328 | E164: 0 | F164: 0 | G164: 480 | H164: 480 | I164: P | K164: 0 | L164: 0 | M164: 0 | N164: 0 | O164: 0 | P164: 0 | Q164: 24.23076923 | R164: 24.23076923 | S164: 24.23076923 | U164: 0 | V164: 0 | W164: 35.76923077 | X164: 35.76923077 | Z164: 0 | AA164: 0 | AB164: 0 | AC164: 2126.4 | AD164: 0 | AE164: 4.846153846 | AF164: 7.153846154 | AG164: 2138.4 | AI164: 2114 | AJ164: 24.4 | AL164: 480 | AM164: 480 | AN164: 0 | AQ164: =VLOOKUP(C164,'School & Nursery Setting Lookup'!C:C,1,FALSE) -> EY252328
A165: Derby City Childminding Network - Susan Theresa McPhee | B165: DE24 9AY | C165: EY435150 | E165: 900 | F165: 210 | G165: 190 | H165: 1300 | I165: P | K165: 900 | L165: 181.7335103 | M165: 43.28345802 | N165: 1125.016968 | O165: 0 | P165: 22.62036575 | Q165: 117.4104698 | R165: 140.0308356 | S165: 1265.047804 | U165: 0 | V165: 0 | W165: 0 | X165: 0 | Z165: 0 | AA165: 0 | AB165: 0 | AC165: 5759 | AD165: 675.010181 | AE165: 28.00616711 | AF165: 0 | AG165: 6462.016348 | AI165: 1627 | AJ165: 4835.016348 | AL165: 1300 | AM165: 346 | AN165: 954 | AQ165: =VLOOKUP(C165,'School & Nursery Setting Lookup'!C:C,1,FALSE) -> EY435150
A166: Derby City Childminding Network - Tamasine Louise Ashforth | B166: DE24 8PF | C166: EY299849 | E166: 1656 | F166: 1512 | G166: 1430 | H166: 4598 | I166: P | K166: 1296 | L166: 1148.405226 | M166: 1104.306368 | N166: 3548.711593 | O166: 360 | P166: 271.1397191 | Q166: 464.5373203 | R166: 1095.677039 | S166: 4644.388633 | U166: 0 | V166: 47.83568045 | W166: 145.4685573 | X166: 193.3042378 | Z166: 0 | AA166: 0 | AB166: 0 | AC166: 20369.14 | AD166: 2129.226956 | AE166: 219.1354079 | AF166: 38.66084756 | AG166: 22756.16321 | AI166: 25763 | AJ166: -3006.836789 | AL166: 4598 | AM166: 5282 | AN166: -684 | AQ166: =VLOOKUP(C166,'School & Nursery Setting Lookup'!C:C,1,FALSE) -> EY299849
A167: Derby City Childminding Network - Toni Reed | B167: DE23 6QT | C167: EY00058 | E167: 0 | F167: 0 | G167: 24 | H167: 24 | I167: P | K167: 0 | L167: 0 | M167: 0 | N167: 0 | O167: 0 | P167: 0 | Q167: 0 | R167: 0 | S167: 0 | U167: 0 | V167: 0 | W167: 0 | X167: 0 | Z167: 0 | AA167: 0 | AB167: 0 | AC167: 106.32 | AD167: 0 | AE167: 0 | AF167: 0 | AG167: 106.32 | AI167: 105 | AJ167: 1.32 | AL167: 24 | AM167: 24 | AN167: 0 | AQ167: =VLOOKUP(C167,'School & Nursery Setting Lookup'!C:C,1,FALSE) -> EY00058
A168: Derby City Childminding Network - Valerie Sutton | B168: DE21 7JF | C168: EY547709 | E168: 720 | F168: 420 | G168: 1010 | H168: 2150 | I168: P | K168: 180 | L168: 266.3725739 | M168: 1009.42029 | N168: 1455.792864 | O168: 360 | P168: 149.4152047 | Q168: 370 | R168: 879.4152047 | S168: 2335.208068 | U168: 0 | V168: 10.64940107 | W168: 52.02993093 | X168: 62.679332 | Z168: 0 | AA168: 0 | AB168: 0 | AC168: 9524.5 | AD168: 873.4757183 | AE168: 175.8830409 | AF168: 12.5358664 | AG168: 10586.39463 | AI168: 12614 | AJ168: -2027.605374 | AL168: 2150 | AM168: 2592 | AN168: -442 | AQ168: =VLOOKUP(C168,'School & Nursery Setting Lookup'!C:C,1,FALSE) -> EY547709
A169: Derby City Childminding Network - Vanessa Smith | B169: DE22 2SP | C169: 206020 | E169: 180 | F169: 420 | G169: 48 | H169: 648 | I169: P | K169: 0 | L169: 0 | M169: 0 | N169: 0 | O169: 0 | P169: 0 | Q169: 0 | R169: 0 | S169: 0 | U169: 0 | V169: 0 | W169: 0 | X169: 0 | Z169: 0 | AA169: 0 | AB169: 0 | AC169: 2870.64 | AD169: 0 | AE169: 0 | AF169: 0 | AG169: 2870.64 | AI169: 210 | AJ169: 2660.64 | AL169: 648 | AM169: 48 | AN169: 600 | AQ169: =VLOOKUP(C169,'School & Nursery Setting Lookup'!C:C,1,FALSE) -> 206020
A170: Derby City Childminding Network - Veronica Ellis | B170: DE22 2BH | C170: 205892 | E170: 732 | F170: 308 | G170: 96 | H170: 1136 | I170: P | K170: 0 | L170: 0 | M170: 0 | N170: 0 | O170: 0 | P170: 0 | Q170: 0 | R170: 0 | S170: 0 | U170: 0 | V170: 0 | W170: 0 | X170: 0 | Z170: 0 | AA170: 0 | AB170: 0 | AC170: 5032.48 | AD170: 0 | AE170: 0 | AF170: 0 | AG170: 5032.48 | AI170: 4135 | AJ170: 897.48 | AL170: 1136 | AM170: 944 | AN170: 192 | AQ170: =VLOOKUP(C170,'School & Nursery Setting Lookup'!C:C,1,FALSE) -> 205892
A171: Derby City Childminding Network - Victoria Collings | C171: EY496070 | E171: 552 | F171: 540 | G171: 0 | H171: 1092 | I171: P | K171: 192 | L171: 187.826087 | M171: 0 | N171: 379.826087 | O171: 0 | P171: 0 | Q171: 0 | R171: 0 | S171: 379.826087 | U171: 552 | V171: 540 | W171: 0 | X171: 1092 | Z171: 0 | AA171: 0 | AB171: 0 | AC171: 4837.56 | AD171: 227.8956522 | AE171: 0 | AF171: 218.4 | AG171: 5283.855652 | AI171: 0 | AJ171: 5283.855652 | AL171: 1092 | AM171: 0 | AN171: 1092 | AQ171: =VLOOKUP(C171,'School & Nursery Setting Lookup'!C:C,1,FALSE) -> EY496070
A172: Derby City Childminding Network - Wendy Jane Wheawall | B172: DE22 2FZ | C172: EY318345 | E172: 756 | F172: 840 | G172: 506 | H172: 2102 | I172: P | K172: 0 | L172: 0 | M172: 0 | N172: 0 | O172: 0 | P172: 0 | Q172: 0 | R172: 0 | S172: 0 | U172: 0 | V172: 0 | W172: 0 | X172: 0 | Z172: 0 | AA172: 0 | AB172: 0 | AC172: 9311.86 | AD172: 0 | AE172: 0 | AF172: 0 | AG172: 9311.86 | AI172: 7350 | AJ172: 1961.86 | AL172: 2102 | AM172: 1678 | AN172: 424 | AQ172: =VLOOKUP(C172,'School & Nursery Setting Lookup'!C:C,1,FALSE) -> EY318345
A173: Derby City Childminding Network - Wendy Lorraine Anne Wright | B173: DE73 6TB | C173: EY464682 | E173: 180 | F173: 420 | G173: 328 | H173: 928 | I173: P | K173: 180 | L173: 242.895568 | M173: 113.7879727 | N173: 536.6835407 | O173: 0 | P173: 100.4264557 | Q173: 121.4681892 | R173: 221.8946449 | S173: 758.5781856 | U173: 0 | V173: 0 | W173: 0 | X173: 0 | Z173: 0 | AA173: 0 | AB173: 0 | AC173: 4111.04 | AD173: 322.0101244 | AE173: 44.37892898 | AF173: 0 | AG173: 4477.429053 | AI173: 3709 | AJ173: 768.4290534 | AL173: 928 | AM173: 796 | AN173: 132 | AQ173: =VLOOKUP(C173,'School & Nursery Setting Lookup'!C:C,1,FALSE) -> EY464682
A174: Derby City Childminding Network - Yolande Wosik | B174: DE24 8SE | C174: EY414019 | E174: 360 | F174: 420 | G174: 1244 | H174: 2024 | I174: P | K174: 0 | L174: 199.9577857 | M174: 963.6060909 | N174: 1163.563877 | O174: 180 | P174: 164.9567438 | Q174: 404.9344036 | R174: 749.8911474 | S174: 1913.455024 | U174: 0 | V174: 0 | W174: 0 | X174: 0 | Z174: 0 | AA174: 0 | AB174: 0 | AC174: 8966.32 | AD174: 698.1383259 | AE174: 149.9782295 | AF174: 0 | AG174: 9814.436555 | AI174: 12255 | AJ174: -2440.563445 | AL174: 2024 | AM174: 2564 | AN174: -540 | AQ174: =VLOOKUP(C174,'School & Nursery Setting Lookup'!C:C,1,FALSE) -> EY414019
A175: Derby City Childminding Network - Zarida Hussain | B175: DE23 3RL | C175: EY458078 | E175: 0 | F175: 0 | G175: 120 | H175: 120 | I175: P | K175: 0 | L175: 0 | M175: 0 | N175: 0 | O175: 0 | P175: 0 | Q175: 0 | R175: 0 | S175: 0 | U175: 0 | V175: 0 | W175: 0 | X175: 0 | Z175: 0 | AA175: 0 | AB175: 0 | AC175: 531.6 | AD175: 0 | AE175: 0 | AF175: 0 | AG175: 531.6 | AI175: 526 | AJ175: 5.6 | AL175: 120 | AM175: 120 | AN175: 0 | AQ175: =VLOOKUP(C175,'School & Nursery Setting Lookup'!C:C,1,FALSE) -> EY458078
A176: Derby City Childminding Network - Zena Brotherson | B176: DE23 2TD | C176: EY350863 | E176: 3600 | F176: 3990 | G176: 2298 | H176: 9888 | I176: P | K176: 900 | L176: 1232.089464 | M176: 828.5117378 | N176: 2960.601202 | O176: 360 | P176: 388.1248222 | Q176: 371.4215612 | R176: 1119.546383 | S176: 4080.147585 | U176: 1620 | V176: 1660.94094 | W176: 938.7184011 | X176: 4219.659341 | Z176: 0 | AA176: 0 | AB176: 0 | AC176: 43803.84 | AD176: 1776.360721 | AE176: 223.9092767 | AF176: 843.9318683 | AG176: 46648.04187 | AI176: 45409 | AJ176: 1239.041866 | AL176: 9888 | AM176: 9606 | AN176: 282 | AQ176: =VLOOKUP(C176,'School & Nursery Setting Lookup'!C:C,1,FALSE) -> EY350863
A177: Derby High School | B177: DE23 3DT | C177: EY240925 | E177: 4704 | F177: 8514 | G177: 5907 | H177: 19125 | I177: P | K177: 441 | L177: 731.3295674 | M177: 409.785762 | N177: 1582.115329 | O177: 882 | P177: 993.1726074 | Q177: 358.9638379 | R177: 2234.136445 | S177: 3816.251775 | U177: 147 | V177: 304.7232215 | W177: 339.4998368 | X177: 791.2230583 | Z177: 0 | AA177: 0 | AB177: 0 | AC177: 84723.75 | AD177: 949.2691977 | AE177: 446.8272891 | AF177: 158.2446117 | AG177: 86278.0911 | AI177: 83530 | AJ177: 2748.091098 | AL177: 19125 | AM177: 18741 | AN177: 384 | AQ177: =VLOOKUP(C177,'School & Nursery Setting Lookup'!C:C,1,FALSE) -> EY240925
A178: Derby Montessori | B178: DE22 3NJ | C178: EY476012 | E178: 4350 | F178: 4256 | G178: 6273 | H178: 14879 | I178: P | K178: 168 | L178: 618.555204 | M178: 1216.304413 | N178: 2002.859617 | O178: 2478 | P178: 2326.60134 | Q178: 2710.454354 | R178: 7515.055694 | S178: 9517.915311 | U178: 180 | V178: 625.2929956 | W178: 1212.202236 | X178: 2017.495231 | Z178: 0 | AA178: 0 | AB178: 0 | AC178: 65913.97 | AD178: 1201.71577 | AE178: 1503.011139 | AF178: 403.4990463 | AG178: 69022.19596 | AI178: 73814 | AJ178: -4791.804045 | AL178: 14879 | AM178: 15992 | AN178: -1113 | AQ178: =VLOOKUP(C178,'School & Nursery Setting Lookup'!C:C,1,FALSE) -> EY476012
A179: Derwent Stepping Stones At Brackensdale | B179: DE22 4BS | C179: EY460372 | E179: 5400 | F179: 3360 | G179: 4680 | H179: 13440 | I179: P | K179: 1080 | L179: 781.2528394 | M179: 1415.011358 | N179: 3276.264197 | O179: 3960 | P179: 2167.194281 | Q179: 2188.777125 | R179: 8315.971406 | S179: 11592.2356 | U179: 0 | V179: 67.49797332 | W179: 59.99189326 | X179: 127.4898666 | Z179: 0 | AA179: 0 | AB179: 0 | AC179: 59539.2 | AD179: 1965.758518 | AE179: 1663.194281 | AF179: 25.49797332 | AG179: 63193.65077 | AI179: 65293 | AJ179: -2099.349227 | AL179: 13440 | AM179: 13908 | AN179: -468 | AQ179: =VLOOKUP(C179,'School & Nursery Setting Lookup'!C:C,1,FALSE) -> EY460372
A180: Derwent Stepping Stones At Breadsall Hill Top | C180: EY562638 | E180: 3240 | F180: 2730 | G180: 900 | H180: 6870 | I180: P | K180: 360 | L180: 365.8762887 | M180: 0 | N180: 725.8762887 | O180: 2160 | P180: 1407.216495 | Q180: 0 | R180: 3567.216495 | S180: 4293.092784 | U180: 180 | V180: 182.9381443 | W180: 0 | X180: 362.9381443 | Z180: 0 | AA180: 0 | AB180: 0 | AC180: 30434.1 | AD180: 435.5257732 | AE180: 713.443299 | AF180: 72.58762887 | AG180: 31655.6567 | AI180: 25277 | AJ180: 6378.656701 | AL180: 6870 | AM180: 5460 | AN180: 1410 | AQ180: =VLOOKUP(C180,'School & Nursery Setting Lookup'!C:C,1,FALSE) -> EY562638
A181: Derwent Stepping Stones- St Marks Rd | B181: DE21 6AH | C181: EY330097 | E181: 14544 | F181: 10692 | G181: 10440 | H181: 35676 | I181: P | K181: 8100 | L181: 6459.656134 | M181: 7701.433638 | N181: 22261.08977 | O181: 3600 | P181: 3098.642601 | Q181: 3483.573209 | R181: 10182.21581 | S181: 32443.30558 | U181: 3600 | V181: 2470.984223 | W181: 948.1320115 | X181: 7019.116235 | Z181: 0 | AA181: 0 | AB181: 0 | AC181: 158044.68 | AD181: 13356.65386 | AE181: 2036.443162 | AF181: 1403.823247 | AG181: 174841.6003 | AI181: 176511 | AJ181: -1669.399728 | AL181: 35676 | AM181: 36468 | AN181: -792 | AQ181: =VLOOKUP(C181,'School & Nursery Setting Lookup'!C:C,1,FALSE) -> EY330097
A182: Childcare @ St James Centre | B182: DE23 8LU | C182: EY396374 | E182: 5652 | F182: 3570 | G182: 4606 | H182: 13828 | I182: P | K182: 5292 | L182: 3287.799866 | M182: 4082.929006 | N182: 12662.72887 | O182: 360 | P182: 468.0023363 | Q182: 1242.755268 | R182: 2070.757604 | S182: 14733.48648 | U182: 2664 | V182: 1907.763966 | W182: 2835.512639 | X182: 7407.276605 | Z182: 0 | AA182: 0 | AB182: 0 | AC182: 61258.04 | AD182: 7597.637323 | AE182: 414.1515208 | AF182: 1481.455321 | AG182: 70751.28417 | AI182: 79852 | AJ182: -9100.715835 | AL182: 13828 | AM182: 15736 | AN182: -1908 | AQ182: =VLOOKUP(C182,'School & Nursery Setting Lookup'!C:C,1,FALSE) -> EY396374
A183: Diamond Day PDN | B183: DE24 0PA | C183: EY421215 | E183: 6120 | F183: 5826 | G183: 6190 | H183: 18136 | I183: P | K183: 2520 | L183: 2268.844208 | M183: 2112.435416 | N183: 6901.279624 | O183: 2160 | P183: 2334.390033 | Q183: 2648.73186 | R183: 7143.121893 | S183: 14044.40152 | U183: 720 | V183: 895.1042336 | W183: 427.5323276 | X183: 2042.636561 | Z183: 0 | AA183: 0 | AB183: 0 | AC183: 80342.48 | AD183: 4140.767775 | AE183: 1428.624379 | AF183: 408.5273122 | AG183: 86320.39947 | AI183: 87731 | AJ183: -1410.600535 | AL183: 18136 | AM183: 18370 | AN183: -234 | AQ183: =VLOOKUP(C183,'School & Nursery Setting Lookup'!C:C,1,FALSE) -> EY421215
A184: Emmanuel School | B184: DE22 1FP | C184: 381/6000 | E184: 2448 | F184: 3948 | G184: 4276 | H184: 10672 | I184: P | K184: 864 | L184: 1587.304459 | M184: 1746.707495 | N184: 4198.011954 | O184: 324 | P184: 523.7317073 | Q184: 839.7205625 | R184: 1687.45227 | S184: 5885.464224 | U184: 0 | V184: 295.7251374 | W184: 169.3866935 | X184: 465.1118308 | Z184: 0 | AA184: 0 | AB184: 0 | AC184: 47276.96 | AD184: 2518.807172 | AE184: 337.490454 | AF184: 93.02236617 | AG184: 50226.27999 | AI184: 56072 | AJ184: -5845.720008 | AL184: 10672 | AM184: 11965 | AN184: -1293 | AQ184: =VLOOKUP(C184,'School & Nursery Setting Lookup'!C:C,1,FALSE) -> 381/6000
A185: Field Lane Playgroup Ltd | B185: DE24 0GW | C185: EY307423 | E185: 5364 | F185: 3528 | G185: 6352 | H185: 15244 | I185: P | K185: 1260 | L185: 949.1677117 | M185: 2253.222392 | N185: 4462.390103 | O185: 2700 | P185: 1871.737993 | Q185: 3287.520965 | R185: 7859.258957 | S185: 12321.64906 | U185: 0 | V185: 0 | W185: 0 | X185: 0 | Z185: 0 | AA185: 0 | AB185: 0 | AC185: 67530.92 | AD185: 2677.434062 | AE185: 1571.851791 | AF185: 0 | AG185: 71780.20585 | AI185: 76554 | AJ185: -4773.794147 | AL185: 15244 | AM185: 16468 | AN185: -1224 | AQ185: =VLOOKUP(C185,'School & Nursery Setting Lookup'!C:C,1,FALSE) -> EY307423
A186: First Friends Private Day Nursery | B186: DE21 6HP | C186: 206106 | E186: 7021.5 | F186: 4702 | G186: 5940 | H186: 17663.5 | I186: P | K186: 1526.5 | L186: 1114.409298 | M186: 1508.861178 | N186: 4149.770475 | O186: 3013 | P186: 1836.72748 | Q186: 1845.679521 | R186: 6695.407001 | S186: 10845.17748 | U186: 544 | V186: 566.2677652 | W186: 759.6998705 | X186: 1869.967636 | Z186: 0 | AA186: 0 | AB186: 0 | AC186: 78249.305 | AD186: 2489.862285 | AE186: 1339.0814 | AF186: 373.9935271 | AG186: 82452.24221 | AI186: 85392 | AJ186: -2939.757787 | AL186: 17663.5 | AM186: 18408.5 | AN186: -745 | AQ186: =VLOOKUP(C186,'School & Nursery Setting Lookup'!C:C,1,FALSE) -> 206106
A187: First Steps Early Years Centre | B187: DE24 8XB | C187: EY539483 | E187: 9812 | F187: 7824 | G187: 11107 | H187: 28743 | I187: P | K187: 7760 | L187: 6478.441594 | M187: 8938.179396 | N187: 23176.62099 | O187: 1080 | P187: 1378.335762 | Q187: 3258.984984 | R187: 5717.320747 | S187: 28893.94174 | U187: 2700 | V187: 1047.41981 | W187: 446.0126746 | X187: 4193.432485 | Z187: 0 | AA187: 0 | AB187: 0 | AC187: 127331.49 | AD187: 13905.97259 | AE187: 1143.464149 | AF187: 838.6864969 | AG187: 143219.6132 | AI187: 137528 | AJ187: 5691.61324 | AL187: 28743 | AM187: 27790 | AN187: 953 | AQ187: =VLOOKUP(C187,'School & Nursery Setting Lookup'!C:C,1,FALSE) -> EY539483
A188: Fun Time Nursery Limited | B188: DE23 8DD | C188: EY478943 | E188: 7344 | F188: 5902 | G188: 8100 | H188: 21346 | I188: P | K188: 3780 | L188: 2693.723785 | M188: 3178.590554 | N188: 9652.314338 | O188: 540 | P188: 742.2733656 | Q188: 1767.621951 | R188: 3049.895316 | S188: 12702.20965 | U188: 180 | V188: 902.7504401 | W188: 2927.324897 | X188: 4010.075338 | Z188: 0 | AA188: 0 | AB188: 0 | AC188: 94562.78 | AD188: 5791.388603 | AE188: 609.9790633 | AF188: 802.0150675 | AG188: 101766.1627 | AI188: 104524 | AJ188: -2757.837266 | AL188: 21346 | AM188: 22084 | AN188: -738 | AQ188: =VLOOKUP(C188,'School & Nursery Setting Lookup'!C:C,1,FALSE) -> EY478943
A189: Heatherton Pre-School | B189: DE23 3TZ | C189: EY406182 | E189: 4320 | F189: 2850 | G189: 3553 | H189: 10723 | I189: P | K189: 0 | L189: 75.358646 | M189: 73.53360036 | N189: 148.8922464 | O189: 180 | P189: 233.6812349 | Q189: 279.2153972 | R189: 692.8966321 | S189: 841.7888785 | U189: 180 | V189: 171.9423684 | W189: 466.9256198 | X189: 818.8679883 | Z189: 0 | AA189: 0 | AB189: 0 | AC189: 47502.89 | AD189: 89.33534781 | AE189: 138.5793264 | AF189: 163.7735977 | AG189: 47894.57827 | AI189: 53076 | AJ189: -5181.421728 | AL189: 10723 | AM189: 12001 | AN189: -1278 | AQ189: =VLOOKUP(C189,'School & Nursery Setting Lookup'!C:C,1,FALSE) -> EY406182
A190: Homelands Early Years Centre | B190: DE23 8DN | C190: EY539486 | E190: 4224 | F190: 0 | G190: 5400 | H190: 9624 | I190: P | K190: 2520 | L190: 0 | M190: 3448.788214 | N190: 5968.788214 | O190: 1236 | P190: 0 | Q190: 2093.858139 | R190: 3329.858139 | S190: 9298.646353 | U190: 1548 | V190: 0 | W190: 780.0895878 | X190: 2328.089588 | Z190: 0 | AA190: 0 | AB190: 0 | AC190: 42634.32 | AD190: 3581.272928 | AE190: 665.9716278 | AF190: 465.6179176 | AG190: 47347.18247 | AI190: 92518 | AJ190: -45170.81753 | AL190: 9624 | AM190: 18953 | AN190: -9329 | AQ190: =VLOOKUP(C190,'School & Nursery Setting Lookup'!C:C,1,FALSE) -> EY539486
A191: Incredible Kids | B191: DE24 8AJ | C191: EY477956 | E191: 12712 | F191: 8854 | G191: 13094 | H191: 34660 | I191: P | K191: 4964 | L191: 3612.46088 | M191: 5498.394278 | N191: 14074.85516 | O191: 3757 | P191: 2769.0379 | Q191: 3648.996029 | R191: 10175.03393 | S191: 24249.88909 | U191: 0 | V191: 212.9938486 | W191: 842.8099712 | X191: 1055.80382 | Z191: 0 | AA191: 0 | AB191: 0 | AC191: 153543.8 | AD191: 8444.913095 | AE191: 2035.006786 | AF191: 211.160764 | AG191: 164234.8806 | AI191: 172801 | AJ191: -8566.119355 | AL191: 34660 | AM191: 36623 | AN191: -1963 | AQ191: =VLOOKUP(C191,'School & Nursery Setting Lookup'!C:C,1,FALSE) -> EY477956
A192: King George V Pre-School | B192: DE23 6GT | C192: 206134 | E192: 8598 | F192: 6186 | G192: 7238 | H192: 22022 | I192: P | K192: 468 | L192: 421.4801009 | M192: 992.8626763 | N192: 1882.342777 | O192: 2352 | P192: 1483.739317 | Q192: 638.9494439 | R192: 4474.68876 | S192: 6357.031538 | U192: 828 | V192: 585.5208404 | W192: 611.165142 | X192: 2024.685982 | Z192: 0 | AA192: 0 | AB192: 0 | AC192: 97557.46 | AD192: 1129.405666 | AE192: 894.9377521 | AF192: 404.9371965 | AG192: 99986.74061 | AI192: 106911 | AJ192: -6924.259385 | AL192: 22022 | AM192: 23815 | AN192: -1793 | AQ192: =VLOOKUP(C192,'School & Nursery Setting Lookup'!C:C,1,FALSE) -> 206134
A193: Kingfisher Day Nursery - Spondon | B193: DE21 7AB | C193: EY285337 | E193: 15070 | F193: 10949 | G193: 7200 | H193: 33219 | I193: P | K193: 2754 | L193: 1741.148491 | M193: 589.5378795 | N193: 5084.68637 | O193: 2160 | P193: 1287.916694 | Q193: 480.8031249 | R193: 3928.719819 | S193: 9013.406189 | U193: 0 | V193: 102.726131 | W193: 31.13379825 | X193: 133.8599293 | Z193: 0 | AA193: 0 | AB193: 0 | AC193: 147160.17 | AD193: 3050.811822 | AE193: 785.7439638 | AF193: 26.77198586 | AG193: 151023.4978 | AI193: 154369 | AJ193: -3345.502228 | AL193: 33219 | AM193: 34256.5 | AN193: -1037.5 | AQ193: =VLOOKUP(C193,'School & Nursery Setting Lookup'!C:C,1,FALSE) -> EY285337
A194: Kingfisher Day Nursery (2) | B194: DE22 1AF | C194: EY371448 | E194: 9197 | F194: 4768 | G194: 8695 | H194: 22660 | I194: P | K194: 1800 | L194: 785.5587073 | M194: 1383.452567 | N194: 3969.011274 | O194: 1276 | P194: 668.1436386 | Q194: 1400.46742 | R194: 3344.611059 | S194: 7313.622333 | U194: 0 | V194: 0 | W194: 0 | X194: 0 | Z194: 0 | AA194: 0 | AB194: 0 | AC194: 100383.8 | AD194: 2381.406764 | AE194: 668.9222118 | AF194: 0 | AG194: 103434.129 | AI194: 110062 | AJ194: -6627.871024 | AL194: 22660 | AM194: 24533 | AN194: -1873 | AQ194: =VLOOKUP(C194,'School & Nursery Setting Lookup'!C:C,1,FALSE) -> EY371448
A195: La Petite Academy | B195: DE23 1DG | C195: 206109 | E195: 12654 | F195: 8788 | G195: 12086 | H195: 33528 | I195: P | K195: 416 | L195: 481.0462345 | M195: 1056.141838 | N195: 1953.188073 | O195: 839 | P195: 800.6081877 | Q195: 1438.880837 | R195: 3078.489024 | S195: 5031.677097 | U195: 587 | V195: 435.5224029 | W195: 710.5267589 | X195: 1733.049162 | Z195: 0 | AA195: 0 | AB195: 0 | AC195: 148529.04 | AD195: 1171.912844 | AE195: 615.6978049 | AF195: 346.6098324 | AG195: 150663.2605 | AI195: 146318 | AJ195: 4345.260481 | AL195: 33528 | AM195: 32850 | AN195: 678 | AQ195: =VLOOKUP(C195,'School & Nursery Setting Lookup'!C:C,1,FALSE) -> 206109
A196: Leapfrog Day Nursery(1) | B196: DE21 2SF | C196: 206110 | E196: 13930.5 | F196: 10489 | G196: 11889 | H196: 36308.5 | I196: P | K196: 600 | L196: 533.2342708 | M196: 872.8324456 | N196: 2006.066716 | O196: 2987.5 | P196: 2048.634155 | Q196: 2029.008553 | R196: 7065.142708 | S196: 9071.209425 | U196: 0 | V196: 220.9355672 | W196: 764.7858748 | X196: 985.7214419 | Z196: 0 | AA196: 0 | AB196: 0 | AC196: 160846.655 | AD196: 1203.64003 | AE196: 1413.028542 | AF196: 197.1442884 | AG196: 163660.4679 | AI196: 164541 | AJ196: -880.5321401 | AL196: 36308.5 | AM196: 36785 | AN196: -476.5 | AQ196: =VLOOKUP(C196,'School & Nursery Setting Lookup'!C:C,1,FALSE) -> 206110
A197: Leapfrogs Pre School | B197: DE73 6TS | C197: 206135 | E197: 4122 | F197: 3192 | G197: 4484 | H197: 11798 | I197: P | K197: 0 | L197: 67.84832007 | M197: 244.9723962 | N197: 312.8207163 | O197: 432 | P197: 514.2094804 | Q197: 1004.59908 | R197: 1950.80856 | S197: 2263.629276 | U197: 252 | V197: 193.1768195 | W197: 151.4820941 | X197: 596.6589136 | Z197: 0 | AA197: 0 | AB197: 0 | AC197: 52265.14 | AD197: 187.6924298 | AE197: 390.161712 | AF197: 119.3317827 | AG197: 52962.32592 | AI197: 53947 | AJ197: -984.6740755 | AL197: 11798 | AM197: 12155 | AN197: -357 | AQ197: =VLOOKUP(C197,'School & Nursery Setting Lookup'!C:C,1,FALSE) -> 206135
A198: Little Owls Playgroup | B198: DE22 4FN | C198: EY492973 | E198: 13584 | F198: 9422 | G198: 10620 | H198: 33626 | I198: P | K198: 1080 | L198: 817.7518476 | M198: 1375.608047 | N198: 3273.359895 | O198: 9804 | P198: 6687.646276 | Q198: 7236.261479 | R198: 23727.90775 | S198: 27001.26765 | U198: 2520 | V198: 1340.988268 | W198: 1319.581358 | X198: 5180.569626 | Z198: 0 | AA198: 0 | AB198: 0 | AC198: 148963.18 | AD198: 1964.015937 | AE198: 4745.581551 | AF198: 1036.113925 | AG198: 156708.8914 | AI198: 133075 | AJ198: 23633.89141 | AL198: 33626 | AM198: 28980 | AN198: 4646 | AQ198: =VLOOKUP(C198,'School & Nursery Setting Lookup'!C:C,1,FALSE) -> EY492973
A199: Little Poppies Pre-School ( Royal British | B199: DE3 9GB | C199: EY371611 | E199: 6042 | F199: 5019 | G199: 5241 | H199: 16302 | I199: P | K199: 0 | L199: 62.68138826 | M199: 203.5927459 | N199: 266.2741341 | O199: 360 | P199: 320.8275638 | Q199: 262.066337 | R199: 942.8939008 | S199: 1209.168035 | U199: 0 | V199: 0 | W199: 0 | X199: 0 | Z199: 0 | AA199: 0 | AB199: 0 | AC199: 72217.86 | AD199: 159.7644805 | AE199: 188.5787802 | AF199: 0 | AG199: 72566.20326 | AI199: 72089 | AJ199: 477.2032606 | AL199: 16302 | AM199: 16386 | AN199: -84 | AQ199: =VLOOKUP(C199,'School & Nursery Setting Lookup'!C:C,1,FALSE) -> EY371611
A200: Little Scholars Private Day Nursery(1) Sunnyhill | B200: DE23 1GQ | C200: EY550368 | E200: 8190.5 | F200: 6997 | G200: 5400 | H200: 20587.5 | I200: D | K200: 1517.5 | L200: 1321.422352 | M200: 1008.223506 | N200: 3847.145858 | O200: 2602 | P200: 2227.598213 | Q200: 1621.191059 | R200: 6450.789272 | S200: 10297.93513 | U200: 2158 | V200: 1969.514482 | W200: 1749.077097 | X200: 5876.59158 | Z200: 0 | AA200: 0 | AB200: 0 | AC200: 91202.625 | AD200: 2308.287515 | AE200: 1290.157854 | AF200: 1175.318316 | AG200: 95976.38869 | AI200: 91370 | AJ200: 4606.388686 | AL200: 20587.5 | AM200: 19710 | AN200: 877.5 | AQ200: =VLOOKUP(C200,'School & Nursery Setting Lookup'!C:C,1,FALSE) -> EY550368
A201: Little Scholars Private Day Nursery(2) Littleover | B201: DE23 3EY | C201: 509197 | E201: 9198 | F201: 5235 | G201: 5655 | H201: 20088 | I201: P | K201: 1260 | L201: 699.4258771 | M201: 793.871446 | N201: 2753.297323 | O201: 2320 | P201: 1237.617664 | Q201: 1270.047496 | R201: 4827.66516 | S201: 7580.962483 | U201: 2520 | V201: 1408.528593 | W201: 364.8753338 | X201: 4293.403927 | Z201: 0 | AA201: 0 | AB201: 0 | AC201: 88989.84 | AD201: 1651.978394 | AE201: 965.533032 | AF201: 858.6807853 | AG201: 92466.03221 | AI201: 81217 | AJ201: 11249.03221 | AL201: 20088 | AM201: 17885 | AN201: 2203 | AQ201: =VLOOKUP(C201,'School & Nursery Setting Lookup'!C:C,1,FALSE) -> 509197
A202: Little Angels Playschool CIC | B202: DE24 9HY | C202: EY471706 | E202: 6840 | F202: 5670 | G202: 5795 | H202: 18305 | I202: D | K202: 6120 | L202: 4819.630772 | M202: 4399.672183 | N202: 15339.30296 | O202: 360 | P202: 619.5076408 | Q202: 1430.015408 | R202: 2409.523049 | S202: 17748.826 | U202: 1260 | V202: 853.4274624 | W202: 865.201005 | X202: 2978.628467 | Z202: 0 | AA202: 0 | AB202: 0 | AC202: 81091.15 | AD202: 9203.581773 | AE202: 481.9046098 | AF202: 595.7256935 | AG202: 91372.36208 | AI202: 101220 | AJ202: -9847.637924 | AL202: 18305 | AM202: 20465 | AN202: -2160 | AQ202: =VLOOKUP(C202,'School & Nursery Setting Lookup'!C:C,1,FALSE) -> EY471706
A203: Marble Hall Little Angels Day Nursery | B203: DE1 8BF | C203: EY544417 | E203: 9540 | F203: 6915 | G203: 6104 | H203: 22559 | I203: D | K203: 9000 | L203: 6749.269693 | M203: 6103.333333 | N203: 21852.60303 | O203: 360 | P203: 1232.24877 | Q203: 3660 | R203: 5252.24877 | S203: 27104.8518 | U203: 1980 | V203: 1376.940508 | W203: 202.031948 | X203: 3558.972456 | Z203: 0 | AA203: 0 | AB203: 0 | AC203: 99936.37 | AD203: 13111.56182 | AE203: 1050.449754 | AF203: 711.7944912 | AG203: 114810.1761 | AI203: 111393 | AJ203: 3417.176061 | AL203: 22559 | AM203: 22019 | AN203: 540 | AQ203: =VLOOKUP(C203,'School & Nursery Setting Lookup'!C:C,1,FALSE) -> EY544417
A204: Mary Poppins Day Nursery | B204: DE3 9AJ | C204: 206117 | E204: 14862 | F204: 11445 | G204: 12060 | H204: 38367 | I204: D | K204: 720 | L204: 270.3073718 | M204: 186.1496666 | N204: 1176.457038 | O204: 318 | P204: 486.3129255 | Q204: 941.263697 | R204: 1745.576622 | S204: 2922.033661 | U204: 0 | V204: 0 | W204: 0 | X204: 0 | Z204: 0 | AA204: 0 | AB204: 0 | AC204: 169965.81 | AD204: 705.8742231 | AE204: 349.1153245 | AF204: 0 | AG204: 171020.7995 | AI204: 173523 | AJ204: -2502.200452 | AL204: 38367 | AM204: 39457 | AN204: -1090 | AQ204: =VLOOKUP(C204,'School & Nursery Setting Lookup'!C:C,1,FALSE) -> 206117
A205: Mickleover Methodist Playgroup | B205: DE3 9GH | C205: 206141 | E205: 6156 | F205: 5068 | G205: 4364 | H205: 15588 | I205: P | K205: 228 | L205: 191.1114058 | M205: 101.2056886 | N205: 520.3170944 | O205: 324 | P205: 292.1481891 | Q205: 207.8790484 | R205: 824.0272376 | S205: 1344.344332 | U205: 360 | V205: 347.4505201 | W205: 302.1150374 | X205: 1009.565558 | Z205: 0 | AA205: 0 | AB205: 0 | AC205: 69054.84 | AD205: 312.1902567 | AE205: 164.8054475 | AF205: 201.9131115 | AG205: 69733.74882 | AI205: 69987 | AJ205: -253.2511843 | AL205: 15588 | AM205: 15844 | AN205: -256 | AQ205: =VLOOKUP(C205,'School & Nursery Setting Lookup'!C:C,1,FALSE) -> 206141
... 57 more rows

Sheet ERS 2021-22 (hidden)
A1: ERS Budget 2021/22 (using Q3 data at 13-10-2020) | K1: 6000
K2: A | L2: B | N2: C | R2: D | S2: E | T2: F | Y2: G
A3: School | B3: DfE | C3: Phase | D3: 2020/21 places as per SLA/EFA return - Pre/post 16 | E3: Banding 2021/22 | G3: Element 2 Places funded (Average for Alvaston and St Bens due to reduction in places) | I3: DCC Pre 16 E3 | J3: Other LA Pre 16 E3 | K3: DCC Pre 16 | L3: DCC Post 16 | M3: Vacant Places E3 | N3: TOTAL including VACANT places | P3: Element 1 & 2 (Place Funding) | Q3: E1 empty places | R3: Element 3 (Top Up Funding DCC) | S3: Exceptional Payments | T3: Other Adj | U3: TOTAL DCC | W3: Element 3 (Top Up Funding Other LA) | X3: Total School Funding | Y3: Vacant top up funding (element 3) | Z3: comment | AA3: Check to individual sheets | AB3: Variance | AD3: E2 places 2020/21 19/20 budget | AE3: E2 Variance 2021/22 to 2020/21 | AF3: DCC E3 places 2020/21 budget | AG3: E3 Variance 2021/22 to 2020/21 | AH3: 2020/21 Budget incl Other LA's | AI3: Variance | AJ3: 2020/21 Budget for Derby City only | AK3: Variance
P4: 6000 | Q4: 4000
P5: 0
A6: Allestree Woodlands Community School | B6: 5414 | C6: Secondary | D6: 14 | E6: 6000 | G6: 14 | I6: 13 | J6: 2 | K6: =G6 -> 14 | M6: 1 | N6: 15 | P6: =G6*6000 -> 84000 | Q6: 8000 | R6: 78000 | S6: 0 | U6: =SUM(P6:T6) -> 170000 | W6: 12000 | X6: =SUM(U6:W6) -> 182000 | Y6: 0 | AA6: 162000 | AB6: 0 | AD6: 14 | AE6: 0 | AF6: 12 | AG6: 1 | AH6: 168000 | AI6: 14000 | AJ6: 156000 | AK6: 14000
A7: Alvaston Junior Community School | B7: 2442 | C7: Primary | D7: =G7 -> 3.666666667 | E7: 5500 | G7: 3.666666667 | I7: 3 | J7: 1 | K7: =G7 -> 3.666666667 | M7: 0.3333333333 | N7: 4 | P7: 22000 | Q7: 3333.333333 | R7: 10083.33333 | S7: 0 | U7: =SUM(P7:T7) -> 35416.66667 | W7: 5500 | X7: =SUM(U7:W7) -> 40916.66667 | Y7: 0 | AA7: 32083.33333 | AB7: 0 | AD7: 6.416666667 | AE7: -2.75 | AF7: 4 | AG7: -1 | AH7: 70000 | AI7: -29083.33333 | AJ7: 64500 | AK7: -29083.33333
A8: Brackensdale Primary | B8: 2432 | C8: Primary | D8: =16+37 -> 53 | E8: 8000 | G8: 53 | I8: 41 | J8: 1 | K8: =G8 -> 53 | M8: -11 | N8: 53 | P8: 318000 | Q8: 44000 | R8: 328000 | S8: 0 | U8: 690000 | W8: 8000 | X8: 698000 | Y8: 88000 | AA8: 646000 | AB8: 0 | AD8: 53 | AE8: 0 | AF8: 52 | AG8: -11 | AH8: 742000 | AI8: -44000 | AJ8: 734000 | AK8: -44000
A9: Lees Brook Community | B9: 4006 | C9: Secondary | D9: 4 | E9: 5500 | G9: 1.916666667 | I9: 2 | J9: 0 | K9: =G9 -> 1.916666667 | M9: 0.08333333333 | N9: 1.916666667 | P9: 11500 | Q9: 3333.333333 | R9: 7791.666667 | S9: 0 | U9: 22625 | W9: 0 | X9: 22625 | Y9: 0 | AA9: 47375 | AB9: -28083.33333 | AD9: 4 | AE9: -2.083333333 | AF9: 4 | AG9: -2 | AH9: 58000 | AI9: -35375 | AJ9: 58000 | AK9: -35375
A10: Lees Brook Community - Post 16 | B10: 4006 | C10: Secondary | D10: 5 | E10: =+E9 -> 5500 | G10: 3 | I10: 0 | J10: 0 | K10: 0 | L10: =G10 -> 3 | M10: 0 | N10: 3 | P10: 18000 | Q10: 0 | R10: 10083.33333 | S10: 0 | U10: 28083.33333 | W10: 0 | X10: 28083.33333 | Y10: 0 | AA10: 0 | AB10: 28083.33333 | AD10: 5 | AE10: -2 | AF10: 3 | AG10: 0 | AH10: 46500 | AI10: -18416.66667 | AJ10: 46500 | AK10: -18416.66667
A11: Markeaton Primary School | B11: 2436 | C11: Primary | D11: 4 | E11: 22980 | G11: 4 | I11: 3 | J11: 0 | K11: =G11 -> 4 | M11: -1 | N11: 4 | P11: 24000 | R11: 68940 | S11: 0 | U11: 92940 | W11: 0 | X11: 92940 | Y11: 22980 | AA11: 92940 | AB11: 0 | AD11: 4 | AE11: 0 | AF11: 3 | AG11: 0 | AH11: 92940 | AI11: 0 | AJ11: 92940 | AK11: 0
A12: Reigate Primary School | B12: 2020 | C12: Primary | D12: 18 | E12: 6000 | G12: 18 | I12: 9 | J12: 4 | K12: =G12 -> 18 | M12: -5 | N12: 18 | P12: 108000 | Q12: 20000 | R12: 54000 | S12: 13342.9 | U12: 195342.9 | W12: 24000 | X12: 219342.9 | Y12: 30000 | AA12: 175342.9 | AB12: 0 | AD12: 22.16666667 | AE12: -4.166666667 | AF12: 11 | AG12: -2 | AH12: 267000 | AI12: -47657.1 | AJ12: 243000 | AK12: -47657.1
A13: Saint Benedict Catholic School | B13: 4607 | C13: Secondary | D13: 15 | E13: 10000 | G13: 15 | I13: 14 | J13: 1 | K13: =G13 -> 15 | M13: 0 | N13: 15 | P13: 90000 | Q13: 0 | R13: 140000 | S13: 0 | T13: 25000 | U13: 255000 | W13: 10000 | X13: 265000 | Y13: 0 | Z13: Parapetetic teacher | AA13: 272000 | AB13: -17000 | AC13: OK - teacher | AD13: 16.66666667 | AE13: -1.666666667 | AF13: 15 | AG13: -1 | AH13: 332852.61 | AI13: -67852.61 | AJ13: 332852.61 | AK13: -77852.61
A14: Saint Benedict Catholic School - Post 16 | B14: 4607 | C14: Secondary | D14: =G14 -> 2 | E14: =+E13 -> 10000 | G14: 2 | I14: 0 | J14: 1 | K14: 0 | L14: =G14 -> 2 | M14: 2 | N14: 4 | P14: 12000 | Q14: 0 | R14: 30000 | S14: 0 | U14: 42000 | W14: 10000 | X14: 52000 | Y14: 0 | AA14: 0 | AB14: 42000 | AD14: 2 | AE14: 0 | AF14: 2 | AG14: 1 | AH14: 32000 | AI14: 20000 | AJ14: 32000 | AK14: 10000
A15: Springfield | B15: 2466 | C15: Primary | D15: 30 | E15: 8000 | G15: 30 | I15: 31 | J15: 3 | K15: =G15 -> 30 | M15: 4 | N15: 34 | P15: 180000 | Q15: 0 | R15: 248000 | S15: 0 | U15: 428000 | W15: 24000 | X15: 452000 | Y15: 0 | AA15: 428000 | AB15: 0 | AD15: 30 | AE15: 0 | AF15: 30 | AG15: 1 | AH15: 420000 | AI15: 32000 | AJ15: 420000 | AK15: 8000
A16: The Bemrose Community School | B16: 4177 | C16: Secondary | D16: =45-10 -> 35 | E16: 9000 | G16: 35 | I16: 35 | J16: 0 | K16: =G16 -> 35 | M16: 0 | N16: 35 | P16: 210000 | R16: 315000 | S16: 0 | U16: 525000 | W16: 0 | X16: 525000 | Y16: 0 | AA16: 525000 | AB16: 0 | AD16: 45 | AE16: -10 | AF16: 33 | AG16: 2 | AH16: 576000 | AI16: -51000 | AJ16: 567000 | AK16: -42000
U17: 0 | X17: 0
A18: 50% of Vacant places as contingency | T18: 70490 | U18: 70490 | X18: 70490 | AH18: 79490 | AI18: -9000 | AJ18: 79490 | AK18: -9000
A20: TOTAL ERS Schools | B20: ALL | D20: =SUM(D6:D19) -> 183.6666667 | G20: =SUM(G6:G19) -> 179.5833333 | I20: =SUM(I6:I16) -> 151 | J20: 13 | K20: 174.5833333 | L20: 5 | M20: -9.583333333 | N20: 186.9166667 | P20: =SUM(P6:P16) -> 1077500 | Q20: =SUM(Q6:Q16) -> 78666.66667 | R20: =SUM(R6:R16) -> 1289898.333 | S20: =SUM(S6:S16) -> 13342.9 | T20: =SUM(T6:T18) -> 95490 | U20: =SUM(U6:U18) -> 2554897.9 | W20: =SUM(W6:W16) -> 93500 | X20: =SUM(X6:X18) -> 2648397.9 | Y20: =SUM(Y6:Y16) -> 140980 | Z20: comment | AD20: =SUM(AD6:AD19) -> 202.25 | AE20: =SUM(AE6:AE19) -> -22.66666667 | AF20: 169 | AG20: -12 | AH20: 2884782.61 | AI20: -236384.71 | AJ20: 2826282.61 | AK20: -271384.71
A22: Recoupement E2 places | U22: ='School Formula Budget 2021-22'!H42 -> 0
A23: E1 recoupement for empty places | G23: =G20*6000 -> 1077500 | L23: =K20+L20 -> 179.5833333
A24: TOTAL ERS Budget | U24: =U20-U22 -> 2554897.9
K27: 15
K28: 4
K29: 42
K30: 2
K31: 0 | L31: 3
K32: 3
K33: 13
K34: 15
K35: 1 | L35: 3
K36: 34
K37: 35
K41: 164 | L41: 6

Sheet Special Schools 2021-22 (hidden)
H2: 3 | I2: 1 | J2: 2 | K2: NO of places | M2: 11 | N2: 11 | Q2: 4 | R2: 10000 | S2: 5 | T2: 6 | U2: 7 | V2: 8 | X2: 9 | Y2: 10 | AA2: 11
A3: School | B3: School Type | C3: DfE | D3: Phase | E3: Banding2020/21 (19/20 revised rate + 4%) | F3: Banding 2021/2 @ 0 % inflation | H3: AP | I3: E1&2 places - Pre 16 | J3: E1&2 places - Post 16 | K3: DCC Pre 16 | L3: DCC Post 16 | M3: Other LA Pre 16 | N3: Other LA Post 16 | O3: Total | P3: Vacant Places (Neg - empty places. Pos - add children no place funding) | Q3: Pay and Pension Grant | R3: Element 1 & 2 (Place Funding) | S3: Element 3 (Top Up Funding DCC) - Pre 16 | T3: Element 3 (Top Up Funding DCC) - Post 16 | U3: Element 3 Residential Places | V3: Exceptional Payments | W3: Other Adjustments including Sept NOR adjustments | X3: MFG funding/Other Adjust | Y3: PFI | Z3: TOTAL DCC | AA3: Element 3 (Top Up Funding Other LA) | AB3: Total School Funding | AC3: Vacant top up funding (element 3)
Q4: £
Q5: 660
A6: Ivy House School | B6: PMLD | C6: 7026 | D6: All | E6: 15393.9552 | F6: 15394 | I6: 69 | J6: 17 | K6: 60 | L6: 17 | M6: 3 | N6: 0 | O6: =SUM(K6:N6) -> 80 | P6: -6 | Q6: =SUM(H6:J6)*$Q$5 -> 56760 | R6: =(I6+J6)*$R$2 -> 860000 | S6: =K6*F6 -> 923640 | T6: =L6*F6 -> 261698 | V6: 60000 | W6: 0 | Z6: =SUM(Q6:Y6) -> 2162098 | AA6: =(+M6+N6)*F6 -> 46182 | AB6: =SUM(Z6:AA6) -> 2208280 | AC6: -92364
A7: St Andrews School - Day | B7: SLD | C7: 7027 | D7: Secondary | E7: 10155.6 | F7: 10156 | I7: 76 | J7: 31 | K7: 71 | L7: 26 | M7: 5 | N7: 6 | O7: =SUM(K7:N7) -> 108 | P7: 1 | Q7: =SUM(H7:J7)*$Q$5 -> 70620 | R7: 1070000 | S7: =K7*F7 -> 721076 | T7: 264056 | V7: 0 | W7: 0 | Z7: =SUM(Q7:Y7) -> 2125752 | AA7: 111716 | AB7: =SUM(Z7:AA7) -> 2237468 | AC7: 0
A8: St Andrews School - Residential | B8: SLD | C8: 7027 | D8: Secondary | E8: 19530 | F8: 19530 | I8: 12 | J8: 0 | K8: 12 | M8: 0 | O8: 12 | P8: 0 | Q8: 7920 | R8: 120000 | S8: 0 | T8: 0 | U8: =K8*F8 -> 234360 | W8: 0 | X8: 12150 | Z8: 374430 | AA8: 0 | AB8: 374430 | AC8: 0
A9: St Clares School | B9: SLD | C9: 7025 | D9: Secondary | E9: 6286.8 | F9: 6287 | I9: 139 | J9: 1 | K9: 118 | L9: 1 | M9: 16 | N9: 0 | O9: 135 | P9: -5 | Q9: 92400 | R9: 1400000 | S9: =K9*F9 -> 741866 | T9: 6287 | V9: 25253 | Z9: 2265806 | AA9: 100592 | AB9: 2366398 | AC9: -31435
A10: St Giles School | B10: SLD | C10: 7024 | D10: Primary | E10: 10639.2 | F10: 10639 | I10: 140 | J10: 0 | K10: 129 | M10: 4 | O10: 133 | P10: -7 | Q10: 92400 | R10: 1400000 | S10: =K10*F10 -> 1372431 | T10: 0 | V10: 86000 | Z10: 2950831 | AA10: 42556 | AB10: 2993387 | AC10: -74473
A11: St Martins School & Horizons | B11: SLD | C11: 7021 | D11: Secondary | E11: 8704.8 | F11: 8705 | I11: 151 | J11: 54 | K11: 137 | L11: 50 | M11: 14 | N11: 7 | O11: 208 | P11: 3 | Q11: 135300 | R11: 2050000 | S11: =K11*F11 -> 1192585 | T11: 435250 | V11: 55918 | Y11: =(88810.72*1.03)*1.03 -> 94219.29285 | Z11: 3963272.293 | AA11: 182805 | AB11: 4146077.293 | AC11: 0
AC12: 0
A13: The Kingsmead School | B13: SEMH | C13: 7029 | D13: Secondary | E13: 17153.292 | F13: 17153 | H13: 0 | I13: 90 | J13: 0 | K13: 90 | O13: 90 | P13: 0 | Q13: 59400 | R13: =H13*$R$2 -> 0 | S13: =K13*F13 -> 1543770 | T13: =L13*F13 -> 0 | V13: 186724.31 | Z13: =SUM(Q13:Y13) -> 1789894.31 | AA13: =(+M13+N13)*F13 -> 0 | AB13: 1789894.31 | AC13: 0
A14: KS 1/2 PRU | C14: 1104 | D14: Primary | E14: 13728.86237 | F14: 13729 | H14: 40 | I14: 0 | J14: 0 | K14: 40 | O14: 40 | P14: 0 | Q14: 26400 | R14: =H14*$R$2 -> 400000 | S14: =K14*F14 -> 549160 | T14: 0 | Z14: 975560 | AA14: =(+M14+N14)*F14 -> 0 | AB14: =SUM(Z14:AA14) -> 975560 | AC14: 0
A15: KS 3/4 PRU | C15: 1103 | D15: Secondary | E15: 15851.84702 | F15: 15852 | H15: 60 | I15: 0 | J15: 0 | K15: 60 | O15: 60 | P15: 0 | Q15: 39600 | R15: =H15*$R$2 -> 600000 | S15: =K15*F15 -> 951120 | T15: 0 | X15: 8809 | Z15: 1599529 | AA15: =(+M15+N15)*F15 -> 0 | AB15: =SUM(Z15:AA15) -> 1599529 | AC15: 0
A16: Derby Pride - top up only (E3) | I16: 28 | J16: 0 | K16: 28 | O16: =SUM(K16:N16) -> 28 | Q16: 18480 | R16: =(I16+J16)*$R$2 -> 280000 | Z16: 298480 | AB16: =SUM(Z16:AA16) -> 298480 | AC16: 0
AC17: 0
A18: Empty Places presume filled in 21/22 | X18: 99136 | Z18: =SUM(Q18:Y18) -> 99136 | AB18: =SUM(Z18:AA18) -> 99136 | AC18: 0
A21: Total | C21: ALL | H21: =SUM(H4:H20) -> 100 | I21: =SUM(I4:I20) -> 705 | J21: 103 | K21: 745 | L21: 94 | M21: 42 | N21: 13 | O21: =SUM(O4:O20) -> 894 | P21: =SUM(P4:P20) -> -14 | Q21: =SUM(Q6:Q20) -> 599280 | R21: =SUM(R4:R20) -> 8180000 | S21: =SUM(S6:S20) -> 7995648 | T21: 967291 | U21: 234360 | V21: 413895.31 | X21: =SUM(X6:X20) -> 120095 | Y21: =SUM(Y6:Y20) -> 94219.29285 | Z21: =SUM(Z6:Z20) -> 18604788.6 | AA21: =SUM(AA6:AA20) -> 483851 | AB21: =SUM(AB6:AB20) -> 19088639.6 | AC21: =SUM(AC6:AC20) -> -198272
A22: EFA recoupment - specials
A23: EFA recoupment - DP
A27: Total at 2020/21 rate | K27: 691 | L27: 101 | M27: 51 | N27: 11 | P27: 22 | AC27: -112674.9312
A28: Variance | K28: 54 | L28: -7 | M28: -9 | N28: 2 | P28: -36 | R28: =SUM(R6:R10)-R8 -> 4730000 | S28: =SUM(S6:S10) -> 3759013 | V28: =SUM(V6:V10) -> 171253 | W28: =SUM(W6:W10) -> 0 | X28: =SUM(X6:X10) -> 12150 | Y28: =SUM(Y6:Y10) -> 0 | Z28: =SUM(Z6:Z10) -> 9878917 | AC28: -85597.0688
P29: Academy | R29: 6780000 | S29: 447480 | T29: 5918889 | U29: 227171 | V29: 0 | W29: 94219.29285 | X29: 9878917 | Y29: =SUM(Y11:Y15) -> 94219.29285 | Z29: =SUM(Z11:Z15) -> 8328255.603
P30: Maintained | R30: 2020000 | S30: 133320 | T30: 3278410 | U30: 186724.31 | V30: 20959 | W30: 0 | X30: 9228255.603 | Y30: =SUM(Y28:Y29)-Y18 -> 94219.29285 | Z30: =SUM(Z28:Z29)-Z18 -> 18108036.6
P31: DP Recoupment | R31: 280000 | S31: 18480 | T31: 0 | U31: 0 | V31: 0 | W31: 0 | X31: 298480
P32: Variance - DP | R32: 0 | S32: 0 | T32: 0 | U32: 0 | V32: -99136 | W32: 0 | X32: -99136
A34: Lookup table for year group
A35: 2 yr old | B35: Pre 16
A36: Nursery 1 | B36: Pre 16
A37: Nursery 2 | B37: Pre 16
A38: Reception | B38: Pre 16
A39: NC Year 1 | B39: Pre 16
A40: NC Year 2 | B40: Pre 16
A41: NC Year 3 | B41: Pre 16
A42: NC Year 4 | B42: Pre 16
A43: NC Year 5 | B43: Pre 16
A44: NC Year 6 | B44: Pre 16
A45: NC Year 7 | B45: Pre 16
A46: NC Year 8 | B46: Pre 16
A47: NC Year 9 | B47: Pre 16
A48: NC Year 10 | B48: Pre 16
A49: NC Year 11 | B49: Pre 16
A50: NC Year 12 | B50: Post 16
A51: NC Year 13 | B51: Post 16
A52: NC Year 14 | B52: Post 16

Sheet Summary for Prints (hidden)
D2: 2 | E2: 3 | F2: 4 | G2: 5 | H2: 6 | I2: 7 | J2: 8 | K2: 9 | L2: 10 | M2: 11 | N2: 12 | O2: 13 | P2: 14 | Q2: 15 | R2: 16 | S2: 17 | T2: 18 | U2: 19 | V2: 20 | W2: 21 | X2: 22 | Y2: 23 | Z2: 24 | AA2: 25 | AB2: 26 | AC2: 27 | AD2: 28 | AE2: 29
A4: School | B4: DfE Number (short) | C4: DfE Number | D4: AWPU inc delegated Budget £ | E4: Deprivation £ | F4: LAC £ | G4: LCHI SEN £ | H4: EAL £ | I4: Mobility £ | J4: Lump Sum £ | K4: Split Site £ | L4: Rates £ (based on 20-21 budget) | M4: PFI £ | N4: Pre MFG Total | O4: MFG (from APT) | P4: Minimum funding adjustment | Q4: Budget before De-Delegation | R4: De-delegation tbc | S4: Net School budget | T4: KS1 Class Factor | U4: Total | V4: NOR | W4: ERS E1 Empty Places | X4: ERS Element 2 Pre 16 | Y4: ERS Element 2 Post 16 | Z4: ERS Element 3 Pre & Post 16 | AA4: ERS Other | AB4: Schools with Nurseries excl Rates, TA, ERS | AC4: Contingency | AD4: Total | AE4: Excl. Rates | AL4: Budget after de-del (incl. rates) | AM4: Rates | AN4: Budget after de-del (excl. rates)
A5: Akaal Primary School | B5: 2014 | C5: 8312014 | D5: 540279 | E5: 58784.93421 | F5: 0 | G5: 49928.60465 | H5: 51956.90789 | I5: 1458 | J5: 117800 | K5: 0 | L5: 4887 | M5: 0 | N5: =SUM(D5:M5) -> 825094.4468 | O5: 4442.616088 | P5: 0 | Q5: =SUM(N5:P5) -> 829537.0628 | R5: 0 | S5: =SUM(Q5:R5) -> 829537.0628 | T5: 2845.46 | U5: =SUM(S5:T5) -> 832382.5228 | V5: 173 | W5: =SUMIF('ERS 2021-22'!B:B,'Summary for Prints'!B5,'ERS 2021-22'!S:S) -> 0 | X5: =(SUMIF('ERS 2021-22'!B:B,'Summary for Prints'!B5,'ERS 2021-22'!K:K))*'ERS 2021-22'!$K$1 -> 0 | Y5: =(SUMIF('ERS 2021-22'!B:B,'Summary for Prints'!B5,'ERS 2021-22'!L:L))*'ERS 2021-22'!$K$1 -> 0 | Z5: =SUMIF('ERS 2021-22'!B:B,'Summary for Prints'!B5,'ERS 2021-22'!R:R) -> 0 | AA5: =SUMIF('ERS 2021-22'!B:B,'Summary for Prints'!B5,'ERS 2021-22'!S:S)+SUMIF('ERS 2021-22'!B:B,'Summary for Prints'!B5,'ERS 2021-22'!T:T) -> 0 | AB5: =IFERROR(VLOOKUP(B5,'2021-22 Nursery Budget'!C:AG,31,FALSE),0) -> 0 | AC5: 0 | AD5: =SUM(W5:AC5)+U5 -> 832382.5228 | AE5: =AD5-L5 -> 827495.5228 | AF5: =A5 -> Akaal Primary School | AG5: =VLOOKUP(B5,'School & Nursery Setting Lookup'!C:C,1,FALSE) -> 2014 | AL5: =AD5 -> 832382.5228 | AM5: =L5 -> 4887 | AN5: =AL5-AM5 -> 827495.5228
A6: Allenton Community Primary School | B6: 2012 | C6: 8312012 | D6: 1130526 | E6: 369430.9033 | F6: 0 | G6: 148961.8471 | H6: 36144.30769 | I6: 0 | J6: 117800 | K6: 0 | L6: 7579 | M6: 0 | N6: =SUM(D6:M6) -> 1810442.058 | O6: 0 | P6: 0 | Q6: =SUM(N6:P6) -> 1810442.058 | R6: 0 | S6: =SUM(Q6:R6) -> 1810442.058 | T6: 6660.62 | U6: =SUM(S6:T6) -> 1817102.678 | V6: 362 | W6: =SUMIF('ERS 2021-22'!B:B,'Summary for Prints'!B6,'ERS 2021-22'!S:S) -> 0 | X6: =(SUMIF('ERS 2021-22'!B:B,'Summary for Prints'!B6,'ERS 2021-22'!K:K))*'ERS 2021-22'!$K$1 -> 0 | Y6: =(SUMIF('ERS 2021-22'!B:B,'Summary for Prints'!B6,'ERS 2021-22'!L:L))*'ERS 2021-22'!$K$1 -> 0 | Z6: =SUMIF('ERS 2021-22'!B:B,'Summary for Prints'!B6,'ERS 2021-22'!R:R) -> 0 | AA6: =SUMIF('ERS 2021-22'!B:B,'Summary for Prints'!B6,'ERS 2021-22'!S:S)+SUMIF('ERS 2021-22'!B:B,'Summary for Prints'!B6,'ERS 2021-22'!T:T) -> 0 | AB6: =IFERROR(VLOOKUP(B6,'2021-22 Nursery Budget'!C:AG,31,FALSE),0) -> 0 | AC6: 0 | AD6: =SUM(W6:AC6)+U6 -> 1817102.678 | AE6: =AD6-L6 -> 1809523.678 | AF6: =A6 -> Allenton Community Primary School | AG6: =VLOOKUP(B6,'School & Nursery Setting Lookup'!C:C,1,FALSE) -> 2012 | AL6: =AD6 -> 1817102.678 | AM6: =L6 -> 7579 | AN6: =AL6-AM6 -> 1809523.678
A7: Alvaston Infant and Nursery School | B7: 2443 | C7: 8312443 | D7: 774504 | E7: 128668.4906 | F7: 0 | G7: 61024.7191 | H7: 17624.7191 | I7: 0 | J7: 117800 | K7: 0 | L7: 18250 | M7: 0 | N7: 1117871.929 | O7: -9912.991682 | P7: 0 | Q7: 1107958.937 | R7: -17210.704 | S7: 1090748.233 | T7: 7178.8 | U7: 1097927.033 | V7: 248 | W7: =SUMIF('ERS 2021-22'!B:B,'Summary for Prints'!B7,'ERS 2021-22'!S:S) -> 0 | X7: =(SUMIF('ERS 2021-22'!B:B,'Summary for Prints'!B7,'ERS 2021-22'!K:K))*'ERS 2021-22'!$K$1 -> 0 | Y7: =(SUMIF('ERS 2021-22'!B:B,'Summary for Prints'!B7,'ERS 2021-22'!L:L))*'ERS 2021-22'!$K$1 -> 0 | Z7: =SUMIF('ERS 2021-22'!B:B,'Summary for Prints'!B7,'ERS 2021-22'!R:R) -> 0 | AA7: =SUMIF('ERS 2021-22'!B:B,'Summary for Prints'!B7,'ERS 2021-22'!S:S)+SUMIF('ERS 2021-22'!B:B,'Summary for Prints'!B7,'ERS 2021-22'!T:T) -> 0 | AB7: =IFERROR(VLOOKUP(B7,'2021-22 Nursery Budget'!C:AG,31,FALSE),0) -> 188063.8437 | AC7: 0 | AD7: 1285990.877 | AE7: 1267740.877 | AF7: Alvaston Infant and Nursery School | AG7: =VLOOKUP(B7,'School & Nursery Setting Lookup'!C:C,1,FALSE) -> 2443 | AL7: 1285990.877 | AM7: 18250 | AN7: 1267740.877
A8: Alvaston Junior School | B8: 2442 | C8: 8312442 | D8: 1093050 | E8: 194758.1831 | F8: 0 | G8: 105724.1379 | H8: 4950 | I8: 0 | J8: 117800 | K8: 0 | L8: 4906 | M8: 0 | N8: 1521188.321 | O8: 0 | P8: 0 | Q8: 1521188.321 | R8: 0 | S8: 1521188.321 | T8: 0 | U8: 1521188.321 | V8: 350 | W8: 0 | X8: =(SUMIF('ERS 2021-22'!B:B,'Summary for Prints'!B8,'ERS 2021-22'!K:K))*'ERS 2021-22'!$K$1 -> 22000 | Y8: =(SUMIF('ERS 2021-22'!B:B,'Summary for Prints'!B8,'ERS 2021-22'!L:L))*'ERS 2021-22'!$K$1 -> 0 | Z8: =SUMIF('ERS 2021-22'!B:B,'Summary for Prints'!B8,'ERS 2021-22'!R:R) -> 10083.33333 | AA8: =SUMIF('ERS 2021-22'!B:B,'Summary for Prints'!B8,'ERS 2021-22'!S:S)+SUMIF('ERS 2021-22'!B:B,'Summary for Prints'!B8,'ERS 2021-22'!T:T) -> 0 | AB8: =IFERROR(VLOOKUP(B8,'2021-22 Nursery Budget'!C:AG,31,FALSE),0) -> 0 | AC8: 0 | AD8: 1553271.654 | AE8: 1548365.654 | AF8: Alvaston Junior School | AG8: =VLOOKUP(B8,'School & Nursery Setting Lookup'!C:C,1,FALSE) -> 2442 | AL8: 1553271.654 | AM8: 4906 | AN8: 1548365.654
A9: Arboretum Primary School | B9: 2629 | C9: 8312629 | D9: 1642698 | E9: 374796.9714 | F9: 0 | G9: 255674.4878 | H9: 131209.0708 | I9: 0 | J9: 117800 | K9: 0 | L9: 12147 | M9: 0 | N9: 2534325.53 | O9: 0 | P9: 0 | Q9: 2534325.53 | R9: 0 | S9: 2534325.53 | T9: 6403.04 | U9: 2540728.57 | V9: 526 | W9: =SUMIF('ERS 2021-22'!B:B,'Summary for Prints'!B9,'ERS 2021-22'!S:S) -> 0 | X9: =(SUMIF('ERS 2021-22'!B:B,'Summary for Prints'!B9,'ERS 2021-22'!K:K))*'ERS 2021-22'!$K$1 -> 0 | Y9: =(SUMIF('ERS 2021-22'!B:B,'Summary for Prints'!B9,'ERS 2021-22'!L:L))*'ERS 2021-22'!$K$1 -> 0 | Z9: =SUMIF('ERS 2021-22'!B:B,'Summary for Prints'!B9,'ERS 2021-22'!R:R) -> 0 | AA9: =SUMIF('ERS 2021-22'!B:B,'Summary for Prints'!B9,'ERS 2021-22'!S:S)+SUMIF('ERS 2021-22'!B:B,'Summary for Prints'!B9,'ERS 2021-22'!T:T) -> 0 | AB9: =IFERROR(VLOOKUP(B9,'2021-22 Nursery Budget'!C:AG,31,FALSE),0) -> 211619.1468 | AC9: 0 | AD9: 2752347.717 | AE9: 2740200.717 | AF9: Arboretum Primary School | AG9: =VLOOKUP(B9,'School & Nursery Setting Lookup'!C:C,1,FALSE) -> 2629 | AL9: 2752347.717 | AM9: 12147 | AN9: 2740200.717
A10: Ash Croft Primary School | B10: 2509 | C10: 8312509 | D10: 515295 | E10: 106430 | F10: 0 | G10: 59782.16912 | H10: 14142.85714 | I10: 9990 | J10: 117800 | K10: 0 | L10: 4015 | M10: 0 | N10: 827455.0263 | O10: -1450.617531 | P10: 0 | Q10: 826004.4087 | R10: 0 | S10: 826004.4087 | T10: 4784.86 | U10: 830789.2687 | V10: 165 | W10: =SUMIF('ERS 2021-22'!B:B,'Summary for Prints'!B10,'ERS 2021-22'!S:S) -> 0 | X10: =(SUMIF('ERS 2021-22'!B:B,'Summary for Prints'!B10,'ERS 2021-22'!K:K))*'ERS 2021-22'!$K$1 -> 0 | Y10: =(SUMIF('ERS 2021-22'!B:B,'Summary for Prints'!B10,'ERS 2021-22'!L:L))*'ERS 2021-22'!$K$1 -> 0 | Z10: =SUMIF('ERS 2021-22'!B:B,'Summary for Prints'!B10,'ERS 2021-22'!R:R) -> 0 | AA10: =SUMIF('ERS 2021-22'!B:B,'Summary for Prints'!B10,'ERS 2021-22'!S:S)+SUMIF('ERS 2021-22'!B:B,'Summary for Prints'!B10,'ERS 2021-22'!T:T) -> 0 | AB10: =IFERROR(VLOOKUP(B10,'2021-22 Nursery Budget'!C:AG,31,FALSE),0) -> 0 | AC10: 0 | AD10: 830789.2687 | AE10: 826774.2687 | AF10: Ash Croft Primary School | AG10: =VLOOKUP(B10,'School & Nursery Setting Lookup'!C:C,1,FALSE) -> 2509 | AL10: 830789.2687 | AM10: 4015 | AN10: 826774.2687
A11: Ashgate Primary School | B11: 2005 | C11: 8312005 | D11: 911916 | E11: 227590 | F11: 0 | G11: 89634.22594 | H11: 16769.47791 | I11: 0 | J11: 117800 | K11: 0 | L11: 23750 | M11: 0 | N11: 1387459.704 | O11: -5536.812895 | P11: 0 | Q11: 1381922.891 | R11: -20264.216 | S11: 1361658.675 | T11: 5496.98 | U11: 1367155.655 | V11: 292 | W11: =SUMIF('ERS 2021-22'!B:B,'Summary for Prints'!B11,'ERS 2021-22'!S:S) -> 0 | X11: =(SUMIF('ERS 2021-22'!B:B,'Summary for Prints'!B11,'ERS 2021-22'!K:K))*'ERS 2021-22'!$K$1 -> 0 | Y11: =(SUMIF('ERS 2021-22'!B:B,'Summary for Prints'!B11,'ERS 2021-22'!L:L))*'ERS 2021-22'!$K$1 -> 0 | Z11: =SUMIF('ERS 2021-22'!B:B,'Summary for Prints'!B11,'ERS 2021-22'!R:R) -> 0 | AA11: =SUMIF('ERS 2021-22'!B:B,'Summary for Prints'!B11,'ERS 2021-22'!S:S)+SUMIF('ERS 2021-22'!B:B,'Summary for Prints'!B11,'ERS 2021-22'!T:T) -> 0 | AB11: =IFERROR(VLOOKUP(B11,'2021-22 Nursery Budget'!C:AG,31,FALSE),0) -> 0 | AC11: 0 | AD11: 1367155.655 | AE11: 1343405.655 | AF11: Ashgate Primary School | AG11: =VLOOKUP(B11,'School & Nursery Setting Lookup'!C:C,1,FALSE) -> 2005 | AL11: 1367155.655 | AM11: 23750 | AN11: 1343405.655
A12: Asterdale Primary School | B12: 2464 | C12: 8312464 | D12: 633969 | E12: 110698.0205 | F12: 0 | G12: 61674.45087 | H12: 1947.383721 | I12: 0 | J12: 117800 | K12: 0 | L12: 3793 | M12: 0 | N12: 929881.8551 | O12: -14181.18033 | P12: 0 | Q12: 915700.6748 | R12: 0 | S12: 915700.6748 | T12: 7824.26 | U12: 923524.9348 | V12: 203 | W12: =SUMIF('ERS 2021-22'!B:B,'Summary for Prints'!B12,'ERS 2021-22'!S:S) -> 0 | X12: =(SUMIF('ERS 2021-22'!B:B,'Summary for Prints'!B12,'ERS 2021-22'!K:K))*'ERS 2021-22'!$K$1 -> 0 | Y12: =(SUMIF('ERS 2021-22'!B:B,'Summary for Prints'!B12,'ERS 2021-22'!L:L))*'ERS 2021-22'!$K$1 -> 0 | Z12: =SUMIF('ERS 2021-22'!B:B,'Summary for Prints'!B12,'ERS 2021-22'!R:R) -> 0 | AA12: =SUMIF('ERS 2021-22'!B:B,'Summary for Prints'!B12,'ERS 2021-22'!S:S)+SUMIF('ERS 2021-22'!B:B,'Summary for Prints'!B12,'ERS 2021-22'!T:T) -> 0 | AB12: =IFERROR(VLOOKUP(B12,'2021-22 Nursery Budget'!C:AG,31,FALSE),0) -> 115874.3548 | AC12: 0 | AD12: 1039399.29 | AE12: 1035606.29 | AF12: Asterdale Primary School | AG12: =VLOOKUP(B12,'School & Nursery Setting Lookup'!C:C,1,FALSE) -> 2464 | AL12: 1039399.29 | AM12: 3793 | AN12: 1035606.29
A13: Beaufort Community Primary School | B13: 2004 | C13: 8312004 | D13: 899424 | E13: 280441.9492 | F13: 0 | G13: 103259.469 | H13: 9658.536585 | I13: 0 | J13: 117800 | K13: 0 | L13: 4931 | M13: 0 | N13: 1415514.955 | O13: 0 | P13: 0 | Q13: 1415514.955 | R13: 0 | S13: 1415514.955 | T13: 5690.92 | U13: 1421205.875 | V13: 288 | W13: =SUMIF('ERS 2021-22'!B:B,'Summary for Prints'!B13,'ERS 2021-22'!S:S) -> 0 | X13: =(SUMIF('ERS 2021-22'!B:B,'Summary for Prints'!B13,'ERS 2021-22'!K:K))*'ERS 2021-22'!$K$1 -> 0 | Y13: =(SUMIF('ERS 2021-22'!B:B,'Summary for Prints'!B13,'ERS 2021-22'!L:L))*'ERS 2021-22'!$K$1 -> 0 | Z13: =SUMIF('ERS 2021-22'!B:B,'Summary for Prints'!B13,'ERS 2021-22'!R:R) -> 0 | AA13: =SUMIF('ERS 2021-22'!B:B,'Summary for Prints'!B13,'ERS 2021-22'!S:S)+SUMIF('ERS 2021-22'!B:B,'Summary for Prints'!B13,'ERS 2021-22'!T:T) -> 0 | AB13: =IFERROR(VLOOKUP(B13,'2021-22 Nursery Budget'!C:AG,31,FALSE),0) -> 96552.98335 | AC13: 0 | AD13: 1517758.858 | AE13: 1512827.858 | AF13: Beaufort Community Primary School | AG13: =VLOOKUP(B13,'School & Nursery Setting Lookup'!C:C,1,FALSE) -> 2004 | AL13: 1517758.858 | AM13: 4931 | AN13: 1512827.858
A14: Becket Primary School | B14: 2405 | C14: 8312405 | D14: 640215 | E14: 174753.9604 | F14: 0 | G14: 73895.49689 | H14: 32214.28571 | I14: 0 | J14: 117800 | K14: 0 | L14: 18750 | M14: 0 | N14: 1057628.743 | O14: 0 | P14: 0 | Q14: 1057628.743 | R14: -14226.59 | S14: 1043402.153 | T14: 1100 | U14: 1044502.153 | V14: 205 | W14: =SUMIF('ERS 2021-22'!B:B,'Summary for Prints'!B14,'ERS 2021-22'!S:S) -> 0 | X14: =(SUMIF('ERS 2021-22'!B:B,'Summary for Prints'!B14,'ERS 2021-22'!K:K))*'ERS 2021-22'!$K$1 -> 0 | Y14: =(SUMIF('ERS 2021-22'!B:B,'Summary for Prints'!B14,'ERS 2021-22'!L:L))*'ERS 2021-22'!$K$1 -> 0 | Z14: =SUMIF('ERS 2021-22'!B:B,'Summary for Prints'!B14,'ERS 2021-22'!R:R) -> 0 | AA14: =SUMIF('ERS 2021-22'!B:B,'Summary for Prints'!B14,'ERS 2021-22'!S:S)+SUMIF('ERS 2021-22'!B:B,'Summary for Prints'!B14,'ERS 2021-22'!T:T) -> 0 | AB14: =IFERROR(VLOOKUP(B14,'2021-22 Nursery Budget'!C:AG,31,FALSE),0) -> 87331.45525 | AC14: 0 | AD14: 1131833.608 | AE14: 1113083.608 | AF14: Becket Primary School | AG14: =VLOOKUP(B14,'School & Nursery Setting Lookup'!C:C,1,FALSE) -> 2405 | AL14: 1131833.608 | AM14: 18750 | AN14: 1113083.608
A15: Bishop Lonsdale Church of England Aided Primary School | B15: 2011 | C15: 8312011 | D15: 633969 | E15: 119803.9151 | F15: 0 | G15: 58349.8125 | H15: 16041.66667 | I15: 0 | J15: 117800 | K15: 0 | L15: 6489 | M15: 0 | N15: 952453.3943 | O15: 0 | P15: 0 | Q15: 952453.3943 | R15: 0 | S15: 952453.3943 | T15: 1293.94 | U15: 953747.3343 | V15: 203 | W15: =SUMIF('ERS 2021-22'!B:B,'Summary for Prints'!B15,'ERS 2021-22'!S:S) -> 0 | X15: =(SUMIF('ERS 2021-22'!B:B,'Summary for Prints'!B15,'ERS 2021-22'!K:K))*'ERS 2021-22'!$K$1 -> 0 | Y15: =(SUMIF('ERS 2021-22'!B:B,'Summary for Prints'!B15,'ERS 2021-22'!L:L))*'ERS 2021-22'!$K$1 -> 0 | Z15: =SUMIF('ERS 2021-22'!B:B,'Summary for Prints'!B15,'ERS 2021-22'!R:R) -> 0 | AA15: =SUMIF('ERS 2021-22'!B:B,'Summary for Prints'!B15,'ERS 2021-22'!S:S)+SUMIF('ERS 2021-22'!B:B,'Summary for Prints'!B15,'ERS 2021-22'!T:T) -> 0 | AB15: =IFERROR(VLOOKUP(B15,'2021-22 Nursery Budget'!C:AG,31,FALSE),0) -> 87390.26744 | AC15: 0 | AD15: 1041137.602 | AE15: 1034648.602 | AF15: Bishop Lonsdale Church of England Aided Primary School | AG15: =VLOOKUP(B15,'School & Nursery Setting Lookup'!C:C,1,FALSE) -> 2011 | AL15: 1041137.602 | AM15: 6489 | AN15: 1034648.602
A16: Borrow Wood Primary School | B16: 5201 | C16: 8315201 | D16: 1021221 | E16: 80739.0708 | F16: 0 | G16: 78774.3 | H16: 4944.329897 | I16: 0 | J16: 117800 | K16: 0 | L16: 6018.187 | M16: 0 | N16: 1309496.888 | O16: 0 | P16: 63381.29931 | Q16: 1372878.187 | R16: 0 | S16: 1372878.187 | T16: 6854.56 | U16: 1379732.747 | V16: 327 | W16: =SUMIF('ERS 2021-22'!B:B,'Summary for Prints'!B16,'ERS 2021-22'!S:S) -> 0 | X16: =(SUMIF('ERS 2021-22'!B:B,'Summary for Prints'!B16,'ERS 2021-22'!K:K))*'ERS 2021-22'!$K$1 -> 0 | Y16: =(SUMIF('ERS 2021-22'!B:B,'Summary for Prints'!B16,'ERS 2021-22'!L:L))*'ERS 2021-22'!$K$1 -> 0 | Z16: =SUMIF('ERS 2021-22'!B:B,'Summary for Prints'!B16,'ERS 2021-22'!R:R) -> 0 | AA16: =SUMIF('ERS 2021-22'!B:B,'Summary for Prints'!B16,'ERS 2021-22'!S:S)+SUMIF('ERS 2021-22'!B:B,'Summary for Prints'!B16,'ERS 2021-22'!T:T) -> 0 | AB16: =IFERROR(VLOOKUP(B16,'2021-22 Nursery Budget'!C:AG,31,FALSE),0) -> 67037.875 | AC16: 0 | AD16: 1446770.622 | AE16: 1440752.435 | AF16: Borrow Wood Primary School | AG16: =VLOOKUP(B16,'School & Nursery Setting Lookup'!C:C,1,FALSE) -> 5201 | AL16: 1446770.622 | AM16: 6018.187 | AN16: 1440752.435
A17: Brackensdale ER (Enhanced Resource) Primary School | B17: 2432 | C17: 8312432 | D17: 1333000.49 | E17: 289918.1105 | F17: 0 | G17: 210756.0345 | H17: 18154.64444 | I17: 0 | J17: 117800 | K17: 0 | L17: 30150 | M17: 0 | N17: 1999779.279 | O17: -19966.12845 | P17: 0 | Q17: 1979813.151 | R17: -29621.37967 | S17: 1950191.771 | T17: 8536.38 | U17: 1958728.151 | V17: 426.83333 | W17: =SUMIF('ERS 2021-22'!B:B,'Summary for Prints'!B17,'ERS 2021-22'!S:S) -> 0 | X17: =(SUMIF('ERS 2021-22'!B:B,'Summary for Prints'!B17,'ERS 2021-22'!K:K))*'ERS 2021-22'!$K$1 -> 318000 | Y17: =(SUMIF('ERS 2021-22'!B:B,'Summary for Prints'!B17,'ERS 2021-22'!L:L))*'ERS 2021-22'!$K$1 -> 0 | Z17: =SUMIF('ERS 2021-22'!B:B,'Summary for Prints'!B17,'ERS 2021-22'!R:R) -> 328000 | AA17: =SUMIF('ERS 2021-22'!B:B,'Summary for Prints'!B17,'ERS 2021-22'!S:S)+SUMIF('ERS 2021-22'!B:B,'Summary for Prints'!B17,'ERS 2021-22'!T:T) -> 0 | AB17: =IFERROR(VLOOKUP(B17,'2021-22 Nursery Budget'!C:AG,31,FALSE),0) -> 90971.30459 | AC17: 0 | AD17: 2695699.455 | AE17: 2665549.455 | AF17: Brackensdale ER (Enhanced Resource) Primary School | AG17: =VLOOKUP(B17,'School & Nursery Setting Lookup'!C:C,1,FALSE) -> 2432 | AL17: 2695699.455 | AM17: 30150 | AN17: 2665549.455
A18: Breadsall Hill Top Primary School | B18: 2018 | C18: 8312018 | D18: 1143018 | E18: 253365 | F18: 0 | G18: 141605.4 | H18: 14887.13826 | I18: 0 | J18: 117800 | K18: 0 | L18: 5777 | M18: 0 | N18: 1676452.538 | O18: -30503.1585 | P18: 0 | Q18: 1645949.38 | R18: 0 | S18: 1645949.38 | T18: 3169.7 | U18: 1649119.08 | V18: 366 | W18: =SUMIF('ERS 2021-22'!B:B,'Summary for Prints'!B18,'ERS 2021-22'!S:S) -> 0 | X18: =(SUMIF('ERS 2021-22'!B:B,'Summary for Prints'!B18,'ERS 2021-22'!K:K))*'ERS 2021-22'!$K$1 -> 0 | Y18: =(SUMIF('ERS 2021-22'!B:B,'Summary for Prints'!B18,'ERS 2021-22'!L:L))*'ERS 2021-22'!$K$1 -> 0 | Z18: =SUMIF('ERS 2021-22'!B:B,'Summary for Prints'!B18,'ERS 2021-22'!R:R) -> 0 | AA18: =SUMIF('ERS 2021-22'!B:B,'Summary for Prints'!B18,'ERS 2021-22'!S:S)+SUMIF('ERS 2021-22'!B:B,'Summary for Prints'!B18,'ERS 2021-22'!T:T) -> 0 | AB18: =IFERROR(VLOOKUP(B18,'2021-22 Nursery Budget'!C:AG,31,FALSE),0) -> 135896.5429 | AC18: 0 | AD18: 1785015.623 | AE18: 1779238.623 | AF18: Breadsall Hill Top Primary School | AG18: =VLOOKUP(B18,'School & Nursery Setting Lookup'!C:C,1,FALSE) -> 2018 | AL18: 1785015.623 | AM18: 5777 | AN18: 1779238.623
A19: Brookfield Primary School | B19: 2512 | C19: 8312512 | D19: 668322 | E19: 37458.00713 | F19: 0 | G19: 62934.34286 | H19: 19295.08197 | I19: 0 | J19: 117800 | K19: 0 | L19: 3919 | M19: 0 | N19: 909728.432 | O19: -7383.935044 | P19: 0 | Q19: 902344.4969 | R19: 0 | S19: 902344.4969 | T19: 7824.26 | U19: 910168.7569 | V19: 214 | W19: =SUMIF('ERS 2021-22'!B:B,'Summary for Prints'!B19,'ERS 2021-22'!S:S) -> 0 | X19: =(SUMIF('ERS 2021-22'!B:B,'Summary for Prints'!B19,'ERS 2021-22'!K:K))*'ERS 2021-22'!$K$1 -> 0 | Y19: =(SUMIF('ERS 2021-22'!B:B,'Summary for Prints'!B19,'ERS 2021-22'!L:L))*'ERS 2021-22'!$K$1 -> 0 | Z19: =SUMIF('ERS 2021-22'!B:B,'Summary for Prints'!B19,'ERS 2021-22'!R:R) -> 0 | AA19: =SUMIF('ERS 2021-22'!B:B,'Summary for Prints'!B19,'ERS 2021-22'!S:S)+SUMIF('ERS 2021-22'!B:B,'Summary for Prints'!B19,'ERS 2021-22'!T:T) -> 0 | AB19: =IFERROR(VLOOKUP(B19,'2021-22 Nursery Budget'!C:AG,31,FALSE),0) -> 99299.23953 | AC19: 0 | AD19: 1009467.996 | AE19: 1005548.996 | AF19: Brookfield Primary School | AG19: =VLOOKUP(B19,'School & Nursery Setting Lookup'!C:C,1,FALSE) -> 2512 | AL19: 1009467.996 | AM19: 3919 | AN19: 1005548.996
A20: Carlyle Infant School | B20: 2456 | C20: 8312456 | D20: 543402 | E20: 46175 | F20: 0 | G20: 78253.39286 | H20: 16938.0531 | I20: 0 | J20: 117800 | K20: 0 | L20: 2807 | M20: 0 | N20: 805375.446 | O20: -29899.24406 | P20: 0 | Q20: 775476.2019 | R20: 0 | S20: 775476.2019 | T20: 8924.26 | U20: 784400.4619 | V20: 174 | W20: =SUMIF('ERS 2021-22'!B:B,'Summary for Prints'!B20,'ERS 2021-22'!S:S) -> 0 | X20: =(SUMIF('ERS 2021-22'!B:B,'Summary for Prints'!B20,'ERS 2021-22'!K:K))*'ERS 2021-22'!$K$1 -> 0 | Y20: =(SUMIF('ERS 2021-22'!B:B,'Summary for Prints'!B20,'ERS 2021-22'!L:L))*'ERS 2021-22'!$K$1 -> 0 | Z20: =SUMIF('ERS 2021-22'!B:B,'Summary for Prints'!B20,'ERS 2021-22'!R:R) -> 0 | AA20: =SUMIF('ERS 2021-22'!B:B,'Summary for Prints'!B20,'ERS 2021-22'!S:S)+SUMIF('ERS 2021-22'!B:B,'Summary for Prints'!B20,'ERS 2021-22'!T:T) -> 0 | AB20: =IFERROR(VLOOKUP(B20,'2021-22 Nursery Budget'!C:AG,31,FALSE),0) -> 134145.5768 | AC20: 0 | AD20: 918546.0387 | AE20: 915739.0387 | AF20: Carlyle Infant School | AG20: =VLOOKUP(B20,'School & Nursery Setting Lookup'!C:C,1,FALSE) -> 2456 | AL20: 918546.0387 | AM20: 2807 | AN20: 915739.0387
A21: Castleward Primary School | B21: 0122 | C21: 8310122 | D21: 54652.5 | E21: 11168.90505 | F21: 0 | G21: 0 | H21: 4688.151329 | I21: 0 | J21: 68716.66667 | K21: 0 | L21: 2333.333333 | M21: 0 | N21: 141559.5564 | O21: 0 | P21: 0 | Q21: 141559.5564 | R21: 0 | S21: 141559.5564 | T21: 3524.25 | U21: 145083.8064 | V21: 17.5 | W21: =SUMIF('ERS 2021-22'!B:B,'Summary for Prints'!B21,'ERS 2021-22'!S:S) -> 0 | X21: =(SUMIF('ERS 2021-22'!B:B,'Summary for Prints'!B21,'ERS 2021-22'!K:K))*'ERS 2021-22'!$K$1 -> 0 | Y21: =(SUMIF('ERS 2021-22'!B:B,'Summary for Prints'!B21,'ERS 2021-22'!L:L))*'ERS 2021-22'!$K$1 -> 0 | Z21: =SUMIF('ERS 2021-22'!B:B,'Summary for Prints'!B21,'ERS 2021-22'!R:R) -> 0 | AA21: =SUMIF('ERS 2021-22'!B:B,'Summary for Prints'!B21,'ERS 2021-22'!S:S)+SUMIF('ERS 2021-22'!B:B,'Summary for Prints'!B21,'ERS 2021-22'!T:T) -> 0 | AB21: =IFERROR(VLOOKUP(B21,'2021-22 Nursery Budget'!C:AG,31,FALSE),0) -> 0 | AC21: 0 | AD21: 145083.8064 | AE21: 142750.473 | AF21: Castleward Primary School | AG21: =VLOOKUP(B21,'School & Nursery Setting Lookup'!C:C,1,FALSE) -> 0122 | AL21: 145083.8064 | AM21: 2333.333333 | AN21: 142750.473
A22: Cavendish Close Infant School | B22: 2449 | C22: 8312449 | D22: 752643 | E22: 106310 | F22: 0 | G22: 82665.90361 | H22: 6976.315789 | I22: 0 | J22: 117800 | K22: 0 | L22: 18000 | M22: 0 | N22: 1084395.219 | O22: 0 | P22: 0 | Q22: 1084395.219 | R22: -16724.918 | S22: 1067670.301 | T22: 7178.8 | U22: 1074849.101 | V22: 241 | W22: =SUMIF('ERS 2021-22'!B:B,'Summary for Prints'!B22,'ERS 2021-22'!S:S) -> 0 | X22: =(SUMIF('ERS 2021-22'!B:B,'Summary for Prints'!B22,'ERS 2021-22'!K:K))*'ERS 2021-22'!$K$1 -> 0 | Y22: =(SUMIF('ERS 2021-22'!B:B,'Summary for Prints'!B22,'ERS 2021-22'!L:L))*'ERS 2021-22'!$K$1 -> 0 | Z22: =SUMIF('ERS 2021-22'!B:B,'Summary for Prints'!B22,'ERS 2021-22'!R:R) -> 0 | AA22: =SUMIF('ERS 2021-22'!B:B,'Summary for Prints'!B22,'ERS 2021-22'!S:S)+SUMIF('ERS 2021-22'!B:B,'Summary for Prints'!B22,'ERS 2021-22'!T:T) -> 0 | AB22: =IFERROR(VLOOKUP(B22,'2021-22 Nursery Budget'!C:AG,31,FALSE),0) -> 192988.2004 | AC22: 0 | AD22: 1267837.302 | AE22: 1249837.302 | AF22: Cavendish Close Infant School | AG22: =VLOOKUP(B22,'School & Nursery Setting Lookup'!C:C,1,FALSE) -> 2449 | AL22: 1267837.302 | AM22: 18000 | AN22: 1249837.302
A23: Cavendish Close Junior School | B23: 2019 | C23: 8312019 | D23: 971253 | E23: 145244.6465 | F23: 0 | G23: 119469.8852 | H23: 3850 | I23: 0 | J23: 117800 | K23: 0 | L23: 5139 | M23: 0 | N23: 1362756.532 | O23: 0 | P23: 0 | Q23: 1362756.532 | R23: 0 | S23: 1362756.532 | T23: 0 | U23: 1362756.532 | V23: 311 | W23: =SUMIF('ERS 2021-22'!B:B,'Summary for Prints'!B23,'ERS 2021-22'!S:S) -> 0 | X23: =(SUMIF('ERS 2021-22'!B:B,'Summary for Prints'!B23,'ERS 2021-22'!K:K))*'ERS 2021-22'!$K$1 -> 0 | Y23: =(SUMIF('ERS 2021-22'!B:B,'Summary for Prints'!B23,'ERS 2021-22'!L:L))*'ERS 2021-22'!$K$1 -> 0 | Z23: =SUMIF('ERS 2021-22'!B:B,'Summary for Prints'!B23,'ERS 2021-22'!R:R) -> 0 | AA23: =SUMIF('ERS 2021-22'!B:B,'Summary for Prints'!B23,'ERS 2021-22'!S:S)+SUMIF('ERS 2021-22'!B:B,'Summary for Prints'!B23,'ERS 2021-22'!T:T) -> 0 | AB23: =IFERROR(VLOOKUP(B23,'2021-22 Nursery Budget'!C:AG,31,FALSE),0) -> 0 | AC23: 0 | AD23: 1362756.532 | AE23: 1357617.532 | AF23: Cavendish Close Junior School | AG23: =VLOOKUP(B23,'School & Nursery Setting Lookup'!C:C,1,FALSE) -> 2019 | AL23: 1362756.532 | AM23: 5139 | AN23: 1357617.532
A24: Chaddesden Park Junior School | B24: 2467 | C24: 8312467 | D24: 949392 | E24: 171273.7311 | F24: 0 | G24: 93857.14286 | H24: 4367.164179 | I24: 0 | J24: 117800 | K24: 0 | L24: 3063 | M24: 0 | N24: 1339753.038 | O24: -13403.16389 | P24: 0 | Q24: 1326349.874 | R24: 0 | S24: 1326349.874 | T24: 6854.56 | U24: 1333204.434 | V24: 304 | W24: =SUMIF('ERS 2021-22'!B:B,'Summary for Prints'!B24,'ERS 2021-22'!S:S) -> 0 | X24: =(SUMIF('ERS 2021-22'!B:B,'Summary for Prints'!B24,'ERS 2021-22'!K:K))*'ERS 2021-22'!$K$1 -> 0 | Y24: =(SUMIF('ERS 2021-22'!B:B,'Summary for Prints'!B24,'ERS 2021-22'!L:L))*'ERS 2021-22'!$K$1 -> 0 | Z24: =SUMIF('ERS 2021-22'!B:B,'Summary for Prints'!B24,'ERS 2021-22'!R:R) -> 0 | AA24: =SUMIF('ERS 2021-22'!B:B,'Summary for Prints'!B24,'ERS 2021-22'!S:S)+SUMIF('ERS 2021-22'!B:B,'Summary for Prints'!B24,'ERS 2021-22'!T:T) -> 0 | AB24: =IFERROR(VLOOKUP(B24,'2021-22 Nursery Budget'!C:AG,31,FALSE),0) -> 109036.4621 | AC24: 0 | AD24: 1442240.896 | AE24: 1439177.896 | AF24: Chaddesden Park Junior School | AG24: =VLOOKUP(B24,'School & Nursery Setting Lookup'!C:C,1,FALSE) -> 2467 | AL24: 1442240.896 | AM24: 3063 | AN24: 1439177.896
A25: Chellaston Infant School | B25: 2455 | C25: 8312455 | D25: 1052451 | E25: 103515 | F25: 0 | G25: 87562.88136 | H25: 13183.89121 | I25: 0 | J25: 117800 | K25: 0 | L25: 5108 | M25: 0 | N25: 1379620.773 | O25: 0 | P25: 34147.22743 | Q25: 1413768 | R25: 0 | S25: 1413768 | T25: 8666.68 | U25: 1422434.68 | V25: 337 | W25: =SUMIF('ERS 2021-22'!B:B,'Summary for Prints'!B25,'ERS 2021-22'!S:S) -> 0 | X25: =(SUMIF('ERS 2021-22'!B:B,'Summary for Prints'!B25,'ERS 2021-22'!K:K))*'ERS 2021-22'!$K$1 -> 0 | Y25: =(SUMIF('ERS 2021-22'!B:B,'Summary for Prints'!B25,'ERS 2021-22'!L:L))*'ERS 2021-22'!$K$1 -> 0 | Z25: =SUMIF('ERS 2021-22'!B:B,'Summary for Prints'!B25,'ERS 2021-22'!R:R) -> 0 | AA25: =SUMIF('ERS 2021-22'!B:B,'Summary for Prints'!B25,'ERS 2021-22'!S:S)+SUMIF('ERS 2021-22'!B:B,'Summary for Prints'!B25,'ERS 2021-22'!T:T) -> 0 | AB25: =IFERROR(VLOOKUP(B25,'2021-22 Nursery Budget'!C:AG,31,FALSE),0) -> 0 | AC25: 0 | AD25: 1422434.68 | AE25: 1417326.68 | AF25: Chellaston Infant School | AG25: =VLOOKUP(B25,'School & Nursery Setting Lookup'!C:C,1,FALSE) -> 2455 | AL25: 1422434.68 | AM25: 5108 | AN25: 1417326.68
A26: Chellaston Junior School | B26: 5203 | C26: 8315203 | D26: 1583361 | E26: 147554.5626 | F26: 0 | G26: 143636.1191 | H26: 4950 | I26: 0 | J26: 117800 | K26: 0 | L26: 6626 | M26: 0 | N26: 2003927.682 | O26: 0 | P26: 121958.3183 | Q26: 2125886 | R26: 0 | S26: 2125886 | T26: 0 | U26: 2125886 | V26: 507 | W26: =SUMIF('ERS 2021-22'!B:B,'Summary for Prints'!B26,'ERS 2021-22'!S:S) -> 0 | X26: =(SUMIF('ERS 2021-22'!B:B,'Summary for Prints'!B26,'ERS 2021-22'!K:K))*'ERS 2021-22'!$K$1 -> 0 | Y26: =(SUMIF('ERS 2021-22'!B:B,'Summary for Prints'!B26,'ERS 2021-22'!L:L))*'ERS 2021-22'!$K$1 -> 0 | Z26: =SUMIF('ERS 2021-22'!B:B,'Summary for Prints'!B26,'ERS 2021-22'!R:R) -> 0 | AA26: =SUMIF('ERS 2021-22'!B:B,'Summary for Prints'!B26,'ERS 2021-22'!S:S)+SUMIF('ERS 2021-22'!B:B,'Summary for Prints'!B26,'ERS 2021-22'!T:T) -> 0 | AB26: =IFERROR(VLOOKUP(B26,'2021-22 Nursery Budget'!C:AG,31,FALSE),0) -> 0 | AC26: 0 | AD26: 2125886 | AE26: 2119260 | AF26: Chellaston Junior School | AG26: =VLOOKUP(B26,'School & Nursery Setting Lookup'!C:C,1,FALSE) -> 5203 | AL26: 2125886 | AM26: 6626 | AN26: 2119260
A27: Cherry Tree Hill Primary School | B27: 2451 | C27: 8312451 | D27: 1845693 | E27: 275183.4153 | F27: 0 | G27: 156296.497 | H27: 11655.17928 | I27: 0 | J27: 117800 | K27: 0 | L27: 7697 | M27: 0 | N27: 2414325.092 | O27: 0 | P27: 63751.90846 | Q27: 2478077 | R27: 0 | S27: 2478077 | T27: 3493.94 | U27: 2481570.94 | V27: 591 | W27: =SUMIF('ERS 2021-22'!B:B,'Summary for Prints'!B27,'ERS 2021-22'!S:S) -> 0 | X27: =(SUMIF('ERS 2021-22'!B:B,'Summary for Prints'!B27,'ERS 2021-22'!K:K))*'ERS 2021-22'!$K$1 -> 0 | Y27: =(SUMIF('ERS 2021-22'!B:B,'Summary for Prints'!B27,'ERS 2021-22'!L:L))*'ERS 2021-22'!$K$1 -> 0 | Z27: =SUMIF('ERS 2021-22'!B:B,'Summary for Prints'!B27,'ERS 2021-22'!R:R) -> 0 | AA27: =SUMIF('ERS 2021-22'!B:B,'Summary for Prints'!B27,'ERS 2021-22'!S:S)+SUMIF('ERS 2021-22'!B:B,'Summary for Prints'!B27,'ERS 2021-22'!T:T) -> 0 | AB27: =IFERROR(VLOOKUP(B27,'2021-22 Nursery Budget'!C:AG,31,FALSE),0) -> 133046.6808 | AC27: 0 | AD27: 2614617.621 | AE27: 2606920.621 | AF27: Cherry Tree Hill Primary School | AG27: =VLOOKUP(B27,'School & Nursery Setting Lookup'!C:C,1,FALSE) -> 2451 | AL27: 2614617.621 | AM27: 7697 | AN27: 2606920.621
A28: Cottons Farm Primary School | B28: 2023 | C28: 8312023 | D28: 318546 | E28: 107375 | F28: 0 | G28: 49932 | H28: 17493.54839 | I28: 5398.930693 | J28: 117800 | K28: 0 | L28: 4802 | M28: 26862 | N28: 648209.4791 | O28: -1929.255592 | P28: 0 | Q28: 646280.2235 | R28: 0 | S28: 646280.2235 | T28: 5172.74 | U28: 651452.9635 | V28: 102 | W28: =SUMIF('ERS 2021-22'!B:B,'Summary for Prints'!B28,'ERS 2021-22'!S:S) -> 0 | X28: =(SUMIF('ERS 2021-22'!B:B,'Summary for Prints'!B28,'ERS 2021-22'!K:K))*'ERS 2021-22'!$K$1 -> 0 | Y28: =(SUMIF('ERS 2021-22'!B:B,'Summary for Prints'!B28,'ERS 2021-22'!L:L))*'ERS 2021-22'!$K$1 -> 0 | Z28: =SUMIF('ERS 2021-22'!B:B,'Summary for Prints'!B28,'ERS 2021-22'!R:R) -> 0 | AA28: =SUMIF('ERS 2021-22'!B:B,'Summary for Prints'!B28,'ERS 2021-22'!S:S)+SUMIF('ERS 2021-22'!B:B,'Summary for Prints'!B28,'ERS 2021-22'!T:T) -> 0 | AB28: =IFERROR(VLOOKUP(B28,'2021-22 Nursery Budget'!C:AG,31,FALSE),0) -> 14869.9881 | AC28: 0 | AD28: 666322.9516 | AE28: 661520.9516 | AF28: Cottons Farm Primary School | AG28: =VLOOKUP(B28,'School & Nursery Setting Lookup'!C:C,1,FALSE) -> 2023 | AL28: 666322.9516 | AM28: 4802 | AN28: 661520.9516
A29: Dale Community Primary School | B29: 2409 | C29: 8312409 | D29: 1711404 | E29: 345068.6397 | F29: 0 | G29: 255988.8991 | H29: 122721.9409 | I29: 0 | J29: 117800 | K29: 0 | L29: 37400 | M29: 0 | N29: 2590383.48 | O29: 0 | P29: 0 | Q29: 2590383.48 | R29: -38030.104 | S29: 2552353.376 | T29: 6403.04 | U29: 2558756.416 | V29: 548 | W29: =SUMIF('ERS 2021-22'!B:B,'Summary for Prints'!B29,'ERS 2021-22'!S:S) -> 0 | X29: =(SUMIF('ERS 2021-22'!B:B,'Summary for Prints'!B29,'ERS 2021-22'!K:K))*'ERS 2021-22'!$K$1 -> 0 | Y29: =(SUMIF('ERS 2021-22'!B:B,'Summary for Prints'!B29,'ERS 2021-22'!L:L))*'ERS 2021-22'!$K$1 -> 0 | Z29: =SUMIF('ERS 2021-22'!B:B,'Summary for Prints'!B29,'ERS 2021-22'!R:R) -> 0 | AA29: =SUMIF('ERS 2021-22'!B:B,'Summary for Prints'!B29,'ERS 2021-22'!S:S)+SUMIF('ERS 2021-22'!B:B,'Summary for Prints'!B29,'ERS 2021-22'!T:T) -> 0 | AB29: =IFERROR(VLOOKUP(B29,'2021-22 Nursery Budget'!C:AG,31,FALSE),0) -> 0 | AC29: 0 | AD29: 2558756.416 | AE29: 2521356.416 | AF29: Dale Community Primary School | AG29: =VLOOKUP(B29,'School & Nursery Setting Lookup'!C:C,1,FALSE) -> 2409 | AL29: 2558756.416 | AM29: 37400 | AN29: 2521356.416
A30: Derby St Chad's CE (VC) Nursery and Infant School | B30: 3158 | C30: 8313158 | D30: 334161 | E30: 85833.57798 | F30: 0 | G30: 46866 | H30: 56464.18919 | I30: 0 | J30: 117800 | K30: 0 | L30: 2048 | M30: 0 | N30: 643172.7672 | O30: -69.3202258 | P30: 0 | Q30: 643103.4469 | R30: 0 | S30: 643103.4469 | T30: 7436.38 | U30: 650539.8269 | V30: 107 | W30: =SUMIF('ERS 2021-22'!B:B,'Summary for Prints'!B30,'ERS 2021-22'!S:S) -> 0 | X30: =(SUMIF('ERS 2021-22'!B:B,'Summary for Prints'!B30,'ERS 2021-22'!K:K))*'ERS 2021-22'!$K$1 -> 0 | Y30: =(SUMIF('ERS 2021-22'!B:B,'Summary for Prints'!B30,'ERS 2021-22'!L:L))*'ERS 2021-22'!$K$1 -> 0 | Z30: =SUMIF('ERS 2021-22'!B:B,'Summary for Prints'!B30,'ERS 2021-22'!R:R) -> 0 | AA30: =SUMIF('ERS 2021-22'!B:B,'Summary for Prints'!B30,'ERS 2021-22'!S:S)+SUMIF('ERS 2021-22'!B:B,'Summary for Prints'!B30,'ERS 2021-22'!T:T) -> 0 | AB30: =IFERROR(VLOOKUP(B30,'2021-22 Nursery Budget'!C:AG,31,FALSE),0) -> 37488.80907 | AC30: 0 | AD30: 688028.636 | AE30: 685980.636 | AF30: Derby St Chad's CE (VC) Nursery and Infant School | AG30: =VLOOKUP(B30,'School & Nursery Setting Lookup'!C:C,1,FALSE) -> 3158 | AL30: 688028.636 | AM30: 2048 | AN30: 685980.636
A31: Derwent Community School | B31: 2016 | C31: 8312016 | D31: 665199 | E31: 217432.9896 | F31: 0 | G31: 70925.26316 | H31: 14643.75 | I31: 1998 | J31: 117800 | K31: 0 | L31: 5814 | M31: 0 | N31: 1093813.003 | O31: 2199.336916 | P31: 0 | Q31: 1096012.34 | R31: 0 | S31: 1096012.34 | T31: 1293.94 | U31: 1097306.28 | V31: 213 | W31: =SUMIF('ERS 2021-22'!B:B,'Summary for Prints'!B31,'ERS 2021-22'!S:S) -> 0 | X31: =(SUMIF('ERS 2021-22'!B:B,'Summary for Prints'!B31,'ERS 2021-22'!K:K))*'ERS 2021-22'!$K$1 -> 0 | Y31: =(SUMIF('ERS 2021-22'!B:B,'Summary for Prints'!B31,'ERS 2021-22'!L:L))*'ERS 2021-22'!$K$1 -> 0 | Z31: =SUMIF('ERS 2021-22'!B:B,'Summary for Prints'!B31,'ERS 2021-22'!R:R) -> 0 | AA31: =SUMIF('ERS 2021-22'!B:B,'Summary for Prints'!B31,'ERS 2021-22'!S:S)+SUMIF('ERS 2021-22'!B:B,'Summary for Prints'!B31,'ERS 2021-22'!T:T) -> 0 | AB31: =IFERROR(VLOOKUP(B31,'2021-22 Nursery Budget'!C:AG,31,FALSE),0) -> 77948.38589 | AC31: 0 | AD31: 1175254.666 | AE31: 1169440.666 | AF31: Derwent Community School | AG31: =VLOOKUP(B31,'School & Nursery Setting Lookup'!C:C,1,FALSE) -> 2016 | AL31: 1175254.666 | AM31: 5814 | AN31: 1169440.666
A32: Firs Estate Primary School | B32: 2013 | C32: 8312013 | D32: 1102419 | E32: 337625 | F32: 0 | G32: 219536.8689 | H32: 89419.2429 | I32: 34038 | J32: 117800 | K32: 0 | L32: 2969 | M32: 0 | N32: 1903807.112 | O32: 0 | P32: 0 | Q32: 1903807.112 | R32: 0 | S32: 1903807.112 | T32: 7242.44 | U32: 1911049.552 | V32: 353 | W32: =SUMIF('ERS 2021-22'!B:B,'Summary for Prints'!B32,'ERS 2021-22'!S:S) -> 0 | X32: =(SUMIF('ERS 2021-22'!B:B,'Summary for Prints'!B32,'ERS 2021-22'!K:K))*'ERS 2021-22'!$K$1 -> 0 | Y32: =(SUMIF('ERS 2021-22'!B:B,'Summary for Prints'!B32,'ERS 2021-22'!L:L))*'ERS 2021-22'!$K$1 -> 0 | Z32: =SUMIF('ERS 2021-22'!B:B,'Summary for Prints'!B32,'ERS 2021-22'!R:R) -> 0 | AA32: =SUMIF('ERS 2021-22'!B:B,'Summary for Prints'!B32,'ERS 2021-22'!S:S)+SUMIF('ERS 2021-22'!B:B,'Summary for Prints'!B32,'ERS 2021-22'!T:T) -> 0 | AB32: =IFERROR(VLOOKUP(B32,'2021-22 Nursery Budget'!C:AG,31,FALSE),0) -> 41741.08752 | AC32: 0 | AD32: 1952790.639 | AE32: 1949821.639 | AF32: Firs Estate Primary School | AG32: =VLOOKUP(B32,'School & Nursery Setting Lookup'!C:C,1,FALSE) -> 2013 | AL32: 1952790.639 | AM32: 2969 | AN32: 1949821.639
A33: Gayton Community Junior School | B33: 2457 | C33: 8312457 | D33: 1118034 | E33: 100087.0604 | F33: 0 | G33: 126957.7841 | H33: 19800 | I33: 0 | J33: 117800 | K33: 0 | L33: 21241 | M33: 0 | N33: 1503919.845 | O33: 0 | P33: 13761.15547 | Q33: 1517681 | R33: -24844.484 | S33: 1492836.516 | T33: 0 | U33: 1492836.516 | V33: 358 | W33: =SUMIF('ERS 2021-22'!B:B,'Summary for Prints'!B33,'ERS 2021-22'!S:S) -> 0 | X33: =(SUMIF('ERS 2021-22'!B:B,'Summary for Prints'!B33,'ERS 2021-22'!K:K))*'ERS 2021-22'!$K$1 -> 0 | Y33: =(SUMIF('ERS 2021-22'!B:B,'Summary for Prints'!B33,'ERS 2021-22'!L:L))*'ERS 2021-22'!$K$1 -> 0 | Z33: =SUMIF('ERS 2021-22'!B:B,'Summary for Prints'!B33,'ERS 2021-22'!R:R) -> 0 | AA33: =SUMIF('ERS 2021-22'!B:B,'Summary for Prints'!B33,'ERS 2021-22'!S:S)+SUMIF('ERS 2021-22'!B:B,'Summary for Prints'!B33,'ERS 2021-22'!T:T) -> 0 | AB33: =IFERROR(VLOOKUP(B33,'2021-22 Nursery Budget'!C:AG,31,FALSE),0) -> 0 | AC33: 0 | AD33: 1492836.516 | AE33: 1471595.516 | AF33: Gayton Community Junior School | AG33: =VLOOKUP(B33,'School & Nursery Setting Lookup'!C:C,1,FALSE) -> 2457 | AL33: 1492836.516 | AM33: 21241 | AN33: 1471595.516
A34: Grampian Primary Academy | B34: 2010 | C34: 8312010 | D34: 637092 | E34: 178193.2512 | F34: 0 | G34: 53826.50602 | H34: 15565.31792 | I34: 0 | J34: 117800 | K34: 0 | L34: 4153 | M34: 0 | N34: 1006630.075 | O34: -1203.877675 | P34: 0 | Q34: 1005426.198 | R34: 0 | S34: 1005426.198 | T34: 7824.26 | U34: 1013250.458 | V34: 204 | W34: =SUMIF('ERS 2021-22'!B:B,'Summary for Prints'!B34,'ERS 2021-22'!S:S) -> 0 | X34: =(SUMIF('ERS 2021-22'!B:B,'Summary for Prints'!B34,'ERS 2021-22'!K:K))*'ERS 2021-22'!$K$1 -> 0 | Y34: =(SUMIF('ERS 2021-22'!B:B,'Summary for Prints'!B34,'ERS 2021-22'!L:L))*'ERS 2021-22'!$K$1 -> 0 | Z34: =SUMIF('ERS 2021-22'!B:B,'Summary for Prints'!B34,'ERS 2021-22'!R:R) -> 0 | AA34: =SUMIF('ERS 2021-22'!B:B,'Summary for Prints'!B34,'ERS 2021-22'!S:S)+SUMIF('ERS 2021-22'!B:B,'Summary for Prints'!B34,'ERS 2021-22'!T:T) -> 0 | AB34: =IFERROR(VLOOKUP(B34,'2021-22 Nursery Budget'!C:AG,31,FALSE),0) -> 118995.194 | AC34: 0 | AD34: 1132245.651 | AE34: 1128092.651 | AF34: Grampian Primary Academy | AG34: =VLOOKUP(B34,'School & Nursery Setting Lookup'!C:C,1,FALSE) -> 2010 | AL34: 1132245.651 | AM34: 4153 | AN34: 1128092.651
A35: Griffe Field Primary School | B35: 2002 | C35: 8312002 | D35: 1374120 | E35: 43963.63529 | F35: 0 | G35: 101151.3812 | H35: 24200 | I35: 0 | J35: 117800 | K35: 0 | L35: 10175 | M35: 0 | N35: 1671410.017 | O35: 0 | P35: 177964.9835 | Q35: 1849375 | R35: 0 | S35: 1849375 | T35: 2200 | U35: 1851575 | V35: 440 | W35: =SUMIF('ERS 2021-22'!B:B,'Summary for Prints'!B35,'ERS 2021-22'!S:S) -> 0 | X35: =(SUMIF('ERS 2021-22'!B:B,'Summary for Prints'!B35,'ERS 2021-22'!K:K))*'ERS 2021-22'!$K$1 -> 0 | Y35: =(SUMIF('ERS 2021-22'!B:B,'Summary for Prints'!B35,'ERS 2021-22'!L:L))*'ERS 2021-22'!$K$1 -> 0 | Z35: =SUMIF('ERS 2021-22'!B:B,'Summary for Prints'!B35,'ERS 2021-22'!R:R) -> 0 | AA35: =SUMIF('ERS 2021-22'!B:B,'Summary for Prints'!B35,'ERS 2021-22'!S:S)+SUMIF('ERS 2021-22'!B:B,'Summary for Prints'!B35,'ERS 2021-22'!T:T) -> 0 | AB35: =IFERROR(VLOOKUP(B35,'2021-22 Nursery Budget'!C:AG,31,FALSE),0) -> 117076.396 | AC35: 0 | AD35: 1968651.396 | AE35: 1958476.396 | AF35: Griffe Field Primary School | AG35: =VLOOKUP(B35,'School & Nursery Setting Lookup'!C:C,1,FALSE) -> 2002 | AL35: 1968651.396 | AM35: 10175 | AN35: 1958476.396
A36: Hackwood Primary School | B36: 2024 | C36: 8312024 | D36: 497077.9102 | E36: 45462.94498 | F36: 0 | G36: 32011.9898 | H36: 13191.21005 | I36: 0 | J36: 117800 | K36: 0 | L36: 3401.03425 | M36: 0 | N36: 708945.0892 | O36: 0 | P36: 0 | Q36: 708945.0892 | R36: 0 | S36: 708945.0892 | T36: 1100 | U36: 710045.0892 | V36: 159.166798 | W36: =SUMIF('ERS 2021-22'!B:B,'Summary for Prints'!B36,'ERS 2021-22'!S:S) -> 0 | X36: =(SUMIF('ERS 2021-22'!B:B,'Summary for Prints'!B36,'ERS 2021-22'!K:K))*'ERS 2021-22'!$K$1 -> 0 | Y36: =(SUMIF('ERS 2021-22'!B:B,'Summary for Prints'!B36,'ERS 2021-22'!L:L))*'ERS 2021-22'!$K$1 -> 0 | Z36: =SUMIF('ERS 2021-22'!B:B,'Summary for Prints'!B36,'ERS 2021-22'!R:R) -> 0 | AA36: =SUMIF('ERS 2021-22'!B:B,'Summary for Prints'!B36,'ERS 2021-22'!S:S)+SUMIF('ERS 2021-22'!B:B,'Summary for Prints'!B36,'ERS 2021-22'!T:T) -> 0 | AB36: =IFERROR(VLOOKUP(B36,'2021-22 Nursery Budget'!C:AG,31,FALSE),0) -> 34044.73548 | AC36: 0 | AD36: 744089.8247 | AE36: 740688.7905 | AF36: Hackwood Primary School | AG36: =VLOOKUP(B36,'School & Nursery Setting Lookup'!C:C,1,FALSE) -> 2024 | AL36: 744089.8247 | AM36: 3401.03425 | AN36: 740688.7905
A37: Hardwick Primary School | B37: 3544 | C37: 8313544 | D37: 1683297 | E37: 453188.4566 | F37: 0 | G37: 277484.4403 | H37: 137394.3633 | I37: 0 | J37: 117800 | K37: 0 | L37: 13601 | M37: 152805 | N37: 2835570.26 | O37: 0 | P37: 0 | Q37: 2835570.26 | R37: 0 | S37: 2835570.26 | T37: 2200 | U37: 2837770.26 | V37: 539 | W37: =SUMIF('ERS 2021-22'!B:B,'Summary for Prints'!B37,'ERS 2021-22'!S:S) -> 0 | X37: =(SUMIF('ERS 2021-22'!B:B,'Summary for Prints'!B37,'ERS 2021-22'!K:K))*'ERS 2021-22'!$K$1 -> 0 | Y37: =(SUMIF('ERS 2021-22'!B:B,'Summary for Prints'!B37,'ERS 2021-22'!L:L))*'ERS 2021-22'!$K$1 -> 0 | Z37: =SUMIF('ERS 2021-22'!B:B,'Summary for Prints'!B37,'ERS 2021-22'!R:R) -> 0 | AA37: =SUMIF('ERS 2021-22'!B:B,'Summary for Prints'!B37,'ERS 2021-22'!S:S)+SUMIF('ERS 2021-22'!B:B,'Summary for Prints'!B37,'ERS 2021-22'!T:T) -> 0 | AB37: =IFERROR(VLOOKUP(B37,'2021-22 Nursery Budget'!C:AG,31,FALSE),0) -> 130730.2247 | AC37: 0 | AD37: 2968500.485 | AE37: 2954899.485 | AF37: Hardwick Primary School | AG37: =VLOOKUP(B37,'School & Nursery Setting Lookup'!C:C,1,FALSE) -> 3544 | AL37: 2968500.485 | AM37: 13601 | AN37: 2954899.485
A38: Homefields Primary School | B38: 2006 | C38: 8312006 | D38: 1008729 | E38: 9890 | F38: 0 | G38: 69199.23913 | H38: 15675 | I38: 0 | J38: 117800 | K38: 0 | L38: 7060 | M38: 0 | N38: 1228353.239 | O38: 0 | P38: 128846.7609 | Q38: 1357200 | R38: 0 | S38: 1357200 | T38: 5303.04 | U38: 1362503.04 | V38: 323 | W38: =SUMIF('ERS 2021-22'!B:B,'Summary for Prints'!B38,'ERS 2021-22'!S:S) -> 0 | X38: =(SUMIF('ERS 2021-22'!B:B,'Summary for Prints'!B38,'ERS 2021-22'!K:K))*'ERS 2021-22'!$K$1 -> 0 | Y38: =(SUMIF('ERS 2021-22'!B:B,'Summary for Prints'!B38,'ERS 2021-22'!L:L))*'ERS 2021-22'!$K$1 -> 0 | Z38: =SUMIF('ERS 2021-22'!B:B,'Summary for Prints'!B38,'ERS 2021-22'!R:R) -> 0 | AA38: =SUMIF('ERS 2021-22'!B:B,'Summary for Prints'!B38,'ERS 2021-22'!S:S)+SUMIF('ERS 2021-22'!B:B,'Summary for Prints'!B38,'ERS 2021-22'!T:T) -> 0 | AB38: =IFERROR(VLOOKUP(B38,'2021-22 Nursery Budget'!C:AG,31,FALSE),0) -> 128506.5821 | AC38: 0 | AD38: 1491009.622 | AE38: 1483949.622 | AF38: Homefields Primary School | AG38: =VLOOKUP(B38,'School & Nursery Setting Lookup'!C:C,1,FALSE) -> 2006 | AL38: 1491009.622 | AM38: 7060 | AN38: 1483949.622
A39: Lakeside Community Primary School | B39: 2022 | C39: 8312022 | D39: 1814463 | E39: 387044.6034 | F39: 0 | G39: 262362.4679 | H39: 36556.01578 | I39: 0 | J39: 117800 | K39: 0 | L39: 10694 | M39: 164565 | N39: 2793485.087 | O39: 0 | P39: 0 | Q39: 2793485.087 | R39: 0 | S39: 2793485.087 | T39: 6403.04 | U39: 2799888.127 | V39: 581 | W39: =SUMIF('ERS 2021-22'!B:B,'Summary for Prints'!B39,'ERS 2021-22'!S:S) -> 0 | X39: =(SUMIF('ERS 2021-22'!B:B,'Summary for Prints'!B39,'ERS 2021-22'!K:K))*'ERS 2021-22'!$K$1 -> 0 | Y39: =(SUMIF('ERS 2021-22'!B:B,'Summary for Prints'!B39,'ERS 2021-22'!L:L))*'ERS 2021-22'!$K$1 -> 0 | Z39: =SUMIF('ERS 2021-22'!B:B,'Summary for Prints'!B39,'ERS 2021-22'!R:R) -> 0 | AA39: =SUMIF('ERS 2021-22'!B:B,'Summary for Prints'!B39,'ERS 2021-22'!S:S)+SUMIF('ERS 2021-22'!B:B,'Summary for Prints'!B39,'ERS 2021-22'!T:T) -> 0 | AB39: =IFERROR(VLOOKUP(B39,'2021-22 Nursery Budget'!C:AG,31,FALSE),0) -> 209631.27 | AC39: 0 | AD39: 3009519.397 | AE39: 2998825.397 | AF39: Lakeside Community Primary School | AG39: =VLOOKUP(B39,'School & Nursery Setting Lookup'!C:C,1,FALSE) -> 2022 | AL39: 3009519.397 | AM39: 10694 | AN39: 2998825.397
A40: Lawn Primary School | B40: 2522 | C40: 8312522 | D40: 1336644 | E40: 53621.89655 | F40: 0 | G40: 88839.3956 | H40: 11514.13043 | I40: 0 | J40: 117800 | K40: 0 | L40: 5032 | M40: 0 | N40: 1613451.423 | O40: 0 | P40: 180620.5774 | Q40: 1794072 | R40: 0 | S40: 1794072 | T40: 2200 | U40: 1796272 | V40: 428 | W40: =SUMIF('ERS 2021-22'!B:B,'Summary for Prints'!B40,'ERS 2021-22'!S:S) -> 0 | X40: =(SUMIF('ERS 2021-22'!B:B,'Summary for Prints'!B40,'ERS 2021-22'!K:K))*'ERS 2021-22'!$K$1 -> 0 | Y40: =(SUMIF('ERS 2021-22'!B:B,'Summary for Prints'!B40,'ERS 2021-22'!L:L))*'ERS 2021-22'!$K$1 -> 0 | Z40: =SUMIF('ERS 2021-22'!B:B,'Summary for Prints'!B40,'ERS 2021-22'!R:R) -> 0 | AA40: =SUMIF('ERS 2021-22'!B:B,'Summary for Prints'!B40,'ERS 2021-22'!S:S)+SUMIF('ERS 2021-22'!B:B,'Summary for Prints'!B40,'ERS 2021-22'!T:T) -> 0 | AB40: =IFERROR(VLOOKUP(B40,'2021-22 Nursery Budget'!C:AG,31,FALSE),0) -> 0 | AC40: 0 | AD40: 1796272 | AE40: 1791240 | AF40: Lawn Primary School | AG40: =VLOOKUP(B40,'School & Nursery Setting Lookup'!C:C,1,FALSE) -> 2522 | AL40: 1796272 | AM40: 5032 | AN40: 1791240
A41: Markeaton Primary School | B41: 2436 | C41: 8312436 | D41: 1302291 | E41: 133755 | F41: 0 | G41: 110217.4138 | H41: 14776.05042 | I41: 0 | J41: 117800 | K41: 0 | L41: 26650 | M41: 0 | N41: 1705489.464 | O41: 0 | P41: 64220.53579 | Q41: 1769710 | R41: -28938.966 | S41: 1740771.034 | T41: 2200 | U41: 1742971.034 | V41: 417 | W41: =SUMIF('ERS 2021-22'!B:B,'Summary for Prints'!B41,'ERS 2021-22'!S:S) -> 0 | X41: =(SUMIF('ERS 2021-22'!B:B,'Summary for Prints'!B41,'ERS 2021-22'!K:K))*'ERS 2021-22'!$K$1 -> 24000 | Y41: =(SUMIF('ERS 2021-22'!B:B,'Summary for Prints'!B41,'ERS 2021-22'!L:L))*'ERS 2021-22'!$K$1 -> 0 | Z41: =SUMIF('ERS 2021-22'!B:B,'Summary for Prints'!B41,'ERS 2021-22'!R:R) -> 68940 | AA41: =SUMIF('ERS 2021-22'!B:B,'Summary for Prints'!B41,'ERS 2021-22'!S:S)+SUMIF('ERS 2021-22'!B:B,'Summary for Prints'!B41,'ERS 2021-22'!T:T) -> 0 | AB41: =IFERROR(VLOOKUP(B41,'2021-22 Nursery Budget'!C:AG,31,FALSE),0) -> 0 | AC41: 0 | AD41: 1835911.034 | AE41: 1809261.034 | AF41: Markeaton Primary School | AG41: =VLOOKUP(B41,'School & Nursery Setting Lookup'!C:C,1,FALSE) -> 2436 | AL41: 1835911.034 | AM41: 26650 | AN41: 1809261.034
A42: Meadow Farm Community Primary School | B42: 2452 | C42: 8312452 | D42: 412236 | E42: 79345 | F42: 0 | G42: 45392.72727 | H42: 3630 | I42: 3672 | J42: 117800 | K42: 0 | L42: 20350 | M42: 0 | N42: 682425.7273 | O42: -8977.481997 | P42: 0 | Q42: 673448.2453 | R42: -9160.536 | S42: 664287.7093 | T42: 4590.92 | U42: 668878.6293 | V42: 132 | W42: =SUMIF('ERS 2021-22'!B:B,'Summary for Prints'!B42,'ERS 2021-22'!S:S) -> 0 | X42: =(SUMIF('ERS 2021-22'!B:B,'Summary for Prints'!B42,'ERS 2021-22'!K:K))*'ERS 2021-22'!$K$1 -> 0 | Y42: =(SUMIF('ERS 2021-22'!B:B,'Summary for Prints'!B42,'ERS 2021-22'!L:L))*'ERS 2021-22'!$K$1 -> 0 | Z42: =SUMIF('ERS 2021-22'!B:B,'Summary for Prints'!B42,'ERS 2021-22'!R:R) -> 0 | AA42: =SUMIF('ERS 2021-22'!B:B,'Summary for Prints'!B42,'ERS 2021-22'!S:S)+SUMIF('ERS 2021-22'!B:B,'Summary for Prints'!B42,'ERS 2021-22'!T:T) -> 0 | AB42: =IFERROR(VLOOKUP(B42,'2021-22 Nursery Budget'!C:AG,31,FALSE),0) -> 72470.79781 | AC42: 0 | AD42: 741349.4271 | AE42: 720999.4271 | AF42: Meadow Farm Community Primary School | AG42: =VLOOKUP(B42,'School & Nursery Setting Lookup'!C:C,1,FALSE) -> 2452 | AL42: 741349.4271 | AM42: 20350 | AN42: 720999.4271
A43: Mickleover Primary School | B43: 2627 | C43: 8312627 | D43: 1311660 | E43: 51042.01439 | F43: 0 | G43: 108515.7303 | H43: 23100 | I43: 0 | J43: 117800 | K43: 0 | L43: 18000 | M43: 0 | N43: 1630117.745 | O43: 0 | P43: 143482.2553 | Q43: 1773600 | R43: -29147.16 | S43: 1744452.84 | T43: 2200 | U43: 1746652.84 | V43: 420 | W43: =SUMIF('ERS 2021-22'!B:B,'Summary for Prints'!B43,'ERS 2021-22'!S:S) -> 0 | X43: =(SUMIF('ERS 2021-22'!B:B,'Summary for Prints'!B43,'ERS 2021-22'!K:K))*'ERS 2021-22'!$K$1 -> 0 | Y43: =(SUMIF('ERS 2021-22'!B:B,'Summary for Prints'!B43,'ERS 2021-22'!L:L))*'ERS 2021-22'!$K$1 -> 0 | Z43: =SUMIF('ERS 2021-22'!B:B,'Summary for Prints'!B43,'ERS 2021-22'!R:R) -> 0 | AA43: =SUMIF('ERS 2021-22'!B:B,'Summary for Prints'!B43,'ERS 2021-22'!S:S)+SUMIF('ERS 2021-22'!B:B,'Summary for Prints'!B43,'ERS 2021-22'!T:T) -> 0 | AB43: =IFERROR(VLOOKUP(B43,'2021-22 Nursery Budget'!C:AG,31,FALSE),0) -> 0 | AC43: 0 | AD43: 1746652.84 | AE43: 1728652.84 | AF43: Mickleover Primary School | AG43: =VLOOKUP(B43,'School & Nursery Setting Lookup'!C:C,1,FALSE) -> 2627 | AL43: 1746652.84 | AM43: 18000 | AN43: 1728652.84
A44: Landau Forte Academy Moorhead | B44: 2009 | C44: 8312009 | D44: 721413 | E44: 195452.1662 | F44: 0 | G44: 94506.92308 | H44: 20430.15075 | I44: 126 | J44: 117800 | K44: 0 | L44: 3816 | M44: 0 | N44: 1153544.24 | O44: -15721.92147 | P44: 0 | Q44: 1137822.319 | R44: 0 | S44: 1137822.319 | T44: 7630.32 | U44: 1145452.639 | V44: 231 | W44: =SUMIF('ERS 2021-22'!B:B,'Summary for Prints'!B44,'ERS 2021-22'!S:S) -> 0 | X44: =(SUMIF('ERS 2021-22'!B:B,'Summary for Prints'!B44,'ERS 2021-22'!K:K))*'ERS 2021-22'!$K$1 -> 0 | Y44: =(SUMIF('ERS 2021-22'!B:B,'Summary for Prints'!B44,'ERS 2021-22'!L:L))*'ERS 2021-22'!$K$1 -> 0 | Z44: =SUMIF('ERS 2021-22'!B:B,'Summary for Prints'!B44,'ERS 2021-22'!R:R) -> 0 | AA44: =SUMIF('ERS 2021-22'!B:B,'Summary for Prints'!B44,'ERS 2021-22'!S:S)+SUMIF('ERS 2021-22'!B:B,'Summary for Prints'!B44,'ERS 2021-22'!T:T) -> 0 | AB44: =IFERROR(VLOOKUP(B44,'2021-22 Nursery Budget'!C:AG,31,FALSE),0) -> 0 | AC44: 0 | AD44: 1145452.639 | AE44: 1141636.639 | AF44: Landau Forte Academy Moorhead | AG44: =VLOOKUP(B44,'School & Nursery Setting Lookup'!C:C,1,FALSE) -> 2009 | AL44: 1145452.639 | AM44: 3816 | AN44: 1141636.639
A45: Oakwood Infant and Nursery School | B45: 2473 | C45: 8312473 | D45: 836964 | E45: 163350 | F45: 0 | G45: 92324.49438 | H45: 11528.49162 | I45: 0 | J45: 117800 | K45: 0 | L45: 23450 | M45: 0 | N45: 1245416.986 | O45: -14917.13367 | P45: 0 | Q45: 1230499.852 | R45: -18598.664 | S45: 1211901.188 | T45: 3493.94 | U45: 1215395.128 | V45: 268 | W45: =SUMIF('ERS 2021-22'!B:B,'Summary for Prints'!B45,'ERS 2021-22'!S:S) -> 0 | X45: =(SUMIF('ERS 2021-22'!B:B,'Summary for Prints'!B45,'ERS 2021-22'!K:K))*'ERS 2021-22'!$K$1 -> 0 | Y45: =(SUMIF('ERS 2021-22'!B:B,'Summary for Prints'!B45,'ERS 2021-22'!L:L))*'ERS 2021-22'!$K$1 -> 0 | Z45: =SUMIF('ERS 2021-22'!B:B,'Summary for Prints'!B45,'ERS 2021-22'!R:R) -> 0 | AA45: =SUMIF('ERS 2021-22'!B:B,'Summary for Prints'!B45,'ERS 2021-22'!S:S)+SUMIF('ERS 2021-22'!B:B,'Summary for Prints'!B45,'ERS 2021-22'!T:T) -> 0 | AB45: =IFERROR(VLOOKUP(B45,'2021-22 Nursery Budget'!C:AG,31,FALSE),0) -> 184959.6631 | AC45: 0 | AD45: 1400354.791 | AE45: 1376904.791 | AF45: Oakwood Infant and Nursery School | AG45: =VLOOKUP(B45,'School & Nursery Setting Lookup'!C:C,1,FALSE) -> 2473 | AL45: 1400354.791 | AM45: 23450 | AN45: 1376904.791
A46: Oakwood Junior School | B46: 2471 | C46: 8312471 | D46: 1099296 | E46: 233014.6542 | F46: 0 | G46: 140572.2353 | H46: 4400 | I46: 0 | J46: 117800 | K46: 0 | L46: 23450 | M46: 0 | N46: 1618532.889 | O46: 668.3260434 | P46: 0 | Q46: 1619201.216 | R46: -24428.096 | S46: 1594773.12 | T46: 0 | U46: 1594773.12 | V46: 352 | W46: =SUMIF('ERS 2021-22'!B:B,'Summary for Prints'!B46,'ERS 2021-22'!S:S) -> 0 | X46: =(SUMIF('ERS 2021-22'!B:B,'Summary for Prints'!B46,'ERS 2021-22'!K:K))*'ERS 2021-22'!$K$1 -> 0 | Y46: =(SUMIF('ERS 2021-22'!B:B,'Summary for Prints'!B46,'ERS 2021-22'!L:L))*'ERS 2021-22'!$K$1 -> 0 | Z46: =SUMIF('ERS 2021-22'!B:B,'Summary for Prints'!B46,'ERS 2021-22'!R:R) -> 0 | AA46: =SUMIF('ERS 2021-22'!B:B,'Summary for Prints'!B46,'ERS 2021-22'!S:S)+SUMIF('ERS 2021-22'!B:B,'Summary for Prints'!B46,'ERS 2021-22'!T:T) -> 0 | AB46: =IFERROR(VLOOKUP(B46,'2021-22 Nursery Budget'!C:AG,31,FALSE),0) -> 0 | AC46: 0 | AD46: 1594773.12 | AE46: 1571323.12 | AF46: Oakwood Junior School | AG46: =VLOOKUP(B46,'School & Nursery Setting Lookup'!C:C,1,FALSE) -> 2471 | AL46: 1594773.12 | AM46: 23450 | AN46: 1571323.12
A47: Ashwood Spencer Academy (formerly Osmaston) | B47: 2021 | C47: 8312021 | D47: 1733265 | E47: 613616.2365 | F47: 0 | G47: 234169.2661 | H47: 56963.48884 | I47: 685.234657 | J47: 117800 | K47: 0 | L47: 5035 | M47: 0 | N47: 2761534.226 | O47: -3737.180336 | P47: 0 | Q47: 2757797.046 | R47: 0 | S47: 2757797.046 | T47: 8730.32 | U47: 2766527.366 | V47: 555 | W47: =SUMIF('ERS 2021-22'!B:B,'Summary for Prints'!B47,'ERS 2021-22'!S:S) -> 0 | X47: =(SUMIF('ERS 2021-22'!B:B,'Summary for Prints'!B47,'ERS 2021-22'!K:K))*'ERS 2021-22'!$K$1 -> 0 | Y47: =(SUMIF('ERS 2021-22'!B:B,'Summary for Prints'!B47,'ERS 2021-22'!L:L))*'ERS 2021-22'!$K$1 -> 0 | Z47: =SUMIF('ERS 2021-22'!B:B,'Summary for Prints'!B47,'ERS 2021-22'!R:R) -> 0 | AA47: =SUMIF('ERS 2021-22'!B:B,'Summary for Prints'!B47,'ERS 2021-22'!S:S)+SUMIF('ERS 2021-22'!B:B,'Summary for Prints'!B47,'ERS 2021-22'!T:T) -> 0 | AB47: =IFERROR(VLOOKUP(B47,'2021-22 Nursery Budget'!C:AG,31,FALSE),0) -> 115515.3981 | AC47: 0 | AD47: 2882042.764 | AE47: 2877007.764 | AF47: Ashwood Spencer Academy (formerly Osmaston) | AG47: =VLOOKUP(B47,'School & Nursery Setting Lookup'!C:C,1,FALSE) -> 2021 | AL47: 2882042.764 | AM47: 5035 | AN47: 2877007.764
A48: Parkview Primary School | B48: 2003 | C48: 8312003 | D48: 662076 | E48: 17340 | F48: 0 | G48: 41499.88827 | H48: 2562.637363 | I48: 0 | J48: 117800 | K48: 0 | L48: 31750 | M48: 0 | N48: 873028.5256 | O48: 0 | P48: 44881.47437 | Q48: 917910 | R48: -14712.376 | S48: 903197.624 | T48: 1100 | U48: 904297.624 | V48: 212 | W48: =SUMIF('ERS 2021-22'!B:B,'Summary for Prints'!B48,'ERS 2021-22'!S:S) -> 0 | X48: =(SUMIF('ERS 2021-22'!B:B,'Summary for Prints'!B48,'ERS 2021-22'!K:K))*'ERS 2021-22'!$K$1 -> 0 | Y48: =(SUMIF('ERS 2021-22'!B:B,'Summary for Prints'!B48,'ERS 2021-22'!L:L))*'ERS 2021-22'!$K$1 -> 0 | Z48: =SUMIF('ERS 2021-22'!B:B,'Summary for Prints'!B48,'ERS 2021-22'!R:R) -> 0 | AA48: =SUMIF('ERS 2021-22'!B:B,'Summary for Prints'!B48,'ERS 2021-22'!S:S)+SUMIF('ERS 2021-22'!B:B,'Summary for Prints'!B48,'ERS 2021-22'!T:T) -> 0 | AB48: =IFERROR(VLOOKUP(B48,'2021-22 Nursery Budget'!C:AG,31,FALSE),0) -> 89513.48042 | AC48: 0 | AD48: 993811.1044 | AE48: 962061.1044 | AF48: Parkview Primary School | AG48: =VLOOKUP(B48,'School & Nursery Setting Lookup'!C:C,1,FALSE) -> 2003 | AL48: 993811.1044 | AM48: 31750 | AN48: 962061.1044
A49: Pear Tree Community Junior School | B49: 2017 | C49: 8312017 | D49: 1061820 | E49: 326295 | F49: 0 | G49: 217035.8744 | H49: 73700 | I49: 7816.99115 | J49: 117800 | K49: 0 | L49: 3831 | M49: 0 | N49: 1808298.866 | O49: 0 | P49: 0 | Q49: 1808298.866 | R49: 0 | S49: 1808298.866 | T49: 0 | U49: 1808298.866 | V49: 340 | W49: =SUMIF('ERS 2021-22'!B:B,'Summary for Prints'!B49,'ERS 2021-22'!S:S) -> 0 | X49: =(SUMIF('ERS 2021-22'!B:B,'Summary for Prints'!B49,'ERS 2021-22'!K:K))*'ERS 2021-22'!$K$1 -> 0 | Y49: =(SUMIF('ERS 2021-22'!B:B,'Summary for Prints'!B49,'ERS 2021-22'!L:L))*'ERS 2021-22'!$K$1 -> 0 | Z49: =SUMIF('ERS 2021-22'!B:B,'Summary for Prints'!B49,'ERS 2021-22'!R:R) -> 0 | AA49: =SUMIF('ERS 2021-22'!B:B,'Summary for Prints'!B49,'ERS 2021-22'!S:S)+SUMIF('ERS 2021-22'!B:B,'Summary for Prints'!B49,'ERS 2021-22'!T:T) -> 0 | AB49: =IFERROR(VLOOKUP(B49,'2021-22 Nursery Budget'!C:AG,31,FALSE),0) -> 0 | AC49: 0 | AD49: 1808298.866 | AE49: 1804467.866 | AF49: Pear Tree Community Junior School | AG49: =VLOOKUP(B49,'School & Nursery Setting Lookup'!C:C,1,FALSE) -> 2017 | AL49: 1808298.866 | AM49: 3831 | AN49: 1804467.866
A50: Pear Tree Infant School | B50: 2424 | C50: 8312424 | D50: 815103 | E50: 248385 | F50: 0 | G50: 86490.59211 | H50: 107662.5 | I50: 0 | J50: 117800 | K50: 0 | L50: 14929 | M50: 0 | N50: 1390370.092 | O50: 0 | P50: 0 | Q50: 1390370.092 | R50: -18112.878 | S50: 1372257.214 | T50: 5045.46 | U50: 1377302.674 | V50: 261 | W50: =SUMIF('ERS 2021-22'!B:B,'Summary for Prints'!B50,'ERS 2021-22'!S:S) -> 0 | X50: =(SUMIF('ERS 2021-22'!B:B,'Summary for Prints'!B50,'ERS 2021-22'!K:K))*'ERS 2021-22'!$K$1 -> 0 | Y50: =(SUMIF('ERS 2021-22'!B:B,'Summary for Prints'!B50,'ERS 2021-22'!L:L))*'ERS 2021-22'!$K$1 -> 0 | Z50: =SUMIF('ERS 2021-22'!B:B,'Summary for Prints'!B50,'ERS 2021-22'!R:R) -> 0 | AA50: =SUMIF('ERS 2021-22'!B:B,'Summary for Prints'!B50,'ERS 2021-22'!S:S)+SUMIF('ERS 2021-22'!B:B,'Summary for Prints'!B50,'ERS 2021-22'!T:T) -> 0 | AB50: =IFERROR(VLOOKUP(B50,'2021-22 Nursery Budget'!C:AG,31,FALSE),0) -> 0 | AC50: 0 | AD50: 1377302.674 | AE50: 1362373.674 | AF50: Pear Tree Infant School | AG50: =VLOOKUP(B50,'School & Nursery Setting Lookup'!C:C,1,FALSE) -> 2424 | AL50: 1377302.674 | AM50: 14929 | AN50: 1362373.674
A51: Portway Infant School | B51: 2439 | C51: 8312439 | D51: 693306 | E51: 44850 | F51: 0 | G51: 54423.13433 | H51: 4210.344828 | I51: 0 | J51: 117800 | K51: 0 | L51: 11900 | M51: 0 | N51: 926489.4792 | O51: 0 | P51: 13370.52084 | Q51: 939860 | R51: -15406.356 | S51: 924453.644 | T51: 6403.04 | U51: 930856.684 | V51: 222 | W51: =SUMIF('ERS 2021-22'!B:B,'Summary for Prints'!B51,'ERS 2021-22'!S:S) -> 0 | X51: =(SUMIF('ERS 2021-22'!B:B,'Summary for Prints'!B51,'ERS 2021-22'!K:K))*'ERS 2021-22'!$K$1 -> 0 | Y51: =(SUMIF('ERS 2021-22'!B:B,'Summary for Prints'!B51,'ERS 2021-22'!L:L))*'ERS 2021-22'!$K$1 -> 0 | Z51: =SUMIF('ERS 2021-22'!B:B,'Summary for Prints'!B51,'ERS 2021-22'!R:R) -> 0 | AA51: =SUMIF('ERS 2021-22'!B:B,'Summary for Prints'!B51,'ERS 2021-22'!S:S)+SUMIF('ERS 2021-22'!B:B,'Summary for Prints'!B51,'ERS 2021-22'!T:T) -> 0 | AB51: =IFERROR(VLOOKUP(B51,'2021-22 Nursery Budget'!C:AG,31,FALSE),0) -> 0 | AC51: 0 | AD51: 930856.684 | AE51: 918956.684 | AF51: Portway Infant School | AG51: =VLOOKUP(B51,'School & Nursery Setting Lookup'!C:C,1,FALSE) -> 2439 | AL51: 930856.684 | AM51: 11900 | AN51: 918956.684
A52: Portway Junior School | B52: 2440 | C52: 8312440 | D52: 1127403 | E52: 55916.94215 | F52: 0 | G52: 70748.82102 | H52: 3309.166667 | I52: 0 | J52: 117800 | K52: 0 | L52: 7164 | M52: 0 | N52: 1382341.93 | O52: 0 | P52: 133802.0702 | Q52: 1516144 | R52: 0 | S52: 1516144 | T52: 0 | U52: 1516144 | V52: 361 | W52: =SUMIF('ERS 2021-22'!B:B,'Summary for Prints'!B52,'ERS 2021-22'!S:S) -> 0 | X52: =(SUMIF('ERS 2021-22'!B:B,'Summary for Prints'!B52,'ERS 2021-22'!K:K))*'ERS 2021-22'!$K$1 -> 0 | Y52: =(SUMIF('ERS 2021-22'!B:B,'Summary for Prints'!B52,'ERS 2021-22'!L:L))*'ERS 2021-22'!$K$1 -> 0 | Z52: =SUMIF('ERS 2021-22'!B:B,'Summary for Prints'!B52,'ERS 2021-22'!R:R) -> 0 | AA52: =SUMIF('ERS 2021-22'!B:B,'Summary for Prints'!B52,'ERS 2021-22'!S:S)+SUMIF('ERS 2021-22'!B:B,'Summary for Prints'!B52,'ERS 2021-22'!T:T) -> 0 | AB52: =IFERROR(VLOOKUP(B52,'2021-22 Nursery Budget'!C:AG,31,FALSE),0) -> 0 | AC52: 0 | AD52: 1516144 | AE52: 1508980 | AF52: Portway Junior School | AG52: =VLOOKUP(B52,'School & Nursery Setting Lookup'!C:C,1,FALSE) -> 2440 | AL52: 1516144 | AM52: 7164 | AN52: 1508980
A53: Ravensdale Infant and Nursery School | B53: 2462 | C53: 8312462 | D53: 765135 | E53: 82080 | F53: 0 | G53: 67839.65517 | H53: 18018.89535 | I53: 0 | J53: 117800 | K53: 0 | L53: 18429 | M53: 0 | N53: 1069302.551 | O53: 0 | P53: 0 | Q53: 1069302.551 | R53: -17002.51 | S53: 1052300.041 | T53: 6596.98 | U53: 1058897.021 | V53: 245 | W53: =SUMIF('ERS 2021-22'!B:B,'Summary for Prints'!B53,'ERS 2021-22'!S:S) -> 0 | X53: =(SUMIF('ERS 2021-22'!B:B,'Summary for Prints'!B53,'ERS 2021-22'!K:K))*'ERS 2021-22'!$K$1 -> 0 | Y53: =(SUMIF('ERS 2021-22'!B:B,'Summary for Prints'!B53,'ERS 2021-22'!L:L))*'ERS 2021-22'!$K$1 -> 0 | Z53: =SUMIF('ERS 2021-22'!B:B,'Summary for Prints'!B53,'ERS 2021-22'!R:R) -> 0 | AA53: =SUMIF('ERS 2021-22'!B:B,'Summary for Prints'!B53,'ERS 2021-22'!S:S)+SUMIF('ERS 2021-22'!B:B,'Summary for Prints'!B53,'ERS 2021-22'!T:T) -> 0 | AB53: =IFERROR(VLOOKUP(B53,'2021-22 Nursery Budget'!C:AG,31,FALSE),0) -> 114335.7318 | AC53: 0 | AD53: 1173232.752 | AE53: 1154803.752 | AF53: Ravensdale Infant and Nursery School | AG53: =VLOOKUP(B53,'School & Nursery Setting Lookup'!C:C,1,FALSE) -> 2462 | AL53: 1173232.752 | AM53: 18429 | AN53: 1154803.752
A54: Ravensdale Junior School | B54: 2463 | C54: 8312463 | D54: 1111788 | E54: 124298.7677 | F54: 0 | G54: 120036.0366 | H54: 10450 | I54: 0 | J54: 117800 | K54: 0 | L54: 3686 | M54: 0 | N54: 1488058.804 | O54: 0 | P54: 3707.195709 | Q54: 1491766 | R54: 0 | S54: 1491766 | T54: 0 | U54: 1491766 | V54: 356 | W54: =SUMIF('ERS 2021-22'!B:B,'Summary for Prints'!B54,'ERS 2021-22'!S:S) -> 0 | X54: =(SUMIF('ERS 2021-22'!B:B,'Summary for Prints'!B54,'ERS 2021-22'!K:K))*'ERS 2021-22'!$K$1 -> 0 | Y54: =(SUMIF('ERS 2021-22'!B:B,'Summary for Prints'!B54,'ERS 2021-22'!L:L))*'ERS 2021-22'!$K$1 -> 0 | Z54: =SUMIF('ERS 2021-22'!B:B,'Summary for Prints'!B54,'ERS 2021-22'!R:R) -> 0 | AA54: =SUMIF('ERS 2021-22'!B:B,'Summary for Prints'!B54,'ERS 2021-22'!S:S)+SUMIF('ERS 2021-22'!B:B,'Summary for Prints'!B54,'ERS 2021-22'!T:T) -> 0 | AB54: =IFERROR(VLOOKUP(B54,'2021-22 Nursery Budget'!C:AG,31,FALSE),0) -> 0 | AC54: 0 | AD54: 1491766 | AE54: 1488080 | AF54: Ravensdale Junior School | AG54: =VLOOKUP(B54,'School & Nursery Setting Lookup'!C:C,1,FALSE) -> 2463 | AL54: 1491766 | AM54: 3686 | AN54: 1488080
A55: Redwood Primary School | B55: 2505 | C55: 8312505 | D55: 1883169 | E55: 366035 | F55: 0 | G55: 278787 | H55: 77810.19231 | I55: 8906.770764 | J55: 117800 | K55: 0 | L55: 40200 | M55: 0 | N55: 2772707.963 | O55: -2959.188108 | P55: 0 | Q55: 2769748.775 | R55: -41846.994 | S55: 2727901.781 | T55: 4657.58 | U55: 2732559.361 | V55: 603 | W55: =SUMIF('ERS 2021-22'!B:B,'Summary for Prints'!B55,'ERS 2021-22'!S:S) -> 0 | X55: =(SUMIF('ERS 2021-22'!B:B,'Summary for Prints'!B55,'ERS 2021-22'!K:K))*'ERS 2021-22'!$K$1 -> 0 | Y55: =(SUMIF('ERS 2021-22'!B:B,'Summary for Prints'!B55,'ERS 2021-22'!L:L))*'ERS 2021-22'!$K$1 -> 0 | Z55: =SUMIF('ERS 2021-22'!B:B,'Summary for Prints'!B55,'ERS 2021-22'!R:R) -> 0 | AA55: =SUMIF('ERS 2021-22'!B:B,'Summary for Prints'!B55,'ERS 2021-22'!S:S)+SUMIF('ERS 2021-22'!B:B,'Summary for Prints'!B55,'ERS 2021-22'!T:T) -> 0 | AB55: =IFERROR(VLOOKUP(B55,'2021-22 Nursery Budget'!C:AG,31,FALSE),0) -> 212326.4946 | AC55: 0 | AD55: 2944885.856 | AE55: 2904685.856 | AF55: Redwood Primary School | AG55: =VLOOKUP(B55,'School & Nursery Setting Lookup'!C:C,1,FALSE) -> 2505 | AL55: 2944885.856 | AM55: 40200 | AN55: 2904685.856
A56: Reigate Park Primary School | B56: 2020 | C56: 8312020 | D56: 1136772 | E56: 247429.2265 | F56: 0 | G56: 163555.2414 | H56: 17436.77419 | I56: 10044 | J56: 117800 | K56: 0 | L56: 4984 | M56: 0 | N56: 1698021.242 | O56: -8036.024959 | P56: 0 | Q56: 1689985.217 | R56: 0 | S56: 1689985.217 | T56: 3363.64 | U56: 1693348.857 | V56: 364 | W56: 0 | X56: =(SUMIF('ERS 2021-22'!B:B,'Summary for Prints'!B56,'ERS 2021-22'!K:K))*'ERS 2021-22'!$K$1 -> 108000 | Y56: =(SUMIF('ERS 2021-22'!B:B,'Summary for Prints'!B56,'ERS 2021-22'!L:L))*'ERS 2021-22'!$K$1 -> 0 | Z56: =SUMIF('ERS 2021-22'!B:B,'Summary for Prints'!B56,'ERS 2021-22'!R:R) -> 54000 | AA56: =SUMIF('ERS 2021-22'!B:B,'Summary for Prints'!B56,'ERS 2021-22'!S:S)+SUMIF('ERS 2021-22'!B:B,'Summary for Prints'!B56,'ERS 2021-22'!T:T) -> 13342.9 | AB56: =IFERROR(VLOOKUP(B56,'2021-22 Nursery Budget'!C:AG,31,FALSE),0) -> 75514.84235 | AC56: 0 | AD56: 1944206.599 | AE56: 1939222.599 | AF56: Reigate Park Primary School | AG56: =VLOOKUP(B56,'School & Nursery Setting Lookup'!C:C,1,FALSE) -> 2020 | AL56: 1944206.599 | AM56: 4984 | AN56: 1939222.599
A57: Ridgeway Infant School | B57: 2458 | C57: 8312458 | D57: 824472 | E57: 81939.81132 | F57: 0 | G57: 79152.85714 | H57: 57579.31034 | I57: 0 | J57: 117800 | K57: 0 | L57: 13528 | M57: 0 | N57: 1174471.979 | O57: 0 | P57: 0 | Q57: 1174471.979 | R57: -18321.072 | S57: 1156150.907 | T57: 3300 | U57: 1159450.907 | V57: 264 | W57: =SUMIF('ERS 2021-22'!B:B,'Summary for Prints'!B57,'ERS 2021-22'!S:S) -> 0 | X57: =(SUMIF('ERS 2021-22'!B:B,'Summary for Prints'!B57,'ERS 2021-22'!K:K))*'ERS 2021-22'!$K$1 -> 0 | Y57: =(SUMIF('ERS 2021-22'!B:B,'Summary for Prints'!B57,'ERS 2021-22'!L:L))*'ERS 2021-22'!$K$1 -> 0 | Z57: =SUMIF('ERS 2021-22'!B:B,'Summary for Prints'!B57,'ERS 2021-22'!R:R) -> 0 | AA57: =SUMIF('ERS 2021-22'!B:B,'Summary for Prints'!B57,'ERS 2021-22'!S:S)+SUMIF('ERS 2021-22'!B:B,'Summary for Prints'!B57,'ERS 2021-22'!T:T) -> 0 | AB57: =IFERROR(VLOOKUP(B57,'2021-22 Nursery Budget'!C:AG,31,FALSE),0) -> 0 | AC57: 0 | AD57: 1159450.907 | AE57: 1145922.907 | AF57: Ridgeway Infant School | AG57: =VLOOKUP(B57,'School & Nursery Setting Lookup'!C:C,1,FALSE) -> 2458 | AL57: 1159450.907 | AM57: 13528 | AN57: 1145922.907
A58: Roe Farm Primary School | B58: 2001 | C58: 8312001 | D58: 1211724 | E58: 286704.1176 | F58: 0 | G58: 148057.2727 | H58: 7091.8429 | I58: 0 | J58: 117800 | K58: 0 | L58: 30250 | M58: 0 | N58: 1801627.233 | O58: 0 | P58: 0 | Q58: 1801627.233 | R58: -26926.424 | S58: 1774700.809 | T58: 2781.82 | U58: 1777482.629 | V58: 388 | W58: =SUMIF('ERS 2021-22'!B:B,'Summary for Prints'!B58,'ERS 2021-22'!S:S) -> 0 | X58: =(SUMIF('ERS 2021-22'!B:B,'Summary for Prints'!B58,'ERS 2021-22'!K:K))*'ERS 2021-22'!$K$1 -> 0 | Y58: =(SUMIF('ERS 2021-22'!B:B,'Summary for Prints'!B58,'ERS 2021-22'!L:L))*'ERS 2021-22'!$K$1 -> 0 | Z58: =SUMIF('ERS 2021-22'!B:B,'Summary for Prints'!B58,'ERS 2021-22'!R:R) -> 0 | AA58: =SUMIF('ERS 2021-22'!B:B,'Summary for Prints'!B58,'ERS 2021-22'!S:S)+SUMIF('ERS 2021-22'!B:B,'Summary for Prints'!B58,'ERS 2021-22'!T:T) -> 0 | AB58: =IFERROR(VLOOKUP(B58,'2021-22 Nursery Budget'!C:AG,31,FALSE),0) -> 152876.086 | AC58: 0 | AD58: 1930358.715 | AE58: 1900108.715 | AF58: Roe Farm Primary School | AG58: =VLOOKUP(B58,'School & Nursery Setting Lookup'!C:C,1,FALSE) -> 2001 | AL58: 1930358.715 | AM58: 30250 | AN58: 1900108.715
A59: Rosehill Infant and Nursery School | B59: 2429 | C59: 8312429 | D59: 449712 | E59: 100185 | F59: 0 | G59: 50323.40426 | H59: 71035.05155 | I59: 0 | J59: 117800 | K59: 0 | L59: 14100 | M59: 0 | N59: 803155.4558 | O59: -11543.52438 | P59: 0 | Q59: 791611.9314 | R59: -9993.312 | S59: 781618.6194 | T59: 4721.22 | U59: 786339.8394 | V59: 144 | W59: =SUMIF('ERS 2021-22'!B:B,'Summary for Prints'!B59,'ERS 2021-22'!S:S) -> 0 | X59: =(SUMIF('ERS 2021-22'!B:B,'Summary for Prints'!B59,'ERS 2021-22'!K:K))*'ERS 2021-22'!$K$1 -> 0 | Y59: =(SUMIF('ERS 2021-22'!B:B,'Summary for Prints'!B59,'ERS 2021-22'!L:L))*'ERS 2021-22'!$K$1 -> 0 | Z59: =SUMIF('ERS 2021-22'!B:B,'Summary for Prints'!B59,'ERS 2021-22'!R:R) -> 0 | AA59: =SUMIF('ERS 2021-22'!B:B,'Summary for Prints'!B59,'ERS 2021-22'!S:S)+SUMIF('ERS 2021-22'!B:B,'Summary for Prints'!B59,'ERS 2021-22'!T:T) -> 0 | AB59: =IFERROR(VLOOKUP(B59,'2021-22 Nursery Budget'!C:AG,31,FALSE),0) -> 113419.2376 | AC59: 0 | AD59: 899759.077 | AE59: 885659.077 | AF59: Rosehill Infant and Nursery School | AG59: =VLOOKUP(B59,'School & Nursery Setting Lookup'!C:C,1,FALSE) -> 2429 | AL59: 899759.077 | AM59: 14100 | AN59: 885659.077
A60: Shelton Infant School | B60: 2444 | C60: 8312444 | D60: 627723 | E60: 106615 | F60: 0 | G60: 64733.82353 | H60: 20027.17391 | I60: 0 | J60: 117800 | K60: 0 | L60: 12500 | M60: 0 | N60: 949398.9974 | O60: -14736.27064 | P60: 0 | Q60: 934662.7268 | R60: -13948.998 | S60: 920713.7288 | T60: 8536.38 | U60: 929250.1088 | V60: 201 | W60: =SUMIF('ERS 2021-22'!B:B,'Summary for Prints'!B60,'ERS 2021-22'!S:S) -> 0 | X60: =(SUMIF('ERS 2021-22'!B:B,'Summary for Prints'!B60,'ERS 2021-22'!K:K))*'ERS 2021-22'!$K$1 -> 0 | Y60: =(SUMIF('ERS 2021-22'!B:B,'Summary for Prints'!B60,'ERS 2021-22'!L:L))*'ERS 2021-22'!$K$1 -> 0 | Z60: =SUMIF('ERS 2021-22'!B:B,'Summary for Prints'!B60,'ERS 2021-22'!R:R) -> 0 | AA60: =SUMIF('ERS 2021-22'!B:B,'Summary for Prints'!B60,'ERS 2021-22'!S:S)+SUMIF('ERS 2021-22'!B:B,'Summary for Prints'!B60,'ERS 2021-22'!T:T) -> 0 | AB60: =IFERROR(VLOOKUP(B60,'2021-22 Nursery Budget'!C:AG,31,FALSE),0) -> 142068.5573 | AC60: 0 | AD60: 1071318.666 | AE60: 1058818.666 | AF60: Shelton Infant School | AG60: =VLOOKUP(B60,'School & Nursery Setting Lookup'!C:C,1,FALSE) -> 2444 | AL60: 1071318.666 | AM60: 12500 | AN60: 1058818.666
A61: Shelton Junior School | B61: 5209 | C61: 8315209 | D61: 874440 | E61: 170114.3369 | F61: 0 | G61: 94872.45283 | H61: 9900 | I61: 0 | J61: 117800 | K61: 0 | L61: 4250 | M61: 0 | N61: 1271376.79 | O61: 0 | P61: 0 | Q61: 1271376.79 | R61: -19431.44 | S61: 1251945.35 | T61: 0 | U61: 1251945.35 | V61: 280 | W61: =SUMIF('ERS 2021-22'!B:B,'Summary for Prints'!B61,'ERS 2021-22'!S:S) -> 0 | X61: =(SUMIF('ERS 2021-22'!B:B,'Summary for Prints'!B61,'ERS 2021-22'!K:K))*'ERS 2021-22'!$K$1 -> 0 | Y61: =(SUMIF('ERS 2021-22'!B:B,'Summary for Prints'!B61,'ERS 2021-22'!L:L))*'ERS 2021-22'!$K$1 -> 0 | Z61: =SUMIF('ERS 2021-22'!B:B,'Summary for Prints'!B61,'ERS 2021-22'!R:R) -> 0 | AA61: =SUMIF('ERS 2021-22'!B:B,'Summary for Prints'!B61,'ERS 2021-22'!S:S)+SUMIF('ERS 2021-22'!B:B,'Summary for Prints'!B61,'ERS 2021-22'!T:T) -> 0 | AB61: =IFERROR(VLOOKUP(B61,'2021-22 Nursery Budget'!C:AG,31,FALSE),0) -> 0 | AC61: 0 | AD61: 1251945.35 | AE61: 1247695.35 | AF61: Shelton Junior School | AG61: =VLOOKUP(B61,'School & Nursery Setting Lookup'!C:C,1,FALSE) -> 5209 | AL61: 1251945.35 | AM61: 4250 | AN61: 1247695.35
A62: Silverhill Primary School | B62: 2469 | C62: 8312469 | D62: 1305414 | E62: 27675.7601 | F62: 0 | G62: 84280.87819 | H62: 10246.23955 | I62: 0 | J62: 117800 | K62: 0 | L62: 19850 | M62: 0 | N62: 1565266.878 | O62: 0 | P62: 201823.1222 | Q62: 1767090 | R62: -29008.364 | S62: 1738081.636 | T62: 2393.94 | U62: 1740475.576 | V62: 418 | W62: =SUMIF('ERS 2021-22'!B:B,'Summary for Prints'!B62,'ERS 2021-22'!S:S) -> 0 | X62: =(SUMIF('ERS 2021-22'!B:B,'Summary for Prints'!B62,'ERS 2021-22'!K:K))*'ERS 2021-22'!$K$1 -> 0 | Y62: =(SUMIF('ERS 2021-22'!B:B,'Summary for Prints'!B62,'ERS 2021-22'!L:L))*'ERS 2021-22'!$K$1 -> 0 | Z62: =SUMIF('ERS 2021-22'!B:B,'Summary for Prints'!B62,'ERS 2021-22'!R:R) -> 0 | AA62: =SUMIF('ERS 2021-22'!B:B,'Summary for Prints'!B62,'ERS 2021-22'!S:S)+SUMIF('ERS 2021-22'!B:B,'Summary for Prints'!B62,'ERS 2021-22'!T:T) -> 0 | AB62: =IFERROR(VLOOKUP(B62,'2021-22 Nursery Budget'!C:AG,31,FALSE),0) -> 0 | AC62: 0 | AD62: 1740475.576 | AE62: 1720625.576 | AF62: Silverhill Primary School | AG62: =VLOOKUP(B62,'School & Nursery Setting Lookup'!C:C,1,FALSE) -> 2469 | AL62: 1740475.576 | AM62: 19850 | AN62: 1720625.576
A63: Springfield Primary School | B63: 2466 | C63: 8312466 | D63: 1018098 | E63: 131635 | F63: 0 | G63: 123766.9708 | H63: 2561.428571 | I63: 0 | J63: 117800 | K63: 0 | L63: 3414 | M63: 0 | N63: 1397275.399 | O63: -19937.5128 | P63: 0 | Q63: 1377337.887 | R63: 0 | S63: 1377337.887 | T63: 4915.16 | U63: 1382253.047 | V63: 326 | W63: =SUMIF('ERS 2021-22'!B:B,'Summary for Prints'!B63,'ERS 2021-22'!S:S) -> 0 | X63: =(SUMIF('ERS 2021-22'!B:B,'Summary for Prints'!B63,'ERS 2021-22'!K:K))*'ERS 2021-22'!$K$1 -> 180000 | Y63: =(SUMIF('ERS 2021-22'!B:B,'Summary for Prints'!B63,'ERS 2021-22'!L:L))*'ERS 2021-22'!$K$1 -> 0 | Z63: =SUMIF('ERS 2021-22'!B:B,'Summary for Prints'!B63,'ERS 2021-22'!R:R) -> 248000 | AA63: =SUMIF('ERS 2021-22'!B:B,'Summary for Prints'!B63,'ERS 2021-22'!S:S)+SUMIF('ERS 2021-22'!B:B,'Summary for Prints'!B63,'ERS 2021-22'!T:T) -> 0 | AB63: =IFERROR(VLOOKUP(B63,'2021-22 Nursery Budget'!C:AG,31,FALSE),0) -> 0 | AC63: 0 | AD63: 1810253.047 | AE63: 1806839.047 | AF63: Springfield Primary School | AG63: =VLOOKUP(B63,'School & Nursery Setting Lookup'!C:C,1,FALSE) -> 2466 | AL63: 1810253.047 | AM63: 3414 | AN63: 1806839.047
A64: St Alban's Catholic Primary School | B64: 3543 | C64: 8313543 | D64: 955638 | E64: 99614.90415 | F64: 0 | G64: 77831.22047 | H64: 18487.5 | I64: 0 | J64: 117800 | K64: 0 | L64: 4779 | M64: 0 | N64: 1274150.625 | O64: 0 | P64: 9708.375374 | Q64: 1283859 | R64: 0 | S64: 1283859 | T64: 5690.92 | U64: 1289549.92 | V64: 306 | W64: =SUMIF('ERS 2021-22'!B:B,'Summary for Prints'!B64,'ERS 2021-22'!S:S) -> 0 | X64: =(SUMIF('ERS 2021-22'!B:B,'Summary for Prints'!B64,'ERS 2021-22'!K:K))*'ERS 2021-22'!$K$1 -> 0 | Y64: =(SUMIF('ERS 2021-22'!B:B,'Summary for Prints'!B64,'ERS 2021-22'!L:L))*'ERS 2021-22'!$K$1 -> 0 | Z64: =SUMIF('ERS 2021-22'!B:B,'Summary for Prints'!B64,'ERS 2021-22'!R:R) -> 0 | AA64: =SUMIF('ERS 2021-22'!B:B,'Summary for Prints'!B64,'ERS 2021-22'!S:S)+SUMIF('ERS 2021-22'!B:B,'Summary for Prints'!B64,'ERS 2021-22'!T:T) -> 0 | AB64: =IFERROR(VLOOKUP(B64,'2021-22 Nursery Budget'!C:AG,31,FALSE),0) -> 164014.4509 | AC64: 0 | AD64: 1453564.371 | AE64: 1448785.371 | AF64: St Alban's Catholic Primary School | AG64: =VLOOKUP(B64,'School & Nursery Setting Lookup'!C:C,1,FALSE) -> 3543 | AL64: 1453564.371 | AM64: 4779 | AN64: 1448785.371
A65: St George's Catholic Voluntary Academy | B65: 3531 | C65: 8313531 | D65: 1083681 | E65: 131188.2225 | F65: 0 | G65: 96329.15493 | H65: 51581.08108 | I65: 0 | J65: 117800 | K65: 0 | L65: 4802 | M65: 0 | N65: 1485381.459 | O65: -29601.95158 | P65: 0 | Q65: 1455779.507 | R65: 0 | S65: 1455779.507 | T65: 3945.46 | U65: 1459724.967 | V65: 347 | W65: =SUMIF('ERS 2021-22'!B:B,'Summary for Prints'!B65,'ERS 2021-22'!S:S) -> 0 | X65: =(SUMIF('ERS 2021-22'!B:B,'Summary for Prints'!B65,'ERS 2021-22'!K:K))*'ERS 2021-22'!$K$1 -> 0 | Y65: =(SUMIF('ERS 2021-22'!B:B,'Summary for Prints'!B65,'ERS 2021-22'!L:L))*'ERS 2021-22'!$K$1 -> 0 | Z65: =SUMIF('ERS 2021-22'!B:B,'Summary for Prints'!B65,'ERS 2021-22'!R:R) -> 0 | AA65: =SUMIF('ERS 2021-22'!B:B,'Summary for Prints'!B65,'ERS 2021-22'!S:S)+SUMIF('ERS 2021-22'!B:B,'Summary for Prints'!B65,'ERS 2021-22'!T:T) -> 0 | AB65: =IFERROR(VLOOKUP(B65,'2021-22 Nursery Budget'!C:AG,31,FALSE),0) -> 0 | AC65: 0 | AD65: 1459724.967 | AE65: 1454922.967 | AF65: St George's Catholic Voluntary Academy | AG65: =VLOOKUP(B65,'School & Nursery Setting Lookup'!C:C,1,FALSE) -> 3531 | AL65: 1459724.967 | AM65: 4802 | AN65: 1454922.967
A66: St James' Church of England Aided Infant School | B66: 3526 | C66: 8313526 | D66: 224856 | E66: 55135 | F66: 0 | G66: 23360 | H66: 31680 | I66: 0 | J66: 117800 | K66: 0 | L66: 1400 | M66: 0 | N66: 454231 | O66: -5084.371199 | P66: 0 | Q66: 449146.6288 | R66: -4996.656 | S66: 444149.9728 | T66: 2651.52 | U66: 446801.4928 | V66: 72 | W66: =SUMIF('ERS 2021-22'!B:B,'Summary for Prints'!B66,'ERS 2021-22'!S:S) -> 0 | X66: =(SUMIF('ERS 2021-22'!B:B,'Summary for Prints'!B66,'ERS 2021-22'!K:K))*'ERS 2021-22'!$K$1 -> 0 | Y66: =(SUMIF('ERS 2021-22'!B:B,'Summary for Prints'!B66,'ERS 2021-22'!L:L))*'ERS 2021-22'!$K$1 -> 0 | Z66: =SUMIF('ERS 2021-22'!B:B,'Summary for Prints'!B66,'ERS 2021-22'!R:R) -> 0 | AA66: =SUMIF('ERS 2021-22'!B:B,'Summary for Prints'!B66,'ERS 2021-22'!S:S)+SUMIF('ERS 2021-22'!B:B,'Summary for Prints'!B66,'ERS 2021-22'!T:T) -> 0 | AB66: =IFERROR(VLOOKUP(B66,'2021-22 Nursery Budget'!C:AG,31,FALSE),0) -> 55677.87963 | AC66: 0 | AD66: 502479.3724 | AE66: 501079.3724 | AF66: St James' Church of England Aided Infant School | AG66: =VLOOKUP(B66,'School & Nursery Setting Lookup'!C:C,1,FALSE) -> 3526 | AL66: 502479.3724 | AM66: 1400 | AN66: 501079.3724
A67: St James' Church of England Aided Junior School | B67: 3535 | C67: 8313535 | D67: 896301 | E67: 217542.1154 | F67: 0 | G67: 150117.6562 | H67: 46200 | I67: 702 | J67: 117800 | K67: 0 | L67: 3300 | M67: 0 | N67: 1431962.772 | O67: 0 | P67: 0 | Q67: 1431962.772 | R67: -19917.226 | S67: 1412045.546 | T67: 0 | U67: 1412045.546 | V67: 287 | W67: =SUMIF('ERS 2021-22'!B:B,'Summary for Prints'!B67,'ERS 2021-22'!S:S) -> 0 | X67: =(SUMIF('ERS 2021-22'!B:B,'Summary for Prints'!B67,'ERS 2021-22'!K:K))*'ERS 2021-22'!$K$1 -> 0 | Y67: =(SUMIF('ERS 2021-22'!B:B,'Summary for Prints'!B67,'ERS 2021-22'!L:L))*'ERS 2021-22'!$K$1 -> 0 | Z67: =SUMIF('ERS 2021-22'!B:B,'Summary for Prints'!B67,'ERS 2021-22'!R:R) -> 0 | AA67: =SUMIF('ERS 2021-22'!B:B,'Summary for Prints'!B67,'ERS 2021-22'!S:S)+SUMIF('ERS 2021-22'!B:B,'Summary for Prints'!B67,'ERS 2021-22'!T:T) -> 0 | AB67: =IFERROR(VLOOKUP(B67,'2021-22 Nursery Budget'!C:AG,31,FALSE),0) -> 0 | AC67: 0 | AD67: 1412045.546 | AE67: 1408745.546 | AF67: St James' Church of England Aided Junior School | AG67: =VLOOKUP(B67,'School & Nursery Setting Lookup'!C:C,1,FALSE) -> 3535 | AL67: 1412045.546 | AM67: 3300 | AN67: 1408745.546
A68: St John Fisher Catholic Voluntary Academy | B68: 2008 | C68: 8312008 | D68: 699552 | E68: 113110 | F68: 0 | G68: 74764.49198 | H68: 13899.48718 | I68: 0 | J68: 117800 | K68: 0 | L68: 3616 | M68: 0 | N68: 1022741.979 | O68: 0 | P68: 0 | Q68: 1022741.979 | R68: 0 | S68: 1022741.979 | T68: 1293.94 | U68: 1024035.919 | V68: 224 | W68: =SUMIF('ERS 2021-22'!B:B,'Summary for Prints'!B68,'ERS 2021-22'!S:S) -> 0 | X68: =(SUMIF('ERS 2021-22'!B:B,'Summary for Prints'!B68,'ERS 2021-22'!K:K))*'ERS 2021-22'!$K$1 -> 0 | Y68: =(SUMIF('ERS 2021-22'!B:B,'Summary for Prints'!B68,'ERS 2021-22'!L:L))*'ERS 2021-22'!$K$1 -> 0 | Z68: =SUMIF('ERS 2021-22'!B:B,'Summary for Prints'!B68,'ERS 2021-22'!R:R) -> 0 | AA68: =SUMIF('ERS 2021-22'!B:B,'Summary for Prints'!B68,'ERS 2021-22'!S:S)+SUMIF('ERS 2021-22'!B:B,'Summary for Prints'!B68,'ERS 2021-22'!T:T) -> 0 | AB68: =IFERROR(VLOOKUP(B68,'2021-22 Nursery Budget'!C:AG,31,FALSE),0) -> 0 | AC68: 0 | AD68: 1024035.919 | AE68: 1020419.919 | AF68: St John Fisher Catholic Voluntary Academy | AG68: =VLOOKUP(B68,'School & Nursery Setting Lookup'!C:C,1,FALSE) -> 2008 | AL68: 1024035.919 | AM68: 3616 | AN68: 1020419.919
A69: St Joseph's Catholic Primary School, Derby | B69: 3542 | C69: 8313542 | D69: 1171125 | E69: 178234.9722 | F69: 0 | G69: 98227.94118 | H69: 90954.96894 | I69: 0 | J69: 117800 | K69: 0 | L69: 6333 | M69: 0 | N69: 1662675.882 | O69: 0 | P69: 0 | Q69: 1662675.882 | R69: 0 | S69: 1662675.882 | T69: 3557.58 | U69: 1666233.462 | V69: 375 | W69: =SUMIF('ERS 2021-22'!B:B,'Summary for Prints'!B69,'ERS 2021-22'!S:S) -> 0 | X69: =(SUMIF('ERS 2021-22'!B:B,'Summary for Prints'!B69,'ERS 2021-22'!K:K))*'ERS 2021-22'!$K$1 -> 0 | Y69: =(SUMIF('ERS 2021-22'!B:B,'Summary for Prints'!B69,'ERS 2021-22'!L:L))*'ERS 2021-22'!$K$1 -> 0 | Z69: =SUMIF('ERS 2021-22'!B:B,'Summary for Prints'!B69,'ERS 2021-22'!R:R) -> 0 | AA69: =SUMIF('ERS 2021-22'!B:B,'Summary for Prints'!B69,'ERS 2021-22'!S:S)+SUMIF('ERS 2021-22'!B:B,'Summary for Prints'!B69,'ERS 2021-22'!T:T) -> 0 | AB69: =IFERROR(VLOOKUP(B69,'2021-22 Nursery Budget'!C:AG,31,FALSE),0) -> 0 | AC69: 0 | AD69: 1666233.462 | AE69: 1659900.462 | AF69: St Joseph's Catholic Primary School, Derby | AG69: =VLOOKUP(B69,'School & Nursery Setting Lookup'!C:C,1,FALSE) -> 3542 | AL69: 1666233.462 | AM69: 6333 | AN69: 1659900.462
A70: St Mary's Catholic Primary School and Nursery | B70: 3528 | C70: 8313528 | D70: 1002483 | E70: 143300.7484 | F70: 0 | G70: 134974.08 | H70: 38660.58394 | I70: 0 | J70: 117800 | K70: 0 | L70: 9188 | M70: 0 | N70: =SUM(D70:M70) -> 1446406.412 | O70: 0 | P70: 0 | Q70: =SUM(N70:P70) -> 1446406.412 | R70: 0 | S70: =SUM(Q70:R70) -> 1446406.412 | T70: 5496.98 | U70: =SUM(S70:T70) -> 1451903.392 | V70: 321 | W70: =SUMIF('ERS 2021-22'!B:B,'Summary for Prints'!B70,'ERS 2021-22'!S:S) -> 0 | X70: =(SUMIF('ERS 2021-22'!B:B,'Summary for Prints'!B70,'ERS 2021-22'!K:K))*'ERS 2021-22'!$K$1 -> 0 | Y70: =(SUMIF('ERS 2021-22'!B:B,'Summary for Prints'!B70,'ERS 2021-22'!L:L))*'ERS 2021-22'!$K$1 -> 0 | Z70: =SUMIF('ERS 2021-22'!B:B,'Summary for Prints'!B70,'ERS 2021-22'!R:R) -> 0 | AA70: =SUMIF('ERS 2021-22'!B:B,'Summary for Prints'!B70,'ERS 2021-22'!S:S)+SUMIF('ERS 2021-22'!B:B,'Summary for Prints'!B70,'ERS 2021-22'!T:T) -> 0 | AB70: =IFERROR(VLOOKUP(B70,'2021-22 Nursery Budget'!C:AG,31,FALSE),0) -> 123831.3925 | AC70: 0 | AD70: =SUM(W70:AC70)+U70 -> 1575734.785 | AE70: =AD70-L70 -> 1566546.785 | AF70: =A70 -> St Mary's Catholic Primary School and Nursery | AG70: =VLOOKUP(B70,'School & Nursery Setting Lookup'!C:C,1,FALSE) -> 3528 | AL70: =AD70 -> 1575734.785 | AM70: =L70 -> 9188 | AN70: =AL70-AM70 -> 1566546.785
A71: St Peter's Church of England Aided Junior School | B71: 2025 | C71: 8312025 | D71: 699552 | E71: 56360.97561 | F71: 0 | G71: 87184.83412 | H71: 12650 | I71: 0 | J71: 117800 | K71: 0 | L71: 3504 | M71: 0 | N71: 977051.8097 | O71: -5091.994446 | P71: 0 | Q71: 971959.8153 | R71: 0 | S71: 971959.8153 | T71: 0 | U71: 971959.8153 | V71: 224 | W71: =SUMIF('ERS 2021-22'!B:B,'Summary for Prints'!B71,'ERS 2021-22'!S:S) -> 0 | X71: =(SUMIF('ERS 2021-22'!B:B,'Summary for Prints'!B71,'ERS 2021-22'!K:K))*'ERS 2021-22'!$K$1 -> 0 | Y71: =(SUMIF('ERS 2021-22'!B:B,'Summary for Prints'!B71,'ERS 2021-22'!L:L))*'ERS 2021-22'!$K$1 -> 0 | Z71: =SUMIF('ERS 2021-22'!B:B,'Summary for Prints'!B71,'ERS 2021-22'!R:R) -> 0 | AA71: =SUMIF('ERS 2021-22'!B:B,'Summary for Prints'!B71,'ERS 2021-22'!S:S)+SUMIF('ERS 2021-22'!B:B,'Summary for Prints'!B71,'ERS 2021-22'!T:T) -> 0 | AB71: =IFERROR(VLOOKUP(B71,'2021-22 Nursery Budget'!C:AG,31,FALSE),0) -> 0 | AC71: 0 | AD71: 971959.8153 | AE71: 968455.8153 | AF71: St Peter's Church of England Aided Junior School | AG71: =VLOOKUP(B71,'School & Nursery Setting Lookup'!C:C,1,FALSE) -> 2025 | AL71: 971959.8153 | AM71: 3504 | AN71: 968455.8153
A72: St Werburgh's Church of England VA Primary School | B72: 3532 | C72: 8313532 | D72: 968130 | E72: 62386.30573 | F72: 0 | G72: 80094.94382 | H72: 1937.5 | I72: 0 | J72: 117800 | K72: 0 | L72: 5191 | M72: 0 | N72: 1235539.75 | O72: 0 | P72: 65451.25045 | Q72: 1300991 | R72: 0 | S72: 1300991 | T72: 4915.16 | U72: 1305906.16 | V72: 310 | W72: =SUMIF('ERS 2021-22'!B:B,'Summary for Prints'!B72,'ERS 2021-22'!S:S) -> 0 | X72: =(SUMIF('ERS 2021-22'!B:B,'Summary for Prints'!B72,'ERS 2021-22'!K:K))*'ERS 2021-22'!$K$1 -> 0 | Y72: =(SUMIF('ERS 2021-22'!B:B,'Summary for Prints'!B72,'ERS 2021-22'!L:L))*'ERS 2021-22'!$K$1 -> 0 | Z72: =SUMIF('ERS 2021-22'!B:B,'Summary for Prints'!B72,'ERS 2021-22'!R:R) -> 0 | AA72: =SUMIF('ERS 2021-22'!B:B,'Summary for Prints'!B72,'ERS 2021-22'!S:S)+SUMIF('ERS 2021-22'!B:B,'Summary for Prints'!B72,'ERS 2021-22'!T:T) -> 0 | AB72: =IFERROR(VLOOKUP(B72,'2021-22 Nursery Budget'!C:AG,31,FALSE),0) -> 0 | AC72: 0 | AD72: 1305906.16 | AE72: 1300715.16 | AF72: St Werburgh's Church of England VA Primary School | AG72: =VLOOKUP(B72,'School & Nursery Setting Lookup'!C:C,1,FALSE) -> 3532 | AL72: 1305906.16 | AM72: 5191 | AN72: 1300715.16
A73: Village Primary School | B73: 3546 | C73: 8313546 | D73: 1945629 | E73: 466160 | F73: 0 | G73: 251841.1156 | H73: 108645.122 | I73: 0 | J73: 117800 | K73: 0 | L73: 15689 | M73: 0 | N73: 2905764.238 | O73: 0 | P73: 0 | Q73: 2905764.238 | R73: 0 | S73: 2905764.238 | T73: 3300 | U73: 2909064.238 | V73: 623 | W73: =SUMIF('ERS 2021-22'!B:B,'Summary for Prints'!B73,'ERS 2021-22'!S:S) -> 0 | X73: =(SUMIF('ERS 2021-22'!B:B,'Summary for Prints'!B73,'ERS 2021-22'!K:K))*'ERS 2021-22'!$K$1 -> 0 | Y73: =(SUMIF('ERS 2021-22'!B:B,'Summary for Prints'!B73,'ERS 2021-22'!L:L))*'ERS 2021-22'!$K$1 -> 0 | Z73: =SUMIF('ERS 2021-22'!B:B,'Summary for Prints'!B73,'ERS 2021-22'!R:R) -> 0 | AA73: =SUMIF('ERS 2021-22'!B:B,'Summary for Prints'!B73,'ERS 2021-22'!S:S)+SUMIF('ERS 2021-22'!B:B,'Summary for Prints'!B73,'ERS 2021-22'!T:T) -> 0 | AB73: =IFERROR(VLOOKUP(B73,'2021-22 Nursery Budget'!C:AG,31,FALSE),0) -> 182301.5544 | AC73: 0 | AD73: 3091365.792 | AE73: 3075676.792 | AF73: Village Primary School | AG73: =VLOOKUP(B73,'School & Nursery Setting Lookup'!C:C,1,FALSE) -> 3546 | AL73: 3091365.792 | AM73: 15689 | AN73: 3075676.792
A74: Walter Evans Church of England Aided Primary School | B74: 3530 | C74: 8313530 | D74: 1289799 | E74: 20313.91049 | F74: 0 | G74: 65923.46939 | H74: 1930.453258 | I74: 0 | J74: 117800 | K74: 0 | L74: 5191 | M74: 0 | N74: 1500957.833 | O74: 0 | P74: 230573.1669 | Q74: 1731531 | R74: 0 | S74: 1731531 | T74: 2200 | U74: 1733731 | V74: 413 | W74: =SUMIF('ERS 2021-22'!B:B,'Summary for Prints'!B74,'ERS 2021-22'!S:S) -> 0 | X74: =(SUMIF('ERS 2021-22'!B:B,'Summary for Prints'!B74,'ERS 2021-22'!K:K))*'ERS 2021-22'!$K$1 -> 0 | Y74: =(SUMIF('ERS 2021-22'!B:B,'Summary for Prints'!B74,'ERS 2021-22'!L:L))*'ERS 2021-22'!$K$1 -> 0 | Z74: =SUMIF('ERS 2021-22'!B:B,'Summary for Prints'!B74,'ERS 2021-22'!R:R) -> 0 | AA74: =SUMIF('ERS 2021-22'!B:B,'Summary for Prints'!B74,'ERS 2021-22'!S:S)+SUMIF('ERS 2021-22'!B:B,'Summary for Prints'!B74,'ERS 2021-22'!T:T) -> 0 | AB74: =IFERROR(VLOOKUP(B74,'2021-22 Nursery Budget'!C:AG,31,FALSE),0) -> 121238.6858 | AC74: 0 | AD74: 1854969.686 | AE74: 1849778.686 | AF74: Walter Evans Church of England Aided Primary School | AG74: =VLOOKUP(B74,'School & Nursery Setting Lookup'!C:C,1,FALSE) -> 3530 | AL74: 1854969.686 | AM74: 5191 | AN74: 1849778.686
A75: Wren Park Primary School | B75: 2459 | C75: 8312459 | D75: 1202355 | E75: 33785.83424 | F75: 0 | G75: 84575.23148 | H75: 33905.58912 | I75: 0 | J75: 117800 | K75: 0 | L75: 19500 | M75: 0 | N75: 1491921.655 | O75: 0 | P75: 136878.3452 | Q75: 1628800 | R75: -26718.23 | S75: 1602081.77 | T75: 3363.64 | U75: 1605445.41 | V75: 385 | W75: =SUMIF('ERS 2021-22'!B:B,'Summary for Prints'!B75,'ERS 2021-22'!S:S) -> 0 | X75: =(SUMIF('ERS 2021-22'!B:B,'Summary for Prints'!B75,'ERS 2021-22'!K:K))*'ERS 2021-22'!$K$1 -> 0 | Y75: =(SUMIF('ERS 2021-22'!B:B,'Summary for Prints'!B75,'ERS 2021-22'!L:L))*'ERS 2021-22'!$K$1 -> 0 | Z75: =SUMIF('ERS 2021-22'!B:B,'Summary for Prints'!B75,'ERS 2021-22'!R:R) -> 0 | AA75: =SUMIF('ERS 2021-22'!B:B,'Summary for Prints'!B75,'ERS 2021-22'!S:S)+SUMIF('ERS 2021-22'!B:B,'Summary for Prints'!B75,'ERS 2021-22'!T:T) -> 0 | AB75: =IFERROR(VLOOKUP(B75,'2021-22 Nursery Budget'!C:AG,31,FALSE),0) -> 0 | AC75: 0 | AD75: 1605445.41 | AE75: 1585945.41 | AF75: Wren Park Primary School | AG75: =VLOOKUP(B75,'School & Nursery Setting Lookup'!C:C,1,FALSE) -> 2459 | AL75: 1605445.41 | AM75: 19500 | AN75: 1585945.41
A76: Wyndham Primary Academy | B76: 2007 | C76: 8312007 | D76: 1349136 | E76: 321385 | F76: 0 | G76: 113736.3934 | H76: 37582.84182 | I76: 0 | J76: 117800 | K76: 0 | L76: 4736.65 | M76: 0 | N76: 1944376.885 | O76: 0 | P76: 0 | Q76: 1944376.885 | R76: 0 | S76: 1944376.885 | T76: 2393.94 | U76: 1946770.825 | V76: 432 | W76: =SUMIF('ERS 2021-22'!B:B,'Summary for Prints'!B76,'ERS 2021-22'!S:S) -> 0 | X76: =(SUMIF('ERS 2021-22'!B:B,'Summary for Prints'!B76,'ERS 2021-22'!K:K))*'ERS 2021-22'!$K$1 -> 0 | Y76: =(SUMIF('ERS 2021-22'!B:B,'Summary for Prints'!B76,'ERS 2021-22'!L:L))*'ERS 2021-22'!$K$1 -> 0 | Z76: =SUMIF('ERS 2021-22'!B:B,'Summary for Prints'!B76,'ERS 2021-22'!R:R) -> 0 | AA76: =SUMIF('ERS 2021-22'!B:B,'Summary for Prints'!B76,'ERS 2021-22'!S:S)+SUMIF('ERS 2021-22'!B:B,'Summary for Prints'!B76,'ERS 2021-22'!T:T) -> 0 | AB76: =IFERROR(VLOOKUP(B76,'2021-22 Nursery Budget'!C:AG,31,FALSE),0) -> 119913.464 | AC76: 0 | AD76: 2066684.289 | AE76: 2061947.639 | AF76: Wyndham Primary Academy | AG76: =VLOOKUP(B76,'School & Nursery Setting Lookup'!C:C,1,FALSE) -> 2007 | AL76: 2066684.289 | AM76: 4736.65 | AN76: 2061947.639
A77: Zaytouna | B77: 4000 | C77: 8314000 | D77: 1071189 | E77: 199258.3187 | F77: 0 | G77: 130770.4858 | H77: 57033.72093 | I77: 0 | J77: 117800 | K77: 0 | L77: 13887 | M77: 0 | N77: 1589938.525 | O77: 0 | P77: 0 | Q77: 1589938.525 | R77: 0 | S77: 1589938.525 | T77: 5690.92 | U77: 1595629.445 | V77: 343 | W77: =SUMIF('ERS 2021-22'!B:B,'Summary for Prints'!B77,'ERS 2021-22'!S:S) -> 0 | X77: =(SUMIF('ERS 2021-22'!B:B,'Summary for Prints'!B77,'ERS 2021-22'!K:K))*'ERS 2021-22'!$K$1 -> 0 | Y77: =(SUMIF('ERS 2021-22'!B:B,'Summary for Prints'!B77,'ERS 2021-22'!L:L))*'ERS 2021-22'!$K$1 -> 0 | Z77: =SUMIF('ERS 2021-22'!B:B,'Summary for Prints'!B77,'ERS 2021-22'!R:R) -> 0 | AA77: =SUMIF('ERS 2021-22'!B:B,'Summary for Prints'!B77,'ERS 2021-22'!S:S)+SUMIF('ERS 2021-22'!B:B,'Summary for Prints'!B77,'ERS 2021-22'!T:T) -> 0 | AB77: =IFERROR(VLOOKUP(B77,'2021-22 Nursery Budget'!C:AG,31,FALSE),0) -> 0 | AC77: 0 | AD77: 1595629.445 | AE77: 1581742.445 | AF77: Zaytouna | AG77: =VLOOKUP(B77,'School & Nursery Setting Lookup'!C:C,1,FALSE) -> 4000 | AL77: 1595629.445 | AM77: 13887 | AN77: 1581742.445
AD78: 0 | AE78: 0
A79: Total Primary | B79: Total Primary | D79: =SUM(D5:D78) -> 72480145.9 | E79: 12163700.17 | F79: 0 | G79: 8019837.267 | H79: 2204766.459 | I79: 84835.92726 | J79: 8550316.667 | K79: 0 | L79: 791157.2046 | M79: 344232 | N79: 104638991.6 | O79: -268473.9624 | P79: 1832330.543 | Q79: 106202848.2 | R79: -547538.6537 | S79: 105655309.5 | T79: 296245.93 | U79: 105951555.5 | V79: 23208.50013 | W79: 0 | X79: =SUM(X5:X78) -> 652000 | Y79: 0 | Z79: 709023.3333 | AA79: 13342.9 | AB79: 4700264.323 | AC79: 0 | AD79: 112026186 | AE79: 111235028.8 | AL79: =SUM(AL5:AL78) -> 112026186 | AM79: =SUM(AM5:AM78) -> 791157.2046 | AN79: 111235028.8
A81: Chellaston Academy | B81: 5402 | C81: 8315402 | D81: 6711443.195 | E81: 283017.9084 | F81: 0 | G81: 391050.411 | H81: 4527.900943 | I81: 0 | J81: 117800 | K81: 0 | L81: 44125 | M81: 0 | N81: =SUM(D81:M81) -> 7551964.415 | O81: 0 | P81: 367826.7796 | Q81: =SUM(N81:P81) -> 7919791.195 | R81: 0 | S81: =SUM(Q81:R81) -> 7919791.195 | T81: 0 | U81: =SUM(S81:T81) -> 7919791.195 | V81: 1454.4542 | W81: =SUMIF('ERS 2021-22'!B:B,'Summary for Prints'!B81,'ERS 2021-22'!S:S) -> 0 | X81: =(SUMIF('ERS 2021-22'!B:B,'Summary for Prints'!B81,'ERS 2021-22'!K:K))*'ERS 2021-22'!$K$1 -> 0 | Y81: =(SUMIF('ERS 2021-22'!B:B,'Summary for Prints'!B81,'ERS 2021-22'!L:L))*'ERS 2021-22'!$K$1 -> 0 | Z81: =SUMIF('ERS 2021-22'!B:B,'Summary for Prints'!B81,'ERS 2021-22'!R:R) -> 0 | AA81: =SUMIF('ERS 2021-22'!B:B,'Summary for Prints'!B81,'ERS 2021-22'!S:S)+SUMIF('ERS 2021-22'!B:B,'Summary for Prints'!B81,'ERS 2021-22'!T:T) -> 0 | AB81: =IFERROR(VLOOKUP(B81,'2021-22 Nursery Budget'!C:AG,31,FALSE),0) -> 0 | AC81: 0 | AD81: =SUM(W81:AC81)+U81 -> 7919791.195 | AE81: =AD81-L81 -> 7875666.195 | AF81: =A81 -> Chellaston Academy | AG81: =VLOOKUP(B81,'School & Nursery Setting Lookup'!C:C,1,FALSE) -> 5402 | AL81: =AD81 -> 7919791.195 | AM81: =L81 -> 44125 | AN81: =AL81-AM81 -> 7875666.195
A82: da Vinci Community College | B82: 4007 | C82: 8314007 | D82: 3092530 | E82: 792127.3365 | F82: 0 | G82: 358230.0007 | H82: 31185 | I82: 0 | J82: 117800 | K82: 0 | L82: 24583 | M82: 24995 | N82: 4441450.337 | O82: -52640.83833 | P82: 0 | Q82: 4388809.499 | R82: 0 | S82: 4388809.499 | T82: 0 | U82: 4388809.499 | V82: 672 | W82: =SUMIF('ERS 2021-22'!B:B,'Summary for Prints'!B82,'ERS 2021-22'!S:S) -> 0 | X82: =(SUMIF('ERS 2021-22'!B:B,'Summary for Prints'!B82,'ERS 2021-22'!K:K))*'ERS 2021-22'!$K$1 -> 0 | Y82: =(SUMIF('ERS 2021-22'!B:B,'Summary for Prints'!B82,'ERS 2021-22'!L:L))*'ERS 2021-22'!$K$1 -> 0 | Z82: =SUMIF('ERS 2021-22'!B:B,'Summary for Prints'!B82,'ERS 2021-22'!R:R) -> 0 | AA82: =SUMIF('ERS 2021-22'!B:B,'Summary for Prints'!B82,'ERS 2021-22'!S:S)+SUMIF('ERS 2021-22'!B:B,'Summary for Prints'!B82,'ERS 2021-22'!T:T) -> 0 | AB82: =IFERROR(VLOOKUP(B82,'2021-22 Nursery Budget'!C:AG,31,FALSE),0) -> 0 | AC82: 0 | AD82: 4388809.499 | AE82: 4364226.499 | AF82: da Vinci Community College | AG82: =VLOOKUP(B82,'School & Nursery Setting Lookup'!C:C,1,FALSE) -> 4007 | AL82: 4388809.499 | AM82: 24583 | AN82: 4364226.499
A83: Derby Cathedral School | B83: 4004 | C83: 8314004 | D83: 2878723.055 | E83: 564863.4152 | F83: 0 | G83: 201137.3073 | H83: 16147.27358 | I83: 0 | J83: 117800 | K83: 0 | L83: 14329.03 | M83: 0 | N83: 3793000.081 | O83: 0 | P83: 0 | Q83: 3793000.081 | R83: 0 | S83: 3793000.081 | T83: 0 | U83: 3793000.081 | V83: 640.2958 | W83: =SUMIF('ERS 2021-22'!B:B,'Summary for Prints'!B83,'ERS 2021-22'!S:S) -> 0 | X83: =(SUMIF('ERS 2021-22'!B:B,'Summary for Prints'!B83,'ERS 2021-22'!K:K))*'ERS 2021-22'!$K$1 -> 0 | Y83: =(SUMIF('ERS 2021-22'!B:B,'Summary for Prints'!B83,'ERS 2021-22'!L:L))*'ERS 2021-22'!$K$1 -> 0 | Z83: =SUMIF('ERS 2021-22'!B:B,'Summary for Prints'!B83,'ERS 2021-22'!R:R) -> 0 | AA83: =SUMIF('ERS 2021-22'!B:B,'Summary for Prints'!B83,'ERS 2021-22'!S:S)+SUMIF('ERS 2021-22'!B:B,'Summary for Prints'!B83,'ERS 2021-22'!T:T) -> 0 | AB83: =IFERROR(VLOOKUP(B83,'2021-22 Nursery Budget'!C:AG,31,FALSE),0) -> 0 | AC83: 0 | AD83: 3793000.081 | AE83: 3778671.051 | AF83: Derby Cathedral School | AG83: =VLOOKUP(B83,'School & Nursery Setting Lookup'!C:C,1,FALSE) -> 4004 | AL83: 3793000.081 | AM83: 14329.03 | AN83: 3778671.051
A84: Derby Moor Community Sports College | B84: 4178 | C84: 8314178 | D84: 6432762.665 | E84: 982310.9001 | F84: 0 | G84: 583953.8304 | H84: 46821.27735 | I84: 0 | J84: 117800 | K84: 0 | L84: 31926 | M84: 0 | N84: 8195574.673 | O84: 0 | P84: 0 | Q84: 8195574.673 | R84: 0 | S84: 8195574.673 | T84: 0 | U84: 8195574.673 | V84: 1394.3604 | W84: =SUMIF('ERS 2021-22'!B:B,'Summary for Prints'!B84,'ERS 2021-22'!S:S) -> 0 | X84: =(SUMIF('ERS 2021-22'!B:B,'Summary for Prints'!B84,'ERS 2021-22'!K:K))*'ERS 2021-22'!$K$1 -> 0 | Y84: =(SUMIF('ERS 2021-22'!B:B,'Summary for Prints'!B84,'ERS 2021-22'!L:L))*'ERS 2021-22'!$K$1 -> 0 | Z84: =SUMIF('ERS 2021-22'!B:B,'Summary for Prints'!B84,'ERS 2021-22'!R:R) -> 0 | AA84: =SUMIF('ERS 2021-22'!B:B,'Summary for Prints'!B84,'ERS 2021-22'!S:S)+SUMIF('ERS 2021-22'!B:B,'Summary for Prints'!B84,'ERS 2021-22'!T:T) -> 0 | AB84: =IFERROR(VLOOKUP(B84,'2021-22 Nursery Budget'!C:AG,31,FALSE),0) -> 0 | AC84: 0 | AD84: 8195574.673 | AE84: 8163648.673 | AF84: Derby Moor Community Sports College | AG84: =VLOOKUP(B84,'School & Nursery Setting Lookup'!C:C,1,FALSE) -> 4178 | AL84: 8195574.673 | AM84: 31926 | AN84: 8163648.673
A85: Lees Brook Community Sports College | B85: 4006 | C85: 8314006 | D85: 4854999 | E85: 574036.9466 | F85: 0 | G85: 434869.6803 | H85: 4467.752863 | I85: 0 | J85: 117800 | K85: 0 | L85: 27513 | M85: 0 | N85: 6013686.38 | O85: -3677.163168 | P85: 0 | Q85: 6010009.217 | R85: 0 | S85: 6010009.217 | T85: 0 | U85: 6010009.217 | V85: 1051 | W85: 0 | X85: =(SUMIF('ERS 2021-22'!B:B,'Summary for Prints'!B85,'ERS 2021-22'!K:K))*'ERS 2021-22'!$K$1 -> 11500 | Y85: =(SUMIF('ERS 2021-22'!B:B,'Summary for Prints'!B85,'ERS 2021-22'!L:L))*'ERS 2021-22'!$K$1 -> 18000 | Z85: =SUMIF('ERS 2021-22'!B:B,'Summary for Prints'!B85,'ERS 2021-22'!R:R) -> 17875 | AA85: =SUMIF('ERS 2021-22'!B:B,'Summary for Prints'!B85,'ERS 2021-22'!S:S)+SUMIF('ERS 2021-22'!B:B,'Summary for Prints'!B85,'ERS 2021-22'!T:T) -> 0 | AB85: =IFERROR(VLOOKUP(B85,'2021-22 Nursery Budget'!C:AG,31,FALSE),0) -> 0 | AC85: 0 | AD85: 6057384.217 | AE85: 6029871.217 | AF85: Lees Brook Community Sports College | AG85: =VLOOKUP(B85,'School & Nursery Setting Lookup'!C:C,1,FALSE) -> 4006 | AL85: 6057384.217 | AM85: 27513 | AN85: 6029871.217
A86: Littleover Community School | B86: 4182 | C86: 8314182 | D86: 6787683 | E86: 332107.6091 | F86: 0 | G86: 453464.4959 | H86: 40122.34993 | I86: 0 | J86: 117800 | K86: 0 | L86: 144650 | M86: 0 | N86: 7875827.455 | O86: 0 | P86: 212627.545 | Q86: 8088455 | R86: -85405.806 | S86: 8003049.194 | T86: 0 | U86: 8003049.194 | V86: 1467 | W86: =SUMIF('ERS 2021-22'!B:B,'Summary for Prints'!B86,'ERS 2021-22'!S:S) -> 0 | X86: =(SUMIF('ERS 2021-22'!B:B,'Summary for Prints'!B86,'ERS 2021-22'!K:K))*'ERS 2021-22'!$K$1 -> 0 | Y86: =(SUMIF('ERS 2021-22'!B:B,'Summary for Prints'!B86,'ERS 2021-22'!L:L))*'ERS 2021-22'!$K$1 -> 0 | Z86: =SUMIF('ERS 2021-22'!B:B,'Summary for Prints'!B86,'ERS 2021-22'!R:R) -> 0 | AA86: =SUMIF('ERS 2021-22'!B:B,'Summary for Prints'!B86,'ERS 2021-22'!S:S)+SUMIF('ERS 2021-22'!B:B,'Summary for Prints'!B86,'ERS 2021-22'!T:T) -> 0 | AB86: =IFERROR(VLOOKUP(B86,'2021-22 Nursery Budget'!C:AG,31,FALSE),0) -> 0 | AC86: 0 | AD86: 8003049.194 | AE86: 7858399.194 | AF86: Littleover Community School | AG86: =VLOOKUP(B86,'School & Nursery Setting Lookup'!C:C,1,FALSE) -> 4182 | AL86: 8003049.194 | AM86: 144650 | AN86: 7858399.194
A87: Merrill College | B87: 4001 | C87: 8314001 | D87: 3813162 | E87: 1096733.861 | F87: 0 | G87: 500986.3264 | H87: 93781.8 | I87: 12843.64322 | J87: 117800 | K87: 0 | L87: 41338 | M87: 383149 | N87: 6059794.631 | O87: -11480.25374 | P87: 0 | Q87: 6048314.377 | R87: 0 | S87: 6048314.377 | T87: 0 | U87: 6048314.377 | V87: 827 | W87: =SUMIF('ERS 2021-22'!B:B,'Summary for Prints'!B87,'ERS 2021-22'!S:S) -> 0 | X87: =(SUMIF('ERS 2021-22'!B:B,'Summary for Prints'!B87,'ERS 2021-22'!K:K))*'ERS 2021-22'!$K$1 -> 0 | Y87: =(SUMIF('ERS 2021-22'!B:B,'Summary for Prints'!B87,'ERS 2021-22'!L:L))*'ERS 2021-22'!$K$1 -> 0 | Z87: =SUMIF('ERS 2021-22'!B:B,'Summary for Prints'!B87,'ERS 2021-22'!R:R) -> 0 | AA87: =SUMIF('ERS 2021-22'!B:B,'Summary for Prints'!B87,'ERS 2021-22'!S:S)+SUMIF('ERS 2021-22'!B:B,'Summary for Prints'!B87,'ERS 2021-22'!T:T) -> 0 | AB87: =IFERROR(VLOOKUP(B87,'2021-22 Nursery Budget'!C:AG,31,FALSE),0) -> 0 | AC87: 0 | AD87: 6048314.377 | AE87: 6006976.377 | AF87: Merrill College | AG87: =VLOOKUP(B87,'School & Nursery Setting Lookup'!C:C,1,FALSE) -> 4001 | AL87: 6048314.377 | AM87: 41338 | AN87: 6006976.377
A88: Murray Park School | B88: 5406 | C88: 8315406 | D88: 4810127.03 | E88: 713614.36 | F88: 0 | G88: 522431.3091 | H88: 43439.35306 | I88: 0 | J88: 117800 | K88: 0 | L88: 25748 | M88: 0 | N88: 6233160.053 | O88: 0 | P88: 0 | Q88: 6233160.053 | R88: -60638.8985 | S88: 6172521.154 | T88: 0 | U88: 6172521.154 | V88: 1041.6208 | W88: =SUMIF('ERS 2021-22'!B:B,'Summary for Prints'!B88,'ERS 2021-22'!S:S) -> 0 | X88: =(SUMIF('ERS 2021-22'!B:B,'Summary for Prints'!B88,'ERS 2021-22'!K:K))*'ERS 2021-22'!$K$1 -> 0 | Y88: =(SUMIF('ERS 2021-22'!B:B,'Summary for Prints'!B88,'ERS 2021-22'!L:L))*'ERS 2021-22'!$K$1 -> 0 | Z88: =SUMIF('ERS 2021-22'!B:B,'Summary for Prints'!B88,'ERS 2021-22'!R:R) -> 0 | AA88: =SUMIF('ERS 2021-22'!B:B,'Summary for Prints'!B88,'ERS 2021-22'!S:S)+SUMIF('ERS 2021-22'!B:B,'Summary for Prints'!B88,'ERS 2021-22'!T:T) -> 0 | AB88: =IFERROR(VLOOKUP(B88,'2021-22 Nursery Budget'!C:AG,31,FALSE),0) -> 0 | AC88: 0 | AD88: 6172521.154 | AE88: 6146773.154 | AF88: Murray Park School | AG88: =VLOOKUP(B88,'School & Nursery Setting Lookup'!C:C,1,FALSE) -> 5406 | AL88: 6172521.154 | AM88: 25748 | AN88: 6146773.154
A89: Noel Baker Community School and Language College | B89: 4005 | C89: 8314005 | D89: 4708753 | E89: 900653.195 | F89: 0 | G89: 445101.467 | H89: 11903.45508 | I89: 0 | J89: 117800 | K89: 0 | L89: 28292 | M89: 419920 | N89: 6632423.117 | O89: -13090.12774 | P89: 0 | Q89: 6619332.989 | R89: 0 | S89: 6619332.989 | T89: 0 | U89: 6619332.989 | V89: 1015 | W89: =SUMIF('ERS 2021-22'!B:B,'Summary for Prints'!B89,'ERS 2021-22'!S:S) -> 0 | X89: =(SUMIF('ERS 2021-22'!B:B,'Summary for Prints'!B89,'ERS 2021-22'!K:K))*'ERS 2021-22'!$K$1 -> 0 | Y89: =(SUMIF('ERS 2021-22'!B:B,'Summary for Prints'!B89,'ERS 2021-22'!L:L))*'ERS 2021-22'!$K$1 -> 0 | Z89: =SUMIF('ERS 2021-22'!B:B,'Summary for Prints'!B89,'ERS 2021-22'!R:R) -> 0 | AA89: =SUMIF('ERS 2021-22'!B:B,'Summary for Prints'!B89,'ERS 2021-22'!S:S)+SUMIF('ERS 2021-22'!B:B,'Summary for Prints'!B89,'ERS 2021-22'!T:T) -> 0 | AB89: =IFERROR(VLOOKUP(B89,'2021-22 Nursery Budget'!C:AG,31,FALSE),0) -> 0 | AC89: 0 | AD89: 6619332.989 | AE89: 6591040.989 | AF89: Noel Baker Community School and Language College | AG89: =VLOOKUP(B89,'School & Nursery Setting Lookup'!C:C,1,FALSE) -> 4005 | AL89: 6619332.989 | AM89: 28292 | AN89: 6591040.989
A90: Saint Benedict Catholic Voluntary Academy | B90: 4607 | C90: 8314607 | D90: 5565214 | E90: 898504.4365 | F90: 0 | G90: 475008.2777 | H90: 38642.12146 | I90: 0 | J90: 117800 | K90: 0 | L90: 28811 | M90: 0 | N90: 7123979.836 | O90: 0 | P90: 0 | Q90: 7123979.836 | R90: 0 | S90: 7123979.836 | T90: 0 | U90: 7123979.836 | V90: 1203 | W90: 0 | X90: =(SUMIF('ERS 2021-22'!B:B,'Summary for Prints'!B90,'ERS 2021-22'!K:K))*'ERS 2021-22'!$K$1 -> 90000 | Y90: =(SUMIF('ERS 2021-22'!B:B,'Summary for Prints'!B90,'ERS 2021-22'!L:L))*'ERS 2021-22'!$K$1 -> 12000 | Z90: =SUMIF('ERS 2021-22'!B:B,'Summary for Prints'!B90,'ERS 2021-22'!R:R) -> 170000 | AA90: =SUMIF('ERS 2021-22'!B:B,'Summary for Prints'!B90,'ERS 2021-22'!S:S)+SUMIF('ERS 2021-22'!B:B,'Summary for Prints'!B90,'ERS 2021-22'!T:T) -> 25000 | AB90: =IFERROR(VLOOKUP(B90,'2021-22 Nursery Budget'!C:AG,31,FALSE),0) -> 0 | AC90: 0 | AD90: 7420979.836 | AE90: 7392168.836 | AF90: Saint Benedict Catholic Voluntary Academy | AG90: =VLOOKUP(B90,'School & Nursery Setting Lookup'!C:C,1,FALSE) -> 4607 | AL90: 7420979.836 | AM90: 28811 | AN90: 7392168.836
A91: City of Derby Academy | B91: 4008 | C91: 8314008 | D91: 4399642 | E91: 926251.4655 | F91: 0 | G91: 544532.6016 | H91: 170775 | I91: 5403.587962 | J91: 117800 | K91: 0 | L91: 34997 | M91: 0 | N91: 6199401.655 | O91: -21127.58612 | P91: 0 | Q91: 6178274.069 | R91: 0 | S91: 6178274.069 | T91: 0 | U91: 6178274.069 | V91: 949 | W91: =SUMIF('ERS 2021-22'!B:B,'Summary for Prints'!B91,'ERS 2021-22'!S:S) -> 0 | X91: =(SUMIF('ERS 2021-22'!B:B,'Summary for Prints'!B91,'ERS 2021-22'!K:K))*'ERS 2021-22'!$K$1 -> 0 | Y91: =(SUMIF('ERS 2021-22'!B:B,'Summary for Prints'!B91,'ERS 2021-22'!L:L))*'ERS 2021-22'!$K$1 -> 0 | Z91: =SUMIF('ERS 2021-22'!B:B,'Summary for Prints'!B91,'ERS 2021-22'!R:R) -> 0 | AA91: =SUMIF('ERS 2021-22'!B:B,'Summary for Prints'!B91,'ERS 2021-22'!S:S)+SUMIF('ERS 2021-22'!B:B,'Summary for Prints'!B91,'ERS 2021-22'!T:T) -> 0 | AB91: =IFERROR(VLOOKUP(B91,'2021-22 Nursery Budget'!C:AG,31,FALSE),0) -> 0 | AC91: 0 | AD91: 6178274.069 | AE91: 6143277.069 | AF91: City of Derby Academy | AG91: =VLOOKUP(B91,'School & Nursery Setting Lookup'!C:C,1,FALSE) -> 4008 | AL91: 6178274.069 | AM91: 34997 | AN91: 6143277.069
A92: West Park School | B92: 5412 | C92: 8315412 | D92: 6590079.987 | E92: 606140.0687 | F92: 0 | G92: 482710.1983 | H92: 6039.704626 | I92: 0 | J92: 117800 | K92: 0 | L92: 27773 | M92: 0 | N92: 7830542.959 | O92: -66991.38829 | P92: 0 | Q92: 7763551.57 | R92: 0 | S92: 7763551.57 | T92: 0 | U92: 7763551.57 | V92: 1428.649 | W92: =SUMIF('ERS 2021-22'!B:B,'Summary for Prints'!B92,'ERS 2021-22'!S:S) -> 0 | X92: =(SUMIF('ERS 2021-22'!B:B,'Summary for Prints'!B92,'ERS 2021-22'!K:K))*'ERS 2021-22'!$K$1 -> 0 | Y92: =(SUMIF('ERS 2021-22'!B:B,'Summary for Prints'!B92,'ERS 2021-22'!L:L))*'ERS 2021-22'!$K$1 -> 0 | Z92: =SUMIF('ERS 2021-22'!B:B,'Summary for Prints'!B92,'ERS 2021-22'!R:R) -> 0 | AA92: =SUMIF('ERS 2021-22'!B:B,'Summary for Prints'!B92,'ERS 2021-22'!S:S)+SUMIF('ERS 2021-22'!B:B,'Summary for Prints'!B92,'ERS 2021-22'!T:T) -> 0 | AB92: =IFERROR(VLOOKUP(B92,'2021-22 Nursery Budget'!C:AG,31,FALSE),0) -> 0 | AC92: 0 | AD92: 7763551.57 | AE92: 7735778.57 | AF92: West Park School | AG92: =VLOOKUP(B92,'School & Nursery Setting Lookup'!C:C,1,FALSE) -> 5412 | AL92: 7763551.57 | AM92: 27773 | AN92: 7735778.57
A93: Allestree Woodlands School | B93: 5414 | C93: 8315414 | D93: 5247786 | E93: 448614 | F93: 0 | G93: 307375.8021 | H93: 10395 | I93: 0 | J93: 117800 | K93: 0 | L93: 31926 | M93: 0 | N93: 6163896.802 | O93: 0 | P93: 19469.19786 | Q93: 6183366 | R93: 0 | S93: 6183366 | T93: 0 | U93: 6183366 | V93: 1136 | W93: =SUMIF('ERS 2021-22'!B:B,'Summary for Prints'!B93,'ERS 2021-22'!S:S) -> 0 | X93: =(SUMIF('ERS 2021-22'!B:B,'Summary for Prints'!B93,'ERS 2021-22'!K:K))*'ERS 2021-22'!$K$1 -> 84000 | Y93: =(SUMIF('ERS 2021-22'!B:B,'Summary for Prints'!B93,'ERS 2021-22'!L:L))*'ERS 2021-22'!$K$1 -> 0 | Z93: =SUMIF('ERS 2021-22'!B:B,'Summary for Prints'!B93,'ERS 2021-22'!R:R) -> 78000 | AA93: =SUMIF('ERS 2021-22'!B:B,'Summary for Prints'!B93,'ERS 2021-22'!S:S)+SUMIF('ERS 2021-22'!B:B,'Summary for Prints'!B93,'ERS 2021-22'!T:T) -> 0 | AB93: =IFERROR(VLOOKUP(B93,'2021-22 Nursery Budget'!C:AG,31,FALSE),0) -> 0 | AC93: 0 | AD93: 6345366 | AE93: 6313440 | AF93: Allestree Woodlands School | AG93: =VLOOKUP(B93,'School & Nursery Setting Lookup'!C:C,1,FALSE) -> 5414 | AL93: 6345366 | AM93: 31926 | AN93: 6313440
A94: UTC Derby Pride Park | B94: 4010 | C94: 8314010 | D94: 178464 | E94: 29660.26316 | F94: 0 | G94: 19633.14943 | H94: 1485 | I94: 0 | J94: 117800 | K94: 0 | L94: 27254 | M94: 0 | N94: 374296.4126 | O94: 4590.45953 | P94: 0 | Q94: 378886.8721 | R94: 0 | S94: 378886.8721 | T94: 0 | U94: 378886.8721 | V94: 39 | W94: =SUMIF('ERS 2021-22'!B:B,'Summary for Prints'!B94,'ERS 2021-22'!S:S) -> 0 | X94: =(SUMIF('ERS 2021-22'!B:B,'Summary for Prints'!B94,'ERS 2021-22'!K:K))*'ERS 2021-22'!$K$1 -> 0 | Y94: =(SUMIF('ERS 2021-22'!B:B,'Summary for Prints'!B94,'ERS 2021-22'!L:L))*'ERS 2021-22'!$K$1 -> 0 | Z94: =SUMIF('ERS 2021-22'!B:B,'Summary for Prints'!B94,'ERS 2021-22'!R:R) -> 0 | AA94: =SUMIF('ERS 2021-22'!B:B,'Summary for Prints'!B94,'ERS 2021-22'!S:S)+SUMIF('ERS 2021-22'!B:B,'Summary for Prints'!B94,'ERS 2021-22'!T:T) -> 0 | AB94: =IFERROR(VLOOKUP(B94,'2021-22 Nursery Budget'!C:AG,31,FALSE),0) -> 0 | AC94: 0 | AD94: 378886.8721 | AE94: 351632.8721 | AF94: UTC Derby Pride Park | AG94: =VLOOKUP(B94,'School & Nursery Setting Lookup'!C:C,1,FALSE) -> 4010 | AL94: 378886.8721 | AM94: 27254 | AN94: 351632.8721
A95: Landau Forte College (Fox Street) | B95: 6905 | C95: 8316905 | D95: 4196582 | E95: 631902.7586 | F95: 0 | G95: 258429.9849 | H95: 5953.0837 | I95: 0 | J95: 117800 | K95: 0 | L95: 48019 | M95: 0 | N95: 5258686.827 | O95: 0 | P95: 0 | Q95: 5258686.827 | R95: 0 | S95: 5258686.827 | T95: 0 | U95: 5258686.827 | V95: 910 | W95: =SUMIF('ERS 2021-22'!B:B,'Summary for Prints'!B95,'ERS 2021-22'!S:S) -> 0 | X95: =(SUMIF('ERS 2021-22'!B:B,'Summary for Prints'!B95,'ERS 2021-22'!K:K))*'ERS 2021-22'!$K$1 -> 0 | Y95: =(SUMIF('ERS 2021-22'!B:B,'Summary for Prints'!B95,'ERS 2021-22'!L:L))*'ERS 2021-22'!$K$1 -> 0 | Z95: =SUMIF('ERS 2021-22'!B:B,'Summary for Prints'!B95,'ERS 2021-22'!R:R) -> 0 | AA95: =SUMIF('ERS 2021-22'!B:B,'Summary for Prints'!B95,'ERS 2021-22'!S:S)+SUMIF('ERS 2021-22'!B:B,'Summary for Prints'!B95,'ERS 2021-22'!T:T) -> 0 | AB95: =IFERROR(VLOOKUP(B95,'2021-22 Nursery Budget'!C:AG,31,FALSE),0) -> 0 | AC95: 0 | AD95: 5258686.827 | AE95: 5210667.827 | AF95: Landau Forte College (Fox Street) | AG95: =VLOOKUP(B95,'School & Nursery Setting Lookup'!C:C,1,FALSE) -> 6905 | AL95: 5258686.827 | AM95: 48019 | AN95: 5210667.827
AA96: ='ERS 2021-22'!T18 -> 70490 | AD96: 70490 | AE96: 70490
A97: Total Secondary | B97: Total Secondary | D97: =SUM(D81:D96) -> 70267950.93 | E97: 9780538.525 | F97: 0 | G97: 5978914.842 | H97: 525686.0726 | I97: 18247.23119 | J97: 1767000 | K97: 0 | L97: 581284.03 | M97: 828064 | N97: 89747685.63 | O97: -164416.8979 | P97: 599923.5225 | Q97: 90183192.26 | R97: -146044.7045 | S97: 90037147.55 | T97: 0 | U97: 90037147.55 | V97: =SUM(V81:V96) -> 15228.3802 | W97: =SUM(W81:W96) -> 0 | X97: 185500 | Y97: 30000 | Z97: 265875 | AA97: 95490 | AB97: 0 | AC97: 0 | AD97: 90614012.55 | AE97: 90032728.52 | AL97: =SUM(AL81:AL96) -> 90543522.55 | AM97: =SUM(AM81:AM96) -> 581284.03 | AN97: 89962238.52
A99: The Bemrose School | B99: 4177 | C99: 8314177 | D99: 4998119 | E99: 1189896.411 | F99: 0 | G99: 737300.3235 | H99: 234552.4393 | I99: 41857.41503 | J99: 117800 | K99: 0 | L99: 22550 | M99: 0 | N99: =SUM(D99:M99) -> 7342075.589 | O99: 0 | P99: 0 | Q99: =SUM(N99:P99) -> 7342075.589 | R99: -72832.342 | S99: =SUM(Q99:R99) -> 7269243.247 | T99: 3751.52 | U99: =SUM(S99:T99) -> 7272994.767 | V99: 1189 | W99: =SUMIF('ERS 2021-22'!B:B,'Summary for Prints'!B99,'ERS 2021-22'!S:S) -> 0 | X99: =(SUMIF('ERS 2021-22'!B:B,'Summary for Prints'!B99,'ERS 2021-22'!K:K))*'ERS 2021-22'!$K$1 -> 210000 | Y99: =(SUMIF('ERS 2021-22'!B:B,'Summary for Prints'!B99,'ERS 2021-22'!L:L))*'ERS 2021-22'!$K$1 -> 0 | Z99: =SUMIF('ERS 2021-22'!B:B,'Summary for Prints'!B99,'ERS 2021-22'!R:R) -> 315000 | AA99: =SUMIF('ERS 2021-22'!B:B,'Summary for Prints'!B99,'ERS 2021-22'!S:S)+SUMIF('ERS 2021-22'!B:B,'Summary for Prints'!B99,'ERS 2021-22'!T:T) -> 0 | AB99: =IFERROR(VLOOKUP(B99,'2021-22 Nursery Budget'!C:AG,31,FALSE),0) -> 46139.04785 | AC99: 0 | AD99: =SUM(W99:AC99)+U99 -> 7844133.815 | AE99: =AD99-L99 -> 7821583.815 | AF99: =A99 -> The Bemrose School | AG99: =VLOOKUP(B99,'School & Nursery Setting Lookup'!C:C,1,FALSE) -> 4177 | AL99: =AD99 -> 7844133.815 | AM99: =L99 -> 22550 | AN99: =AL99-AM99 -> 7821583.815
A101: Total All Through School | B101: Total All Through | D101: =D99 -> 4998119 | E101: =E99 -> 1189896.411 | F101: 0 | G101: 737300.3235 | H101: 234552.4393 | I101: 41857.41503 | J101: 117800 | K101: 0 | L101: 22550 | M101: 0 | N101: 7342075.589 | O101: 0 | P101: 0 | Q101: 7342075.589 | R101: -72832.342 | S101: 7269243.247 | T101: 3751.52 | U101: 7272994.767 | V101: =V99 -> 1189 | W101: 0 | X101: 210000 | Y101: 0 | Z101: 315000 | AA101: 0 | AB101: 46139.04785 | AC101: 0 | AD101: 7844133.815 | AE101: 7821583.815 | AL101: =AL99 -> 7844133.815 | AM101: =AM99 -> 22550 | AN101: 7821583.815
D103: =SUM(D97+D79+D101) -> 147746215.8 | E103: 23134135.11 | F103: 0 | G103: 14736052.43 | H103: 2965004.971 | I103: 144940.5735 | J103: 10435116.67 | K103: 0 | L103: 1394991.235 | M103: 1172296 | N103: 201728752.8 | O103: -432890.8603 | P103: 2432254.065 | Q103: =Q79+Q97+Q101 -> 203728116 | R103: -766415.7002 | S103: 202961700.3 | T103: 299997.45 | U103: 203261697.8 | V103: =SUM(V97+V79+V101) -> 39625.88033 | W103: 0 | X103: 1047500 | Y103: 30000 | Z103: 1289898.333 | AA103: 108832.9 | AB103: 4746403.371 | AC103: 0 | AD103: 210484332.4 | AE103: 209089341.1 | AF103: =AE103-AD103 -> -1394991.235 | AG103: =AF103+L103 -> -1.443549991e-08 | AL103: =AL79+AL97+AL101 -> 210413842.4 | AM103: =AM79+AM97+AM101 -> 1394991.235 | AN103: 209018851.1
D105: 147746215.8 | E105: 23134135.11 | F105: 0 | G105: 14736052.43 | H105: 2965004.971 | I105: 144940.5735 | J105: 10435116.67 | K105: 0 | L105: 1394991.235 | M105: 1172296 | N105: 201728752.8 | O105: -432890.8603 | P105: 2432254.065 | Q105: 203728116 | R105: -766415.7002 | S105: 202961700.3 | T105: 299997.45 | U105: 203261697.8 | V105: 39625.88033 | AD105: =U105+SUM(W103:AC103) -> 210484332.4
D107: =D103-D105 -> 0 | E107: =E103-E105 -> 0 | F107: 0 | G107: 0 | H107: 0 | I107: 0 | J107: 0 | K107: 0 | L107: 0 | M107: 0 | N107: 0 | O107: 0 | P107: 0 | Q107: 0 | R107: 0 | S107: 0 | T107: 0 | U107: 0 | V107: =V103-V105 -> 0 | AD107: =AD105-AD103 -> 0
AA126: PVI's | AB126: ='2021-22 Nursery Budget'!AG247 -> 8595511.497 | AD126: =SUM(S126:AC126) -> 8595511.497 | AE126: =AD126 -> 8595511.497
AA127: DAF | AB127: 75030 | AD127: =SUM(S127:AC127) -> 75030 | AE127: =AD127 -> 75030
AA128: SEN | AB128: 450000 | AD128: 450000 | AE128: 450000
X129: ERS | Y129: TA Hours
A131: Ashgate Nursery | B131: 1014 | L131: 12000 | N131: =SUM(D131:M131) -> 12000 | Q131: =SUM(N131:P131) -> 12000 | S131: =SUM(Q131+R131) -> 12000 | AB131: =IFERROR(VLOOKUP(B131,'2021-22 Nursery Budget'!C:AG,31,FALSE),0)-L131 -> 277510.0977 | AD131: =SUM(S131:AC131) -> 289510.0977 | AE131: =AD131-L131 -> 277510.0977
A132: Central Nursery | B132: 1006 | L132: 13750 | N132: 13750 | Q132: 13750 | S132: 13750 | AB132: =IFERROR(VLOOKUP(B132,'2021-22 Nursery Budget'!C:AG,31,FALSE),0)-L132 -> 407367.9082 | AD132: =SUM(S132:AC132) -> 421117.9082 | AE132: =AD132-L132 -> 407367.9082
A133: Harrington Nursery School | B133: 1008 | L133: 5750 | N133: 5750 | Q133: 5750 | S133: 5750 | AB133: =IFERROR(VLOOKUP(B133,'2021-22 Nursery Budget'!C:AG,31,FALSE),0)-L133 -> 373479.7239 | AD133: 379229.7239 | AE133: 373479.7239
A134: Lord Street Nursery | B134: 1005 | L134: 17350 | N134: 17350 | Q134: 17350 | S134: 17350 | AB134: =IFERROR(VLOOKUP(B134,'2021-22 Nursery Budget'!C:AG,31,FALSE),0)-L134 -> 399484.1452 | AD134: 416834.1452 | AE134: 399484.1452
A135: Stonehill Nursery | B135: 1010 | L135: 5400 | N135: 5400 | Q135: 5400 | S135: 5400 | AB135: =IFERROR(VLOOKUP(B135,'2021-22 Nursery Budget'!C:AG,31,FALSE),0)-L135 -> 351742.285 | AD135: 357142.285 | AE135: 351742.285
A136: Walbrook Nursery | B136: 1009 | L136: 10150 | N136: 10150 | Q136: 10150 | S136: 10150 | AB136: =IFERROR(VLOOKUP(B136,'2021-22 Nursery Budget'!C:AG,31,FALSE),0)-L136 -> 367420.0606 | AD136: 377570.0606 | AE136: 367420.0606
A137: Whitecross Nursery | B137: 1015 | L137: 7250 | N137: 7250 | Q137: 7250 | S137: 7250 | AB137: =IFERROR(VLOOKUP(B137,'2021-22 Nursery Budget'!C:AG,31,FALSE),0)-L137 -> 417260.9098 | AD137: 424510.9098 | AE137: 417260.9098
A138: Nursery | L138: =SUM(L131:L137) -> 71650 | N138: =SUM(N131:N137) -> 71650 | Q138: =SUM(Q131:Q137) -> 71650 | S138: =SUM(S131:S137) -> 71650 | X138: =SUM(X131:X137) -> 0 | Y138: =SUM(Y131:Y137) -> 0 | AB138: =SUM(AB126:AB137) -> 11714806.63 | AD138: =SUM(AD126:AD137) -> 11786456.63
X140: Total ALL | Y140: Total ALL | AE140: Excl. rates
B141: ALL | D141: =D103 -> 147746215.8 | E141: 23134135.11 | F141: 0 | G141: 14736052.43 | H141: 2965004.971 | I141: 144940.5735 | J141: 10435116.67 | K141: 0 | L141: =L103+L138 -> 1466641.235 | M141: 1172296 | N141: 201800402.8 | O141: -432890.8603 | P141: 2432254.065 | Q141: 203799766 | R141: -766415.7002 | S141: 203033350.3 | T141: 299997.45 | U141: 203261697.8 | V141: 39625.88033 | W141: 0 | X141: 1047500 | Y141: 30000 | Z141: 1289898.333 | AA141: 108832.9 | AB141: 16461210 | AC141: 0 | AD141: 222270789 | AE141: =AD141-L141 -> 220804147.8 | AL141: =AD141 -> 222270789 | AM141: =L141 -> 1466641.235 | AN141: =AL141-AM141 -> 220804147.8
B144: 1 | C144: 2 | D144: 3 | E144: 4 | F144: 5 | G144: 6 | H144: 7 | I144: 8 | J144: 9 | K144: 10 | L144: 11 | M144: 12 | N144: 13 | O144: 14 | P144: 15 | Q144: 16 | R144: 17 | S144: 18 | T144: 19 | U144: 20 | V144: 21 | W144: 22 | X144: 23 | Y144: 24 | Z144: 25 | AA144: 26 | AB144: 27 | AC144: 28 | AD144: 29 | AE144: 30
AC146: School Formula Budget Tab - incl. Rates | AD146: ='School Formula Budget 2021-22'!I108 -> 0
AD147: =AD141-AD146 -> 222270789
AC149: School Formula Budget Tab - excl. Rates | AD149: ='School Formula Budget 2021-22'!I110 -> 0
A168: Ace Nursery | B168: 206189 | AB168: =VLOOKUP(B168,'2021-22 Nursery Budget'!C:AG,31,FALSE) -> 138664.5962 | AD168: =AB168 -> 138664.5962 | AE168: =AD168 -> 138664.5962
A169: Akaal Primary School | B169: 2014 | AB169: =VLOOKUP(B169,'2021-22 Nursery Budget'!C:AG,31,FALSE) ->  | AD169: =AB169 ->  | AE169: =AD169 -> 
A170: Allenton Primary School | B170: 2012 | AB170: =VLOOKUP(B170,'2021-22 Nursery Budget'!C:AG,31,FALSE) -> 
A171: Allestree Woodlands School | B171: 5414 | AB171: =VLOOKUP(B171,'2021-22 Nursery Budget'!C:AG,31,FALSE) -> 
A172: Alvaston Achievers | B172: EY545705 | AB172: =VLOOKUP(B172,'2021-22 Nursery Budget'!C:AG,31,FALSE) -> 79918.57255 | AD172: 79918.57255 | AE172: 79918.57255
A173: Alvaston Infant and Nursery School | B173: 2443 | AB173: =VLOOKUP(B173,'2021-22 Nursery Budget'!C:AG,31,FALSE) -> 188063.8437 | AD173: 188063.8437 | AE173: 188063.8437
A174: Alvaston Junior Academy | B174: 2442 | AB174: =VLOOKUP(B174,'2021-22 Nursery Budget'!C:AG,31,FALSE) -> 
A175: An-Noor Nursery | B175: EY362920 | AB175: =VLOOKUP(B175,'2021-22 Nursery Budget'!C:AG,31,FALSE) -> 35686.80101 | AD175: 35686.80101 | AE175: 35686.80101
A176: Arboretum Primary School | B176: 2629 | AB176: =VLOOKUP(B176,'2021-22 Nursery Budget'!C:AG,31,FALSE) -> 211619.1468 | AD176: 211619.1468 | AE176: 211619.1468
A177: Ash Croft Primary Academy | B177: 2509 | AB177: =VLOOKUP(B177,'2021-22 Nursery Budget'!C:AG,31,FALSE) -> 
A178: Ashgate Nursery | B178: 1014 | AB178: =VLOOKUP(B178,'2021-22 Nursery Budget'!C:AG,31,FALSE) -> 289510.0977 | AD178: 289510.0977 | AE178: 289510.0977
A179: Ashgate Primary School | B179: 2005 | AB179: =VLOOKUP(B179,'2021-22 Nursery Budget'!C:AG,31,FALSE) -> 
A180: Ashwood Spencer Academy | B180: 2021 | AB180: =VLOOKUP(B180,'2021-22 Nursery Budget'!C:AG,31,FALSE) -> 115515.3981 | AD180: 115515.3981 | AE180: 115515.3981
A181: Asterdale Primary School | B181: 2464 | AB181: =VLOOKUP(B181,'2021-22 Nursery Budget'!C:AG,31,FALSE) -> 115874.3548 | AD181: 115874.3548 | AE181: 115874.3548
A182: Beaufort Community Primary School | B182: 2004 | AB182: =VLOOKUP(B182,'2021-22 Nursery Budget'!C:AG,31,FALSE) -> 96552.98335 | AD182: 96552.98335 | AE182: 96552.98335
A183: Becket Primary School | B183: 2405 | AB183: =VLOOKUP(B183,'2021-22 Nursery Budget'!C:AG,31,FALSE) -> 87331.45525 | AD183: 87331.45525 | AE183: 87331.45525
A184: Becket Sure Start Children's Centre | B184: EY380753 | AB184: =VLOOKUP(B184,'2021-22 Nursery Budget'!C:AG,31,FALSE) -> 25757.99456 | AD184: 25757.99456 | AE184: 25757.99456
A185: Best Start Sinfin | B185: EY467568 | AB185: =VLOOKUP(B185,'2021-22 Nursery Budget'!C:AG,31,FALSE) -> 30443.67359 | AD185: 30443.67359 | AE185: 30443.67359
A186: Bishop Lonsdale Church of England Primary School and Nursery | B186: 2011 | AB186: =VLOOKUP(B186,'2021-22 Nursery Budget'!C:AG,31,FALSE) -> 87390.26744 | AD186: 87390.26744 | AE186: 87390.26744
A187: Bizzy Kidz | B187: EY450983 | AB187: =VLOOKUP(B187,'2021-22 Nursery Budget'!C:AG,31,FALSE) -> 254246.621 | AD187: 254246.621 | AE187: 254246.621
A188: Borrow Wood Primary School | B188: 5201 | AB188: =VLOOKUP(B188,'2021-22 Nursery Budget'!C:AG,31,FALSE) -> 67037.875 | AD188: 67037.875 | AE188: 67037.875
A189: Boulton Lane Park Pre-School Playgroup | B189: 206124 | AB189: =VLOOKUP(B189,'2021-22 Nursery Budget'!C:AG,31,FALSE) -> 16378.85946 | AD189: 16378.85946 | AE189: 16378.85946
A190: Brackensdale Primary School | B190: 2432 | AB190: =VLOOKUP(B190,'2021-22 Nursery Budget'!C:AG,31,FALSE) -> 90971.30459 | AD190: 90971.30459 | AE190: 90971.30459
A191: Bramble Brook Pre-School Playgroup | B191: EY282068 | AB191: =VLOOKUP(B191,'2021-22 Nursery Budget'!C:AG,31,FALSE) -> 66802.36799 | AD191: 66802.36799 | AE191: 66802.36799
A192: Breadsall Hill Top Primary School | B192: 2018 | AB192: =VLOOKUP(B192,'2021-22 Nursery Budget'!C:AG,31,FALSE) -> 135896.5429 | AD192: 135896.5429 | AE192: 135896.5429
A193: Brookfield Primary School | B193: 2512 | AB193: =VLOOKUP(B193,'2021-22 Nursery Budget'!C:AG,31,FALSE) -> 99299.23953 | AD193: 99299.23953 | AE193: 99299.23953
A194: Busy Bees Pre-School | B194: 206126 | AB194: =VLOOKUP(B194,'2021-22 Nursery Budget'!C:AG,31,FALSE) -> 120363.0127 | AD194: 120363.0127 | AE194: 120363.0127
A195: Busy Bees-Derby, Heatherton | B195: 206111 | AB195: =VLOOKUP(B195,'2021-22 Nursery Budget'!C:AG,31,FALSE) -> 282680.4542 | AD195: 282680.4542 | AE195: 282680.4542
A196: Carlton Private Day Nursery | B196: 206091 | AB196: =VLOOKUP(B196,'2021-22 Nursery Budget'!C:AG,31,FALSE) -> 81112.86596 | AD196: 81112.86596 | AE196: 81112.86596
A197: Carlyle Infant and Nursery Academy | B197: 2456 | AB197: =VLOOKUP(B197,'2021-22 Nursery Budget'!C:AG,31,FALSE) -> 134145.5768 | AD197: 134145.5768 | AE197: 134145.5768
A198: Castleward Primary School | B198: 0122 | AB198: =VLOOKUP(B198,'2021-22 Nursery Budget'!C:AG,31,FALSE) -> 
A199: Cavendish Close Infant School | B199: 2449 | AB199: =VLOOKUP(B199,'2021-22 Nursery Budget'!C:AG,31,FALSE) -> 192988.2004 | AD199: 192988.2004 | AE199: 192988.2004
A200: Cavendish Close Junior Academy | B200: 2019 | AB200: =VLOOKUP(B200,'2021-22 Nursery Budget'!C:AG,31,FALSE) -> 
A201: Central Nursery | B201: 1006 | AB201: =VLOOKUP(B201,'2021-22 Nursery Budget'!C:AG,31,FALSE) -> 421117.9082 | AD201: 421117.9082 | AE201: 421117.9082
A202: Chaddesden Park Primary School | B202: 2467 | AB202: =VLOOKUP(B202,'2021-22 Nursery Budget'!C:AG,31,FALSE) -> 109036.4621 | AD202: 109036.4621 | AE202: 109036.4621
A203: Chellaston Academy | B203: 5402 | AB203: =VLOOKUP(B203,'2021-22 Nursery Budget'!C:AG,31,FALSE) -> 
A204: Chellaston Infant School | B204: 2455 | AB204: =VLOOKUP(B204,'2021-22 Nursery Budget'!C:AG,31,FALSE) -> 
A205: Chellaston Junior School | B205: 5203 | AB205: =VLOOKUP(B205,'2021-22 Nursery Budget'!C:AG,31,FALSE) -> 
A206: Cherry Tree Hill Primary School | B206: 2451 | AB206: =VLOOKUP(B206,'2021-22 Nursery Budget'!C:AG,31,FALSE) -> 133046.6808 | AD206: 133046.6808 | AE206: 133046.6808
A207: Childcare @ St James Centre | B207: EY396374 | AB207: =VLOOKUP(B207,'2021-22 Nursery Budget'!C:AG,31,FALSE) -> 70751.28417 | AD207: 70751.28417 | AE207: 70751.28417
A208: Chuckles Pre-School Playgroup | B208: 206128 | AB208: =VLOOKUP(B208,'2021-22 Nursery Budget'!C:AG,31,FALSE) -> 12257.5496 | AD208: 12257.5496 | AE208: 12257.5496
A209: City of Derby Academy | B209: 4008 | AB209: =VLOOKUP(B209,'2021-22 Nursery Budget'!C:AG,31,FALSE) -> 
A210: Cottons Farm Primary Academy | B210: 2023 | AB210: =VLOOKUP(B210,'2021-22 Nursery Budget'!C:AG,31,FALSE) -> 14869.9881 | AD210: 14869.9881 | AE210: 14869.9881
A211: Da Vinci Academy | B211: 4007 | AB211: =VLOOKUP(B211,'2021-22 Nursery Budget'!C:AG,31,FALSE) -> 
A212: Dale Community Primary School | B212: 2409 | AB212: =VLOOKUP(B212,'2021-22 Nursery Budget'!C:AG,31,FALSE) -> 
A213: Derby Cathedral School | B213: 4004 | AB213: =VLOOKUP(B213,'2021-22 Nursery Budget'!C:AG,31,FALSE) -> 
A214: Derby City Childminding Network - ABO | B214: EY440600 | AB214: =VLOOKUP(B214,'2021-22 Nursery Budget'!C:AG,31,FALSE) -> 6910.8 | AD214: 6910.8 | AE214: 6910.8
A215: Derby City Childminding Network - AJH | B215: 205921 | AB215: =VLOOKUP(B215,'2021-22 Nursery Budget'!C:AG,31,FALSE) -> 4670.886402 | AD215: 4670.886402 | AE215: 4670.886402
A216: Derby City Childminding Network - ALB | B216: EY398922 | AB216: =VLOOKUP(B216,'2021-22 Nursery Budget'!C:AG,31,FALSE) -> 21816.63295 | AD216: 21816.63295 | AE216: 21816.63295
A217: Derby City Childminding Network - AM | B217: EY000013 | AB217: =VLOOKUP(B217,'2021-22 Nursery Budget'!C:AG,31,FALSE) -> 1743.947315 | AD217: 1743.947315 | AE217: 1743.947315
A218: Derby City Childminding Network - AMD | B218: EY491735 | AB218: =VLOOKUP(B218,'2021-22 Nursery Budget'!C:AG,31,FALSE) -> 12183.01465 | AD218: 12183.01465 | AE218: 12183.01465
A219: Derby City Childminding Network - AP | B219: EY536395 | AB219: =VLOOKUP(B219,'2021-22 Nursery Budget'!C:AG,31,FALSE) -> 2015.439514 | AD219: 2015.439514 | AE219: 2015.439514
A220: Derby City Childminding Network - AR | B220: 205999 | AB220: =VLOOKUP(B220,'2021-22 Nursery Budget'!C:AG,31,FALSE) -> 46620.75904 | AD220: 46620.75904 | AE220: 46620.75904
A221: Derby City Childminding Network - AS | B221: 206011 | AB221: =VLOOKUP(B221,'2021-22 Nursery Budget'!C:AG,31,FALSE) -> 691.08 | AD221: 691.08 | AE221: 691.08
A222: Derby City Childminding Network - Bonnies | B222: 2549324 | AB222: =VLOOKUP(B222,'2021-22 Nursery Budget'!C:AG,31,FALSE) -> 28944.22868 | AD222: 28944.22868 | AE222: 28944.22868
A223: Derby City Childminding Network - CAB | B223: 205852 | AB223: =VLOOKUP(B223,'2021-22 Nursery Budget'!C:AG,31,FALSE) -> 9003.153521 | AD223: 9003.153521 | AE223: 9003.153521
A224: Derby City Childminding Network - CEO | B224: EY412756 | AB224: =VLOOKUP(B224,'2021-22 Nursery Budget'!C:AG,31,FALSE) -> 7243.05 | AD224: 7243.05 | AE224: 7243.05
A225: Derby City Childminding Network - CJH | B225: 205922 | AB225: =VLOOKUP(B225,'2021-22 Nursery Budget'!C:AG,31,FALSE) -> 8976.630823 | AD225: 8976.630823 | AE225: 8976.630823
A226: Derby City Childminding Network - CLHP | B226: EY251518 | AB226: =VLOOKUP(B226,'2021-22 Nursery Budget'!C:AG,31,FALSE) -> 5997.302098 | AD226: 5997.302098 | AE226: 5997.302098
A227: Derby City Childminding Network - CM | B227: EY421552 | AB227: =VLOOKUP(B227,'2021-22 Nursery Budget'!C:AG,31,FALSE) -> 10719.34993 | AD227: 10719.34993 | AE227: 10719.34993
A228: Derby City Childminding Network - CM | B228: EY438525 | AB228: =VLOOKUP(B228,'2021-22 Nursery Budget'!C:AG,31,FALSE) -> 4189.560083 | AD228: 4189.560083 | AE228: 4189.560083
A229: Derby City Childminding Network - CR | B229: EY542496 | AB229: =VLOOKUP(B229,'2021-22 Nursery Budget'!C:AG,31,FALSE) -> 833.3090909 | AD229: 833.3090909 | AE229: 833.3090909
A230: Derby City Childminding Network - DFT | B230: EY386644 | AB230: =VLOOKUP(B230,'2021-22 Nursery Budget'!C:AG,31,FALSE) -> 2711.16 | AD230: 2711.16 | AE230: 2711.16
A231: Derby City Childminding Network - DG | B231: 205919 | AB231: =VLOOKUP(B231,'2021-22 Nursery Budget'!C:AG,31,FALSE) -> 8924.8493 | AD231: 8924.8493 | AE231: 8924.8493
A232: Derby City Childminding Network - DHK | B232: 205947 | AB232: =VLOOKUP(B232,'2021-22 Nursery Budget'!C:AG,31,FALSE) -> 2427.64 | AD232: 2427.64 | AE232: 2427.64
A233: Derby City Childminding Network - DS | B233: EY294474 | AB233: =VLOOKUP(B233,'2021-22 Nursery Budget'!C:AG,31,FALSE) -> 17194.76836 | AD233: =AB233 -> 17194.76836 | AE233: =AD233 -> 17194.76836
A234: Derby City Childminding Network - EB | B234: EY545371 | AB234: =VLOOKUP(B234,'2021-22 Nursery Budget'!C:AG,31,FALSE) -> 536.4571429 | AD234: 536.4571429 | AE234: 536.4571429
A235: Derby City Childminding Network - ECA | B235: EY477405 | AB235: =VLOOKUP(B235,'2021-22 Nursery Budget'!C:AG,31,FALSE) -> 1841.78 | AD235: 1841.78 | AE235: 1841.78
A236: Derby City Childminding Network - ELS | B236: EY455065 | AB236: =VLOOKUP(B236,'2021-22 Nursery Budget'!C:AG,31,FALSE) -> 14774.2699 | AD236: 14774.2699 | AE236: 14774.2699
A237: Derby City Childminding Network - EMK | B237: EY460509 | AB237: =VLOOKUP(B237,'2021-22 Nursery Budget'!C:AG,31,FALSE) -> 1439.096017 | AD237: 1439.096017 | AE237: 1439.096017
A238: Derby City Childminding Network - ER | B238: EY475575 | AB238: =VLOOKUP(B238,'2021-22 Nursery Budget'!C:AG,31,FALSE) -> 6073.794737 | AD238: 6073.794737 | AE238: 6073.794737
A239: Derby City Childminding Network - ES | B239: EY552102 | AB239: =VLOOKUP(B239,'2021-22 Nursery Budget'!C:AG,31,FALSE) -> 10443.05832 | AD239: 10443.05832 | AE239: 10443.05832
A240: Derby City Childminding Network - EU | B240: 639292 | AB240: =VLOOKUP(B240,'2021-22 Nursery Budget'!C:AG,31,FALSE) -> 1422.96 | AD240: 1422.96 | AE240: 1422.96
A241: Derby City Childminding Network - FM | B241: EY401536 | AB241: =VLOOKUP(B241,'2021-22 Nursery Budget'!C:AG,31,FALSE) -> 1219.85 | AD241: 1219.85 | AE241: 1219.85
A242: Derby City Childminding Network - GO | B242: HCEY00158 | AB242: =VLOOKUP(B242,'2021-22 Nursery Budget'!C:AG,31,FALSE) -> 5689.8 | AD242: 5689.8 | AE242: 5689.8
A243: Derby City Childminding Network - HB | B243: EY316120 | AB243: =VLOOKUP(B243,'2021-22 Nursery Budget'!C:AG,31,FALSE) -> 11153.51469 | AD243: 11153.51469 | AE243: 11153.51469
A244: Derby City Childminding Network - HGS | B244: EY407775 | AB244: =VLOOKUP(B244,'2021-22 Nursery Budget'!C:AG,31,FALSE) -> 1459.942098 | AD244: 1459.942098 | AE244: 1459.942098
A245: Derby City Childminding Network - HMS | B245: 205849 | AB245: =VLOOKUP(B245,'2021-22 Nursery Budget'!C:AG,31,FALSE) -> 29684.75784 | AD245: 29684.75784 | AE245: 29684.75784
A246: Derby City Childminding Network - JCh | B246: EY500987 | AB246: =VLOOKUP(B246,'2021-22 Nursery Budget'!C:AG,31,FALSE) -> 1203.618182 | AD246: 1203.618182 | AE246: 1203.618182
A247: Derby City Childminding Network - JCr | B247: EY492729 | AB247: =VLOOKUP(B247,'2021-22 Nursery Budget'!C:AG,31,FALSE) -> 11071.39121 | AD247: 11071.39121 | AE247: 11071.39121
A248: Derby City Childminding Network - JD | B248: 205881 | AB248: =VLOOKUP(B248,'2021-22 Nursery Budget'!C:AG,31,FALSE) -> 16523.9 | AD248: 16523.9 | AE248: 16523.9
A249: Derby City Childminding Network - JEA | B249: EY240000 | AB249: =VLOOKUP(B249,'2021-22 Nursery Budget'!C:AG,31,FALSE) -> 2011.625 | AD249: 2011.625 | AE249: 2011.625
A250: Derby City Childminding Network - JES | B250: EY368441 | AB250: =VLOOKUP(B250,'2021-22 Nursery Budget'!C:AG,31,FALSE) -> 14330.00428 | AD250: 14330.00428 | AE250: 14330.00428
... 192 more rows

Sheet School & Nursery Setting Lookup (hidden)
A1: CLICK ON THE ARROW BUTTON TO SELECT YOUR SCHOOL FROM THE LIST | C1: 12345 | I1: CLICK ON THE ARROW BUTTON TO SELECT YOUR SCHOOL FROM THE LIST | K1: 12345
A2: All Schools | C2: All | D2: 6 | E2: 6 | I2: All Schools | K2: All | L2: 6 | M2: 6
A3: Ace Nursery | B3: DE23 8DH | C3: 206189 | D3: D | E3: 4 | I3: Ace Nursery | J3: DE23 8DH | K3: 206189 | L3: D | M3: 4
A4: Akaal Primary School | C4: 2014 | I4: Akaal Primary School | K4: 2014
A5: Allenton Primary School | C5: 2012 | I5: Allenton Primary School | K5: 2012
A6: Allestree Woodlands School | C6: 5414 | I6: Allestree Woodlands School | K6: 5414
A7: Alvaston Achievers | B7: DE24 0PU | C7: EY545705 | D7: P | E7: 3 | I7: Alvaston Achievers | J7: DE24 0PU | K7: EY545705 | L7: P | M7: 3
A8: Alvaston Infant and Nursery School | B8: E200201 | C8: 2443 | D8: M | E8: 1 | I8: Alvaston Infant and Nursery School | J8: E200201 | K8: 2443 | L8: M | M8: 1
A9: Alvaston Junior Academy | C9: 2442 | I9: Alvaston Junior Academy | K9: 2442
A10: An-Noor Nursery | B10: DE23 8FB | C10: EY362920 | D10: D | E10: 4 | I10: An-Noor Nursery | J10: DE23 8FB | K10: EY362920 | L10: D | M10: 4
A11: Arboretum Primary School | B11: E200401 | C11: 2629 | D11: M | E11: 1 | I11: Arboretum Primary School | J11: E200401 | K11: 2629 | L11: M | M11: 1
A12: Ash Croft Primary Academy | C12: 2509 | I12: Ash Croft Primary Academy | K12: 2509
A13: Ashgate Nursery | B13: E100101 | C13: 1014 | D13: S | E13: 2 | I13: Ashgate Nursery | J13: E100101 | K13: 1014 | L13: S | M13: 2
A14: Ashgate Primary School | C14: 2005 | I14: Ashgate Primary School | K14: 2005
A15: Ashwood Spencer Academy | C15: 2021 | D15: M | E15: 1 | I15: Ashwood Spencer Academy | K15: 2021 | L15: M | M15: 1
A16: Asterdale Primary School | B16: E200701 | C16: 2464 | D16: M | E16: 1 | I16: Asterdale Primary School | J16: E200701 | K16: 2464 | L16: M | M16: 1
A17: Beaufort Community Primary School | B17: E200801 | C17: 2004 | D17: M | E17: 1 | I17: Beaufort Community Primary School | J17: E200801 | K17: 2004 | L17: M | M17: 1
A18: Becket Primary School | B18: E200901 | C18: 2405 | D18: M | E18: 1 | I18: Becket Primary School | J18: E200901 | K18: 2405 | L18: M | M18: 1
A19: Becket Sure Start Children's Centre | B19: DE22 3WR | C19: EY380753 | D19: D | E19: 4 | I19: Becket Sure Start Children's Centre | J19: DE22 3WR | K19: EY380753 | L19: D | M19: 4
A20: Best Start Sinfin | B20: DE24 9HW | C20: EY467568 | D20: D | E20: 4 | I20: Best Start Sinfin | J20: DE24 9HW | K20: EY467568 | L20: D | M20: 4
A21: Bishop Lonsdale Church of England Primary School and Nursery | C21: 2011 | D21: M | E21: 1 | I21: Bishop Lonsdale Church of England Primary School and Nursery | K21: 2011 | L21: M | M21: 1
A22: Bizzy Kidz | B22: DE23 6AP | C22: EY450983 | D22: D | E22: 4 | I22: Bizzy Kidz | J22: DE23 6AP | K22: EY450983 | L22: D | M22: 4
A23: Borrow Wood Primary School | B23: E201201 | C23: 5201 | D23: M | E23: 1 | I23: Borrow Wood Primary School | J23: E201201 | K23: 5201 | L23: M | M23: 1
A24: Boulton Lane Park Pre-School Playgroup | B24: DE24 0BD | C24: 206124 | D24: D | E24: 4 | I24: Boulton Lane Park Pre-School Playgroup | J24: DE24 0BD | K24: 206124 | L24: D | M24: 4
A25: Brackensdale Primary School | B25: E201401 | C25: 2432 | D25: M | E25: 1 | I25: Brackensdale Primary School | J25: E201401 | K25: 2432 | L25: M | M25: 1
A26: Bramble Brook Pre-School Playgroup | B26: DE3 9HD | C26: EY282068 | D26: D | E26: 4 | I26: Bramble Brook Pre-School Playgroup | J26: DE3 9HD | K26: EY282068 | L26: D | M26: 4
A27: Breadsall Hill Top Primary School | C27: 2018 | D27: M | E27: 1 | I27: Breadsall Hill Top Primary School | K27: 2018 | L27: M | M27: 1
A28: Brookfield Primary School | B28: E201801 | C28: 2512 | D28: M | E28: 1 | I28: Brookfield Primary School | J28: E201801 | K28: 2512 | L28: M | M28: 1
A29: Busy Bees Pre-School | B29: DE22 2HE | C29: 206126 | D29: D | E29: 4 | I29: Busy Bees Pre-School | J29: DE22 2HE | K29: 206126 | L29: D | M29: 4
A30: Busy Bees-Derby, Heatherton | B30: DE23 3TZ | C30: 206111 | D30: P | E30: 3 | I30: Busy Bees-Derby, Heatherton | J30: DE23 3TZ | K30: 206111 | L30: P | M30: 3
A31: Carlton Private Day Nursery | B31: DE22 1GQ | C31: 206091 | D31: P | E31: 3 | I31: Carlton Private Day Nursery | J31: DE22 1GQ | K31: 206091 | L31: P | M31: 3
A32: Carlyle Infant and Nursery Academy | B32: E201901 | C32: 2456 | D32: M | E32: 1 | I32: Carlyle Infant and Nursery Academy | J32: E201901 | K32: 2456 | L32: M | M32: 1
A33: Castleward Primary School | C33: 0122
A34: Cavendish Close Infant School | B34: E202001 | C34: 2449 | D34: M | E34: 1 | I34: Cavendish Close Infant School | J34: E202001 | K34: 2449 | L34: M | M34: 1
A35: Cavendish Close Junior Academy | C35: 2019 | I35: Cavendish Close Junior Academy | K35: 2019
A36: Central Nursery | B36: E100301 | C36: 1006 | D36: S | E36: 2 | I36: Central Nursery | J36: E100301 | K36: 1006 | L36: S | M36: 2
A37: Chaddesden Park Primary School | C37: 2467 | D37: M | E37: 1 | I37: Chaddesden Park Primary School | K37: 2467 | L37: M | M37: 1
A38: Chellaston Academy | C38: 5402 | I38: Chellaston Academy | K38: 5402
A39: Chellaston Infant School | C39: 2455 | I39: Chellaston Infant School | K39: 2455
A40: Chellaston Junior School | C40: 5203 | I40: Chellaston Junior School | K40: 5203
A41: Cherry Tree Hill Primary School | B41: E202601 | C41: 2451 | D41: M | E41: 1 | I41: Cherry Tree Hill Primary School | J41: E202601 | K41: 2451 | L41: M | M41: 1
A42: Childcare @ St James Centre | B42: DE23 8LU | C42: EY396374 | D42: P | E42: 3 | I42: Childcare @ St James Centre | J42: DE23 8LU | K42: EY396374 | L42: P | M42: 3
A43: Chuckles Pre-School Playgroup | B43: DE24 0RU | C43: 206128 | D43: P | E43: 3 | I43: Chuckles Pre-School Playgroup | J43: DE24 0RU | K43: 206128 | L43: P | M43: 3
A44: City of Derby Academy | C44: 4008 | I44: City of Derby Academy | K44: 4008
A45: Cottons Farm Primary Academy | C45: 2023 | D45: M | E45: 1 | I45: Cottons Farm Primary Academy | K45: 2023 | L45: M | M45: 1
A46: Da Vinci Academy | C46: 4007 | I46: Da Vinci Academy | K46: 4007
A47: Dale Community Primary School | C47: 2409 | I47: Dale Community Primary School | K47: 2409
A48: Derby Cathedral School | C48: 4004 | I48: Derby Cathedral School | K48: 4004
A49: Derby City Childminding Network - ABO | C49: EY440600 | D49: P | E49: 3 | I49: Derby City Childminding Network - ABO | K49: EY440600 | L49: P | M49: 3
A50: Derby City Childminding Network - AJH | B50: DE21 4JQ | C50: 205921 | D50: P | E50: 3 | I50: Derby City Childminding Network - AJH | J50: DE21 4JQ | K50: 205921 | L50: P | M50: 3
A51: Derby City Childminding Network - ALB | B51: DE21 7HY | C51: EY398922 | D51: P | E51: 3 | I51: Derby City Childminding Network - ALB | J51: DE21 7HY | K51: EY398922 | L51: P | M51: 3
A52: Derby City Childminding Network - AM | B52: DE23 6QT | C52: EY000013 | D52: P | E52: 3 | I52: Derby City Childminding Network - AM | J52: DE23 6QT | K52: EY000013 | L52: P | M52: 3
A53: Derby City Childminding Network - AMD | B53: DE24 9JR | C53: EY491735 | D53: P | E53: 3 | I53: Derby City Childminding Network - AMD | J53: DE24 9JR | K53: EY491735 | L53: P | M53: 3
A54: Derby City Childminding Network - AP | C54: EY536395 | D54: P | E54: 3 | I54: Derby City Childminding Network - AP | K54: EY536395 | L54: P | M54: 3
A55: Derby City Childminding Network - AR | B55: DE23 3YA | C55: 205999 | D55: P | E55: 3 | I55: Derby City Childminding Network - AR | J55: DE23 3YA | K55: 205999 | L55: P | M55: 3
A56: Derby City Childminding Network - AS | C56: 206011 | D56: P | E56: 3
A57: Derby City Childminding Network - Bonnies | C57: 2549324 | D57: P | E57: 3
A58: Derby City Childminding Network - CAB | B58: DE3 9AS | C58: 205852 | D58: P | E58: 3 | I58: Derby City Childminding Network - CAB | J58: DE3 9AS | K58: 205852 | L58: P | M58: 3
A59: Derby City Childminding Network - CEO | B59: DE21 2HZ | C59: EY412756 | D59: P | E59: 3 | I59: Derby City Childminding Network - CEO | J59: DE21 2HZ | K59: EY412756 | L59: P | M59: 3
A60: Derby City Childminding Network - CJH | C60: 205922 | D60: P | E60: 3 | I60: Derby City Childminding Network - CJH | K60: 205922 | L60: P | M60: 3
A61: Derby City Childminding Network - CLHP | B61: DE21 4RQ | C61: EY251518 | D61: P | E61: 3 | I61: Derby City Childminding Network - CLHP | J61: DE21 4RQ | K61: EY251518 | L61: P | M61: 3
A62: Derby City Childminding Network - CM | C62: EY421552 | D62: P | E62: 3 | I62: Derby City Childminding Network - CM | K62: EY421552 | L62: P | M62: 3
A63: Derby City Childminding Network - CM | B63: DE21 6GQ | C63: EY438525 | D63: P | E63: 3 | I63: Derby City Childminding Network - CM | J63: DE21 6GQ | K63: EY438525 | L63: P | M63: 3
A64: Derby City Childminding Network - CR | B64: DE24 0PD | C64: EY542496 | D64: P | E64: 3 | I64: Derby City Childminding Network - CR | J64: DE24 0PD | K64: EY542496 | L64: P | M64: 3
A65: Derby City Childminding Network - DFT | C65: EY386644 | D65: P | E65: 3 | I65: Derby City Childminding Network - DFT | K65: EY386644 | L65: P | M65: 3
A66: Derby City Childminding Network - DG | B66: DE21 7DF | C66: 205919 | D66: P | E66: 3 | I66: Derby City Childminding Network - DG | J66: DE21 7DF | K66: 205919 | L66: P | M66: 3
A67: Derby City Childminding Network - DHK | C67: 205947 | D67: P | E67: 3 | I67: Derby City Childminding Network - DHK | K67: 205947 | L67: P | M67: 3
A68: Derby City Childminding Network - DS | B68: DE24 0TZ | C68: EY294474 | D68: P | E68: 3 | I68: Derby City Childminding Network - DS | J68: DE24 0TZ | K68: EY294474 | L68: P | M68: 3
A69: Derby City Childminding Network - EB | C69: EY545371 | D69: P | E69: 3 | I69: Derby City Childminding Network - EB | K69: EY545371 | L69: P | M69: 3
A70: Derby City Childminding Network - ECA | B70: DE22 1DL | C70: EY477405 | D70: P | E70: 3 | I70: Derby City Childminding Network - ECA | J70: DE22 1DL | K70: EY477405 | L70: P | M70: 3
A71: Derby City Childminding Network - ELS | B71: DE24 0GA | C71: EY455065 | D71: P | E71: 3 | I71: Derby City Childminding Network - ELS | J71: DE24 0GA | K71: EY455065 | L71: P | M71: 3
